Workbook

Sheet HOJA DE TRABAJO
E1: REGISTROS
A3: Etiquetas de fila | B3: Suma de Valor Final | E3: COMPROMISO | F3: COMPROMISO ACUMULADO | G3: SUMATORIA CONTRATOS FDLCH | H3: DIFERENCIA
A4: 1293 | B4: 211330439 | E4: RUBRO | F4: PREDIS | G4: FORMATO
A5: 1294 | B5: 2186614540 | E5: FUNCIONAMIETO | F5: 2464019807 | G5: =SUM(B17:B40) -> 2464019807 | H5: =+F5-G5 -> 0
A6: 1295 | B6: 181965000 | E6: INVERSION DIRECTA | F6: =SUM(F7:F19) -> 18400660685 | G6: =SUM(B4:B16) -> 18400660685 | H6: =+F6-G6 -> 0
A7: 1296 | B7: 482708685 | E7: 1293 - Contribuir en el desarrollo de la primera i | F7: 211330439 | G7: =+GETPIVOTDATA("Valor Final ",$A$3,"Número Proyecto",1293) -> 211330439 | H7: 0
A8: 1297 | B8: 110000000 | E8: 1294 - Fortalecimiento a las personas mayores | F8: 2186614540 | G8: =+GETPIVOTDATA("Valor Final ",$A$3,"Número Proyecto",1294) -> 2186614540 | H8: 0
A9: 1298 | B9: 652384456 | E9: 1295 - Brindar acciones integrales, para personas | F9: 181965000 | G9: =+GETPIVOTDATA("Valor Final ",$A$3,"Número Proyecto",1295) -> 181965000 | H9: 0
A10: 1299 | B10: 70600000 | E10: 1296 - Reducción y mitigación del riesgo frente al | F10: 482708685 | G10: =+GETPIVOTDATA("Valor Final ",$A$3,"Número Proyecto",1296) -> 482708685 | H10: 0
A11: 1300 | B11: 77145000 | E11: 1297 - Por un territorio educado, incluyente y div | F11: 110000000 | G11: =+GETPIVOTDATA("Valor Final ",$A$3,"Número Proyecto",1297) -> 110000000 | H11: 0
A12: 1301 | B12: 3847273671 | E12: 1298 - Cultura y deporte: transformando vidas y ha | F12: 652384456 | G12: =+GETPIVOTDATA("Valor Final ",$A$3,"Número Proyecto",1298) -> 652384456 | H12: 0
A13: 1302 | B13: 1058083851 | E13: 1299 - Asesoría para legalización de barrios y tit | F13: 70600000 | G13: =+GETPIVOTDATA("Valor Final ",$A$3,"Número Proyecto",1299) -> 70600000 | H13: 0
A14: 1303 | B14: 381576497 | E14: 1300 - Adecuación y mantenimiento de parques | F14: 77145000 | G14: =+GETPIVOTDATA("Valor Final ",$A$3,"Número Proyecto",1300) -> 77145000 | H14: 0
A15: 1304 | B15: 2498798384 | E15: 1301 - Mejorar la calidad de la movilidad | F15: 3847273671 | G15: =+GETPIVOTDATA("Valor Final ",$A$3,"Número Proyecto",1301) -> 3847273671 | H15: 0
A16: 1305 | B16: 6642180162 | E16: 1302 - Entornos seguros para la ciudadanía | F16: 1058083851 | G16: =+GETPIVOTDATA("Valor Final ",$A$3,"Número Proyecto",1302) -> 1058083851 | H16: 0
A17: 131089001 | B17: 386340565 | E17: 1303 - Apoyo y asesoría a la ruralidad | F17: 381576497 | G17: =+GETPIVOTDATA("Valor Final ",$A$3,"Número Proyecto",1303) -> 381576497 | H17: 0
A18: 13101040102 | B18: 628959612 | E18: 1304 - Gobernanza y fortalecimiento del desarrollo | F18: 2498798384 | G18: =+GETPIVOTDATA("Valor Final ",$A$3,"Número Proyecto",1304) -> 2498798384 | H18: 0
A19: 1310201010102 | B19: 31327192 | E19: 1305 - En Chapinero participamos todos | F19: 6642180162 | G19: =+GETPIVOTDATA("Valor Final ",$A$3,"Número Proyecto",1305) -> 6642180162 | H19: 0
A20: 1310202010202 | B20: 19274922
A21: 1310202010203 | B21: 42249921
A22: 1310202010302 | B22: 148070729
A23: 13102020203050 | B23: 626942185
A24: 13102020203060 | B24: 36926000
A25: 131020202020105 | B25: 4811238
A26: 131020202020106 | B26: 78626800
A27: 131020202020107 | B27: 77090558
A28: 131020202020110 | B28: 4513950
A29: 131020202020201 | B29: 47466667
A30: 131020202030301 | B30: 22497500
A31: 131020202030401 | B31: 18384140
A32: 131020202030603 | B32: 60767810
A33: 131020202030608 | B33: 5470050
A34: 131020202030611 | B34: 13185031
A35: 131020202030612 | B35: 125746639
A36: 131020202040101 | B36: 52406900
A37: 131020202040102 | B37: 5970110
A38: 131020202040103 | B38: 7440840
A39: 1310202020101 | B39: 17100000
A40: 131020202030304 | B40: 2450448
A41: Total general | B41: 20864680492
E42: GIROS
A44: Etiquetas de fila | B44: Suma de Giros (Valor en pesos) | E44: COMPROMISO | F44: COMPROMISO ACUMULADO | G44: SUMATORIA GIROS FDLCH | H44: DIFERENCIA
A45: 1293 | B45: 54203333 | E45: RUBRO | F45: PREDIS | G45: FORMATO
A46: 1294 | B46: 2117503216 | E46: FUNCIONAMIETO | F46: 1784653988 | G46: =SUM(B58:B79) -> 1784653988 | H46: =+F46-G46 -> 0
A47: 1295 | B47: 39870000 | E47: INVERSION DIRECTA | F47: =SUM(F48:F60) -> 8606905121 | G47: =SUM(B45:B57) -> 8606905121 | H47: =+F47-G47 -> 0
A48: 1296 | B48: 90255000 | E48: 1293 - Contribuir en el desarrollo de la primera i | F48: 54203333 | G48: =+GETPIVOTDATA("Giros (Valor en pesos)",$A$44,"Número Proyecto",1293) -> 54203333 | H48: 0
A49: 1297 | B49: 41040000 | E49: 1294 - Fortalecimiento a las personas mayores | F49: 2117503216 | G49: =+GETPIVOTDATA("Giros (Valor en pesos)",$A$44,"Número Proyecto",1294) -> 2117503216 | H49: 0
A50: 1298 | B50: 94826666 | E50: 1295 - Brindar acciones integrales, para personas | F50: 39870000 | G50: =+GETPIVOTDATA("Giros (Valor en pesos)",$A$44,"Número Proyecto",1295) -> 39870000 | H50: 0
A51: 1299 | B51: 62473334 | E51: 1296 - Reducción y mitigación del riesgo frente al | F51: 90255000 | G51: =+GETPIVOTDATA("Giros (Valor en pesos)",$A$44,"Número Proyecto",1296) -> 90255000 | H51: 0
A52: 1300 | B52: 72019667 | E52: 1297 - Por un territorio educado, incluyente y div | F52: 41040000 | G52: =+GETPIVOTDATA("Giros (Valor en pesos)",$A$44,"Número Proyecto",1297) -> 41040000 | H52: 0
A53: 1301 | B53: 522187281 | E53: 1298 - Cultura y deporte: transformando vidas y ha | F53: 94826666 | G53: =+GETPIVOTDATA("Giros (Valor en pesos)",$A$44,"Número Proyecto",1298) -> 94826666 | H53: 0
A54: 1302 | B54: 448457376 | E54: 1299 - Asesoría para legalización de barrios y tit | F54: 62473334 | G54: =+GETPIVOTDATA("Giros (Valor en pesos)",$A$44,"Número Proyecto",1299) -> 62473334 | H54: 0
A55: 1303 | B55: 114142109 | E55: 1300 - Adecuación y mantenimiento de parques | F55: 72019667 | G55: =+GETPIVOTDATA("Giros (Valor en pesos)",$A$44,"Número Proyecto",1300) -> 72019667 | H55: 0
A56: 1304 | B56: 2302017230 | E56: 1301 - Mejorar la calidad de la movilidad | F56: 522187281 | G56: =+GETPIVOTDATA("Giros (Valor en pesos)",$A$44,"Número Proyecto",1301) -> 522187281 | H56: 0
A57: 1305 | B57: 2647909909 | E57: 1302 - Entornos seguros para la ciudadanía | F57: 448457376 | G57: =+GETPIVOTDATA("Giros (Valor en pesos)",$A$44,"Número Proyecto",1302) -> 448457376 | H57: 0
A58: 131089001 | B58: 375654604 | E58: 1303 - Apoyo y asesoría a la ruralidad | F58: 114142109 | G58: =+GETPIVOTDATA("Giros (Valor en pesos)",$A$44,"Número Proyecto",1303) -> 114142109 | H58: 0
A59: 13101040102 | B59: 628959612 | E59: 1304 - Gobernanza y fortalecimiento del desarrollo | F59: 2302017230 | G59: =+GETPIVOTDATA("Giros (Valor en pesos)",$A$44,"Número Proyecto",1304) -> 2302017230 | H59: 0
A60: 1310201010102 | B60: 0 | E60: 1305 - En Chapinero participamos todos | F60: 2647909909 | G60: =+GETPIVOTDATA("Giros (Valor en pesos)",$A$44,"Número Proyecto",1305) -> 2647909909 | H60: 0
A61: 1310202010202 | B61: 0
A62: 1310202010203 | B62: 14897350
A63: 1310202010302 | B63: 975000
A64: 13102020203050 | B64: 455698332
A65: 13102020203060 | B65: 24491935
A66: 131020202020105 | B66: 4811238
A67: 131020202020106 | B67: 78626800
A68: 131020202020107 | B68: 74994669
A69: 131020202020110 | B69: 0
A70: 131020202020201 | B70: 39466667
A71: 131020202030301 | B71: 0
A72: 131020202030401 | B72: 18384140
A73: 131020202030603 | B73: 0
A74: 131020202030608 | B74: 0
A75: 131020202030611 | B75: 2045031
A76: 131020202030612 | B76: 0
A77: 131020202040101 | B77: 52406900
A78: 131020202040102 | B78: 5970110
A79: 131020202040103 | B79: 7271600
A80: 1310202020101 | B80: 0
A81: 131020202030304 | B81: 0
A82: Total general | B82: 10391559109

Sheet Formato2020
A2: VEEDURIA DISTRITAL - RENDICION DE CUENTAS DE LA GESTION CONTRACTUAL EN EL DISTRITO CAPITAL (Acuerdo 380 de 2009)
A3: INFORMACION GENERAL DE CONTRATACION ENTIDADES DISTRITALES - ENERO 1 A 31 DICIEMBRE DE 2020
A5: 1. Entidad | E5: FONDO DE DESARROLLO LOCAL DE CHAPINERO | H5: 2. Sector | I5: Gobierno
A6: 3. Presupuesto Disponible Inversión Directa PREDIS | E6: 18785956671 | H6: 5. Presupuesto Disponible Funcionamiento PREDIS | I6: 2283000000 | AD6: 9. Nombre de quien diligencia el formato | AF6: MARYARY SUNED QUINCHE SÁNCHEZ
A7: 4. Presupuesto Comprometido de Inversión Directa según PREDIS | E7: 18400660685 | H7: 6. Presupuesto Comprometido Funcionamiento según PREDIS | I7: 2077679242 | AD7: Cargo | AF7: APOYO TÉCNICO
AD8: Dependencia | AF8: ÁREA GESTIÓN DEL DESARROLLO LOCAL
A9: 7. Presupuesto Disponible Operación (Régimen Privado) | AD9: Teléfono | AF9: 3820660 - 3387000
A10: 8. Presupuesto Comprometido Operación mediante contratos | AD10: Correo Electrónico | AF10: maryary.quinche@gobiernobogota.gov.co
A11: 1- INFORMACION GENERAL | Q11: 2- INFORMACION FINANCIERA | X11: 3 - PLAZOS | AD11: 4. CESION | AL11: 5. % Avance y/o cumplimiento
A12: 1 | B12: 2 | C12: 3 | E12: 4 | G12: 6 | H12: 7 | I12: 8 | N12: 9 | O12: 10 | Q12: 11 | R12: 12 | S12: 13 | T12: 14 | U12: 15 | V12: 16 | W12: 17 | X12: 18 | Y12: 19 | Z12: 20 | AA12: 21 | AB12: 22 | AC12: 23 | AD12: 24 | AE12: 25 | AF12: 26 | AG12: 27 | AL12: 29
A13: Número Contrato | B13: Año | C13: Proceso Publicado en | D13: Número de proceso contractual SECOP | E13: Tipo de contrato | F13: Modalidad de Selección | G13: Procedimiento o causal | H13: Objeto | I13: Afectación | J13: Plan de Desarrollo Distrital | K13: Número Programa | L13: Equivalencia número de programa | M13: Eje / Pilar / Propósito | N13: Número Proyecto | O13: Número de Identificación del contratista (NIT con digito de verificación) | P13: Nombre del contratista | Q13: Valor Inicial del contrato | R13: Número de reducciones | S13: Valor total reducciones (En valor negativo) | T13: Número de adiciones | U13: Valor total de adiciones | V13: Valor Final | W13: Giros (Valor en pesos) | X13: Fecha de suscripción (DD/MM/AAAA) | Y13: Fecha de inicio (DD/MM/AAAA) | Z13: Fecha de terminación (DD/MM/AAAA) | AA13: Plazo en días | AB13: Número de prórrogas | AC13: Prorroga en días | AD13: Número de Identificación del cesionario (NIT con digito de verificación) | AE13: Nombre cesionario | AF13: Fecha cesión (DD/MM/AAAA) | AG13: Valor cesión | AH13: Celebrado o por iniciar | AI13: En Ejecución | AJ13: Terminado | AK13: Liquidado | AL13: % Avance y/o Cumplimiento | AO13: Total Contratos | AP13: Validación Tipo | AQ13: Validación Modalidad | AR13: Validación procedimiento | AS13: Validación afectación | AT13: Validación programa | AU13: secop | AV13: Fecha suscripción | AW13: PDD
A14: FDLCH-CPS-001-2020 | B14: 2020 | C14: SECOP II | D14: CPS-001-2020 | E14: Contratos de prestación de servicios profesionales y de apoyo a la gestión | F14: Contratación directa | G14: Prestación de servicios profesionales y de apoyo a la gestión, o para la ejecución de trabajos artísticos que sólo puedan encomendarse a determinadas personas naturales; | H14: PRESTACIÓN DE SERVICIOS PROFESIONALES PARA APOYAR LA GESTIÓN CONTRACTUAL A CARGO DEL ÁREA DE GESTIÓN DEL DESARROLLO LOCAL DE LA ALCALDÍA LOCAL DE CHAPINERO | I14: Inversión | J14: Bogotá Mejor para Todos | K14: 45 | L14: =IF(ISERROR(VLOOKUP(K14,Eje_Pilar_Prop!$C$2:$E$104,2,FALSE))," ",VLOOKUP(K14,Eje_Pilar_Prop!$C$2:$E$104,2,FALSE)) -> Gobernanza e influencia local, regional e internacional | M14: =IF(ISERROR(VLOOKUP(K14,Eje_Pilar_Prop!$C$2:$E$104,3,FALSE))," ",VLOOKUP(K14,Eje_Pilar_Prop!$C$2:$E$104,3,FALSE)) -> Eje Transversal 4 Gobierno Legitimo, Fortalecimiento Local y Eficiencia | N14: 1304 | O14: 1078368894 | P14: JENNYFER PAOLA GALVIS TORRES | Q14: 22050000 | R14: 1 | S14: -1102050 | T14: 2 | U14: 11025000 | V14: =+Q14+S14+U14 -> 31972950 | W14: 31972500 | X14: 2020-01-21 | Y14: 2020-01-22 | Z14: 2020-07-15 | AA14: 120 | AB14: 2 | AC14: 60 | AJ14: X | AL14: =IF(ISERROR(W14/V14),"-",(W14/V14)) -> 0.9999859256 | AO14: =IF(SUMPRODUCT((A$14:A14=A14)*(B$14:B14=B14)*(D$14:D14=D14))>1,0,1) -> 1 | AP14: =IF(ISBLANK(E14),1,IFERROR(VLOOKUP(E14,tipo,1,FALSE),"NO")) -> Contratos de prestación de servicios profesionales y de apoyo a la gestión | AQ14: =IF(ISBLANK(F14),1,IFERROR(VLOOKUP(F14,modal,1,FALSE),"NO")) -> Contratación directa | AR14: =IF(ISBLANK(G14),1,IFERROR(VLOOKUP(G14,Tipo!$C$12:$C$27,1,FALSE),"NO")) -> Prestación de servicios profesionales y de apoyo a la gestión, o para la ejecución de trabajos artísticos que sólo puedan encomendarse a determinadas personas naturales; | AS14: =IF(ISBLANK(I14),1,IFERROR(VLOOKUP(I14,afectacion,1,FALSE),"NO")) -> Inversión | AT14: =IF(ISBLANK(K14),1,IFERROR(VLOOKUP(K14,Eje_Pilar_Prop!$C$3:$C$104,1,FALSE),"NO")) -> 45 | AU14: =IF(ISBLANK(C14),1,IFERROR(VLOOKUP(C14,SECOP,1,FALSE),"NO")) -> SECOP II | AV14: =IF(OR(YEAR(X14)=2020,ISBLANK(X14)),1,"NO") -> 1 | AW14: =IF(ISBLANK(J14),1,IFERROR(VLOOKUP(J14,pdd,1,FALSE),"NO")) -> Bogotá Mejor para Todos
A15: FDLCH-CPS-002-2020 | B15: 2020 | C15: SECOP II | D15: CPS-002-2020 | E15: Contratos de prestación de servicios profesionales y de apoyo a la gestión | F15: Contratación directa | G15: Prestación de servicios profesionales y de apoyo a la gestión, o para la ejecución de trabajos artísticos que sólo puedan encomendarse a determinadas personas naturales; | H15: PRESTACIÓN DE SERVICIOS PROFESIONALES PARA APOYAR LA GESTIÓN CONTRACTUAL A CARGO DEL ÁREA DE GESTIÓN DEL DESARROLLO LOCAL DE LA ALCALDÍA LOCAL DE CHAPINERO | I15: Inversión | J15: Bogotá Mejor para Todos | K15: 45 | L15: =IF(ISERROR(VLOOKUP(K15,Eje_Pilar_Prop!$C$2:$E$104,2,FALSE))," ",VLOOKUP(K15,Eje_Pilar_Prop!$C$2:$E$104,2,FALSE)) -> Gobernanza e influencia local, regional e internacional | M15: =IF(ISERROR(VLOOKUP(K15,Eje_Pilar_Prop!$C$2:$E$104,3,FALSE))," ",VLOOKUP(K15,Eje_Pilar_Prop!$C$2:$E$104,3,FALSE)) -> Eje Transversal 4 Gobierno Legitimo, Fortalecimiento Local y Eficiencia | N15: 1304 | O15: 51854194 | P15: BONNY BIANEY AGUIRRE BEDOYA | Q15: 22050000 | R15: 1 | S15: -1102050 | T15: 2 | U15: 11025000 | V15: 31972950 | W15: 31972500 | X15: 2020-01-21 | Y15: 2020-01-22 | Z15: 2020-07-15 | AA15: 120 | AB15: 2 | AC15: 60 | AJ15: X | AL15: 0.9999859256 | AO15: =IF(SUMPRODUCT((A$14:A15=A15)*(B$14:B15=B15)*(D$14:D15=D15))>1,0,1) -> 1 | AP15: Contratos de prestación de servicios profesionales y de apoyo a la gestión | AQ15: Contratación directa | AR15: =IF(ISBLANK(G15),1,IFERROR(VLOOKUP(G15,Tipo!$C$12:$C$27,1,FALSE),"NO")) -> Prestación de servicios profesionales y de apoyo a la gestión, o para la ejecución de trabajos artísticos que sólo puedan encomendarse a determinadas personas naturales; | AS15: Inversión | AT15: =IF(ISBLANK(K15),1,IFERROR(VLOOKUP(K15,Eje_Pilar_Prop!$C$3:$C$104,1,FALSE),"NO")) -> 45 | AU15: SECOP II | AV15: 1 | AW15: Bogotá Mejor para Todos
A16: FDLCH-CPS-003-2020 | B16: 2020 | C16: SECOP II | D16: CPS-003-2020 | E16: Contratos de prestación de servicios profesionales y de apoyo a la gestión | F16: Contratación directa | G16: Prestación de servicios profesionales y de apoyo a la gestión, o para la ejecución de trabajos artísticos que sólo puedan encomendarse a determinadas personas naturales; | H16: PRESTACIÓN DE SERVICIOS PROFESIONALES PARA APOYAR LA GESTIÓN JURÍDICA DEL DESPACHO DE LA ALCALDÍA LOCAL DE CHAPINERO Y LA DE LAS DEPENDENCIAS QUE LA CONFORMAN, EN CUMPLIMIENTO DE LAS FUNCIONES ESTABLECIDAS POR MANDATO CONSTITUCIONAL Y LEGAL | I16: Inversión | J16: Bogotá Mejor para Todos | K16: 45 | L16: =IF(ISERROR(VLOOKUP(K16,Eje_Pilar_Prop!$C$2:$E$104,2,FALSE))," ",VLOOKUP(K16,Eje_Pilar_Prop!$C$2:$E$104,2,FALSE)) -> Gobernanza e influencia local, regional e internacional | M16: =IF(ISERROR(VLOOKUP(K16,Eje_Pilar_Prop!$C$2:$E$104,3,FALSE))," ",VLOOKUP(K16,Eje_Pilar_Prop!$C$2:$E$104,3,FALSE)) -> Eje Transversal 4 Gobierno Legitimo, Fortalecimiento Local y Eficiencia | N16: 1304 | O16: 53159659 | P16: ERIKA NATHALIA MUNERA LEMUS | Q16: 36000000 | R16: 0 | S16: 0 | T16: 0 | U16: 0 | V16: =+Q16+S16+U16 -> 36000000 | W16: 36000000 | X16: 2020-01-22 | Y16: 2020-01-22 | Z16: =+Y16 -> 2020-01-22 | AA16: 120 | AB16: 0 | AC16: 0 | AJ16: X | AL16: 1 | AO16: =IF(SUMPRODUCT((A$14:A16=A16)*(B$14:B16=B16)*(D$14:D16=D16))>1,0,1) -> 1 | AP16: =IF(ISBLANK(E16),1,IFERROR(VLOOKUP(E16,tipo,1,FALSE),"NO")) -> Contratos de prestación de servicios profesionales y de apoyo a la gestión | AQ16: =IF(ISBLANK(F16),1,IFERROR(VLOOKUP(F16,modal,1,FALSE),"NO")) -> Contratación directa | AR16: =IF(ISBLANK(G16),1,IFERROR(VLOOKUP(G16,Tipo!$C$12:$C$27,1,FALSE),"NO")) -> Prestación de servicios profesionales y de apoyo a la gestión, o para la ejecución de trabajos artísticos que sólo puedan encomendarse a determinadas personas naturales; | AS16: =IF(ISBLANK(I16),1,IFERROR(VLOOKUP(I16,afectacion,1,FALSE),"NO")) -> Inversión | AT16: =IF(ISBLANK(K16),1,IFERROR(VLOOKUP(K16,Eje_Pilar_Prop!$C$3:$C$104,1,FALSE),"NO")) -> 45 | AU16: =IF(ISBLANK(C16),1,IFERROR(VLOOKUP(C16,SECOP,1,FALSE),"NO")) -> SECOP II | AV16: =IF(OR(YEAR(X16)=2020,ISBLANK(X16)),1,"NO") -> 1 | AW16: =IF(ISBLANK(J16),1,IFERROR(VLOOKUP(J16,pdd,1,FALSE),"NO")) -> Bogotá Mejor para Todos
A17: FDLCH-CPS-004-2020 | B17: 2020 | C17: SECOP II | D17: CPS-004-2020 | E17: Contratos de prestación de servicios profesionales y de apoyo a la gestión | F17: Contratación directa | G17: Prestación de servicios profesionales y de apoyo a la gestión, o para la ejecución de trabajos artísticos que sólo puedan encomendarse a determinadas personas naturales; | H17: PRESTACIÓN DE SERVICIOS PROFESIONALES PARA APOYAR LA GESTIÓN CONTRACTUAL A CARGO DEL ÁREA DE GESTIÓN DEL DESARROLLO LOCAL DE LA ALCALDÍA LOCAL DE CHAPINERO | I17: Inversión | J17: Bogotá Mejor para Todos | K17: 45 | L17: =IF(ISERROR(VLOOKUP(K17,Eje_Pilar_Prop!$C$2:$E$104,2,FALSE))," ",VLOOKUP(K17,Eje_Pilar_Prop!$C$2:$E$104,2,FALSE)) -> Gobernanza e influencia local, regional e internacional | M17: =IF(ISERROR(VLOOKUP(K17,Eje_Pilar_Prop!$C$2:$E$104,3,FALSE))," ",VLOOKUP(K17,Eje_Pilar_Prop!$C$2:$E$104,3,FALSE)) -> Eje Transversal 4 Gobierno Legitimo, Fortalecimiento Local y Eficiencia | N17: 1304 | O17: 49772886 | P17: PAOLA KARINA ESCALONA PABON | Q17: 22050000 | R17: 0 | S17: 0 | T17: 1 | U17: 5512500 | V17: 27562500 | W17: 27562500 | X17: 2020-01-23 | Y17: 2020-01-24 | Z17: 2020-07-11 | AA17: 120 | AB17: 1 | AC17: 30 | AD17: 39576142 | AE17: MARGARITA MARIA CASAS ALARCON | AF17: 2020-02-19 | AG17: 17088750 | AJ17: X | AL17: 1 | AO17: =IF(SUMPRODUCT((A$14:A17=A17)*(B$14:B17=B17)*(D$14:D17=D17))>1,0,1) -> 1 | AP17: Contratos de prestación de servicios profesionales y de apoyo a la gestión | AQ17: Contratación directa | AR17: =IF(ISBLANK(G17),1,IFERROR(VLOOKUP(G17,Tipo!$C$12:$C$27,1,FALSE),"NO")) -> Prestación de servicios profesionales y de apoyo a la gestión, o para la ejecución de trabajos artísticos que sólo puedan encomendarse a determinadas personas naturales; | AS17: Inversión | AT17: =IF(ISBLANK(K17),1,IFERROR(VLOOKUP(K17,Eje_Pilar_Prop!$C$3:$C$104,1,FALSE),"NO")) -> 45 | AU17: SECOP II | AV17: 1 | AW17: Bogotá Mejor para Todos
A18: FDLCH-CPS-005-2020 | B18: 2020 | C18: SECOP II | D18: CPS-005-2020 | E18: Contratos de prestación de servicios profesionales y de apoyo a la gestión | F18: Contratación directa | G18: Prestación de servicios profesionales y de apoyo a la gestión, o para la ejecución de trabajos artísticos que sólo puedan encomendarse a determinadas personas naturales; | H18: PRESTACIÓN DE SERVICIOS PROFESIONALES PARA EL APOYO AL ÁREA DE GESTIÓN DEL DESARROLLO LOCAL DE LA ALCALDÍA LOCAL DE CHAPINERO EN LA FORMULACIÓN, GESTIÓN, EJECUCIÓN Y SEGUIMIENTO A LOS PROYECTOS ASIGNADOS POR EL ALCALDE LOCAL DE CHAPINERO DERIVADOS DE LOS GASTOS DE FUNCIONAMIENTOS Y LA SUPERVISIÓN DE CONTRATOS QUE LE SEAN ASIGNADOS | I18: Inversión | J18: Bogotá Mejor para Todos | K18: 45 | L18: =IF(ISERROR(VLOOKUP(K18,Eje_Pilar_Prop!$C$2:$E$104,2,FALSE))," ",VLOOKUP(K18,Eje_Pilar_Prop!$C$2:$E$104,2,FALSE)) -> Gobernanza e influencia local, regional e internacional | M18: =IF(ISERROR(VLOOKUP(K18,Eje_Pilar_Prop!$C$2:$E$104,3,FALSE))," ",VLOOKUP(K18,Eje_Pilar_Prop!$C$2:$E$104,3,FALSE)) -> Eje Transversal 4 Gobierno Legitimo, Fortalecimiento Local y Eficiencia | N18: 1304 | O18: 1020779113 | P18: DANIEL FELIPE SANTIAGO COHEN | Q18: 23100000 | R18: 0 | S18: 0 | T18: 0 | U18: 0 | V18: 23100000 | W18: 23100000 | X18: 2020-01-23 | Y18: 2020-01-24 | Z18: =+Y18 -> 2020-01-24 | AA18: 120 | AB18: 0 | AC18: 0 | AJ18: X | AL18: 1 | AO18: =IF(SUMPRODUCT((A$14:A18=A18)*(B$14:B18=B18)*(D$14:D18=D18))>1,0,1) -> 1 | AP18: Contratos de prestación de servicios profesionales y de apoyo a la gestión | AQ18: Contratación directa | AR18: =IF(ISBLANK(G18),1,IFERROR(VLOOKUP(G18,Tipo!$C$12:$C$27,1,FALSE),"NO")) -> Prestación de servicios profesionales y de apoyo a la gestión, o para la ejecución de trabajos artísticos que sólo puedan encomendarse a determinadas personas naturales; | AS18: Inversión | AT18: =IF(ISBLANK(K18),1,IFERROR(VLOOKUP(K18,Eje_Pilar_Prop!$C$3:$C$104,1,FALSE),"NO")) -> 45 | AU18: SECOP II | AV18: 1 | AW18: Bogotá Mejor para Todos
A19: FDLCH-CPS-006-2020 | B19: 2020 | C19: SECOP II | D19: CPS-006-2020 | E19: Contratos de prestación de servicios profesionales y de apoyo a la gestión | F19: Contratación directa | G19: Prestación de servicios profesionales y de apoyo a la gestión, o para la ejecución de trabajos artísticos que sólo puedan encomendarse a determinadas personas naturales; | H19: PRESTACIÓN DE SERVICIOS PERSONALES NECESARIOS PARA EL APOYO EN LA EJECUCIÓN DE ACTIVIDADES ADMINISTRATIVAS Y OPERATIVAS ADELANTADAS EN LA JUNTA ADMINISTRADORA LOCAL DE CHAPINERO | I19: Inversión | J19: Bogotá Mejor para Todos | K19: 45 | L19: =IF(ISERROR(VLOOKUP(K19,Eje_Pilar_Prop!$C$2:$E$104,2,FALSE))," ",VLOOKUP(K19,Eje_Pilar_Prop!$C$2:$E$104,2,FALSE)) -> Gobernanza e influencia local, regional e internacional | M19: =IF(ISERROR(VLOOKUP(K19,Eje_Pilar_Prop!$C$2:$E$104,3,FALSE))," ",VLOOKUP(K19,Eje_Pilar_Prop!$C$2:$E$104,3,FALSE)) -> Eje Transversal 4 Gobierno Legitimo, Fortalecimiento Local y Eficiencia | N19: 1304 | O19: 51968302 | P19: DIANA SOFIA MELO CASTRO | Q19: 9922500 | R19: 0 | S19: 0 | T19: 1 | U19: 4382438 | V19: 14304938 | W19: 14304938 | X19: 2020-01-21 | Y19: 2020-01-22 | Z19: 2020-07-14 | AA19: 120 | AB19: 1 | AC19: 30 | AJ19: X | AL19: 1 | AO19: =IF(SUMPRODUCT((A$14:A19=A19)*(B$14:B19=B19)*(D$14:D19=D19))>1,0,1) -> 1 | AP19: Contratos de prestación de servicios profesionales y de apoyo a la gestión | AQ19: Contratación directa | AR19: =IF(ISBLANK(G19),1,IFERROR(VLOOKUP(G19,Tipo!$C$12:$C$27,1,FALSE),"NO")) -> Prestación de servicios profesionales y de apoyo a la gestión, o para la ejecución de trabajos artísticos que sólo puedan encomendarse a determinadas personas naturales; | AS19: Inversión | AT19: =IF(ISBLANK(K19),1,IFERROR(VLOOKUP(K19,Eje_Pilar_Prop!$C$3:$C$104,1,FALSE),"NO")) -> 45 | AU19: SECOP II | AV19: 1 | AW19: Bogotá Mejor para Todos
A20: FDLCH-CPS-007-2020 | B20: 2020 | C20: SECOP II | D20: CPS-007-2020 | E20: Contratos de prestación de servicios profesionales y de apoyo a la gestión | F20: Contratación directa | G20: Prestación de servicios profesionales y de apoyo a la gestión, o para la ejecución de trabajos artísticos que sólo puedan encomendarse a determinadas personas naturales; | H20: PRESTACIÓN DE LOS SERVICIOS PERSONALES NECESARIOS PARA LA CONDUCCIÓN DE LOS VEHÍCULOS QUE CONFORMAN EL PARQUE AUTOMOTOR EN PROPIEDAD O CUSTODIA DEL FONDO DE DESARROLLO LOCAL DE CHAPINERO, Y EL TRANSPORTE DE SERVIDORES PÚBLICOS PARA LA REALIZACIÓN DE LAS ACTIVIDADES MISIONALES DE LA ALCALDÍA LOCAL DE CHAPINERO. | I20: Inversión | J20: Bogotá Mejor para Todos | K20: 45 | L20: =IF(ISERROR(VLOOKUP(K20,Eje_Pilar_Prop!$C$2:$E$104,2,FALSE))," ",VLOOKUP(K20,Eje_Pilar_Prop!$C$2:$E$104,2,FALSE)) -> Gobernanza e influencia local, regional e internacional | M20: =IF(ISERROR(VLOOKUP(K20,Eje_Pilar_Prop!$C$2:$E$104,3,FALSE))," ",VLOOKUP(K20,Eje_Pilar_Prop!$C$2:$E$104,3,FALSE)) -> Eje Transversal 4 Gobierno Legitimo, Fortalecimiento Local y Eficiencia | N20: 1304 | O20: 79518739 | P20: GERARDO MORENO HERRERA | Q20: 9360000 | R20: 0 | S20: 0 | T20: 1 | U20: 4056000 | V20: 13416000 | W20: 13416000 | X20: 2020-01-23 | Y20: 2020-01-24 | Z20: 2020-07-15 | AA20: 120 | AB20: 1 | AC20: 60 | AJ20: X | AL20: 1 | AO20: =IF(SUMPRODUCT((A$14:A20=A20)*(B$14:B20=B20)*(D$14:D20=D20))>1,0,1) -> 1 | AP20: Contratos de prestación de servicios profesionales y de apoyo a la gestión | AQ20: Contratación directa | AR20: =IF(ISBLANK(G20),1,IFERROR(VLOOKUP(G20,Tipo!$C$12:$C$27,1,FALSE),"NO")) -> Prestación de servicios profesionales y de apoyo a la gestión, o para la ejecución de trabajos artísticos que sólo puedan encomendarse a determinadas personas naturales; | AS20: Inversión | AT20: =IF(ISBLANK(K20),1,IFERROR(VLOOKUP(K20,Eje_Pilar_Prop!$C$3:$C$104,1,FALSE),"NO")) -> 45 | AU20: SECOP II | AV20: 1 | AW20: Bogotá Mejor para Todos
A21: FDLCH-CPS-008-2020 | B21: 2020 | C21: SECOP II | D21: CPS-008-2020 | E21: Contratos de prestación de servicios profesionales y de apoyo a la gestión | F21: Contratación directa | G21: Prestación de servicios profesionales y de apoyo a la gestión, o para la ejecución de trabajos artísticos que sólo puedan encomendarse a determinadas personas naturales; | H21: PRESTACIÓN DE SERVICIOS PARA EL APOYO EN LA EJECUCIÓN DE ACTIVIDADES ADMINISTRATIVAS Y OPERATIVAS TRANSVERSALES AL ÁREA DE GESTIÓN DEL DESARROLLO LOCAL RELACIONADAS CON LA GESTIÓN CONTRACTUAL DE LA ALCALDÍA LOCAL DE CHAPINERO | I21: Inversión | J21: Bogotá Mejor para Todos | K21: 45 | L21: =IF(ISERROR(VLOOKUP(K21,Eje_Pilar_Prop!$C$2:$E$104,2,FALSE))," ",VLOOKUP(K21,Eje_Pilar_Prop!$C$2:$E$104,2,FALSE)) -> Gobernanza e influencia local, regional e internacional | M21: =IF(ISERROR(VLOOKUP(K21,Eje_Pilar_Prop!$C$2:$E$104,3,FALSE))," ",VLOOKUP(K21,Eje_Pilar_Prop!$C$2:$E$104,3,FALSE)) -> Eje Transversal 4 Gobierno Legitimo, Fortalecimiento Local y Eficiencia | N21: 1304 | O21: 52119337 | P21: MARTHA YANETH VASQUEZ FIGUEROA | Q21: 9816660 | R21: 0 | S21: 0 | T21: 0 | U21: 0 | V21: 9816660 | W21: 9816660 | X21: 2020-01-20 | Y21: 2020-01-24 | Z21: =+Y21 -> 2020-01-24 | AA21: 120 | AB21: 0 | AC21: 0 | AJ21: X | AL21: 1 | AO21: =IF(SUMPRODUCT((A$14:A21=A21)*(B$14:B21=B21)*(D$14:D21=D21))>1,0,1) -> 1 | AP21: Contratos de prestación de servicios profesionales y de apoyo a la gestión | AQ21: Contratación directa | AR21: =IF(ISBLANK(G21),1,IFERROR(VLOOKUP(G21,Tipo!$C$12:$C$27,1,FALSE),"NO")) -> Prestación de servicios profesionales y de apoyo a la gestión, o para la ejecución de trabajos artísticos que sólo puedan encomendarse a determinadas personas naturales; | AS21: Inversión | AT21: =IF(ISBLANK(K21),1,IFERROR(VLOOKUP(K21,Eje_Pilar_Prop!$C$3:$C$104,1,FALSE),"NO")) -> 45 | AU21: SECOP II | AV21: 1 | AW21: Bogotá Mejor para Todos
A22: FDLCH-CPS-009-2020 | B22: 2020 | C22: SECOP II | D22: CPS-009-2020 | E22: Contratos de prestación de servicios profesionales y de apoyo a la gestión | F22: Contratación directa | G22: Prestación de servicios profesionales y de apoyo a la gestión, o para la ejecución de trabajos artísticos que sólo puedan encomendarse a determinadas personas naturales; | H22: PRESTACIÓN DE LOS SERVICIOS TÉCNICOS PARA APOYAR LA GESTIÓN Y EJECUCIÓN DE ACTIVIDADES ADMINISTRATIVAS Y OPERATIVAS QUE SE ADELANTAN EN EL DESPACHO DE LA ALCALDÍA LOCAL DE CHAPINERO. | I22: Inversión | J22: Bogotá Mejor para Todos | K22: 45 | L22: =IF(ISERROR(VLOOKUP(K22,Eje_Pilar_Prop!$C$2:$E$104,2,FALSE))," ",VLOOKUP(K22,Eje_Pilar_Prop!$C$2:$E$104,2,FALSE)) -> Gobernanza e influencia local, regional e internacional | M22: =IF(ISERROR(VLOOKUP(K22,Eje_Pilar_Prop!$C$2:$E$104,3,FALSE))," ",VLOOKUP(K22,Eje_Pilar_Prop!$C$2:$E$104,3,FALSE)) -> Eje Transversal 4 Gobierno Legitimo, Fortalecimiento Local y Eficiencia | N22: 1304 | O22: 22511864 | P22: SONIA MILENA PORTILLO OSORIO | Q22: 15400000 | R22: 0 | S22: 0 | T22: 0 | U22: 0 | V22: 15400000 | W22: 15400000 | X22: 2020-01-22 | Y22: 2020-01-24 | Z22: =+Y22 -> 2020-01-24 | AA22: 120 | AB22: 0 | AC22: 0 | AJ22: X | AL22: 1 | AO22: =IF(SUMPRODUCT((A$14:A22=A22)*(B$14:B22=B22)*(D$14:D22=D22))>1,0,1) -> 1 | AP22: Contratos de prestación de servicios profesionales y de apoyo a la gestión | AQ22: Contratación directa | AR22: =IF(ISBLANK(G22),1,IFERROR(VLOOKUP(G22,Tipo!$C$12:$C$27,1,FALSE),"NO")) -> Prestación de servicios profesionales y de apoyo a la gestión, o para la ejecución de trabajos artísticos que sólo puedan encomendarse a determinadas personas naturales; | AS22: Inversión | AT22: =IF(ISBLANK(K22),1,IFERROR(VLOOKUP(K22,Eje_Pilar_Prop!$C$3:$C$104,1,FALSE),"NO")) -> 45 | AU22: SECOP II | AV22: 1 | AW22: Bogotá Mejor para Todos
A23: FDLCH-CPS-010-2020 | B23: 2020 | C23: SECOP II | D23: CPS-010-2020 | E23: Contratos de prestación de servicios profesionales y de apoyo a la gestión | F23: Contratación directa | G23: Prestación de servicios profesionales y de apoyo a la gestión, o para la ejecución de trabajos artísticos que sólo puedan encomendarse a determinadas personas naturales; | H23: PRESTACIÓN DE LOS SERVICIOS PERSONALES NECESARIOS PARA LA CONDUCCIÓN DE LOS VEHÍCULOS QUE CONFORMAN EL PARQUE AUTOMOTOR EN PROPIEDAD O CUSTODIA DEL FONDO DE DESARROLLO LOCAL DE CHAPINERO, Y EL TRANSPORTE DE SERVIDORES PÚBLICOS PARA LA REALIZACIÓN DE LAS ACTIVIDADES MISIONALES DE LA ALCALDÍA LOCAL DE CHAPINERO. | I23: Inversión | J23: Bogotá Mejor para Todos | K23: 45 | L23: =IF(ISERROR(VLOOKUP(K23,Eje_Pilar_Prop!$C$2:$E$104,2,FALSE))," ",VLOOKUP(K23,Eje_Pilar_Prop!$C$2:$E$104,2,FALSE)) -> Gobernanza e influencia local, regional e internacional | M23: =IF(ISERROR(VLOOKUP(K23,Eje_Pilar_Prop!$C$2:$E$104,3,FALSE))," ",VLOOKUP(K23,Eje_Pilar_Prop!$C$2:$E$104,3,FALSE)) -> Eje Transversal 4 Gobierno Legitimo, Fortalecimiento Local y Eficiencia | N23: 1304 | O23: 80157713 | P23: FERNANDO MEDINA MONTERO | Q23: 9360000 | R23: 1 | S23: -546000 | T23: 1 | U23: 4680000 | V23: 13494000 | W23: 13494000 | X23: 2020-01-22 | Y23: 2020-01-23 | Z23: 2020-07-15 | AA23: 120 | AB23: 1 | AC23: 60 | AJ23: X | AL23: 1 | AO23: =IF(SUMPRODUCT((A$14:A23=A23)*(B$14:B23=B23)*(D$14:D23=D23))>1,0,1) -> 1 | AP23: Contratos de prestación de servicios profesionales y de apoyo a la gestión | AQ23: Contratación directa | AR23: =IF(ISBLANK(G23),1,IFERROR(VLOOKUP(G23,Tipo!$C$12:$C$27,1,FALSE),"NO")) -> Prestación de servicios profesionales y de apoyo a la gestión, o para la ejecución de trabajos artísticos que sólo puedan encomendarse a determinadas personas naturales; | AS23: Inversión | AT23: =IF(ISBLANK(K23),1,IFERROR(VLOOKUP(K23,Eje_Pilar_Prop!$C$3:$C$104,1,FALSE),"NO")) -> 45 | AU23: SECOP II | AV23: 1 | AW23: Bogotá Mejor para Todos
A24: FDLCH-CPS-011-2020 | B24: 2020 | C24: SECOP II | D24: CPS-011-2020 | E24: Contratos de prestación de servicios profesionales y de apoyo a la gestión | F24: Contratación directa | G24: Prestación de servicios profesionales y de apoyo a la gestión, o para la ejecución de trabajos artísticos que sólo puedan encomendarse a determinadas personas naturales; | H24: PRESTACIÓN DE LOS SERVICIOS PERSONALES NECESARIOS PARA LA CONDUCCIÓN DE LOS VEHÍCULOS QUE CONFORMAN EL PARQUE AUTOMOTOR EN PROPIEDAD O CUSTODIA DEL FONDO DE DESARROLLO LOCAL DE CHAPINERO, Y EL TRANSPORTE DE SERVIDORES PÚBLICOS PARA LA REALIZACIÓN DE LAS ACTIVIDADES MISIONALES DE LA ALCALDÍA LOCAL DE CHAPINERO. | I24: Inversión | J24: Bogotá Mejor para Todos | K24: 45 | L24: =IF(ISERROR(VLOOKUP(K24,Eje_Pilar_Prop!$C$2:$E$104,2,FALSE))," ",VLOOKUP(K24,Eje_Pilar_Prop!$C$2:$E$104,2,FALSE)) -> Gobernanza e influencia local, regional e internacional | M24: =IF(ISERROR(VLOOKUP(K24,Eje_Pilar_Prop!$C$2:$E$104,3,FALSE))," ",VLOOKUP(K24,Eje_Pilar_Prop!$C$2:$E$104,3,FALSE)) -> Eje Transversal 4 Gobierno Legitimo, Fortalecimiento Local y Eficiencia | N24: 1304 | O24: 3220879 | P24: BENEDICTO VANEGAS CASTELLANOS | Q24: 9360000 | R24: 1 | S24: -1092000 | T24: 1 | U24: 4680000 | V24: 12948000 | W24: 12948000 | X24: 2020-01-22 | Y24: 2020-01-23 | Z24: 2020-07-15 | AA24: 120 | AB24: 1 | AC24: 60 | AJ24: X | AL24: 1 | AO24: =IF(SUMPRODUCT((A$14:A24=A24)*(B$14:B24=B24)*(D$14:D24=D24))>1,0,1) -> 1 | AP24: Contratos de prestación de servicios profesionales y de apoyo a la gestión | AQ24: Contratación directa | AR24: =IF(ISBLANK(G24),1,IFERROR(VLOOKUP(G24,Tipo!$C$12:$C$27,1,FALSE),"NO")) -> Prestación de servicios profesionales y de apoyo a la gestión, o para la ejecución de trabajos artísticos que sólo puedan encomendarse a determinadas personas naturales; | AS24: Inversión | AT24: =IF(ISBLANK(K24),1,IFERROR(VLOOKUP(K24,Eje_Pilar_Prop!$C$3:$C$104,1,FALSE),"NO")) -> 45 | AU24: SECOP II | AV24: 1 | AW24: Bogotá Mejor para Todos
A25: FDLCH-CPS-012-2020 | B25: 2020 | C25: SECOP II | D25: CPS-012-2020 | E25: Contratos de prestación de servicios profesionales y de apoyo a la gestión | F25: Contratación directa | G25: Prestación de servicios profesionales y de apoyo a la gestión, o para la ejecución de trabajos artísticos que sólo puedan encomendarse a determinadas personas naturales; | H25: “PRESTACIÓN DE SERVICIOS PERSONALES NECESARIOS PARA EL APOYO EN LA EJECUCIÓN DE ACTIVIDADES ADMINISTRATIVAS Y OPERATIVAS ADELANTADAS EN LA JUNTA ADMINISTRADORA LOCAL DE CHAPINERO” | I25: Inversión | J25: Bogotá Mejor para Todos | K25: 45 | L25: =IF(ISERROR(VLOOKUP(K25,Eje_Pilar_Prop!$C$2:$E$104,2,FALSE))," ",VLOOKUP(K25,Eje_Pilar_Prop!$C$2:$E$104,2,FALSE)) -> Gobernanza e influencia local, regional e internacional | M25: =IF(ISERROR(VLOOKUP(K25,Eje_Pilar_Prop!$C$2:$E$104,3,FALSE))," ",VLOOKUP(K25,Eje_Pilar_Prop!$C$2:$E$104,3,FALSE)) -> Eje Transversal 4 Gobierno Legitimo, Fortalecimiento Local y Eficiencia | N25: 1304 | O25: 52523548 | P25: SANDRA MILENA GÓMEZ SALAZAR | Q25: 9922500 | R25: 1 | S25: -744187 | T25: 1 | U25: 4961250 | V25: 14139563 | W25: 14139563 | X25: 2020-01-22 | Y25: 2020-01-24 | Z25: 2020-07-14 | AA25: 120 | AB25: 1 | AC25: 60 | AJ25: X | AL25: 1 | AO25: =IF(SUMPRODUCT((A$14:A25=A25)*(B$14:B25=B25)*(D$14:D25=D25))>1,0,1) -> 1 | AP25: Contratos de prestación de servicios profesionales y de apoyo a la gestión | AQ25: Contratación directa | AR25: =IF(ISBLANK(G25),1,IFERROR(VLOOKUP(G25,Tipo!$C$12:$C$27,1,FALSE),"NO")) -> Prestación de servicios profesionales y de apoyo a la gestión, o para la ejecución de trabajos artísticos que sólo puedan encomendarse a determinadas personas naturales; | AS25: Inversión | AT25: =IF(ISBLANK(K25),1,IFERROR(VLOOKUP(K25,Eje_Pilar_Prop!$C$3:$C$104,1,FALSE),"NO")) -> 45 | AU25: SECOP II | AV25: 1 | AW25: Bogotá Mejor para Todos
A26: FDLCH-CPS-013-2020 | B26: 2020 | C26: SECOP II | D26: CPS-013-2020 | E26: Contratos de prestación de servicios profesionales y de apoyo a la gestión | F26: Contratación directa | G26: Prestación de servicios profesionales y de apoyo a la gestión, o para la ejecución de trabajos artísticos que sólo puedan encomendarse a determinadas personas naturales; | H26: PRESTACIÓN DE SERVICIOS PROFESIONALES PARA APOYAR AL ALCALDE LOCAL EN LA GESTIÓN DE LOS ASUNTOS RELACIONADOS CON SEGURIDAD CIUDADANA, CONVIVENCIA Y PREVENCIÓN DE CONFLICTIVIDADES, VIOLENCIAS Y DELITOS EN LA LOCALIDAD, DE CONFORMIDAD CON EL MARCO NORMATIVO APLICABLE EN LA MATERIA. | I26: Inversión | J26: Bogotá Mejor para Todos | K26: 19 | L26: =IF(ISERROR(VLOOKUP(K26,Eje_Pilar_Prop!$C$2:$E$104,2,FALSE))," ",VLOOKUP(K26,Eje_Pilar_Prop!$C$2:$E$104,2,FALSE)) -> Seguridad y convivencia para todos | M26: =IF(ISERROR(VLOOKUP(K26,Eje_Pilar_Prop!$C$2:$E$104,3,FALSE))," ",VLOOKUP(K26,Eje_Pilar_Prop!$C$2:$E$104,3,FALSE)) -> Pilar 3 Construcción de Comunidad y Cultura Ciudadana | N26: 1302 | O26: 79720862 | P26: IVAN GUILLERMO RAMIREZ REYES | Q26: 19600000 | R26: 0 | S26: 0 | T26: 1 | U26: 8330000 | V26: 27930000 | W26: 27930000 | X26: 2020-01-23 | Y26: 2020-01-24 | Z26: 2020-07-14 | AA26: 120 | AB26: 1 | AC26: 60 | AJ26: X | AL26: 1 | AO26: =IF(SUMPRODUCT((A$14:A26=A26)*(B$14:B26=B26)*(D$14:D26=D26))>1,0,1) -> 1 | AP26: Contratos de prestación de servicios profesionales y de apoyo a la gestión | AQ26: Contratación directa | AR26: =IF(ISBLANK(G26),1,IFERROR(VLOOKUP(G26,Tipo!$C$12:$C$27,1,FALSE),"NO")) -> Prestación de servicios profesionales y de apoyo a la gestión, o para la ejecución de trabajos artísticos que sólo puedan encomendarse a determinadas personas naturales; | AS26: Inversión | AT26: =IF(ISBLANK(K26),1,IFERROR(VLOOKUP(K26,Eje_Pilar_Prop!$C$3:$C$104,1,FALSE),"NO")) -> 19 | AU26: SECOP II | AV26: 1 | AW26: Bogotá Mejor para Todos
A27: FDLCH-CPS-014-2020 | B27: 2020 | C27: SECOP II | D27: CPS-014-2020 | E27: Contratos de prestación de servicios profesionales y de apoyo a la gestión | F27: Contratación directa | G27: Prestación de servicios profesionales y de apoyo a la gestión, o para la ejecución de trabajos artísticos que sólo puedan encomendarse a determinadas personas naturales; | H27: PRESTACIÓN DE SERVICIOS PERSONALES NECESARIOS PARA EL APOYO AL ÁREA DE GESTIÓN DEL DESARROLLO LOCAL DE LA ALCALDÍA LOCAL DE CHAPINERO EN LAS ACTIVIDADES DE RADIACIÓN Y CORRESPONDENCIA. | I27: Inversión | J27: Bogotá Mejor para Todos | K27: 45 | L27: =IF(ISERROR(VLOOKUP(K27,Eje_Pilar_Prop!$C$2:$E$104,2,FALSE))," ",VLOOKUP(K27,Eje_Pilar_Prop!$C$2:$E$104,2,FALSE)) -> Gobernanza e influencia local, regional e internacional | M27: =IF(ISERROR(VLOOKUP(K27,Eje_Pilar_Prop!$C$2:$E$104,3,FALSE))," ",VLOOKUP(K27,Eje_Pilar_Prop!$C$2:$E$104,3,FALSE)) -> Eje Transversal 4 Gobierno Legitimo, Fortalecimiento Local y Eficiencia | N27: 1304 | O27: 1032416216 | P27: NADIA CAMILA ROA BERMÚDEZ | Q27: 9349200 | R27: 0 | S27: 0 | T27: 0 | U27: 0 | V27: 9349200 | W27: 9349200 | X27: 2020-01-23 | Y27: 2020-01-28 | Z27: =+Y27+7+1 -> 2020-02-05 | AA27: 120 | AB27: 0 | AC27: 0 | AJ27: X | AL27: 1 | AO27: =IF(SUMPRODUCT((A$14:A27=A27)*(B$14:B27=B27)*(D$14:D27=D27))>1,0,1) -> 1 | AQ27: Contratación directa | AR27: =IF(ISBLANK(G27),1,IFERROR(VLOOKUP(G27,Tipo!$C$12:$C$27,1,FALSE),"NO")) -> Prestación de servicios profesionales y de apoyo a la gestión, o para la ejecución de trabajos artísticos que sólo puedan encomendarse a determinadas personas naturales; | AS27: Inversión | AT27: =IF(ISBLANK(K27),1,IFERROR(VLOOKUP(K27,Eje_Pilar_Prop!$C$3:$C$104,1,FALSE),"NO")) -> 45 | AU27: SECOP II | AV27: 1 | AW27: Bogotá Mejor para Todos
A28: FDLCH-CPS-015-2020 | B28: 2020 | C28: SECOP II | D28: CPS-015-2020 | E28: Contratos de prestación de servicios profesionales y de apoyo a la gestión | F28: Contratación directa | G28: Prestación de servicios profesionales y de apoyo a la gestión, o para la ejecución de trabajos artísticos que sólo puedan encomendarse a determinadas personas naturales; | H28: PRESTACIÓN DE LOS SERVICIOS PERSONALES NECESARIOS PARA LA CONDUCCIÓN DE LOS VEHÍCULOS QUE CONFORMAN EL PARQUE AUTOMOTOR EN PROPIEDAD O CUSTODIA DEL FONDO DE DESARROLLO LOCAL DE CHAPINERO, Y EL TRANSPORTE DE SERVIDORES PÚBLICOS PARA LA REALIZACIÓN DE LAS ACTIVIDADES MISIONALES DE LA ALCALDÍA LOCAL DE CHAPINER | I28: Inversión | J28: Bogotá Mejor para Todos | K28: 45 | L28: =IF(ISERROR(VLOOKUP(K28,Eje_Pilar_Prop!$C$2:$E$104,2,FALSE))," ",VLOOKUP(K28,Eje_Pilar_Prop!$C$2:$E$104,2,FALSE)) -> Gobernanza e influencia local, regional e internacional | M28: =IF(ISERROR(VLOOKUP(K28,Eje_Pilar_Prop!$C$2:$E$104,3,FALSE))," ",VLOOKUP(K28,Eje_Pilar_Prop!$C$2:$E$104,3,FALSE)) -> Eje Transversal 4 Gobierno Legitimo, Fortalecimiento Local y Eficiencia | N28: 1304 | O28: 1018445848 | P28: JUAN DAVID CHICACAUSA SALAS | Q28: 9360000 | R28: 1 | S28: -1092000 | T28: 1 | U28: 4680000 | V28: 12948000 | W28: 12948000 | X28: 2020-01-23 | Y28: 2020-01-27 | Z28: 2020-07-15 | AA28: 120 | AB28: 1 | AC28: 60 | AJ28: X | AL28: 1 | AO28: =IF(SUMPRODUCT((A$14:A28=A28)*(B$14:B28=B28)*(D$14:D28=D28))>1,0,1) -> 1 | AP28: =IF(ISBLANK(E28),1,IFERROR(VLOOKUP(E28,tipo,1,FALSE),"NO")) -> Contratos de prestación de servicios profesionales y de apoyo a la gestión | AQ28: Contratación directa | AR28: =IF(ISBLANK(G28),1,IFERROR(VLOOKUP(G28,Tipo!$C$12:$C$27,1,FALSE),"NO")) -> Prestación de servicios profesionales y de apoyo a la gestión, o para la ejecución de trabajos artísticos que sólo puedan encomendarse a determinadas personas naturales; | AS28: Inversión | AT28: =IF(ISBLANK(K28),1,IFERROR(VLOOKUP(K28,Eje_Pilar_Prop!$C$3:$C$104,1,FALSE),"NO")) -> 45 | AU28: SECOP II | AV28: 1 | AW28: Bogotá Mejor para Todos
A29: FDLCH-CPS-016-2020 | B29: 2020 | C29: SECOP II | D29: CPS-016-2020 | E29: Contratos de prestación de servicios profesionales y de apoyo a la gestión | F29: Contratación directa | G29: Prestación de servicios profesionales y de apoyo a la gestión, o para la ejecución de trabajos artísticos que sólo puedan encomendarse a determinadas personas naturales; | H29: PRESTACIÓN DE SERVICIOS PROFESIONALES PARA APOYAR AL ÁREA DE GESTIÓN DEL DESARROLLO LOCAL DE LA ALCALDÍA LOCAL DE CHAPINERO EN LA FORMULACIÓN, GESTIÓN, EJECUCIÓN Y SEGUIMIENTO DE LOS PROYECTOS ASIGNADOS Y LA SUPERVISIÓN DE CONTRATOS QUE LE SEAN ASIGNADOS. | I29: Inversión | J29: Bogotá Mejor para Todos | K29: 17 | L29: =IF(ISERROR(VLOOKUP(K29,Eje_Pilar_Prop!$C$2:$E$104,2,FALSE))," ",VLOOKUP(K29,Eje_Pilar_Prop!$C$2:$E$104,2,FALSE)) -> Espacio público, derecho de todos | M29: =IF(ISERROR(VLOOKUP(K29,Eje_Pilar_Prop!$C$2:$E$104,3,FALSE))," ",VLOOKUP(K29,Eje_Pilar_Prop!$C$2:$E$104,3,FALSE)) -> Pilar 2 Democracía Urbana | N29: 1300 | O29: 60293880 | P29: MARIA CONSUELO MENDOZA VARELA | Q29: 28000000 | R29: 0 | S29: 0 | T29: 0 | U29: 0 | V29: 28000000 | W29: 28000000 | X29: 2020-01-27 | Y29: 2020-01-29 | Z29: =+Y29 -> 2020-01-29 | AA29: 120 | AB29: 0 | AC29: 0 | AJ29: X | AL29: 1 | AO29: =IF(SUMPRODUCT((A$14:A29=A29)*(B$14:B29=B29)*(D$14:D29=D29))>1,0,1) -> 1 | AP29: Contratos de prestación de servicios profesionales y de apoyo a la gestión | AQ29: Contratación directa | AR29: =IF(ISBLANK(G29),1,IFERROR(VLOOKUP(G29,Tipo!$C$12:$C$27,1,FALSE),"NO")) -> Prestación de servicios profesionales y de apoyo a la gestión, o para la ejecución de trabajos artísticos que sólo puedan encomendarse a determinadas personas naturales; | AS29: Inversión | AT29: =IF(ISBLANK(K29),1,IFERROR(VLOOKUP(K29,Eje_Pilar_Prop!$C$3:$C$104,1,FALSE),"NO")) -> 17 | AU29: SECOP II | AV29: 1 | AW29: Bogotá Mejor para Todos
A30: FDLCH-CPS-017-2020 | B30: 2020 | C30: SECOP II | D30: CPS-017-2020 | E30: Contratos de prestación de servicios profesionales y de apoyo a la gestión | F30: Contratación directa | G30: Prestación de servicios profesionales y de apoyo a la gestión, o para la ejecución de trabajos artísticos que sólo puedan encomendarse a determinadas personas naturales; | H30: PRESTACIÓN DE SERVICIOS PROFESIONALES EN DERECHO PARA APOYAR JURÍDICAMENTE LA EJECUCIÓN DE LAS ACCIONES REQUERIDAS PARA LA DEPURACIÓN DE LAS ACTUACIONES ADMINISTRATIVAS QUE CURSAN EN LA ALCALDÍA LOCAL | I30: Inversión | J30: Bogotá Mejor para Todos | K30: 45 | L30: =IF(ISERROR(VLOOKUP(K30,Eje_Pilar_Prop!$C$2:$E$104,2,FALSE))," ",VLOOKUP(K30,Eje_Pilar_Prop!$C$2:$E$104,2,FALSE)) -> Gobernanza e influencia local, regional e internacional | M30: =IF(ISERROR(VLOOKUP(K30,Eje_Pilar_Prop!$C$2:$E$104,3,FALSE))," ",VLOOKUP(K30,Eje_Pilar_Prop!$C$2:$E$104,3,FALSE)) -> Eje Transversal 4 Gobierno Legitimo, Fortalecimiento Local y Eficiencia | N30: 1304 | O30: 35408653 | P30: NANCY ROCIO DEL SOCORRO SARMIENTO FONSECA | Q30: 20800000 | R30: 0 | S30: 0 | T30: 1 | U30: 5200000 | V30: 26000000 | W30: 26000000 | X30: 2020-01-24 | Y30: 2020-01-27 | Z30: =+Y30+30+1 -> 2020-02-27 | AA30: 120 | AB30: 1 | AC30: 30 | AJ30: X | AL30: 1 | AO30: =IF(SUMPRODUCT((A$14:A30=A30)*(B$14:B30=B30)*(D$14:D30=D30))>1,0,1) -> 1 | AP30: Contratos de prestación de servicios profesionales y de apoyo a la gestión | AQ30: Contratación directa | AR30: =IF(ISBLANK(G30),1,IFERROR(VLOOKUP(G30,Tipo!$C$12:$C$27,1,FALSE),"NO")) -> Prestación de servicios profesionales y de apoyo a la gestión, o para la ejecución de trabajos artísticos que sólo puedan encomendarse a determinadas personas naturales; | AS30: Inversión | AT30: =IF(ISBLANK(K30),1,IFERROR(VLOOKUP(K30,Eje_Pilar_Prop!$C$3:$C$104,1,FALSE),"NO")) -> 45 | AU30: SECOP II | AV30: 1 | AW30: Bogotá Mejor para Todos
A31: FDLCH-CPS-018-2020 | B31: 2020 | C31: SECOP II | D31: CPS-018-2020 | E31: Contratos de prestación de servicios profesionales y de apoyo a la gestión | F31: Contratación directa | G31: Prestación de servicios profesionales y de apoyo a la gestión, o para la ejecución de trabajos artísticos que sólo puedan encomendarse a determinadas personas naturales; | H31: PRESTACIÓN DE SERVICIOS PROFESIONALES PARA LA ATENCIÓN, ACOMPAÑAMIENTO EN LA REALIZACIÓN Y PRÁCTICA DE LAS DILIGENCIAS CONTENIDAS EN LAS COMISIONES CIVILES ORDENADAS POR LOS JUECES DE LA REPÚBLICA, EN ATENCIÓN A LO ORDENADO EN MANDATO LEGAL CONTENIDO EN LOS ARTÍCULOS 37 Y 38 DEL CÓDIGO GENERAL DEL PROCESO, EN CONCORDANCIA CON LO PREVISTO EN EL ARTÍCULO 206, PARÁGRAFO 1° DEL CÓDIGO NACIONAL DE POLICÍA Y CONVIVENCIA | I31: Inversión | J31: Bogotá Mejor para Todos | K31: 45 | L31: =IF(ISERROR(VLOOKUP(K31,Eje_Pilar_Prop!$C$2:$E$104,2,FALSE))," ",VLOOKUP(K31,Eje_Pilar_Prop!$C$2:$E$104,2,FALSE)) -> Gobernanza e influencia local, regional e internacional | M31: =IF(ISERROR(VLOOKUP(K31,Eje_Pilar_Prop!$C$2:$E$104,3,FALSE))," ",VLOOKUP(K31,Eje_Pilar_Prop!$C$2:$E$104,3,FALSE)) -> Eje Transversal 4 Gobierno Legitimo, Fortalecimiento Local y Eficiencia | N31: 1304 | O31: 79729789 | P31: ALFREDO ENRIQUE CACERES MENDOZA | Q31: 24800000 | R31: 0 | S31: 0 | T31: 1 | U31: 6200000 | V31: 31000000 | W31: 31000000 | X31: 2020-01-27 | Y31: 2020-01-29 | Z31: =+Y31+30+1 -> 2020-02-29 | AA31: 120 | AB31: 1 | AC31: 30 | AJ31: X | AL31: 1 | AO31: =IF(SUMPRODUCT((A$14:A31=A31)*(B$14:B31=B31)*(D$14:D31=D31))>1,0,1) -> 1 | AP31: Contratos de prestación de servicios profesionales y de apoyo a la gestión | AQ31: Contratación directa | AR31: =IF(ISBLANK(G31),1,IFERROR(VLOOKUP(G31,Tipo!$C$12:$C$27,1,FALSE),"NO")) -> Prestación de servicios profesionales y de apoyo a la gestión, o para la ejecución de trabajos artísticos que sólo puedan encomendarse a determinadas personas naturales; | AS31: Inversión | AT31: =IF(ISBLANK(K31),1,IFERROR(VLOOKUP(K31,Eje_Pilar_Prop!$C$3:$C$104,1,FALSE),"NO")) -> 45 | AU31: SECOP II | AV31: 1 | AW31: Bogotá Mejor para Todos
A32: FDLCH-CPS-019-2020 | B32: 2020 | C32: SECOP II | D32: CPS-019-2020 | E32: Contratos de prestación de servicios profesionales y de apoyo a la gestión | F32: Contratación directa | G32: Prestación de servicios profesionales y de apoyo a la gestión, o para la ejecución de trabajos artísticos que sólo puedan encomendarse a determinadas personas naturales; | H32: PRESTACIÓN DE SERVICIOS PROFESIONALES PARA APOYAR A LA ALCALDÍA LOCAL DE CHAPINERO EN EL TRÁMITE Y SEGUIMIENTO DEL ESTADO DE LOS PROCESOS QUE SE ADELANTAN EN EL ÁREA DE GESTIÓN POLICIVA, QUE SE PRESENTEN AL DESPACHO DEL ALCALDE LOCAL | I32: Inversión | J32: Bogotá Mejor para Todos | K32: 45 | L32: =IF(ISERROR(VLOOKUP(K32,Eje_Pilar_Prop!$C$2:$E$104,2,FALSE))," ",VLOOKUP(K32,Eje_Pilar_Prop!$C$2:$E$104,2,FALSE)) -> Gobernanza e influencia local, regional e internacional | M32: =IF(ISERROR(VLOOKUP(K32,Eje_Pilar_Prop!$C$2:$E$104,3,FALSE))," ",VLOOKUP(K32,Eje_Pilar_Prop!$C$2:$E$104,3,FALSE)) -> Eje Transversal 4 Gobierno Legitimo, Fortalecimiento Local y Eficiencia | N32: 1304 | O32: 1075297036 | P32: MARÍA ANGÉLICA BALAGUERA RUIZ | Q32: 18698400 | R32: 0 | S32: 0 | T32: 0 | U32: 0 | V32: 18698400 | W32: 18698400 | X32: 2020-01-29 | Y32: 2020-02-03 | Z32: =+Y32 -> 2020-02-03 | AA32: 120 | AB32: 0 | AC32: 0 | AJ32: X | AL32: 1 | AO32: =IF(SUMPRODUCT((A$14:A32=A32)*(B$14:B32=B32)*(D$14:D32=D32))>1,0,1) -> 1 | AP32: Contratos de prestación de servicios profesionales y de apoyo a la gestión | AQ32: Contratación directa | AR32: =IF(ISBLANK(G32),1,IFERROR(VLOOKUP(G32,Tipo!$C$12:$C$27,1,FALSE),"NO")) -> Prestación de servicios profesionales y de apoyo a la gestión, o para la ejecución de trabajos artísticos que sólo puedan encomendarse a determinadas personas naturales; | AS32: Inversión | AT32: =IF(ISBLANK(K32),1,IFERROR(VLOOKUP(K32,Eje_Pilar_Prop!$C$3:$C$104,1,FALSE),"NO")) -> 45 | AU32: SECOP II | AV32: 1 | AW32: Bogotá Mejor para Todos
A33: FDLCH-CPS-020-2020 | B33: 2020 | C33: SECOP II | D33: CPS-020-2020 | E33: Contratos de prestación de servicios profesionales y de apoyo a la gestión | F33: Contratación directa | G33: Prestación de servicios profesionales y de apoyo a la gestión, o para la ejecución de trabajos artísticos que sólo puedan encomendarse a determinadas personas naturales; | H33: “PRESTACIÓN DE SERVICIOS PROFESIONALES PARA APOYAR AL EQUIPO DE PRENSA Y COMUNICACIONES DE LA ALCALDÍA LOCAL EN LA REALIZACIÓN Y PUBLICACIÓN DE CONTENIDOS DE REDES SOCIALES Y CANALES DE DIVULGACIÓN DIGITAL (SITIO WEB) DE LA ALCALDÍA LOCAL DE CHAPINERO”. | I33: Inversión | J33: Bogotá Mejor para Todos | K33: 45 | L33: =IF(ISERROR(VLOOKUP(K33,Eje_Pilar_Prop!$C$2:$E$104,2,FALSE))," ",VLOOKUP(K33,Eje_Pilar_Prop!$C$2:$E$104,2,FALSE)) -> Gobernanza e influencia local, regional e internacional | M33: =IF(ISERROR(VLOOKUP(K33,Eje_Pilar_Prop!$C$2:$E$104,3,FALSE))," ",VLOOKUP(K33,Eje_Pilar_Prop!$C$2:$E$104,3,FALSE)) -> Eje Transversal 4 Gobierno Legitimo, Fortalecimiento Local y Eficiencia | N33: 1304 | O33: 35508717 | P33: LUISA FERNANDA ACOSTA LOZANO | Q33: 22824000 | R33: 0 | S33: 0 | T33: 0 | U33: 0 | V33: 22824000 | W33: 22824000 | X33: 2020-01-27 | Y33: 2020-01-29 | Z33: =+Y33 -> 2020-01-29 | AA33: 120 | AB33: 0 | AC33: 0 | AJ33: X | AL33: 1 | AO33: =IF(SUMPRODUCT((A$14:A33=A33)*(B$14:B33=B33)*(D$14:D33=D33))>1,0,1) -> 1 | AP33: Contratos de prestación de servicios profesionales y de apoyo a la gestión | AQ33: Contratación directa | AR33: =IF(ISBLANK(G33),1,IFERROR(VLOOKUP(G33,Tipo!$C$12:$C$27,1,FALSE),"NO")) -> Prestación de servicios profesionales y de apoyo a la gestión, o para la ejecución de trabajos artísticos que sólo puedan encomendarse a determinadas personas naturales; | AS33: Inversión | AT33: =IF(ISBLANK(K33),1,IFERROR(VLOOKUP(K33,Eje_Pilar_Prop!$C$3:$C$104,1,FALSE),"NO")) -> 45 | AU33: SECOP II | AV33: 1 | AW33: Bogotá Mejor para Todos
A34: FDLCH-CPS-021-2020 | B34: 2020 | C34: SECOP II | D34: CPS-021-2020 | E34: Contratos de prestación de servicios profesionales y de apoyo a la gestión | F34: Contratación directa | G34: Prestación de servicios profesionales y de apoyo a la gestión, o para la ejecución de trabajos artísticos que sólo puedan encomendarse a determinadas personas naturales; | H34: “PRESTACIÓN DE SERVICIOS TÉCNICOS PARA EL APOYO TRANSVERSAL EN LA ELABORACIÓN DE DOCUMENTOS TÉCNICOS Y ADMINISTRATIVOS DEL ÁREA DE GESTIÓN DEL DESARROLLO LOCAL DE LA ALCALDÍA LOCAL DE CHAPINERO Y EL SEGUIMIENTO A LAS SOLICITUDES EN EL SIPSE”. | I34: Inversión | J34: Bogotá Mejor para Todos | K34: 45 | L34: =IF(ISERROR(VLOOKUP(K34,Eje_Pilar_Prop!$C$2:$E$104,2,FALSE))," ",VLOOKUP(K34,Eje_Pilar_Prop!$C$2:$E$104,2,FALSE)) -> Gobernanza e influencia local, regional e internacional | M34: =IF(ISERROR(VLOOKUP(K34,Eje_Pilar_Prop!$C$2:$E$104,3,FALSE))," ",VLOOKUP(K34,Eje_Pilar_Prop!$C$2:$E$104,3,FALSE)) -> Eje Transversal 4 Gobierno Legitimo, Fortalecimiento Local y Eficiencia | N34: 1304 | O34: 98557091 | P34: DARIO ANTONIO MAYO GUERRERO | Q34: 15400000 | R34: 0 | S34: 0 | T34: 0 | U34: 0 | V34: 15400000 | W34: 15400000 | X34: 2020-02-04 | Y34: 2020-02-05 | Z34: =+Y34 -> 2020-02-05 | AA34: 120 | AB34: 0 | AC34: 0 | AJ34: X | AL34: 1 | AO34: =IF(SUMPRODUCT((A$14:A34=A34)*(B$14:B34=B34)*(D$14:D34=D34))>1,0,1) -> 1 | AP34: Contratos de prestación de servicios profesionales y de apoyo a la gestión | AQ34: Contratación directa | AR34: =IF(ISBLANK(G34),1,IFERROR(VLOOKUP(G34,Tipo!$C$12:$C$27,1,FALSE),"NO")) -> Prestación de servicios profesionales y de apoyo a la gestión, o para la ejecución de trabajos artísticos que sólo puedan encomendarse a determinadas personas naturales; | AS34: Inversión | AT34: =IF(ISBLANK(K34),1,IFERROR(VLOOKUP(K34,Eje_Pilar_Prop!$C$3:$C$104,1,FALSE),"NO")) -> 45 | AU34: SECOP II | AW34: Bogotá Mejor para Todos
A35: FDLCH-CPS-022-2020 | B35: 2020 | C35: SECOP II | D35: CPS-022-2020 | E35: Contratos de prestación de servicios profesionales y de apoyo a la gestión | F35: Contratación directa | G35: Prestación de servicios profesionales y de apoyo a la gestión, o para la ejecución de trabajos artísticos que sólo puedan encomendarse a determinadas personas naturales; | H35: PRESTACIÓN DE SERVICIOS PERSONALES NECESARIOS PARA LAS LABORES DE ENTREGA Y RECIBO DE LAS COMUNICACIONES EMITIDAS O RECIBIDAS POR LAS INSPECCIONES DE POLICÍA DE LA LOCALIDAD Y DEPENDENCIAS DE LA ALCALDÍA. | I35: Inversión | J35: Bogotá Mejor para Todos | K35: 45 | L35: =IF(ISERROR(VLOOKUP(K35,Eje_Pilar_Prop!$C$2:$E$104,2,FALSE))," ",VLOOKUP(K35,Eje_Pilar_Prop!$C$2:$E$104,2,FALSE)) -> Gobernanza e influencia local, regional e internacional | M35: =IF(ISERROR(VLOOKUP(K35,Eje_Pilar_Prop!$C$2:$E$104,3,FALSE))," ",VLOOKUP(K35,Eje_Pilar_Prop!$C$2:$E$104,3,FALSE)) -> Eje Transversal 4 Gobierno Legitimo, Fortalecimiento Local y Eficiencia | N35: 1304 | O35: 1010043355 | P35: DANIEL ALEJANDRO MORENO GARZON | Q35: 9360000 | R35: 0 | S35: 0 | T35: 0 | U35: 0 | V35: 9360000 | W35: 9360000 | X35: 2020-01-27 | Y35: 2020-01-29 | Z35: =+Y35 -> 2020-01-29 | AA35: 120 | AB35: 0 | AC35: 0 | AJ35: X | AL35: 1 | AO35: =IF(SUMPRODUCT((A$14:A35=A35)*(B$14:B35=B35)*(D$14:D35=D35))>1,0,1) -> 1 | AP35: Contratos de prestación de servicios profesionales y de apoyo a la gestión | AQ35: Contratación directa | AR35: =IF(ISBLANK(G35),1,IFERROR(VLOOKUP(G35,Tipo!$C$12:$C$27,1,FALSE),"NO")) -> Prestación de servicios profesionales y de apoyo a la gestión, o para la ejecución de trabajos artísticos que sólo puedan encomendarse a determinadas personas naturales; | AS35: Inversión | AT35: =IF(ISBLANK(K35),1,IFERROR(VLOOKUP(K35,Eje_Pilar_Prop!$C$3:$C$104,1,FALSE),"NO")) -> 45 | AU35: SECOP II | AV35: =IF(OR(YEAR(X35)=2020,ISBLANK(X35)),1,"NO") -> 1 | AW35: Bogotá Mejor para Todos
A36: FDLCH-CPS-023-2020 | B36: 2020 | C36: SECOP II | D36: CPS-023-2020 | E36: Contratos de prestación de servicios profesionales y de apoyo a la gestión | F36: Contratación directa | G36: Prestación de servicios profesionales y de apoyo a la gestión, o para la ejecución de trabajos artísticos que sólo puedan encomendarse a determinadas personas naturales; | H36: PRESTACIÓN DE SERVICIOS PROFESIONALES PARA APOYAR AL ÁREA DE GESTIÓN DEL DESARROLLO LOCAL DE LA ALCALDÍA LOCAL DE CHAPINERO EN LA FORMULACIÓN, GESTIÓN Y EJECUCIÓN DEL PROYECTO 1295 BRINDAR ACCIONES INTEGRALES PARA PERSONAS CON DISCAPACIDAD Y SUS RESPECTIVOS CUIDADORES Y EN LA SUPERVISIÓN DE CONTRATOS QUE LE SEAN ASIGNADOS. | I36: Inversión | J36: Bogotá Mejor para Todos | K36: 3 | L36: =IF(ISERROR(VLOOKUP(K36,Eje_Pilar_Prop!$C$2:$E$104,2,FALSE))," ",VLOOKUP(K36,Eje_Pilar_Prop!$C$2:$E$104,2,FALSE)) -> Igualdad y autonomía para una Bogotá incluyente | M36: =IF(ISERROR(VLOOKUP(K36,Eje_Pilar_Prop!$C$2:$E$104,3,FALSE))," ",VLOOKUP(K36,Eje_Pilar_Prop!$C$2:$E$104,3,FALSE)) -> Pilar 1 Igualdad de Calidad de Vida | N36: 1295 | O36: 51674566 | P36: MYRIAM JEANET RUIZ | Q36: 18800000 | R36: 0 | S36: 0 | T36: 0 | U36: 0 | V36: 18800000 | W36: 18800000 | X36: 2020-01-27 | Y36: 2020-01-28 | Z36: =+Y36 -> 2020-01-28 | AA36: 120 | AB36: 0 | AC36: 0 | AJ36: X | AL36: 1 | AO36: =IF(SUMPRODUCT((A$14:A36=A36)*(B$14:B36=B36)*(D$14:D36=D36))>1,0,1) -> 1 | AP36: Contratos de prestación de servicios profesionales y de apoyo a la gestión | AQ36: Contratación directa | AR36: =IF(ISBLANK(G36),1,IFERROR(VLOOKUP(G36,Tipo!$C$12:$C$27,1,FALSE),"NO")) -> Prestación de servicios profesionales y de apoyo a la gestión, o para la ejecución de trabajos artísticos que sólo puedan encomendarse a determinadas personas naturales; | AS36: Inversión | AT36: =IF(ISBLANK(K36),1,IFERROR(VLOOKUP(K36,Eje_Pilar_Prop!$C$3:$C$104,1,FALSE),"NO")) -> 3 | AU36: SECOP II | AV36: 1 | AW36: Bogotá Mejor para Todos
A37: FDLCH-CPS-024-2020 | B37: 2020 | C37: SECOP II | D37: CPS-024-2020 | E37: Contratos de prestación de servicios profesionales y de apoyo a la gestión | F37: Contratación directa | G37: Prestación de servicios profesionales y de apoyo a la gestión, o para la ejecución de trabajos artísticos que sólo puedan encomendarse a determinadas personas naturales; | H37: PRESTACIÓN DE SERVICIOS PERSONALES NECESARIOS PARA EL APOYO EN LA EJECUCIÓN DE ACTIVIDADES ADMINISTRATIVAS Y OPERATIVAS TRANSVERSALES AL ÁREA DE GESTIÓN DEL DESARROLLO LOCAL Y AQUELLAS QUE SE ADELANTAN EN LA OFICINA DE CONTRATACIÓN DE LA ALCALDÍA LOCAL DE CHAPINERO | I37: Inversión | J37: Bogotá Mejor para Todos | K37: 45 | L37: =IF(ISERROR(VLOOKUP(K37,Eje_Pilar_Prop!$C$2:$E$104,2,FALSE))," ",VLOOKUP(K37,Eje_Pilar_Prop!$C$2:$E$104,2,FALSE)) -> Gobernanza e influencia local, regional e internacional | M37: =IF(ISERROR(VLOOKUP(K37,Eje_Pilar_Prop!$C$2:$E$104,3,FALSE))," ",VLOOKUP(K37,Eje_Pilar_Prop!$C$2:$E$104,3,FALSE)) -> Eje Transversal 4 Gobierno Legitimo, Fortalecimiento Local y Eficiencia | N37: 1304 | O37: 1016012242 | P37: MARYARY SUNED QUINCHE SANCHEZ | Q37: 11600000 | R37: 1 | S37: -1256667 | T37: 2 | U37: 5800000 | V37: 16143333 | W37: 16143333 | X37: 2020-01-27 | Y37: 2020-01-28 | Z37: 2020-07-16 | AA37: 120 | AB37: 2 | AC37: 60 | AJ37: X | AL37: 1 | AO37: =IF(SUMPRODUCT((A$14:A37=A37)*(B$14:B37=B37)*(D$14:D37=D37))>1,0,1) -> 1 | AP37: Contratos de prestación de servicios profesionales y de apoyo a la gestión | AQ37: Contratación directa | AR37: =IF(ISBLANK(G37),1,IFERROR(VLOOKUP(G37,Tipo!$C$12:$C$27,1,FALSE),"NO")) -> Prestación de servicios profesionales y de apoyo a la gestión, o para la ejecución de trabajos artísticos que sólo puedan encomendarse a determinadas personas naturales; | AS37: Inversión | AT37: =IF(ISBLANK(K37),1,IFERROR(VLOOKUP(K37,Eje_Pilar_Prop!$C$3:$C$104,1,FALSE),"NO")) -> 45 | AU37: SECOP II | AV37: 1 | AW37: Bogotá Mejor para Todos
A38: FDLCH-CPS-025-2020 | B38: 2020 | C38: SECOP II | D38: CPS-025-2020 | E38: Contratos de prestación de servicios profesionales y de apoyo a la gestión | F38: Contratación directa | G38: Prestación de servicios profesionales y de apoyo a la gestión, o para la ejecución de trabajos artísticos que sólo puedan encomendarse a determinadas personas naturales; | H38: PRESTACIÓN DE LOS SERVICIOS PERSONALES NECESARIOS PARA LA CONDUCCIÓN DE LOS VEHÍCULOS QUE CONFORMAN EL PARQUE AUTOMOTOR EN PROPIEDAD O CUSTODIA DEL FONDO DE DESARROLLO LOCAL DE CHAPINERO, Y EL TRANSPORTE DE SERVIDORES PÚBLICOS PARA LA REALIZACIÓN DE LAS ACTIVIDADES MISIONALES DE LA ALCALDÍA LOCAL DE CHAPINERO.” | I38: Inversión | J38: Bogotá Mejor para Todos | K38: 45 | L38: =IF(ISERROR(VLOOKUP(K38,Eje_Pilar_Prop!$C$2:$E$104,2,FALSE))," ",VLOOKUP(K38,Eje_Pilar_Prop!$C$2:$E$104,2,FALSE)) -> Gobernanza e influencia local, regional e internacional | M38: =IF(ISERROR(VLOOKUP(K38,Eje_Pilar_Prop!$C$2:$E$104,3,FALSE))," ",VLOOKUP(K38,Eje_Pilar_Prop!$C$2:$E$104,3,FALSE)) -> Eje Transversal 4 Gobierno Legitimo, Fortalecimiento Local y Eficiencia | N38: 1304 | O38: 79520294 | P38: CESAR AUGUSTO PEREZ PALACIO | Q38: 9360000 | R38: 0 | S38: 0 | T38: 0 | U38: 0 | V38: 9360000 | W38: 9282000 | X38: 2020-01-27 | Y38: 2020-01-28 | Z38: =+Y38+6+1 -> 2020-02-04 | AA38: 120 | AB38: 0 | AC38: 0 | AJ38: X | AL38: 0.9916666667 | AO38: =IF(SUMPRODUCT((A$14:A38=A38)*(B$14:B38=B38)*(D$14:D38=D38))>1,0,1) -> 1 | AP38: Contratos de prestación de servicios profesionales y de apoyo a la gestión | AQ38: Contratación directa | AR38: =IF(ISBLANK(G38),1,IFERROR(VLOOKUP(G38,Tipo!$C$12:$C$27,1,FALSE),"NO")) -> Prestación de servicios profesionales y de apoyo a la gestión, o para la ejecución de trabajos artísticos que sólo puedan encomendarse a determinadas personas naturales; | AS38: Inversión | AT38: =IF(ISBLANK(K38),1,IFERROR(VLOOKUP(K38,Eje_Pilar_Prop!$C$3:$C$104,1,FALSE),"NO")) -> 45 | AU38: SECOP II | AV38: 1 | AW38: Bogotá Mejor para Todos
A39: FDLCH-CPS-026-2020 | B39: 2020 | C39: SECOP II | D39: CPS-026-2020 | E39: Contratos de prestación de servicios profesionales y de apoyo a la gestión | F39: Contratación directa | G39: Prestación de servicios profesionales y de apoyo a la gestión, o para la ejecución de trabajos artísticos que sólo puedan encomendarse a determinadas personas naturales; | H39: PRESTACIÓN DE SERVICIOS PROFESIONALES EN DERECHO PARA APOYAR JURÍDICAMENTE LA EJECUCIÓN DE LAS ACCIONES REQUERIDAS PARA LA DEPURACIÓN DE LAS ACTUACIONES ADMINISTRATIVAS QUE CURSAN EN LA ALCALDÍA LOCAL. | I39: Inversión | J39: Bogotá Mejor para Todos | K39: 45 | L39: =IF(ISERROR(VLOOKUP(K39,Eje_Pilar_Prop!$C$2:$E$104,2,FALSE))," ",VLOOKUP(K39,Eje_Pilar_Prop!$C$2:$E$104,2,FALSE)) -> Gobernanza e influencia local, regional e internacional | M39: =IF(ISERROR(VLOOKUP(K39,Eje_Pilar_Prop!$C$2:$E$104,3,FALSE))," ",VLOOKUP(K39,Eje_Pilar_Prop!$C$2:$E$104,3,FALSE)) -> Eje Transversal 4 Gobierno Legitimo, Fortalecimiento Local y Eficiencia | N39: 1304 | O39: 51700143 | P39: MARIA ALEXANDRA CADENA FERNANDEZ | Q39: 19845000 | R39: 0 | S39: 0 | T39: 1 | U39: 4961250 | V39: 24806250 | W39: 24806250 | X39: 2020-02-04 | Y39: 2020-02-06 | Z39: =+Y39+30 -> 2020-03-07 | AA39: 120 | AB39: 1 | AC39: 30 | AJ39: X | AL39: 1 | AO39: =IF(SUMPRODUCT((A$14:A39=A39)*(B$14:B39=B39)*(D$14:D39=D39))>1,0,1) -> 1 | AP39: Contratos de prestación de servicios profesionales y de apoyo a la gestión | AQ39: Contratación directa | AR39: =IF(ISBLANK(G39),1,IFERROR(VLOOKUP(G39,Tipo!$C$12:$C$27,1,FALSE),"NO")) -> Prestación de servicios profesionales y de apoyo a la gestión, o para la ejecución de trabajos artísticos que sólo puedan encomendarse a determinadas personas naturales; | AS39: Inversión | AT39: =IF(ISBLANK(K39),1,IFERROR(VLOOKUP(K39,Eje_Pilar_Prop!$C$3:$C$104,1,FALSE),"NO")) -> 45 | AU39: SECOP II | AV39: 1 | AW39: Bogotá Mejor para Todos
A40: FDLCH-CPS-027-2020 | B40: 2020 | C40: SECOP II | D40: CPS-027-2020 | E40: Contratos de prestación de servicios profesionales y de apoyo a la gestión | F40: Contratación directa | G40: Prestación de servicios profesionales y de apoyo a la gestión, o para la ejecución de trabajos artísticos que sólo puedan encomendarse a determinadas personas naturales; | H40: PRESTACIÓN DE SERVICIOS PROFESIONALES PARA APOYAR TÉCNICAMENTE LAS DISTINTAS ETAPAS DE LOS PROCESOS DE COMPETENCIA DE LA ALCALDÍA LOCAL DE CHAPINERO, PARA LA DEPURACIÓN DE ACTUACIONES ADMINISTRATIVAS | I40: Inversión | J40: Bogotá Mejor para Todos | K40: 45 | L40: =IF(ISERROR(VLOOKUP(K40,Eje_Pilar_Prop!$C$2:$E$104,2,FALSE))," ",VLOOKUP(K40,Eje_Pilar_Prop!$C$2:$E$104,2,FALSE)) -> Gobernanza e influencia local, regional e internacional | M40: =IF(ISERROR(VLOOKUP(K40,Eje_Pilar_Prop!$C$2:$E$104,3,FALSE))," ",VLOOKUP(K40,Eje_Pilar_Prop!$C$2:$E$104,3,FALSE)) -> Eje Transversal 4 Gobierno Legitimo, Fortalecimiento Local y Eficiencia | N40: 1304 | O40: 80825882 | P40: CARLOS ANDRÉS GIL RUEDA | Q40: 19845000 | R40: 0 | S40: 0 | T40: 0 | U40: 0 | V40: 19845000 | W40: 19679625 | X40: 2020-01-28 | Y40: 2020-01-29 | Z40: =+Y40+7+1 -> 2020-02-06 | AA40: 120 | AB40: 0 | AC40: 0 | AJ40: X | AL40: 0.9916666667 | AO40: =IF(SUMPRODUCT((A$14:A40=A40)*(B$14:B40=B40)*(D$14:D40=D40))>1,0,1) -> 1 | AP40: Contratos de prestación de servicios profesionales y de apoyo a la gestión | AQ40: Contratación directa | AR40: =IF(ISBLANK(G40),1,IFERROR(VLOOKUP(G40,Tipo!$C$12:$C$27,1,FALSE),"NO")) -> Prestación de servicios profesionales y de apoyo a la gestión, o para la ejecución de trabajos artísticos que sólo puedan encomendarse a determinadas personas naturales; | AS40: Inversión | AT40: =IF(ISBLANK(K40),1,IFERROR(VLOOKUP(K40,Eje_Pilar_Prop!$C$3:$C$104,1,FALSE),"NO")) -> 45 | AU40: SECOP II | AV40: 1 | AW40: Bogotá Mejor para Todos
A41: FDLCH-CPS-028-2020 | B41: 2020 | C41: SECOP II | D41: CPS-028-2020 | E41: Contratos de prestación de servicios profesionales y de apoyo a la gestión | F41: Contratación directa | G41: Prestación de servicios profesionales y de apoyo a la gestión, o para la ejecución de trabajos artísticos que sólo puedan encomendarse a determinadas personas naturales; | H41: PRESTACIÓN DE SERVICIOS PROFESIONALES PARA EL APOYO AL DESPACHO DE LA ALCALDÍA LOCAL DE CHAPINERO EN LA ADMINISTRACIÓN Y SOPORTE A LA INFRAESTRUCTURA TECNOLÓGICA EN PROPIEDAD O CUSTODIA Y PARA REALIZAR ACTIVIDADES DE FORMULACIÓN DE PROYECTOS QUE LE SEAN ASIGNADOS Y ACTIVIDADES DE APOYO A LA SUPERVISIÓN DE LOS CONTRATOS QUE LE FUEREN ASIGNADOS | I41: Inversión | J41: Bogotá Mejor para Todos | K41: 45 | L41: =IF(ISERROR(VLOOKUP(K41,Eje_Pilar_Prop!$C$2:$E$104,2,FALSE))," ",VLOOKUP(K41,Eje_Pilar_Prop!$C$2:$E$104,2,FALSE)) -> Gobernanza e influencia local, regional e internacional | M41: =IF(ISERROR(VLOOKUP(K41,Eje_Pilar_Prop!$C$2:$E$104,3,FALSE))," ",VLOOKUP(K41,Eje_Pilar_Prop!$C$2:$E$104,3,FALSE)) -> Eje Transversal 4 Gobierno Legitimo, Fortalecimiento Local y Eficiencia | N41: 1304 | O41: 7166701 | P41: FREDY YOVANNI BORDA CEPEDA | Q41: 19320000 | R41: 0 | S41: 0 | T41: 0 | U41: 0 | V41: 19320000 | W41: 19320000 | X41: 2020-01-28 | Y41: 2020-01-29 | Z41: =+Y41+7+1 -> 2020-02-06 | AA41: 120 | AB41: 0 | AC41: 0 | AJ41: X | AL41: 1 | AO41: =IF(SUMPRODUCT((A$14:A41=A41)*(B$14:B41=B41)*(D$14:D41=D41))>1,0,1) -> 1 | AP41: Contratos de prestación de servicios profesionales y de apoyo a la gestión | AQ41: Contratación directa | AR41: =IF(ISBLANK(G41),1,IFERROR(VLOOKUP(G41,Tipo!$C$12:$C$27,1,FALSE),"NO")) -> Prestación de servicios profesionales y de apoyo a la gestión, o para la ejecución de trabajos artísticos que sólo puedan encomendarse a determinadas personas naturales; | AS41: Inversión | AT41: =IF(ISBLANK(K41),1,IFERROR(VLOOKUP(K41,Eje_Pilar_Prop!$C$3:$C$104,1,FALSE),"NO")) -> 45 | AU41: SECOP II | AV41: 1 | AW41: Bogotá Mejor para Todos
A42: FDLCH-CPS-029-2020 | B42: 2020 | C42: SECOP II | D42: CPS-029-2020 | E42: Contratos de prestación de servicios profesionales y de apoyo a la gestión | F42: Contratación directa | G42: Prestación de servicios profesionales y de apoyo a la gestión, o para la ejecución de trabajos artísticos que sólo puedan encomendarse a determinadas personas naturales; | H42: PRESTACIÓN DE SERVICIOS PROFESIONALES PARA APOYAR EL ÁREA DE GESTIÓN DEL DESARROLLO LOCAL DE LA ALCALDÍA LOCAL DE CHAPINERO EN LA GESTIÓN CONTRACTUAL DEL PROYECTO 1301 MEJORAR LA CALIDAD DE LA MOVILIDAD. | I42: Inversión | J42: Bogotá Mejor para Todos | K42: 18 | L42: =IF(ISERROR(VLOOKUP(K42,Eje_Pilar_Prop!$C$2:$E$104,2,FALSE))," ",VLOOKUP(K42,Eje_Pilar_Prop!$C$2:$E$104,2,FALSE)) -> Mejor movilidad para todos | M42: =IF(ISERROR(VLOOKUP(K42,Eje_Pilar_Prop!$C$2:$E$104,3,FALSE))," ",VLOOKUP(K42,Eje_Pilar_Prop!$C$2:$E$104,3,FALSE)) -> Pilar 2 Democracía Urbana | N42: 1301 | O42: 52966422 | P42: JHOANA ANDREA SALOMON CASTRO | Q42: 36000000 | R42: 0 | S42: 0 | T42: 0 | U42: 0 | V42: 36000000 | W42: 36000000 | X42: 2020-01-28 | Y42: 2020-01-30 | Z42: =+Y42 -> 2020-01-30 | AA42: 120 | AB42: 0 | AC42: 0 | AJ42: X | AL42: 1 | AO42: =IF(SUMPRODUCT((A$14:A42=A42)*(B$14:B42=B42)*(D$14:D42=D42))>1,0,1) -> 1 | AP42: Contratos de prestación de servicios profesionales y de apoyo a la gestión | AQ42: Contratación directa | AR42: =IF(ISBLANK(G42),1,IFERROR(VLOOKUP(G42,Tipo!$C$12:$C$27,1,FALSE),"NO")) -> Prestación de servicios profesionales y de apoyo a la gestión, o para la ejecución de trabajos artísticos que sólo puedan encomendarse a determinadas personas naturales; | AS42: Inversión | AT42: =IF(ISBLANK(K42),1,IFERROR(VLOOKUP(K42,Eje_Pilar_Prop!$C$3:$C$104,1,FALSE),"NO")) -> 18 | AU42: SECOP II | AV42: 1 | AW42: Bogotá Mejor para Todos
A43: FDLCH-CPS-030-2020 | B43: 2020 | C43: SECOP II | D43: CPS-030-2020 | E43: Contratos de prestación de servicios profesionales y de apoyo a la gestión | F43: Contratación directa | G43: Prestación de servicios profesionales y de apoyo a la gestión, o para la ejecución de trabajos artísticos que sólo puedan encomendarse a determinadas personas naturales; | H43: PRESTAR LOS SERVICIOS PROFESIONALES PARA APOYAR EL ÁREA GESTIÓN DEL DESARROLLO LOCAL DE LA ALCALDÍA LOCAL DE CHAPINERO EN LAS ACTIVIDADES CONTABLES Y PRESUPUESTALES | I43: Inversión | J43: Bogotá Mejor para Todos | K43: 45 | L43: =IF(ISERROR(VLOOKUP(K43,Eje_Pilar_Prop!$C$2:$E$104,2,FALSE))," ",VLOOKUP(K43,Eje_Pilar_Prop!$C$2:$E$104,2,FALSE)) -> Gobernanza e influencia local, regional e internacional | M43: =IF(ISERROR(VLOOKUP(K43,Eje_Pilar_Prop!$C$2:$E$104,3,FALSE))," ",VLOOKUP(K43,Eje_Pilar_Prop!$C$2:$E$104,3,FALSE)) -> Eje Transversal 4 Gobierno Legitimo, Fortalecimiento Local y Eficiencia | N43: 1304 | O43: 7141790 | P43: LEONARDO OROZCO MARTINEZ | Q43: 17440000 | R43: 0 | S43: 0 | T43: 2 | U43: 8720000 | V43: 26160000 | W43: 26160000 | X43: 2020-01-27 | Y43: 2020-01-28 | Z43: =+Y43+30+2+30+1 -> 2020-03-31 | AA43: 120 | AB43: 2 | AC43: 60 | AJ43: X | AL43: 1 | AO43: =IF(SUMPRODUCT((A$14:A43=A43)*(B$14:B43=B43)*(D$14:D43=D43))>1,0,1) -> 1 | AP43: Contratos de prestación de servicios profesionales y de apoyo a la gestión | AQ43: Contratación directa | AR43: =IF(ISBLANK(G43),1,IFERROR(VLOOKUP(G43,Tipo!$C$12:$C$27,1,FALSE),"NO")) -> Prestación de servicios profesionales y de apoyo a la gestión, o para la ejecución de trabajos artísticos que sólo puedan encomendarse a determinadas personas naturales; | AS43: Inversión | AT43: =IF(ISBLANK(K43),1,IFERROR(VLOOKUP(K43,Eje_Pilar_Prop!$C$3:$C$104,1,FALSE),"NO")) -> 45 | AU43: SECOP II | AV43: 1 | AW43: Bogotá Mejor para Todos
A44: FDLCH-CPS-031-2020 | B44: 2020 | C44: SECOP II | D44: CPS-031-2020 | E44: Contratos de prestación de servicios profesionales y de apoyo a la gestión | F44: Contratación directa | G44: Prestación de servicios profesionales y de apoyo a la gestión, o para la ejecución de trabajos artísticos que sólo puedan encomendarse a determinadas personas naturales; | H44: PRESTAR SUS SERVICIOS PROFESIONALES A LA ALCALDIA LOCAL DE CHAPINERO PARA APOYAR TECNICAMENTE LA EJECUCION DEL PROYECTO 1299 , ASESORIA PARA LA LEGALIZACION DE BARRIOS Y TITULACION DE PREDIOS EN EL COMPONENTE DEMANDAS DE TITULACION CONFORME A GARANTIZAR EL CUMPLIMIENTO DEL PLAN DE DESARROLLO LOCAL | I44: Inversión | J44: Bogotá Mejor para Todos | K44: 15 | L44: =IF(ISERROR(VLOOKUP(K44,Eje_Pilar_Prop!$C$2:$E$104,2,FALSE))," ",VLOOKUP(K44,Eje_Pilar_Prop!$C$2:$E$104,2,FALSE)) -> Recuperación, incorporación, vida urbana y control de la ilegalidad | M44: =IF(ISERROR(VLOOKUP(K44,Eje_Pilar_Prop!$C$2:$E$104,3,FALSE))," ",VLOOKUP(K44,Eje_Pilar_Prop!$C$2:$E$104,3,FALSE)) -> Pilar 2 Democracía Urbana | N44: 1299 | O44: 1053779393 | P44: JUAN CAMILO ALZATE OCAMPO | Q44: 26000000 | R44: 0 | S44: 0 | T44: 0 | U44: 0 | V44: 26000000 | W44: 25783334 | X44: 2020-01-28 | Y44: 2020-01-30 | Z44: =+Y44+7+1 -> 2020-02-07 | AA44: 120 | AB44: 0 | AC44: 0 | AJ44: X | AL44: 0.9916666923 | AO44: =IF(SUMPRODUCT((A$14:A44=A44)*(B$14:B44=B44)*(D$14:D44=D44))>1,0,1) -> 1 | AP44: Contratos de prestación de servicios profesionales y de apoyo a la gestión | AQ44: Contratación directa | AR44: =IF(ISBLANK(G44),1,IFERROR(VLOOKUP(G44,Tipo!$C$12:$C$27,1,FALSE),"NO")) -> Prestación de servicios profesionales y de apoyo a la gestión, o para la ejecución de trabajos artísticos que sólo puedan encomendarse a determinadas personas naturales; | AS44: Inversión | AT44: =IF(ISBLANK(K44),1,IFERROR(VLOOKUP(K44,Eje_Pilar_Prop!$C$3:$C$104,1,FALSE),"NO")) -> 15 | AU44: SECOP II | AV44: 1 | AW44: Bogotá Mejor para Todos
A45: FDLCH-CPS-032-2020 | B45: 2020 | C45: SECOP II | D45: CPS-032-2020 | E45: Contratos de prestación de servicios profesionales y de apoyo a la gestión | F45: Contratación directa | G45: Prestación de servicios profesionales y de apoyo a la gestión, o para la ejecución de trabajos artísticos que sólo puedan encomendarse a determinadas personas naturales; | H45: PRESTACIÓN DE SERVICIOS DE APOYO DE LOGÍSTICA QUE SE REQUIERAN EN EL DESARROLLO DE LAS ACTIVIDADES RELATIVAS A RECUPERACIÓN Y EMBELLECIMIENTO DEL ESPACIO PÚBLICO QUE TENGA A CARGO EL FONDO LOCAL DE DESARROLLO DE CHAPINERO | I45: Inversión | J45: Bogotá Mejor para Todos | K45: 18 | L45: =IF(ISERROR(VLOOKUP(K45,Eje_Pilar_Prop!$C$2:$E$104,2,FALSE))," ",VLOOKUP(K45,Eje_Pilar_Prop!$C$2:$E$104,2,FALSE)) -> Mejor movilidad para todos | M45: =IF(ISERROR(VLOOKUP(K45,Eje_Pilar_Prop!$C$2:$E$104,3,FALSE))," ",VLOOKUP(K45,Eje_Pilar_Prop!$C$2:$E$104,3,FALSE)) -> Pilar 2 Democracía Urbana | N45: 1301 | O45: 79153721 | P45: JORGE ENRIQUE URQUIJO | Q45: 8224000 | R45: 0 | S45: 0 | T45: 1 | U45: 2056000 | V45: 10280000 | W45: 10280000 | X45: 2020-01-30 | Y45: 2020-02-03 | Z45: =+Y45+30 -> 2020-03-04 | AA45: 120 | AB45: 1 | AC45: 30 | AJ45: X | AL45: 1 | AO45: =IF(SUMPRODUCT((A$14:A45=A45)*(B$14:B45=B45)*(D$14:D45=D45))>1,0,1) -> 1 | AP45: Contratos de prestación de servicios profesionales y de apoyo a la gestión | AQ45: Contratación directa | AR45: =IF(ISBLANK(G45),1,IFERROR(VLOOKUP(G45,Tipo!$C$12:$C$27,1,FALSE),"NO")) -> Prestación de servicios profesionales y de apoyo a la gestión, o para la ejecución de trabajos artísticos que sólo puedan encomendarse a determinadas personas naturales; | AS45: Inversión | AT45: =IF(ISBLANK(K45),1,IFERROR(VLOOKUP(K45,Eje_Pilar_Prop!$C$3:$C$104,1,FALSE),"NO")) -> 18 | AU45: SECOP II | AV45: 1 | AW45: Bogotá Mejor para Todos
A46: FDLCH-CPS-033-2020 | B46: 2020 | C46: SECOP II | D46: CPS-033-2020 | E46: Contratos de prestación de servicios profesionales y de apoyo a la gestión | F46: Contratación directa | G46: Prestación de servicios profesionales y de apoyo a la gestión, o para la ejecución de trabajos artísticos que sólo puedan encomendarse a determinadas personas naturales; | H46: PRESTACIÓN DE SERVICIOS DE APOYO DE LOGÍSTICA QUE SE REQUIERAN EN EL DESARROLLO DE LAS ACTIVIDADES RELATIVAS A RECUPERACIÓN Y EMBELLECIMIENTO DEL ESPACIO PÚBLICO QUE TENGA A CARGO EL FONDO LOCAL DE DESARROLLO DE CHAPINERO | I46: Inversión | J46: Bogotá Mejor para Todos | K46: 18 | L46: =IF(ISERROR(VLOOKUP(K46,Eje_Pilar_Prop!$C$2:$E$104,2,FALSE))," ",VLOOKUP(K46,Eje_Pilar_Prop!$C$2:$E$104,2,FALSE)) -> Mejor movilidad para todos | M46: =IF(ISERROR(VLOOKUP(K46,Eje_Pilar_Prop!$C$2:$E$104,3,FALSE))," ",VLOOKUP(K46,Eje_Pilar_Prop!$C$2:$E$104,3,FALSE)) -> Pilar 2 Democracía Urbana | N46: 1301 | O46: 1071166907 | P46: WILSON FERNANDO ORJUELA CHAVEZ | Q46: 8224000 | R46: 0 | S46: 0 | T46: 1 | U46: 2056000 | V46: 10280000 | W46: 10280000 | X46: 2020-02-04 | Y46: 2020-02-06 | Z46: =+Y46+30 -> 2020-03-07 | AA46: 120 | AB46: 1 | AC46: 30 | AJ46: X | AL46: 1 | AO46: =IF(SUMPRODUCT((A$14:A46=A46)*(B$14:B46=B46)*(D$14:D46=D46))>1,0,1) -> 1 | AP46: Contratos de prestación de servicios profesionales y de apoyo a la gestión | AQ46: Contratación directa | AR46: =IF(ISBLANK(G46),1,IFERROR(VLOOKUP(G46,Tipo!$C$12:$C$27,1,FALSE),"NO")) -> Prestación de servicios profesionales y de apoyo a la gestión, o para la ejecución de trabajos artísticos que sólo puedan encomendarse a determinadas personas naturales; | AS46: Inversión | AT46: =IF(ISBLANK(K46),1,IFERROR(VLOOKUP(K46,Eje_Pilar_Prop!$C$3:$C$104,1,FALSE),"NO")) -> 18 | AU46: SECOP II | AV46: 1 | AW46: Bogotá Mejor para Todos
A47: FDLCH-CPS-034-2020 | B47: 2020 | C47: SECOP II | D47: CPS-034-2020 | E47: Contratos de prestación de servicios profesionales y de apoyo a la gestión | F47: Contratación directa | G47: Prestación de servicios profesionales y de apoyo a la gestión, o para la ejecución de trabajos artísticos que sólo puedan encomendarse a determinadas personas naturales; | H47: PRESTACIÓN DE SERVICIOS PROFESIONALES PARA APOYAR TÉCNICAMENTE LAS DISTINTAS ETAPAS DE LOS PROCESOS DE COMPETENCIA DE LA ALCALDÍA LOCAL DE CHAPINERO, PARA LA DEPURACIÓN DE ACTUACIONES ADMINISTRATIVAS | I47: Inversión | J47: Bogotá Mejor para Todos | K47: 45 | L47: =IF(ISERROR(VLOOKUP(K47,Eje_Pilar_Prop!$C$2:$E$104,2,FALSE))," ",VLOOKUP(K47,Eje_Pilar_Prop!$C$2:$E$104,2,FALSE)) -> Gobernanza e influencia local, regional e internacional | M47: =IF(ISERROR(VLOOKUP(K47,Eje_Pilar_Prop!$C$2:$E$104,3,FALSE))," ",VLOOKUP(K47,Eje_Pilar_Prop!$C$2:$E$104,3,FALSE)) -> Eje Transversal 4 Gobierno Legitimo, Fortalecimiento Local y Eficiencia | N47: 1304 | O47: 19171281 | P47: AXEL FERNANDO ALONSO GARRIDO SALCEDO | Q47: 19845000 | R47: 1 | S47: -5292000 | T47: 0 | U47: 0 | V47: 14553000 | W47: 13891500 | X47: 2020-01-30 | Y47: 2020-02-03 | Z47: 2020-06-02 | AA47: 120 | AB47: 0 | AC47: 0 | AD47: 8725078 | AE47: LUIS ALFREDO SILVA TRACEVEDO | AF47: 2020-03-04 | AG47: 14553000 | AJ47: X | AL47: 0.9545454545 | AO47: =IF(SUMPRODUCT((A$14:A47=A47)*(B$14:B47=B47)*(D$14:D47=D47))>1,0,1) -> 1 | AP47: Contratos de prestación de servicios profesionales y de apoyo a la gestión | AQ47: Contratación directa | AR47: =IF(ISBLANK(G47),1,IFERROR(VLOOKUP(G47,Tipo!$C$12:$C$27,1,FALSE),"NO")) -> Prestación de servicios profesionales y de apoyo a la gestión, o para la ejecución de trabajos artísticos que sólo puedan encomendarse a determinadas personas naturales; | AS47: Inversión | AT47: =IF(ISBLANK(K47),1,IFERROR(VLOOKUP(K47,Eje_Pilar_Prop!$C$3:$C$104,1,FALSE),"NO")) -> 45 | AU47: SECOP II | AV47: 1 | AW47: Bogotá Mejor para Todos
A48: FDLCH-CPS-035-2020 | B48: 2020 | C48: SECOP II | D48: CPS-035-2020 | E48: Contratos de prestación de servicios profesionales y de apoyo a la gestión | F48: Contratación directa | G48: Prestación de servicios profesionales y de apoyo a la gestión, o para la ejecución de trabajos artísticos que sólo puedan encomendarse a determinadas personas naturales; | H48: PRESTACIÓN DE SERVICIOS PROFESIONALES PARA APOYAR AL ALCALDE LOCAL EN LA GESTIÓN DE LOS ASUNTOS RELACIONADOS CON SEGURIDAD CIUDADANA, CONVIVENCIA Y PREVENCIÓN DE CONFLICTIVIDADES, VIOLENCIAS Y DELITOS EN LA LOCALIDAD, DE CONFORMIDAD CON EL MARCO NORMATIVO APLICABLE EN LA MATERIA. | I48: Inversión | J48: Bogotá Mejor para Todos | K48: 19 | L48: =IF(ISERROR(VLOOKUP(K48,Eje_Pilar_Prop!$C$2:$E$104,2,FALSE))," ",VLOOKUP(K48,Eje_Pilar_Prop!$C$2:$E$104,2,FALSE)) -> Seguridad y convivencia para todos | M48: =IF(ISERROR(VLOOKUP(K48,Eje_Pilar_Prop!$C$2:$E$104,3,FALSE))," ",VLOOKUP(K48,Eje_Pilar_Prop!$C$2:$E$104,3,FALSE)) -> Pilar 3 Construcción de Comunidad y Cultura Ciudadana | N48: 1302 | O48: 79713457 | P48: JUAN CARLOS MURILLO GUZMAN | Q48: 19600000 | R48: 0 | S48: 0 | T48: 0 | U48: 0 | V48: 19600000 | W48: 19600000 | X48: 2020-01-29 | Y48: 2020-01-30 | Z48: =+Y48+30+1 -> 2020-03-01 | AA48: 120 | AB48: 1 | AC48: 30 | AJ48: X | AL48: 1 | AO48: =IF(SUMPRODUCT((A$14:A48=A48)*(B$14:B48=B48)*(D$14:D48=D48))>1,0,1) -> 1 | AP48: Contratos de prestación de servicios profesionales y de apoyo a la gestión | AQ48: Contratación directa | AR48: =IF(ISBLANK(G48),1,IFERROR(VLOOKUP(G48,Tipo!$C$12:$C$27,1,FALSE),"NO")) -> Prestación de servicios profesionales y de apoyo a la gestión, o para la ejecución de trabajos artísticos que sólo puedan encomendarse a determinadas personas naturales; | AS48: Inversión | AT48: =IF(ISBLANK(K48),1,IFERROR(VLOOKUP(K48,Eje_Pilar_Prop!$C$3:$C$104,1,FALSE),"NO")) -> 19 | AU48: SECOP II | AV48: 1 | AW48: Bogotá Mejor para Todos
A49: FDLCH-CPS-036-2020 | B49: 2020 | C49: SECOP II | D49: CPS-036-2020 | E49: Contratos de prestación de servicios profesionales y de apoyo a la gestión | F49: Contratación directa | G49: Prestación de servicios profesionales y de apoyo a la gestión, o para la ejecución de trabajos artísticos que sólo puedan encomendarse a determinadas personas naturales; | H49: PRESTACIÓN DE SERVICIOS PROFESIONALES PARA APOYAR EL ÁREA DE GESTIÓN DEL DESARROLLO LOCAL DE LA ALCALDÍA LOCAL DE CHAPINERO EN LA GESTIÓN CONTRACTUAL DEL PROYECTO 1301 MEJORAR LA CALIDAD DE LA MOVILIDAD | I49: Inversión | J49: Bogotá Mejor para Todos | K49: 18 | L49: =IF(ISERROR(VLOOKUP(K49,Eje_Pilar_Prop!$C$2:$E$104,2,FALSE))," ",VLOOKUP(K49,Eje_Pilar_Prop!$C$2:$E$104,2,FALSE)) -> Mejor movilidad para todos | M49: =IF(ISERROR(VLOOKUP(K49,Eje_Pilar_Prop!$C$2:$E$104,3,FALSE))," ",VLOOKUP(K49,Eje_Pilar_Prop!$C$2:$E$104,3,FALSE)) -> Pilar 2 Democracía Urbana | N49: 1301 | O49: 52774158 | P49: YENNY ALEXANDRA HERRERA PEÑA | Q49: 28400000 | R49: 0 | S49: 0 | T49: 0 | U49: 0 | V49: 28400000 | W49: 28400000 | X49: 2020-01-31 | Y49: 2020-02-04 | Z49: 2020-06-03 | AA49: 120 | AB49: 0 | AC49: 0 | AJ49: X | AL49: 1 | AO49: =IF(SUMPRODUCT((A$14:A49=A49)*(B$14:B49=B49)*(D$14:D49=D49))>1,0,1) -> 1 | AP49: Contratos de prestación de servicios profesionales y de apoyo a la gestión | AQ49: Contratación directa | AR49: =IF(ISBLANK(G49),1,IFERROR(VLOOKUP(G49,Tipo!$C$12:$C$27,1,FALSE),"NO")) -> Prestación de servicios profesionales y de apoyo a la gestión, o para la ejecución de trabajos artísticos que sólo puedan encomendarse a determinadas personas naturales; | AS49: Inversión | AT49: =IF(ISBLANK(K49),1,IFERROR(VLOOKUP(K49,Eje_Pilar_Prop!$C$3:$C$104,1,FALSE),"NO")) -> 18 | AU49: SECOP II | AV49: 1 | AW49: Bogotá Mejor para Todos
A50: FDLCH-CPS-037-2020 | B50: 2020 | C50: SECOP II | D50: CPS-037-2020 | E50: Contratos de prestación de servicios profesionales y de apoyo a la gestión | F50: Contratación directa | G50: Prestación de servicios profesionales y de apoyo a la gestión, o para la ejecución de trabajos artísticos que sólo puedan encomendarse a determinadas personas naturales; | H50: PRESTACIÓN DE SERVICIOS PROFESIONALES PARA LA OPERACIÓN, PRESTACIÓN Y SEGUIMIENTO Y CUMPLIMIENTO DE LOS PROCEDIMIENTOS ADMINISTRATIVOS, OPERATIVOS Y PROGRAMÁTICOS DE LOS SERVICIOS SOCIALES DEL PROYECTO DE SUBSIDIO APOYO ECONÓMICO TIPO C, QUE CONTRIBUYAN A LA GARANTÍA DE LOS DERECHOS DE LA POBLACIÓN MAYOR EN EL MARCO DE LA POLÍTICA PÚBLICA SOCIAL PARA EL ENVEJECIMIENTO Y LA VEJEZ EN EL DISTRITO CAPITAL A CARGO DE LA ALCALDÍA LOCAL DE CHAPINERO | I50: Inversión | J50: Bogotá Mejor para Todos | K50: 4 | L50: =IF(ISERROR(VLOOKUP(K50,Eje_Pilar_Prop!$C$2:$E$104,2,FALSE))," ",VLOOKUP(K50,Eje_Pilar_Prop!$C$2:$E$104,2,FALSE)) -> Familias protegidas y adaptadas al cambio climático | M50: =IF(ISERROR(VLOOKUP(K50,Eje_Pilar_Prop!$C$2:$E$104,3,FALSE))," ",VLOOKUP(K50,Eje_Pilar_Prop!$C$2:$E$104,3,FALSE)) -> Pilar 1 Igualdad de Calidad de Vida | N50: 1294 | O50: 52515541 | P50: BELLA ELOISA KAROLINA MORENO BRIONES | Q50: 19320000 | R50: 0 | S50: 0 | T50: 0 | U50: 0 | V50: 19320000 | W50: 19320000 | X50: 2020-01-29 | Y50: 2020-01-30 | Z50: =+Y50+6+1 -> 2020-02-06 | AA50: 120 | AB50: 0 | AC50: 0 | AJ50: X | AL50: 1 | AO50: =IF(SUMPRODUCT((A$14:A50=A50)*(B$14:B50=B50)*(D$14:D50=D50))>1,0,1) -> 1 | AP50: Contratos de prestación de servicios profesionales y de apoyo a la gestión | AQ50: Contratación directa | AR50: =IF(ISBLANK(G50),1,IFERROR(VLOOKUP(G50,Tipo!$C$12:$C$27,1,FALSE),"NO")) -> Prestación de servicios profesionales y de apoyo a la gestión, o para la ejecución de trabajos artísticos que sólo puedan encomendarse a determinadas personas naturales; | AS50: Inversión | AT50: =IF(ISBLANK(K50),1,IFERROR(VLOOKUP(K50,Eje_Pilar_Prop!$C$3:$C$104,1,FALSE),"NO")) -> 4 | AU50: SECOP II | AV50: 1 | AW50: Bogotá Mejor para Todos
A51: FDLCH-CPS-038-2020 | B51: 2020 | C51: SECOP II | D51: CPS-038-2020 | E51: Contratos de prestación de servicios profesionales y de apoyo a la gestión | F51: Contratación directa | G51: Prestación de servicios profesionales y de apoyo a la gestión, o para la ejecución de trabajos artísticos que sólo puedan encomendarse a determinadas personas naturales; | H51: PRESTACIÓN DE SERVICIOS PROFESIONALES PARA EL APOYO AL ÁREA DE GESTIÓN DEL DESARROLLO LOCAL DE LA ALCALDÍA LOCAL DE CHAPINERO EN LA FORMULACIÓN, GESTIÓN, EJECUCIÓN Y SEGUIMIENTO DEL PROYECTO 1301 'MEJORAR LA CALIDAD DE LA MOVILIDAD' Y LA SUPERVISIÓN DE CONTRATOS QUE LE SEAN ASIGNADOS. | I51: Inversión | J51: Bogotá Mejor para Todos | K51: 18 | L51: =IF(ISERROR(VLOOKUP(K51,Eje_Pilar_Prop!$C$2:$E$104,2,FALSE))," ",VLOOKUP(K51,Eje_Pilar_Prop!$C$2:$E$104,2,FALSE)) -> Mejor movilidad para todos | M51: =IF(ISERROR(VLOOKUP(K51,Eje_Pilar_Prop!$C$2:$E$104,3,FALSE))," ",VLOOKUP(K51,Eje_Pilar_Prop!$C$2:$E$104,3,FALSE)) -> Pilar 2 Democracía Urbana | N51: 1301 | O51: 1090435721 | P51: JORGE ENRIQUE ABREO REYES | Q51: 28400000 | R51: 0 | S51: 0 | T51: 1 | U51: 7100000 | V51: 35500000 | W51: 35500000 | X51: 2020-01-31 | Y51: 2020-02-04 | Z51: 2020-07-03 | AA51: 120 | AB51: 1 | AC51: 30 | AJ51: X | AL51: 1 | AO51: =IF(SUMPRODUCT((A$14:A51=A51)*(B$14:B51=B51)*(D$14:D51=D51))>1,0,1) -> 1 | AP51: Contratos de prestación de servicios profesionales y de apoyo a la gestión | AQ51: Contratación directa | AR51: =IF(ISBLANK(G51),1,IFERROR(VLOOKUP(G51,Tipo!$C$12:$C$27,1,FALSE),"NO")) -> Prestación de servicios profesionales y de apoyo a la gestión, o para la ejecución de trabajos artísticos que sólo puedan encomendarse a determinadas personas naturales; | AS51: Inversión | AT51: =IF(ISBLANK(K51),1,IFERROR(VLOOKUP(K51,Eje_Pilar_Prop!$C$3:$C$104,1,FALSE),"NO")) -> 18 | AU51: SECOP II | AV51: 1 | AW51: Bogotá Mejor para Todos
A52: FDLCH-CPS-039-2020 | B52: 2020 | C52: SECOP II | D52: CPS-039-2020 | E52: Contratos de prestación de servicios profesionales y de apoyo a la gestión | F52: Contratación directa | G52: Prestación de servicios profesionales y de apoyo a la gestión, o para la ejecución de trabajos artísticos que sólo puedan encomendarse a determinadas personas naturales; | H52: PRESTACIÓN DE SERVICIOS DE APOYO DE LOGÍSTICA QUE SE REQUIERAN EN EL DESARROLLO DE LAS ACTIVIDADES RELATIVAS A RECUPERACIÓN Y EMBELLECIMIENTO DEL ESPACIO PÚBLICO QUE TENGA A CARGO EL FONDO LOCAL DE DESARROLLO DE CHAPINERO | I52: Inversión | J52: Bogotá Mejor para Todos | K52: 18 | L52: =IF(ISERROR(VLOOKUP(K52,Eje_Pilar_Prop!$C$2:$E$104,2,FALSE))," ",VLOOKUP(K52,Eje_Pilar_Prop!$C$2:$E$104,2,FALSE)) -> Mejor movilidad para todos | M52: =IF(ISERROR(VLOOKUP(K52,Eje_Pilar_Prop!$C$2:$E$104,3,FALSE))," ",VLOOKUP(K52,Eje_Pilar_Prop!$C$2:$E$104,3,FALSE)) -> Pilar 2 Democracía Urbana | N52: 1301 | O52: 11187251 | P52: HEVER AUGUSTO PARADA VANEGAS | Q52: 10000000 | R52: 0 | S52: 0 | T52: 1 | U52: 2500000 | V52: 12500000 | W52: 12500000 | X52: 2020-02-04 | Y52: 2020-02-05 | Z52: =+Y52+30 -> 2020-03-06 | AA52: 120 | AB52: 1 | AC52: 30 | AJ52: X | AL52: 1 | AO52: =IF(SUMPRODUCT((A$14:A52=A52)*(B$14:B52=B52)*(D$14:D52=D52))>1,0,1) -> 1 | AP52: Contratos de prestación de servicios profesionales y de apoyo a la gestión | AQ52: Contratación directa | AR52: =IF(ISBLANK(G52),1,IFERROR(VLOOKUP(G52,Tipo!$C$12:$C$27,1,FALSE),"NO")) -> Prestación de servicios profesionales y de apoyo a la gestión, o para la ejecución de trabajos artísticos que sólo puedan encomendarse a determinadas personas naturales; | AS52: Inversión | AT52: =IF(ISBLANK(K52),1,IFERROR(VLOOKUP(K52,Eje_Pilar_Prop!$C$3:$C$104,1,FALSE),"NO")) -> 18 | AU52: SECOP II | AV52: 1 | AW52: Bogotá Mejor para Todos
A53: FDLCH-CPS-040-2020 | B53: 2020 | C53: SECOP II | D53: CPS-040-2020 | E53: Contratos de prestación de servicios profesionales y de apoyo a la gestión | F53: Contratación directa | G53: Prestación de servicios profesionales y de apoyo a la gestión, o para la ejecución de trabajos artísticos que sólo puedan encomendarse a determinadas personas naturales; | H53: PRESTACIÓN DE SERVICIOS PERSONALES NECESARIOS PARA APOYAR LA GESTIÓN Y EJECUCIÓN DE ACTIVIDADES ADMINISTRATIVAS, OPERATIVAS Y LOGÍSTICAS QUE SE ADELANTAN EN EL ÁREA DE GESTIÓN DEL DESARROLLO LOCAL DE LA ALCALDÍA LOCAL DE CHAPINERO | I53: Inversión | J53: Bogotá Mejor para Todos | K53: 45 | L53: =IF(ISERROR(VLOOKUP(K53,Eje_Pilar_Prop!$C$2:$E$104,2,FALSE))," ",VLOOKUP(K53,Eje_Pilar_Prop!$C$2:$E$104,2,FALSE)) -> Gobernanza e influencia local, regional e internacional | M53: =IF(ISERROR(VLOOKUP(K53,Eje_Pilar_Prop!$C$2:$E$104,3,FALSE))," ",VLOOKUP(K53,Eje_Pilar_Prop!$C$2:$E$104,3,FALSE)) -> Eje Transversal 4 Gobierno Legitimo, Fortalecimiento Local y Eficiencia | N53: 1304 | O53: 2996195 | P53: MEYER JAIRO GACHARNA VILLALBA | Q53: 8700000 | R53: 0 | S53: 0 | T53: 0 | U53: 0 | V53: 8700000 | W53: 8700000 | X53: 2020-01-29 | Y53: 2020-01-30 | Z53: =+Y53+7+1 -> 2020-02-07 | AA53: 120 | AB53: 0 | AC53: 0 | AJ53: X | AL53: 1 | AO53: =IF(SUMPRODUCT((A$14:A53=A53)*(B$14:B53=B53)*(D$14:D53=D53))>1,0,1) -> 1 | AP53: Contratos de prestación de servicios profesionales y de apoyo a la gestión | AQ53: Contratación directa | AR53: =IF(ISBLANK(G53),1,IFERROR(VLOOKUP(G53,Tipo!$C$12:$C$27,1,FALSE),"NO")) -> Prestación de servicios profesionales y de apoyo a la gestión, o para la ejecución de trabajos artísticos que sólo puedan encomendarse a determinadas personas naturales; | AS53: Inversión | AT53: =IF(ISBLANK(K53),1,IFERROR(VLOOKUP(K53,Eje_Pilar_Prop!$C$3:$C$104,1,FALSE),"NO")) -> 45 | AU53: SECOP II | AV53: 1 | AW53: Bogotá Mejor para Todos
A54: FDLCH-CPS-041-2020 | B54: 2020 | C54: SECOP II | D54: CPS-041-2020 | E54: Contratos de prestación de servicios profesionales y de apoyo a la gestión | F54: Contratación directa | G54: Prestación de servicios profesionales y de apoyo a la gestión, o para la ejecución de trabajos artísticos que sólo puedan encomendarse a determinadas personas naturales; | H54: APOYAR TÉCNICAMENTE A LOS RESPONSABLES E INTEGRANTES DE LOS PROCESOS EN LA IMPLEMENTACIÓN DE HERRAMIENTAS DE GESTIÓN, SIGUIENDO LOS LINEAMIENTOS METODOLÓGICOS ESTABLECIDOS POR LA OFICINA ASESORA DE PLANEACIÓN DE LA SECRETARÍA DISTRITAL DE GOBIERNO | I54: Inversión | J54: Bogotá Mejor para Todos | K54: 45 | L54: =IF(ISERROR(VLOOKUP(K54,Eje_Pilar_Prop!$C$2:$E$104,2,FALSE))," ",VLOOKUP(K54,Eje_Pilar_Prop!$C$2:$E$104,2,FALSE)) -> Gobernanza e influencia local, regional e internacional | M54: =IF(ISERROR(VLOOKUP(K54,Eje_Pilar_Prop!$C$2:$E$104,3,FALSE))," ",VLOOKUP(K54,Eje_Pilar_Prop!$C$2:$E$104,3,FALSE)) -> Eje Transversal 4 Gobierno Legitimo, Fortalecimiento Local y Eficiencia | N54: 1304 | O54: 52048570 | P54: DEISY RUTH CONTRERAS RAMOS | Q54: 19320000 | R54: 0 | S54: 0 | T54: 1 | U54: 9660000 | V54: 28980000 | W54: 28658000 | X54: 2020-01-31 | Y54: 2020-02-03 | Z54: =+Y54+60+1 -> 2020-04-04 | AA54: 120 | AB54: 1 | AC54: 60 | AJ54: X | AL54: 0.9888888889 | AO54: =IF(SUMPRODUCT((A$14:A54=A54)*(B$14:B54=B54)*(D$14:D54=D54))>1,0,1) -> 1 | AP54: Contratos de prestación de servicios profesionales y de apoyo a la gestión | AQ54: Contratación directa | AR54: =IF(ISBLANK(G54),1,IFERROR(VLOOKUP(G54,Tipo!$C$12:$C$27,1,FALSE),"NO")) -> Prestación de servicios profesionales y de apoyo a la gestión, o para la ejecución de trabajos artísticos que sólo puedan encomendarse a determinadas personas naturales; | AS54: Inversión | AT54: =IF(ISBLANK(K54),1,IFERROR(VLOOKUP(K54,Eje_Pilar_Prop!$C$3:$C$104,1,FALSE),"NO")) -> 45 | AU54: SECOP II | AV54: 1 | AW54: Bogotá Mejor para Todos
A55: FDLCH-CPS-042-2020 | B55: 2020 | C55: SECOP II | D55: CPS-042-2020 | E55: Contratos de prestación de servicios profesionales y de apoyo a la gestión | F55: Contratación directa | G55: Prestación de servicios profesionales y de apoyo a la gestión, o para la ejecución de trabajos artísticos que sólo puedan encomendarse a determinadas personas naturales; | H55: PRESTACIÓN DE SERVICIOS TÉCNICOS PARA APOYAR LAS TAREAS OPERATIVAS DE CARÁCTER ARCHIVÍSTICO DESARROLLADAS EN LA ALCALDÍA LOCAL PARA GARANTIZAR LA APLICACIÓN CORRECTA DE LOS PROCEDIMIENTOS TÉCNICOS. | I55: Inversión | J55: Bogotá Mejor para Todos | K55: 45 | L55: =IF(ISERROR(VLOOKUP(K55,Eje_Pilar_Prop!$C$2:$E$104,2,FALSE))," ",VLOOKUP(K55,Eje_Pilar_Prop!$C$2:$E$104,2,FALSE)) -> Gobernanza e influencia local, regional e internacional | M55: =IF(ISERROR(VLOOKUP(K55,Eje_Pilar_Prop!$C$2:$E$104,3,FALSE))," ",VLOOKUP(K55,Eje_Pilar_Prop!$C$2:$E$104,3,FALSE)) -> Eje Transversal 4 Gobierno Legitimo, Fortalecimiento Local y Eficiencia | N55: 1304 | O55: 52854417 | P55: DIANA CAROLINA CASTRO | Q55: 15400000 | R55: 0 | S55: 0 | T55: 0 | U55: 0 | V55: 15400000 | W55: 15400000 | X55: 2020-01-30 | Y55: 2020-02-04 | Z55: =+Y55+24 -> 2020-02-28 | AA55: 120 | AB55: 0 | AC55: 0 | AJ55: X | AL55: 1 | AO55: =IF(SUMPRODUCT((A$14:A55=A55)*(B$14:B55=B55)*(D$14:D55=D55))>1,0,1) -> 1 | AP55: Contratos de prestación de servicios profesionales y de apoyo a la gestión | AQ55: Contratación directa | AR55: =IF(ISBLANK(G55),1,IFERROR(VLOOKUP(G55,Tipo!$C$12:$C$27,1,FALSE),"NO")) -> Prestación de servicios profesionales y de apoyo a la gestión, o para la ejecución de trabajos artísticos que sólo puedan encomendarse a determinadas personas naturales; | AS55: Inversión | AT55: =IF(ISBLANK(K55),1,IFERROR(VLOOKUP(K55,Eje_Pilar_Prop!$C$3:$C$104,1,FALSE),"NO")) -> 45 | AU55: SECOP II | AV55: 1 | AW55: Bogotá Mejor para Todos
A56: FDLCH-CPS-043-2020 | B56: 2020 | C56: SECOP II | D56: CPS-043-2020 | E56: Contratos de prestación de servicios profesionales y de apoyo a la gestión | F56: Contratación directa | G56: Prestación de servicios profesionales y de apoyo a la gestión, o para la ejecución de trabajos artísticos que sólo puedan encomendarse a determinadas personas naturales; | H56: PRESTACIÓN DE SERVICIOS PROFESIONALES PARA APOYAR AL ÁREA DE GESTIÓN DEL DESARROLLO LOCAL DE LA ALCALDÍA LOCAL DE CHAPINERO EN LA FORMULACIÓN, GESTIÓN Y EJECUCIÓN DEL PROYECTO 1298 CULTURA Y DEPORTE: TRANSFORMANDO VIDAS Y HACIENDO CIUDADANOS FELICES Y EN LA SUPERVISIÓN DE CONTRATOS QUE LE SEAN ASIGNADOS. | I56: Inversión | J56: Bogotá Mejor para Todos | K56: 11 | L56: =IF(ISERROR(VLOOKUP(K56,Eje_Pilar_Prop!$C$2:$E$104,2,FALSE))," ",VLOOKUP(K56,Eje_Pilar_Prop!$C$2:$E$104,2,FALSE)) -> Mejores oportunidades para el desarrollo a través de la cultura, la recreación y el deporte | M56: =IF(ISERROR(VLOOKUP(K56,Eje_Pilar_Prop!$C$2:$E$104,3,FALSE))," ",VLOOKUP(K56,Eje_Pilar_Prop!$C$2:$E$104,3,FALSE)) -> Pilar 1 Igualdad de Calidad de Vida | N56: 1298 | O56: 51957232 | P56: LINA MARIA CORTES GUTIERREZ | Q56: 28400000 | R56: 0 | S56: 0 | T56: 1 | U56: 7100000 | V56: 35500000 | W56: 35500000 | X56: 2020-01-30 | Y56: 2020-02-04 | Z56: =+Y56+30 -> 2020-03-05 | AA56: 120 | AB56: 1 | AC56: 30 | AJ56: X | AL56: 1 | AO56: =IF(SUMPRODUCT((A$14:A56=A56)*(B$14:B56=B56)*(D$14:D56=D56))>1,0,1) -> 1 | AP56: Contratos de prestación de servicios profesionales y de apoyo a la gestión | AQ56: Contratación directa | AR56: =IF(ISBLANK(G56),1,IFERROR(VLOOKUP(G56,Tipo!$C$12:$C$27,1,FALSE),"NO")) -> Prestación de servicios profesionales y de apoyo a la gestión, o para la ejecución de trabajos artísticos que sólo puedan encomendarse a determinadas personas naturales; | AS56: Inversión | AT56: =IF(ISBLANK(K56),1,IFERROR(VLOOKUP(K56,Eje_Pilar_Prop!$C$3:$C$104,1,FALSE),"NO")) -> 11 | AU56: SECOP II | AV56: 1 | AW56: Bogotá Mejor para Todos
A57: FDLCH-CPS-044-2020 | B57: 2020 | C57: SECOP II | D57: CPS-044-2020 | E57: Contratos de prestación de servicios profesionales y de apoyo a la gestión | F57: Contratación directa | G57: Prestación de servicios profesionales y de apoyo a la gestión, o para la ejecución de trabajos artísticos que sólo puedan encomendarse a determinadas personas naturales; | H57: PRESTACIÓN DE SERVICIOS PROFESIONALES PARA APOYAR AL ÁREA DE GESTIÓN DEL DESARROLLO LOCAL DE LA ALCALDÍA LOCAL DE CHAPINERO EN LOS PROYECTOS QUE LE SEAN ASIGNADOS Y LA SUPERVISIÓN DE LOS CONTRATOS | I57: Inversión | J57: Bogotá Mejor para Todos | K57: 17 | L57: =IF(ISERROR(VLOOKUP(K57,Eje_Pilar_Prop!$C$2:$E$104,2,FALSE))," ",VLOOKUP(K57,Eje_Pilar_Prop!$C$2:$E$104,2,FALSE)) -> Espacio público, derecho de todos | M57: =IF(ISERROR(VLOOKUP(K57,Eje_Pilar_Prop!$C$2:$E$104,3,FALSE))," ",VLOOKUP(K57,Eje_Pilar_Prop!$C$2:$E$104,3,FALSE)) -> Pilar 2 Democracía Urbana | N57: 1300 | O57: 80851019 | P57: NELSON LUIS VILLERO GUERRA | Q57: 19320000 | R57: 0 | S57: 0 | T57: 0 | U57: 0 | V57: 19320000 | W57: 18998000 | X57: 2020-01-29 | Y57: 2020-01-30 | Z57: =+Y57+7+1 -> 2020-02-07 | AA57: 120 | AB57: 0 | AC57: 0 | AJ57: X | AL57: 0.9833333333 | AO57: =IF(SUMPRODUCT((A$14:A57=A57)*(B$14:B57=B57)*(D$14:D57=D57))>1,0,1) -> 1 | AP57: Contratos de prestación de servicios profesionales y de apoyo a la gestión | AQ57: Contratación directa | AR57: =IF(ISBLANK(G57),1,IFERROR(VLOOKUP(G57,Tipo!$C$12:$C$27,1,FALSE),"NO")) -> Prestación de servicios profesionales y de apoyo a la gestión, o para la ejecución de trabajos artísticos que sólo puedan encomendarse a determinadas personas naturales; | AS57: Inversión | AT57: =IF(ISBLANK(K57),1,IFERROR(VLOOKUP(K57,Eje_Pilar_Prop!$C$3:$C$104,1,FALSE),"NO")) -> 17 | AU57: SECOP II | AV57: 1 | AW57: Bogotá Mejor para Todos
A58: FDLCH-CPS-045-2020 | B58: 2020 | C58: SECOP II | D58: CPS-045-2020 | E58: Contratos de prestación de servicios profesionales y de apoyo a la gestión | F58: Contratación directa | G58: Prestación de servicios profesionales y de apoyo a la gestión, o para la ejecución de trabajos artísticos que sólo puedan encomendarse a determinadas personas naturales; | H58: PRESTACIÓN DE SERVICIOS PROFESIONALES PARA APOYAR AL ÁREA DE GESTIÓN DEL DESARROLLO LOCAL DE LA ALCALDÍA LOCAL DE CHAPINERO EN LA FORMULACIÓN, GESTIÓN Y EJECUCIÓN DEL PROYECTO 1293 'CONTRIBUIR EN EL DESARROLLO DE LA PRIMERA INFANCIA Y LA ELIMINACIÓN DE LAS VIOLENCIAS' Y LA SUPERVISIÓN DE CONTRATOS QUE LE SEAN ASIGNADOS | I58: Inversión | J58: Bogotá Mejor para Todos | K58: 2 | L58: =IF(ISERROR(VLOOKUP(K58,Eje_Pilar_Prop!$C$2:$E$104,2,FALSE))," ",VLOOKUP(K58,Eje_Pilar_Prop!$C$2:$E$104,2,FALSE)) -> Desarrollo integral desde la gestación hasta la adolescencia | M58: =IF(ISERROR(VLOOKUP(K58,Eje_Pilar_Prop!$C$2:$E$104,3,FALSE))," ",VLOOKUP(K58,Eje_Pilar_Prop!$C$2:$E$104,3,FALSE)) -> Pilar 1 Igualdad de Calidad de Vida | N58: 1293 | O58: 52312234 | P58: CLAUDIA MARCELA LOPEZ SERRATO | Q58: 21000000 | R58: 0 | S58: 0 | T58: 2 | U58: 10500000 | V58: 31500000 | W58: 31500000 | X58: 2020-01-30 | Y58: 2020-02-03 | Z58: =+Y58+30+30+1 -> 2020-04-04 | AA58: 120 | AB58: 2 | AC58: 60 | AJ58: X | AL58: 1 | AO58: =IF(SUMPRODUCT((A$14:A58=A58)*(B$14:B58=B58)*(D$14:D58=D58))>1,0,1) -> 1 | AP58: Contratos de prestación de servicios profesionales y de apoyo a la gestión | AQ58: Contratación directa | AR58: =IF(ISBLANK(G58),1,IFERROR(VLOOKUP(G58,Tipo!$C$12:$C$27,1,FALSE),"NO")) -> Prestación de servicios profesionales y de apoyo a la gestión, o para la ejecución de trabajos artísticos que sólo puedan encomendarse a determinadas personas naturales; | AS58: Inversión | AT58: =IF(ISBLANK(K58),1,IFERROR(VLOOKUP(K58,Eje_Pilar_Prop!$C$3:$C$104,1,FALSE),"NO")) -> 2 | AU58: SECOP II | AV58: 1 | AW58: Bogotá Mejor para Todos
A59: FDLCH-CPS-046-2020 | B59: 2020 | C59: SECOP II | D59: CPS-046-2020 | E59: Contratos de prestación de servicios profesionales y de apoyo a la gestión | F59: Contratación directa | G59: Prestación de servicios profesionales y de apoyo a la gestión, o para la ejecución de trabajos artísticos que sólo puedan encomendarse a determinadas personas naturales; | H59: PRESTACIÓN DE SERVICIOS TÉCNICOS PARA APOYAR LA GESTIÓN DOCUMENTAL DE LA ALCALDÍA LOCAL PARA LA IMPLEMENTACIÓN DEL PROCESO DE VERIFICACIÓN, SOPORTE Y ACOMPAÑAMIENTO, EN EL DESARROLLO DE LAS ACTIVIDADES PROPIAS DE LOS PROCESOS Y ACTUACIONES ADMINISTRATIVAS EXISTENTES | I59: Inversión | J59: Bogotá Mejor para Todos | K59: 45 | L59: =IF(ISERROR(VLOOKUP(K59,Eje_Pilar_Prop!$C$2:$E$104,2,FALSE))," ",VLOOKUP(K59,Eje_Pilar_Prop!$C$2:$E$104,2,FALSE)) -> Gobernanza e influencia local, regional e internacional | M59: =IF(ISERROR(VLOOKUP(K59,Eje_Pilar_Prop!$C$2:$E$104,3,FALSE))," ",VLOOKUP(K59,Eje_Pilar_Prop!$C$2:$E$104,3,FALSE)) -> Eje Transversal 4 Gobierno Legitimo, Fortalecimiento Local y Eficiencia | N59: 1304 | O59: 1094948656 | P59: CARMEN IRENE REYES GAÑAN | Q59: 11920000 | R59: 0 | S59: 0 | T59: 1 | U59: 2980000 | V59: 14900000 | W59: 14403333 | X59: 2020-02-04 | Y59: 2020-02-06 | Z59: =+Y59+30 -> 2020-03-07 | AA59: 120 | AB59: 1 | AC59: 30 | AJ59: X | AL59: 0.9666666443 | AO59: =IF(SUMPRODUCT((A$14:A59=A59)*(B$14:B59=B59)*(D$14:D59=D59))>1,0,1) -> 1 | AP59: Contratos de prestación de servicios profesionales y de apoyo a la gestión | AQ59: Contratación directa | AR59: =IF(ISBLANK(G59),1,IFERROR(VLOOKUP(G59,Tipo!$C$12:$C$27,1,FALSE),"NO")) -> Prestación de servicios profesionales y de apoyo a la gestión, o para la ejecución de trabajos artísticos que sólo puedan encomendarse a determinadas personas naturales; | AS59: Inversión | AT59: =IF(ISBLANK(K59),1,IFERROR(VLOOKUP(K59,Eje_Pilar_Prop!$C$3:$C$104,1,FALSE),"NO")) -> 45 | AU59: SECOP II | AV59: 1 | AW59: Bogotá Mejor para Todos
A60: FDLCH-CPS-047-2020 | B60: 2020 | C60: SECOP II | D60: CPS-047-2020 | E60: Contratos de prestación de servicios profesionales y de apoyo a la gestión | F60: Contratación directa | G60: Prestación de servicios profesionales y de apoyo a la gestión, o para la ejecución de trabajos artísticos que sólo puedan encomendarse a determinadas personas naturales; | H60: PRESTAR LOS SERVICIOS TÉCNICOS PARA LA OPERACIÓN, SEGUIMIENTO Y CUMPLIMIENTO DE LOS PROCESOS Y PROCEDIMIENTOS DEL SERVICIO APOYOS PARA LA SEGURIDAD ECONÓMICA TIPO C, REQUERIDOS PARA EL OPORTUNO Y ADEC | I60: Inversión | J60: Bogotá Mejor para Todos | K60: 4 | L60: =IF(ISERROR(VLOOKUP(K60,Eje_Pilar_Prop!$C$2:$E$104,2,FALSE))," ",VLOOKUP(K60,Eje_Pilar_Prop!$C$2:$E$104,2,FALSE)) -> Familias protegidas y adaptadas al cambio climático | M60: =IF(ISERROR(VLOOKUP(K60,Eje_Pilar_Prop!$C$2:$E$104,3,FALSE))," ",VLOOKUP(K60,Eje_Pilar_Prop!$C$2:$E$104,3,FALSE)) -> Pilar 1 Igualdad de Calidad de Vida | N60: 1294 | O60: 52213327 | P60: ANDREA DEL PILAR PASTRANA PEREZ | Q60: 11920000 | R60: 0 | S60: 0 | T60: 2 | U60: 5960000 | V60: 17880000 | W60: 17482667 | X60: 2020-02-04 | Y60: 2020-02-05 | Z60: =+Y60+30+31 -> 2020-04-06 | AA60: 120 | AB60: 2 | AC60: 60 | AJ60: X | AL60: 0.9777777964 | AO60: =IF(SUMPRODUCT((A$14:A60=A60)*(B$14:B60=B60)*(D$14:D60=D60))>1,0,1) -> 1 | AP60: Contratos de prestación de servicios profesionales y de apoyo a la gestión | AQ60: Contratación directa | AR60: =IF(ISBLANK(G60),1,IFERROR(VLOOKUP(G60,Tipo!$C$12:$C$27,1,FALSE),"NO")) -> Prestación de servicios profesionales y de apoyo a la gestión, o para la ejecución de trabajos artísticos que sólo puedan encomendarse a determinadas personas naturales; | AS60: Inversión | AT60: =IF(ISBLANK(K60),1,IFERROR(VLOOKUP(K60,Eje_Pilar_Prop!$C$3:$C$104,1,FALSE),"NO")) -> 4 | AU60: SECOP II | AV60: 1 | AW60: Bogotá Mejor para Todos
A61: FDLCH-CPS-048-2020 | B61: 2020 | C61: SECOP II | D61: CPS-048-2020 | E61: Contratos de prestación de servicios profesionales y de apoyo a la gestión | F61: Contratación directa | G61: Prestación de servicios profesionales y de apoyo a la gestión, o para la ejecución de trabajos artísticos que sólo puedan encomendarse a determinadas personas naturales; | H61: PRESTACIÓN DE SERVICIOS PERSONALES NECESARIOS PARA APOYAR LA GESTIÓN DOCUMENTAL DE LA ALCALDÍA LOCAL, ACOMPAÑANDO AL EQUIPO JURÍDICO DE DEPURACIÓN EN LAS LABORES OPERATIVAS QUE GENERA EL PROCESO DE IMPULSO DE LAS ACTUACIONES ADMINISTRATIVAS EXISTENTES EN LAS DIFERENTES ALCALDÍAS LOCALES | I61: Inversión | J61: Bogotá Mejor para Todos | K61: 45 | L61: =IF(ISERROR(VLOOKUP(K61,Eje_Pilar_Prop!$C$2:$E$104,2,FALSE))," ",VLOOKUP(K61,Eje_Pilar_Prop!$C$2:$E$104,2,FALSE)) -> Gobernanza e influencia local, regional e internacional | M61: =IF(ISERROR(VLOOKUP(K61,Eje_Pilar_Prop!$C$2:$E$104,3,FALSE))," ",VLOOKUP(K61,Eje_Pilar_Prop!$C$2:$E$104,3,FALSE)) -> Eje Transversal 4 Gobierno Legitimo, Fortalecimiento Local y Eficiencia | N61: 1304 | O61: 79955421 | P61: PAULO CESAR RAMIREZ INFANTE | Q61: 9800000 | R61: 0 | S61: 0 | T61: 1 | U61: 4900000 | V61: 14700000 | W61: 14536667 | X61: 2020-01-31 | Y61: 2020-02-03 | Z61: =+Y61+60+1 -> 2020-04-04 | AA61: 120 | AB61: 1 | AC61: 60 | AJ61: X | AL61: 0.9888889116 | AO61: =IF(SUMPRODUCT((A$14:A61=A61)*(B$14:B61=B61)*(D$14:D61=D61))>1,0,1) -> 1 | AP61: Contratos de prestación de servicios profesionales y de apoyo a la gestión | AQ61: Contratación directa | AR61: =IF(ISBLANK(G61),1,IFERROR(VLOOKUP(G61,Tipo!$C$12:$C$27,1,FALSE),"NO")) -> Prestación de servicios profesionales y de apoyo a la gestión, o para la ejecución de trabajos artísticos que sólo puedan encomendarse a determinadas personas naturales; | AS61: Inversión | AT61: =IF(ISBLANK(K61),1,IFERROR(VLOOKUP(K61,Eje_Pilar_Prop!$C$3:$C$104,1,FALSE),"NO")) -> 45 | AU61: SECOP II | AV61: 1 | AW61: Bogotá Mejor para Todos
A62: FDLCH-CPS-049-2020 | B62: 2020 | C62: SECOP II | D62: CPS-049-2020 | E62: Contratos de prestación de servicios profesionales y de apoyo a la gestión | F62: Contratación directa | G62: Prestación de servicios profesionales y de apoyo a la gestión, o para la ejecución de trabajos artísticos que sólo puedan encomendarse a determinadas personas naturales; | H62: PRESTACIÓN DE SERVICIOS PERSONALES NECESARIOS PARA EL APOYO A LA GESTIÓN Y EJECUCIÓN DE LAS ACTIVIDADES ADMINISTRATIVAS Y OPERATIVAS QUE SE ADELANTAN EN EL ÀREA DE GESTIÓN PILICIVA JURÍDICA DE LA ALCALDÍA LOCAL DE CHAPINERO | I62: Inversión | J62: Bogotá Mejor para Todos | K62: 45 | L62: =IF(ISERROR(VLOOKUP(K62,Eje_Pilar_Prop!$C$2:$E$104,2,FALSE))," ",VLOOKUP(K62,Eje_Pilar_Prop!$C$2:$E$104,2,FALSE)) -> Gobernanza e influencia local, regional e internacional | M62: =IF(ISERROR(VLOOKUP(K62,Eje_Pilar_Prop!$C$2:$E$104,3,FALSE))," ",VLOOKUP(K62,Eje_Pilar_Prop!$C$2:$E$104,3,FALSE)) -> Eje Transversal 4 Gobierno Legitimo, Fortalecimiento Local y Eficiencia | N62: 1304 | O62: 52253361 | P62: OLGA LUCIA OBANDO CHACA | Q62: 9816660 | R62: 0 | S62: 0 | T62: 1 | U62: 4908330 | V62: 14724990 | W62: 14561379 | X62: 2020-01-31 | Y62: 2020-02-03 | Z62: =+Y62+60+1 -> 2020-04-04 | AA62: 120 | AB62: 1 | AC62: 60 | AJ62: X | AL62: 0.9888888889 | AO62: =IF(SUMPRODUCT((A$14:A62=A62)*(B$14:B62=B62)*(D$14:D62=D62))>1,0,1) -> 1 | AP62: Contratos de prestación de servicios profesionales y de apoyo a la gestión | AQ62: Contratación directa | AR62: =IF(ISBLANK(G62),1,IFERROR(VLOOKUP(G62,Tipo!$C$12:$C$27,1,FALSE),"NO")) -> Prestación de servicios profesionales y de apoyo a la gestión, o para la ejecución de trabajos artísticos que sólo puedan encomendarse a determinadas personas naturales; | AS62: Inversión | AT62: =IF(ISBLANK(K62),1,IFERROR(VLOOKUP(K62,Eje_Pilar_Prop!$C$3:$C$104,1,FALSE),"NO")) -> 45 | AU62: SECOP II | AV62: 1 | AW62: Bogotá Mejor para Todos
A63: FDLCH-CPS-050-2020 | B63: 2020 | C63: SECOP II | D63: CPS-050-2020 | E63: Contratos de prestación de servicios profesionales y de apoyo a la gestión | F63: Contratación directa | G63: Prestación de servicios profesionales y de apoyo a la gestión, o para la ejecución de trabajos artísticos que sólo puedan encomendarse a determinadas personas naturales; | H63: PRESTACIÓN DE SERVICIOS PERSONALES NECESARIOS PARA EL APOYO DE LAS ACTIVIDADES ADMINISTRATIVAS Y OPERATIVAS QUE ADELANTEN EN EL ÁREA DE GESTIÓN POLICIVA OBRAS EN LA ALCALDÍA LOCAL DE CHAPINERO | I63: Inversión | J63: Bogotá Mejor para Todos | K63: 45 | L63: =IF(ISERROR(VLOOKUP(K63,Eje_Pilar_Prop!$C$2:$E$104,2,FALSE))," ",VLOOKUP(K63,Eje_Pilar_Prop!$C$2:$E$104,2,FALSE)) -> Gobernanza e influencia local, regional e internacional | M63: =IF(ISERROR(VLOOKUP(K63,Eje_Pilar_Prop!$C$2:$E$104,3,FALSE))," ",VLOOKUP(K63,Eje_Pilar_Prop!$C$2:$E$104,3,FALSE)) -> Eje Transversal 4 Gobierno Legitimo, Fortalecimiento Local y Eficiencia | N63: 1304 | O63: 1136880515 | P63: DIEGO ALEJANDRO PORTILLA UBATE | Q63: 8780000 | R63: 0 | S63: 0 | T63: 1 | U63: 2195000 | V63: 10975000 | W63: 10975000 | X63: 2020-02-07 | Y63: 2020-02-10 | Z63: =+Y63+30 -> 2020-03-11 | AA63: 120 | AB63: 1 | AC63: 30 | AJ63: X | AL63: 1 | AO63: =IF(SUMPRODUCT((A$14:A63=A63)*(B$14:B63=B63)*(D$14:D63=D63))>1,0,1) -> 1 | AP63: Contratos de prestación de servicios profesionales y de apoyo a la gestión | AQ63: Contratación directa | AR63: =IF(ISBLANK(G63),1,IFERROR(VLOOKUP(G63,Tipo!$C$12:$C$27,1,FALSE),"NO")) -> Prestación de servicios profesionales y de apoyo a la gestión, o para la ejecución de trabajos artísticos que sólo puedan encomendarse a determinadas personas naturales; | AS63: Inversión | AT63: =IF(ISBLANK(K63),1,IFERROR(VLOOKUP(K63,Eje_Pilar_Prop!$C$3:$C$104,1,FALSE),"NO")) -> 45 | AU63: SECOP II | AV63: 1 | AW63: Bogotá Mejor para Todos
A64: FDLCH-CPS-051-2020 | B64: 2020 | C64: SECOP II | D64: CPS-051-2020 | E64: Contratos de prestación de servicios profesionales y de apoyo a la gestión | F64: Contratación directa | G64: Prestación de servicios profesionales y de apoyo a la gestión, o para la ejecución de trabajos artísticos que sólo puedan encomendarse a determinadas personas naturales; | H64: PRESTACIÓN DE SERVICIOS PROFESIONALES PARA APOYAR TÉCNICAMENTE LAS DISTINTAS ETAPAS DE LOS PROCESOS DE COMPETENCIA DE LAS INSPECCIONES DE POLICÍA DE LA LOCALIDAD DE CHAPINERO, SEGÚN REPARTO | I64: Inversión | J64: Bogotá Mejor para Todos | K64: 45 | L64: =IF(ISERROR(VLOOKUP(K64,Eje_Pilar_Prop!$C$2:$E$104,2,FALSE))," ",VLOOKUP(K64,Eje_Pilar_Prop!$C$2:$E$104,2,FALSE)) -> Gobernanza e influencia local, regional e internacional | M64: =IF(ISERROR(VLOOKUP(K64,Eje_Pilar_Prop!$C$2:$E$104,3,FALSE))," ",VLOOKUP(K64,Eje_Pilar_Prop!$C$2:$E$104,3,FALSE)) -> Eje Transversal 4 Gobierno Legitimo, Fortalecimiento Local y Eficiencia | N64: 1304 | O64: 1032368645 | P64: YULIHED ANDREA ARIZA CONSUEGRA | Q64: 22823920 | R64: 0 | S64: 0 | T64: 1 | U64: 5705980 | V64: 28529900 | W64: 28529900 | X64: 2020-02-03 | Y64: 2020-02-06 | Z64: =+Y64+30 -> 2020-03-07 | AA64: 120 | AB64: 1 | AC64: 30 | AJ64: X | AL64: 1 | AO64: =IF(SUMPRODUCT((A$14:A64=A64)*(B$14:B64=B64)*(D$14:D64=D64))>1,0,1) -> 1 | AP64: Contratos de prestación de servicios profesionales y de apoyo a la gestión | AQ64: Contratación directa | AR64: =IF(ISBLANK(G64),1,IFERROR(VLOOKUP(G64,Tipo!$C$12:$C$27,1,FALSE),"NO")) -> Prestación de servicios profesionales y de apoyo a la gestión, o para la ejecución de trabajos artísticos que sólo puedan encomendarse a determinadas personas naturales; | AS64: Inversión | AT64: =IF(ISBLANK(K64),1,IFERROR(VLOOKUP(K64,Eje_Pilar_Prop!$C$3:$C$104,1,FALSE),"NO")) -> 45 | AU64: SECOP II | AV64: 1 | AW64: Bogotá Mejor para Todos
A65: FDLCH-CPS-052-2020 | B65: 2020 | C65: SECOP II | D65: CPS-052-2020 | E65: Contratos de prestación de servicios profesionales y de apoyo a la gestión | F65: Contratación directa | G65: Prestación de servicios profesionales y de apoyo a la gestión, o para la ejecución de trabajos artísticos que sólo puedan encomendarse a determinadas personas naturales; | H65: PRESTACIÓN DE SERVICIOS PROFESIONALES PARA APOYAR TÉCNICAMENTE LAS DISTINTAS ETAPAS DE LOS PROCESOS DE COMPETENCIA DE LAS INSPECCIONES DE POLICÍA DE LA LOCALIDAD DE CHAPINERO, SEGÚN REPARTO. | I65: Inversión | J65: Bogotá Mejor para Todos | K65: 45 | L65: =IF(ISERROR(VLOOKUP(K65,Eje_Pilar_Prop!$C$2:$E$104,2,FALSE))," ",VLOOKUP(K65,Eje_Pilar_Prop!$C$2:$E$104,2,FALSE)) -> Gobernanza e influencia local, regional e internacional | M65: =IF(ISERROR(VLOOKUP(K65,Eje_Pilar_Prop!$C$2:$E$104,3,FALSE))," ",VLOOKUP(K65,Eje_Pilar_Prop!$C$2:$E$104,3,FALSE)) -> Eje Transversal 4 Gobierno Legitimo, Fortalecimiento Local y Eficiencia | N65: 1304 | O65: 1032445959 | P65: MARIA ALEJANDRA JIMENEZ AUCIQUE | Q65: 22823920 | R65: 0 | S65: 0 | T65: 1 | U65: 5705980 | V65: 28529900 | W65: 28529900 | X65: 2020-02-04 | Y65: 2020-02-05 | Z65: =+Y65+30 -> 2020-03-06 | AA65: 120 | AB65: 1 | AC65: 30 | AJ65: X | AL65: 1 | AO65: =IF(SUMPRODUCT((A$14:A65=A65)*(B$14:B65=B65)*(D$14:D65=D65))>1,0,1) -> 1 | AP65: Contratos de prestación de servicios profesionales y de apoyo a la gestión | AQ65: Contratación directa | AR65: =IF(ISBLANK(G65),1,IFERROR(VLOOKUP(G65,Tipo!$C$12:$C$27,1,FALSE),"NO")) -> Prestación de servicios profesionales y de apoyo a la gestión, o para la ejecución de trabajos artísticos que sólo puedan encomendarse a determinadas personas naturales; | AS65: Inversión | AT65: =IF(ISBLANK(K65),1,IFERROR(VLOOKUP(K65,Eje_Pilar_Prop!$C$3:$C$104,1,FALSE),"NO")) -> 45 | AU65: SECOP II | AV65: 1 | AW65: Bogotá Mejor para Todos
A66: FDLCH-CPS-053-2020 | B66: 2020 | C66: SECOP II | D66: CPS-053-2020 | E66: Contratos de prestación de servicios profesionales y de apoyo a la gestión | F66: Contratación directa | G66: Prestación de servicios profesionales y de apoyo a la gestión, o para la ejecución de trabajos artísticos que sólo puedan encomendarse a determinadas personas naturales; | H66: DESCRIPCIÓN: PRESTACIÓN DE SERVICIOS PROFESIONALES PARA APOYAR AL ALCALDE LOCAL EN LA PROMOCIÓN, ACOMPAÑAMIENTO, COORDINACIÓN Y ATENCIÓN DE LAS INSTANCIAS DE COORDINACIÓN INTERINSTITUCIONALES Y LAS INSTANCIAS DE PARTICIPACIÓN LOCALES, ASÍ COMO LOS PROCESOS COMUNITARIOS EN LA LOCALIDAD | I66: Inversión | J66: Bogotá Mejor para Todos | K66: 45 | L66: =IF(ISERROR(VLOOKUP(K66,Eje_Pilar_Prop!$C$2:$E$104,2,FALSE))," ",VLOOKUP(K66,Eje_Pilar_Prop!$C$2:$E$104,2,FALSE)) -> Gobernanza e influencia local, regional e internacional | M66: =IF(ISERROR(VLOOKUP(K66,Eje_Pilar_Prop!$C$2:$E$104,3,FALSE))," ",VLOOKUP(K66,Eje_Pilar_Prop!$C$2:$E$104,3,FALSE)) -> Eje Transversal 4 Gobierno Legitimo, Fortalecimiento Local y Eficiencia | N66: 1305 | O66: 1090489409 | P66: CARLOS ARTURO BARBOSA PEREZ | Q66: 16800000 | R66: 0 | S66: 0 | T66: 1 | U66: 8400000 | V66: 25200000 | W66: 25200000 | X66: 2020-02-04 | Y66: 2020-02-05 | Z66: =+Y66+60+1 -> 2020-04-06 | AA66: 120 | AB66: 1 | AC66: 60 | AJ66: X | AL66: 1 | AO66: =IF(SUMPRODUCT((A$14:A66=A66)*(B$14:B66=B66)*(D$14:D66=D66))>1,0,1) -> 1 | AP66: Contratos de prestación de servicios profesionales y de apoyo a la gestión | AQ66: Contratación directa | AR66: =IF(ISBLANK(G66),1,IFERROR(VLOOKUP(G66,Tipo!$C$12:$C$27,1,FALSE),"NO")) -> Prestación de servicios profesionales y de apoyo a la gestión, o para la ejecución de trabajos artísticos que sólo puedan encomendarse a determinadas personas naturales; | AS66: Inversión | AT66: =IF(ISBLANK(K66),1,IFERROR(VLOOKUP(K66,Eje_Pilar_Prop!$C$3:$C$104,1,FALSE),"NO")) -> 45 | AU66: SECOP II | AV66: 1 | AW66: Bogotá Mejor para Todos
A67: FDLCH-CPS-054-2020 | B67: 2020 | C67: SECOP II | D67: CPS-054-2020 | E67: Contratos de prestación de servicios profesionales y de apoyo a la gestión | F67: Contratación directa | G67: Prestación de servicios profesionales y de apoyo a la gestión, o para la ejecución de trabajos artísticos que sólo puedan encomendarse a determinadas personas naturales; | H67: PRESTACIÓN DE SERVICIOS PERSONALES NECESARIOS PARA EL APOYO AL ÁREA DE GESTIÓN POLICIVA DE INSPECCIONES DE LA ALCALDÍA LOCAL DE CHAPINERO EN LAS ACTIVIDADES DE RADICACIÓN Y CORRESPONDENCIA | I67: Inversión | J67: Bogotá Mejor para Todos | K67: 45 | L67: =IF(ISERROR(VLOOKUP(K67,Eje_Pilar_Prop!$C$2:$E$104,2,FALSE))," ",VLOOKUP(K67,Eje_Pilar_Prop!$C$2:$E$104,2,FALSE)) -> Gobernanza e influencia local, regional e internacional | M67: =IF(ISERROR(VLOOKUP(K67,Eje_Pilar_Prop!$C$2:$E$104,3,FALSE))," ",VLOOKUP(K67,Eje_Pilar_Prop!$C$2:$E$104,3,FALSE)) -> Eje Transversal 4 Gobierno Legitimo, Fortalecimiento Local y Eficiencia | N67: 1304 | O67: 1063134906 | P67: VANESA ALEXANDRA JIMENEZ ARTEAGA | Q67: 9360000 | R67: 0 | S67: 0 | T67: 1 | U67: 4680000 | V67: 14040000 | W67: 14040000 | X67: 2020-02-07 | Y67: 2020-02-08 | Z67: =+Y67+60+1 -> 2020-04-09 | AA67: 120 | AB67: 1 | AC67: 60 | AJ67: X | AL67: 1 | AO67: =IF(SUMPRODUCT((A$14:A67=A67)*(B$14:B67=B67)*(D$14:D67=D67))>1,0,1) -> 1 | AP67: Contratos de prestación de servicios profesionales y de apoyo a la gestión | AQ67: Contratación directa | AR67: =IF(ISBLANK(G67),1,IFERROR(VLOOKUP(G67,Tipo!$C$12:$C$27,1,FALSE),"NO")) -> Prestación de servicios profesionales y de apoyo a la gestión, o para la ejecución de trabajos artísticos que sólo puedan encomendarse a determinadas personas naturales; | AS67: Inversión | AT67: =IF(ISBLANK(K67),1,IFERROR(VLOOKUP(K67,Eje_Pilar_Prop!$C$3:$C$104,1,FALSE),"NO")) -> 45 | AU67: SECOP II | AV67: 1 | AW67: Bogotá Mejor para Todos
A68: FDLCH-CPS-055 A-2020 | B68: 2020 | C68: SECOP II | D68: CPS-055-2020 | E68: Contratos de prestación de servicios profesionales y de apoyo a la gestión | F68: Contratación directa | G68: Prestación de servicios profesionales y de apoyo a la gestión, o para la ejecución de trabajos artísticos que sólo puedan encomendarse a determinadas personas naturales; | H68: DESCRIPCIÓN: PRESTACIÓN DE SERVICIOS PROFESIONALES PARA APOYAR JURÍDICAMENTE LA EJECUCIÓN DE LAS ACCIONES REQUERIDAS PARA EL TRÁMITE E IMPULSO PROCESAL DE LAS ACTUACIONES CONTRAVENCIONES Y/O QUERELLAS QUE CURSEN EN LAS INSPECCIONES DE POLICÍA DE LA LOCALIDAD DE CHAPINERO | I68: Inversión | J68: Bogotá Mejor para Todos | K68: 45 | L68: =IF(ISERROR(VLOOKUP(K68,Eje_Pilar_Prop!$C$2:$E$104,2,FALSE))," ",VLOOKUP(K68,Eje_Pilar_Prop!$C$2:$E$104,2,FALSE)) -> Gobernanza e influencia local, regional e internacional | M68: =IF(ISERROR(VLOOKUP(K68,Eje_Pilar_Prop!$C$2:$E$104,3,FALSE))," ",VLOOKUP(K68,Eje_Pilar_Prop!$C$2:$E$104,3,FALSE)) -> Eje Transversal 4 Gobierno Legitimo, Fortalecimiento Local y Eficiencia | N68: 1304 | O68: 53139176 | P68: DENNIS NATALIA BERNAL RAMIREZ | Q68: 19845000 | R68: 0 | S68: 0 | T68: 1 | U68: 4961250 | V68: 24806250 | W68: 24806250 | X68: 2020-02-10 | Y68: 2020-02-13 | Z68: =+Y68+30 -> 2020-03-14 | AA68: 120 | AB68: 1 | AC68: 30 | AJ68: X | AL68: 1 | AO68: =IF(SUMPRODUCT((A$14:A68=A68)*(B$14:B68=B68)*(D$14:D68=D68))>1,0,1) -> 1 | AP68: Contratos de prestación de servicios profesionales y de apoyo a la gestión | AQ68: Contratación directa | AR68: =IF(ISBLANK(G68),1,IFERROR(VLOOKUP(G68,Tipo!$C$12:$C$27,1,FALSE),"NO")) -> Prestación de servicios profesionales y de apoyo a la gestión, o para la ejecución de trabajos artísticos que sólo puedan encomendarse a determinadas personas naturales; | AS68: Inversión | AT68: =IF(ISBLANK(K68),1,IFERROR(VLOOKUP(K68,Eje_Pilar_Prop!$C$3:$C$104,1,FALSE),"NO")) -> 45 | AU68: SECOP II | AV68: 1 | AW68: Bogotá Mejor para Todos
A69: FDLCH-CPS-056-2020 | B69: 2020 | C69: SECOP II | D69: CPS-056-2020 | E69: Contratos de prestación de servicios profesionales y de apoyo a la gestión | F69: Contratación directa | G69: Prestación de servicios profesionales y de apoyo a la gestión, o para la ejecución de trabajos artísticos que sólo puedan encomendarse a determinadas personas naturales; | H69: PRESTACIÓN DE SERVICIOS PROFESIONALES PARA APOYAR AL ÁREA DE GESTIÓN DEL DESARROLLO LOCAL DE LA ALCALDÍA LOCAL DE CHAPINERO EN LA FORMULACIÓN, GESTIÓN Y EJECUCIÓN DEL PROYECTO 1302 ENTORNOS SEGUROS PARA LA CIUDADANÍA | I69: Inversión | J69: Bogotá Mejor para Todos | K69: 19 | L69: =IF(ISERROR(VLOOKUP(K69,Eje_Pilar_Prop!$C$2:$E$104,2,FALSE))," ",VLOOKUP(K69,Eje_Pilar_Prop!$C$2:$E$104,2,FALSE)) -> Seguridad y convivencia para todos | M69: =IF(ISERROR(VLOOKUP(K69,Eje_Pilar_Prop!$C$2:$E$104,3,FALSE))," ",VLOOKUP(K69,Eje_Pilar_Prop!$C$2:$E$104,3,FALSE)) -> Pilar 3 Construcción de Comunidad y Cultura Ciudadana | N69: 1302 | O69: 52011159 | P69: ALBA TERESA TRIANA RUBIANO | Q69: 28400000 | R69: 0 | S69: 0 | T69: 0 | U69: 0 | V69: 28400000 | W69: 28400000 | X69: 2020-02-06 | Y69: 2020-02-12 | Z69: =+Y69 -> 2020-02-12 | AA69: 120 | AB69: 0 | AC69: 0 | AJ69: X | AL69: 1 | AO69: =IF(SUMPRODUCT((A$14:A69=A69)*(B$14:B69=B69)*(D$14:D69=D69))>1,0,1) -> 1 | AP69: Contratos de prestación de servicios profesionales y de apoyo a la gestión | AQ69: Contratación directa | AR69: =IF(ISBLANK(G69),1,IFERROR(VLOOKUP(G69,Tipo!$C$12:$C$27,1,FALSE),"NO")) -> Prestación de servicios profesionales y de apoyo a la gestión, o para la ejecución de trabajos artísticos que sólo puedan encomendarse a determinadas personas naturales; | AS69: Inversión | AT69: =IF(ISBLANK(K69),1,IFERROR(VLOOKUP(K69,Eje_Pilar_Prop!$C$3:$C$104,1,FALSE),"NO")) -> 19 | AU69: SECOP II | AV69: 1 | AW69: Bogotá Mejor para Todos
A70: FDLCH-CPS-057-2020 | B70: 2020 | C70: SECOP II | D70: CPS-057-2020 | E70: Contratos de prestación de servicios profesionales y de apoyo a la gestión | F70: Contratación directa | G70: Prestación de servicios profesionales y de apoyo a la gestión, o para la ejecución de trabajos artísticos que sólo puedan encomendarse a determinadas personas naturales; | H70: PRESTACIÓN DE LOS SERVICIOS PROFESIONALES PARA APOYAR LA FORMULACIÓN, GESTIÓN Y SEGUIMIENTO DE ACTIVIDADES ENFOCADAS A LA GESTIÓN AMBIENTAL EXTERNA, ENCAMINADAS A LA MITIGACIÓN DE LOS DIFERENTES IMPACTOS AMBIENTALES Y LA CONSERVACIÓN DE LOS RECURSOS NATURALES DE LA LOCALIDAD DE CHAPINERO | I70: Inversión | J70: Bogotá Mejor para Todos | K70: 41 | L70: =IF(ISERROR(VLOOKUP(K70,Eje_Pilar_Prop!$C$2:$E$104,2,FALSE))," ",VLOOKUP(K70,Eje_Pilar_Prop!$C$2:$E$104,2,FALSE)) -> Desarrollo rural sostenible | M70: =IF(ISERROR(VLOOKUP(K70,Eje_Pilar_Prop!$C$2:$E$104,3,FALSE))," ",VLOOKUP(K70,Eje_Pilar_Prop!$C$2:$E$104,3,FALSE)) -> Eje Transversal 3 Sostenibilidad Ambiental basada en la eficiencia energética | N70: 1303 | O70: 1030542408 | P70: JOHN ELKIN FEO DUITAMA | Q70: 19845000 | R70: 0 | S70: 0 | T70: 1 | U70: 9922500 | V70: 29767500 | W70: 29767500 | X70: 2020-02-07 | Y70: 2020-02-11 | Z70: =+Y70+60+1 -> 2020-04-12 | AA70: 120 | AB70: 1 | AC70: 60 | AJ70: X | AL70: 1 | AO70: =IF(SUMPRODUCT((A$14:A70=A70)*(B$14:B70=B70)*(D$14:D70=D70))>1,0,1) -> 1 | AP70: Contratos de prestación de servicios profesionales y de apoyo a la gestión | AQ70: Contratación directa | AR70: =IF(ISBLANK(G70),1,IFERROR(VLOOKUP(G70,Tipo!$C$12:$C$27,1,FALSE),"NO")) -> Prestación de servicios profesionales y de apoyo a la gestión, o para la ejecución de trabajos artísticos que sólo puedan encomendarse a determinadas personas naturales; | AS70: Inversión | AT70: =IF(ISBLANK(K70),1,IFERROR(VLOOKUP(K70,Eje_Pilar_Prop!$C$3:$C$104,1,FALSE),"NO")) -> 41 | AU70: SECOP II | AV70: 1 | AW70: Bogotá Mejor para Todos
A71: FDLCH-CPS-058-2020 | B71: 2020 | C71: SECOP II | D71: CPS-058-2020 | E71: Contratos de prestación de servicios profesionales y de apoyo a la gestión | F71: Contratación directa | G71: Prestación de servicios profesionales y de apoyo a la gestión, o para la ejecución de trabajos artísticos que sólo puedan encomendarse a determinadas personas naturales; | H71: PRESTACIÓN DE SERVICIOS TÉCNICOS PARA APOYAR AL ÁREA DE GESTIÓN DEL DESARROLLO LOCAL DE LA ALCALDÍA LOCAL DE CHAPINERO EN LA GESTIÓN DEL PROYECTO 1298 CULTURA Y DEPORTE: TRANSFORMANDO VIDAS Y HACIENDO CIUDADANOS FELICES | I71: Inversión | J71: Bogotá Mejor para Todos | K71: 11 | L71: =IF(ISERROR(VLOOKUP(K71,Eje_Pilar_Prop!$C$2:$E$104,2,FALSE))," ",VLOOKUP(K71,Eje_Pilar_Prop!$C$2:$E$104,2,FALSE)) -> Mejores oportunidades para el desarrollo a través de la cultura, la recreación y el deporte | M71: =IF(ISERROR(VLOOKUP(K71,Eje_Pilar_Prop!$C$2:$E$104,3,FALSE))," ",VLOOKUP(K71,Eje_Pilar_Prop!$C$2:$E$104,3,FALSE)) -> Pilar 1 Igualdad de Calidad de Vida | N71: 1298 | O71: 53108007 | P71: TAMIA PALOMA RIBADENEIRA MIÑO | Q71: 14000000 | R71: 0 | S71: 0 | T71: 0 | U71: 0 | V71: 14000000 | W71: 14000000 | X71: 2020-02-12 | Y71: 2020-02-13 | Z71: =+Y71 -> 2020-02-13 | AA71: 120 | AB71: 0 | AC71: 0 | AJ71: X | AL71: 1 | AO71: =IF(SUMPRODUCT((A$14:A71=A71)*(B$14:B71=B71)*(D$14:D71=D71))>1,0,1) -> 1 | AP71: Contratos de prestación de servicios profesionales y de apoyo a la gestión | AQ71: Contratación directa | AR71: =IF(ISBLANK(G71),1,IFERROR(VLOOKUP(G71,Tipo!$C$12:$C$27,1,FALSE),"NO")) -> Prestación de servicios profesionales y de apoyo a la gestión, o para la ejecución de trabajos artísticos que sólo puedan encomendarse a determinadas personas naturales; | AS71: Inversión | AT71: =IF(ISBLANK(K71),1,IFERROR(VLOOKUP(K71,Eje_Pilar_Prop!$C$3:$C$104,1,FALSE),"NO")) -> 11 | AU71: SECOP II | AV71: 1 | AW71: Bogotá Mejor para Todos
A72: FDLCH-CPS-059-2020 | B72: 2020 | C72: SECOP II | D72: CPS-059-2020 | E72: Contratos de prestación de servicios profesionales y de apoyo a la gestión | F72: Contratación directa | G72: Prestación de servicios profesionales y de apoyo a la gestión, o para la ejecución de trabajos artísticos que sólo puedan encomendarse a determinadas personas naturales; | H72: PRESTACIÓN DE SERVICIOS PROFESIONALES PARA APOYAR JURÍDICAMENTE LA EJECUCIÓN DE LAS ACCIONES REQUERIDAS PARA EL TRÁMITE E IMPULSO PROCESAL DE LAS ACTUACIONES CONTRAVENCIONES Y/O QUERELLAS QUE CURSEN EN LAS INSPECCIONES DE POLICÍA DE LA LOCALIDAD DE CHAPINERO | I72: Inversión | J72: Bogotá Mejor para Todos | K72: 45 | L72: =IF(ISERROR(VLOOKUP(K72,Eje_Pilar_Prop!$C$2:$E$104,2,FALSE))," ",VLOOKUP(K72,Eje_Pilar_Prop!$C$2:$E$104,2,FALSE)) -> Gobernanza e influencia local, regional e internacional | M72: =IF(ISERROR(VLOOKUP(K72,Eje_Pilar_Prop!$C$2:$E$104,3,FALSE))," ",VLOOKUP(K72,Eje_Pilar_Prop!$C$2:$E$104,3,FALSE)) -> Eje Transversal 4 Gobierno Legitimo, Fortalecimiento Local y Eficiencia | N72: 1304 | O72: 78075269 | P72: ALVARO ENRIQUE CORRALES HERRERA | Q72: 19845000 | R72: 0 | S72: 0 | T72: 1 | U72: 4961250 | V72: 24806250 | W72: 24792469 | X72: 2020-02-19 | Y72: 2020-02-21 | Z72: =+Y72+30 -> 2020-03-22 | AA72: 119 | AB72: 1 | AC72: 30 | AD72: 78075269 | AE72: ALVARO ENRIQUE CORRALES HERRERA | AF72: 2020-02-20 | AG72: 19679625 | AJ72: X | AL72: 0.9994444545 | AO72: =IF(SUMPRODUCT((A$14:A72=A72)*(B$14:B72=B72)*(D$14:D72=D72))>1,0,1) -> 1 | AP72: Contratos de prestación de servicios profesionales y de apoyo a la gestión | AQ72: Contratación directa | AR72: =IF(ISBLANK(G72),1,IFERROR(VLOOKUP(G72,Tipo!$C$12:$C$27,1,FALSE),"NO")) -> Prestación de servicios profesionales y de apoyo a la gestión, o para la ejecución de trabajos artísticos que sólo puedan encomendarse a determinadas personas naturales; | AS72: Inversión | AT72: =IF(ISBLANK(K72),1,IFERROR(VLOOKUP(K72,Eje_Pilar_Prop!$C$3:$C$104,1,FALSE),"NO")) -> 45 | AU72: SECOP II | AV72: 1 | AW72: Bogotá Mejor para Todos
A73: FDLCH-CPS-060-2020 | B73: 2020 | C73: SECOP II | D73: CPS-060-2020 | E73: Contratos de prestación de servicios profesionales y de apoyo a la gestión | F73: Contratación directa | G73: Prestación de servicios profesionales y de apoyo a la gestión, o para la ejecución de trabajos artísticos que sólo puedan encomendarse a determinadas personas naturales; | H73: PRESTACIÓN DE SERVICIOS PROFESIONALES PARA APOYAR LA GESTIÓN JURÍDICA DEL DESPACHO DE LA ALCALDÍA LOCAL DE CHAPINERO Y LA DE LAS DEPENDENCIAS QUE LA CONFORMAN EN CUMPLIMIENTO DE LAS FUNCIONES ESTABLECIDAS POR MANDATO CONSTITUCIONAL Y LEGAL | I73: Inversión | J73: Bogotá Mejor para Todos | K73: 45 | L73: =IF(ISERROR(VLOOKUP(K73,Eje_Pilar_Prop!$C$2:$E$104,2,FALSE))," ",VLOOKUP(K73,Eje_Pilar_Prop!$C$2:$E$104,2,FALSE)) -> Gobernanza e influencia local, regional e internacional | M73: =IF(ISERROR(VLOOKUP(K73,Eje_Pilar_Prop!$C$2:$E$104,3,FALSE))," ",VLOOKUP(K73,Eje_Pilar_Prop!$C$2:$E$104,3,FALSE)) -> Eje Transversal 4 Gobierno Legitimo, Fortalecimiento Local y Eficiencia | N73: 1304 | O73: 77193263 | P73: RAFAEL EDUARDO VARGAS CASTRO | Q73: 36000000 | R73: 0 | S73: 0 | T73: 1 | U73: 9000000 | V73: 45000000 | W73: 45000000 | X73: 2020-02-06 | Y73: 2020-02-07 | Z73: =+Y73+30 -> 2020-03-08 | AA73: 120 | AB73: 1 | AC73: 30 | AJ73: X | AL73: 1 | AO73: =IF(SUMPRODUCT((A$14:A73=A73)*(B$14:B73=B73)*(D$14:D73=D73))>1,0,1) -> 1 | AP73: Contratos de prestación de servicios profesionales y de apoyo a la gestión | AQ73: Contratación directa | AR73: =IF(ISBLANK(G73),1,IFERROR(VLOOKUP(G73,Tipo!$C$12:$C$27,1,FALSE),"NO")) -> Prestación de servicios profesionales y de apoyo a la gestión, o para la ejecución de trabajos artísticos que sólo puedan encomendarse a determinadas personas naturales; | AS73: Inversión | AT73: =IF(ISBLANK(K73),1,IFERROR(VLOOKUP(K73,Eje_Pilar_Prop!$C$3:$C$104,1,FALSE),"NO")) -> 45 | AU73: SECOP II | AV73: 1 | AW73: Bogotá Mejor para Todos
A74: FDLCH-CPS-061-2020 | B74: 2020 | C74: SECOP II | D74: CPS-061-2020 | E74: Contratos de prestación de servicios profesionales y de apoyo a la gestión | F74: Contratación directa | G74: Prestación de servicios profesionales y de apoyo a la gestión, o para la ejecución de trabajos artísticos que sólo puedan encomendarse a determinadas personas naturales; | H74: PRESTACIÓN DE SERVICIOS PROFESIONALES PARA APOYAR JURÍDICAMENTE LA EJECUCIÓN DE LAS ACCIONES REQUERIDAS PARA EL TRÁMITE E IMPULSO PROCESAL DE LAS ACTUACIONES CONTRAVENCIONES Y/O QUERELLAS QUE CURSEN EN LAS INSPECCIONES DE POLICÍA DE LA LOCALIDAD DE CHAPINERO | I74: Inversión | J74: Bogotá Mejor para Todos | K74: 45 | L74: =IF(ISERROR(VLOOKUP(K74,Eje_Pilar_Prop!$C$2:$E$104,2,FALSE))," ",VLOOKUP(K74,Eje_Pilar_Prop!$C$2:$E$104,2,FALSE)) -> Gobernanza e influencia local, regional e internacional | M74: =IF(ISERROR(VLOOKUP(K74,Eje_Pilar_Prop!$C$2:$E$104,3,FALSE))," ",VLOOKUP(K74,Eje_Pilar_Prop!$C$2:$E$104,3,FALSE)) -> Eje Transversal 4 Gobierno Legitimo, Fortalecimiento Local y Eficiencia | N74: 1304 | O74: 38254256 | P74: MARTHA LUCIA SUAREZ OSORIO | Q74: 19845000 | R74: 0 | S74: 0 | T74: 1 | U74: 4961250 | V74: 24806250 | W74: 24806250 | X74: 2020-02-10 | Y74: 2020-02-11 | Z74: =+Y74+30 -> 2020-03-12 | AA74: 120 | AB74: 1 | AC74: 30 | AJ74: X | AL74: 1 | AO74: =IF(SUMPRODUCT((A$14:A74=A74)*(B$14:B74=B74)*(D$14:D74=D74))>1,0,1) -> 1 | AP74: Contratos de prestación de servicios profesionales y de apoyo a la gestión | AQ74: Contratación directa | AR74: =IF(ISBLANK(G74),1,IFERROR(VLOOKUP(G74,Tipo!$C$12:$C$27,1,FALSE),"NO")) -> Prestación de servicios profesionales y de apoyo a la gestión, o para la ejecución de trabajos artísticos que sólo puedan encomendarse a determinadas personas naturales; | AS74: Inversión | AT74: =IF(ISBLANK(K74),1,IFERROR(VLOOKUP(K74,Eje_Pilar_Prop!$C$3:$C$104,1,FALSE),"NO")) -> 45 | AU74: SECOP II | AV74: 1 | AW74: Bogotá Mejor para Todos
A75: FDLCH-CPS-062-2020 | B75: 2020 | C75: SECOP II | D75: CPS-062-2020 | E75: Contratos de prestación de servicios profesionales y de apoyo a la gestión | F75: Contratación directa | G75: Prestación de servicios profesionales y de apoyo a la gestión, o para la ejecución de trabajos artísticos que sólo puedan encomendarse a determinadas personas naturales; | H75: APOYAR LA FORMULACIÓN, EJECUCIÓN, SEGUIMIENTO Y MEJORA CONTINUA DE LAS HERRAMIENTAS QUE CONFORMAN LA GESTIÓN AMBIENTAL INSTITUCIONAL DE LA ALCALDÍA LOCAL DE CHAPINERO. | I75: Inversión | J75: Bogotá Mejor para Todos | K75: 45 | L75: =IF(ISERROR(VLOOKUP(K75,Eje_Pilar_Prop!$C$2:$E$104,2,FALSE))," ",VLOOKUP(K75,Eje_Pilar_Prop!$C$2:$E$104,2,FALSE)) -> Gobernanza e influencia local, regional e internacional | M75: =IF(ISERROR(VLOOKUP(K75,Eje_Pilar_Prop!$C$2:$E$104,3,FALSE))," ",VLOOKUP(K75,Eje_Pilar_Prop!$C$2:$E$104,3,FALSE)) -> Eje Transversal 4 Gobierno Legitimo, Fortalecimiento Local y Eficiencia | N75: 1304 | O75: 1019031184 | P75: RAYMON ALEXANDER JIMÉNEZ ARTEAGA | Q75: 19320000 | R75: 0 | S75: 0 | T75: 1 | U75: 4830000 | V75: 24150000 | W75: 24150000 | X75: 2020-02-19 | Y75: 2020-02-20 | Z75: =+Y75+30 -> 2020-03-21 | AA75: 120 | AB75: 1 | AC75: 30 | AJ75: X | AL75: 1 | AO75: =IF(SUMPRODUCT((A$14:A75=A75)*(B$14:B75=B75)*(D$14:D75=D75))>1,0,1) -> 1 | AP75: Contratos de prestación de servicios profesionales y de apoyo a la gestión | AQ75: Contratación directa | AR75: =IF(ISBLANK(G75),1,IFERROR(VLOOKUP(G75,Tipo!$C$12:$C$27,1,FALSE),"NO")) -> Prestación de servicios profesionales y de apoyo a la gestión, o para la ejecución de trabajos artísticos que sólo puedan encomendarse a determinadas personas naturales; | AS75: Inversión | AT75: =IF(ISBLANK(K75),1,IFERROR(VLOOKUP(K75,Eje_Pilar_Prop!$C$3:$C$104,1,FALSE),"NO")) -> 45 | AU75: SECOP II | AV75: 1 | AW75: Bogotá Mejor para Todos
A76: FDLCH-CPS-063-2020 | B76: 2020 | C76: SECOP II | D76: CPS-063-2020 | E76: Contratos de prestación de servicios profesionales y de apoyo a la gestión | F76: Contratación directa | G76: Prestación de servicios profesionales y de apoyo a la gestión, o para la ejecución de trabajos artísticos que sólo puedan encomendarse a determinadas personas naturales; | H76: PRESTACIÓN DE SERVICIOS PERSONALES NECESARIOS PARA EL APOYO AL ÁREA DE GESTIÓN DEL DESARROLLO LOCAL DE LA ALCALDÍA LOCAL DE CHAPINERO EN LAS ACTIVIDADES DE RADICACIÓN Y CORRESPONDENCIA | I76: Inversión | J76: Bogotá Mejor para Todos | K76: 45 | L76: =IF(ISERROR(VLOOKUP(K76,Eje_Pilar_Prop!$C$2:$E$104,2,FALSE))," ",VLOOKUP(K76,Eje_Pilar_Prop!$C$2:$E$104,2,FALSE)) -> Gobernanza e influencia local, regional e internacional | M76: =IF(ISERROR(VLOOKUP(K76,Eje_Pilar_Prop!$C$2:$E$104,3,FALSE))," ",VLOOKUP(K76,Eje_Pilar_Prop!$C$2:$E$104,3,FALSE)) -> Eje Transversal 4 Gobierno Legitimo, Fortalecimiento Local y Eficiencia | N76: 1304 | O76: 1031147236 | P76: DEISY YINETH FRANCO PENAGOS | Q76: 9349200 | R76: 0 | S76: 0 | T76: 1 | U76: 4674600 | V76: 14023800 | W76: 14023800 | X76: 2020-02-07 | Y76: 2020-02-11 | Z76: =+Y76+60+1 -> 2020-04-12 | AA76: 120 | AB76: 1 | AC76: 60 | AJ76: X | AL76: 1 | AO76: =IF(SUMPRODUCT((A$14:A76=A76)*(B$14:B76=B76)*(D$14:D76=D76))>1,0,1) -> 1 | AP76: Contratos de prestación de servicios profesionales y de apoyo a la gestión | AQ76: Contratación directa | AR76: =IF(ISBLANK(G76),1,IFERROR(VLOOKUP(G76,Tipo!$C$12:$C$27,1,FALSE),"NO")) -> Prestación de servicios profesionales y de apoyo a la gestión, o para la ejecución de trabajos artísticos que sólo puedan encomendarse a determinadas personas naturales; | AS76: Inversión | AT76: =IF(ISBLANK(K76),1,IFERROR(VLOOKUP(K76,Eje_Pilar_Prop!$C$3:$C$104,1,FALSE),"NO")) -> 45 | AU76: SECOP II | AV76: 1 | AW76: Bogotá Mejor para Todos
A77: FDLCH-CPS-065-2020 | B77: 2020 | C77: SECOP II | D77: CPS-065-2020 | E77: Contratos de prestación de servicios profesionales y de apoyo a la gestión | F77: Contratación directa | G77: Prestación de servicios profesionales y de apoyo a la gestión, o para la ejecución de trabajos artísticos que sólo puedan encomendarse a determinadas personas naturales; | H77: PRESTACIÓN DESERVICIOS DE APOYO ALÀREA DE GESTIÓN DEL DESARROLLO LOCAL DE LA ALCALDÇIA LOCAL DE CHAPINERO EN LAGESTIÓN DEL PROYECTO 1305,EN CHAPINERO PARTICIPAMOS TODOS | I77: Inversión | J77: Bogotá Mejor para Todos | K77: 45 | L77: =IF(ISERROR(VLOOKUP(K77,Eje_Pilar_Prop!$C$2:$E$104,2,FALSE))," ",VLOOKUP(K77,Eje_Pilar_Prop!$C$2:$E$104,2,FALSE)) -> Gobernanza e influencia local, regional e internacional | M77: =IF(ISERROR(VLOOKUP(K77,Eje_Pilar_Prop!$C$2:$E$104,3,FALSE))," ",VLOOKUP(K77,Eje_Pilar_Prop!$C$2:$E$104,3,FALSE)) -> Eje Transversal 4 Gobierno Legitimo, Fortalecimiento Local y Eficiencia | N77: 1305 | O77: 52311510 | P77: MILENA YINETH VELASQUEZ MOYA | Q77: 8720000 | R77: 0 | S77: 0 | T77: 0 | U77: 0 | V77: 8720000 | W77: 8720000 | X77: 2020-02-12 | Y77: 2020-02-13 | Z77: =+Y77 -> 2020-02-13 | AA77: 120 | AB77: 0 | AC77: 0 | AJ77: X | AL77: 1 | AO77: =IF(SUMPRODUCT((A$14:A77=A77)*(B$14:B77=B77)*(D$14:D77=D77))>1,0,1) -> 1 | AP77: Contratos de prestación de servicios profesionales y de apoyo a la gestión | AQ77: Contratación directa | AR77: =IF(ISBLANK(G77),1,IFERROR(VLOOKUP(G77,Tipo!$C$12:$C$27,1,FALSE),"NO")) -> Prestación de servicios profesionales y de apoyo a la gestión, o para la ejecución de trabajos artísticos que sólo puedan encomendarse a determinadas personas naturales; | AS77: Inversión | AT77: =IF(ISBLANK(K77),1,IFERROR(VLOOKUP(K77,Eje_Pilar_Prop!$C$3:$C$104,1,FALSE),"NO")) -> 45 | AU77: SECOP II | AV77: 1 | AW77: Bogotá Mejor para Todos
A78: FDLCH-CPS-066-2020 | B78: 2020 | C78: SECOP II | D78: CPS-066-2020 | E78: Contratos de prestación de servicios profesionales y de apoyo a la gestión | F78: Contratación directa | G78: Prestación de servicios profesionales y de apoyo a la gestión, o para la ejecución de trabajos artísticos que sólo puedan encomendarse a determinadas personas naturales; | H78: PRESTACIÓN DE SERVICIOS PROFESIONALES EN DERECHO PARA APOYAR JURÍDICAMENTE LA EJECUCIÓN DE LAS ACCIONES REQUERIDAS PARA LA DEPURACIÓN DE LAS ACTUACIONES ADMINISTRATIVAS QUE CURSAN EN LA ALCALDÍA LOCAL | I78: Inversión | J78: Bogotá Mejor para Todos | K78: 45 | L78: =IF(ISERROR(VLOOKUP(K78,Eje_Pilar_Prop!$C$2:$E$104,2,FALSE))," ",VLOOKUP(K78,Eje_Pilar_Prop!$C$2:$E$104,2,FALSE)) -> Gobernanza e influencia local, regional e internacional | M78: =IF(ISERROR(VLOOKUP(K78,Eje_Pilar_Prop!$C$2:$E$104,3,FALSE))," ",VLOOKUP(K78,Eje_Pilar_Prop!$C$2:$E$104,3,FALSE)) -> Eje Transversal 4 Gobierno Legitimo, Fortalecimiento Local y Eficiencia | N78: 1304 | O78: 1022369618 | P78: JUAN SEBASTIAN GACHARNA BELLO | Q78: 19845000 | R78: 0 | S78: 0 | T78: 1 | U78: 4961250 | V78: 24806250 | W78: 24806250 | X78: 2020-02-10 | Y78: 2020-02-13 | Z78: =+Y78+30 -> 2020-03-14 | AA78: 120 | AB78: 1 | AC78: 30 | AJ78: X | AL78: =IF(ISERROR(W78/V78),"-",(W78/V78)) -> 1 | AO78: =IF(SUMPRODUCT((A$14:A78=A78)*(B$14:B78=B78)*(D$14:D78=D78))>1,0,1) -> 1 | AP78: Contratos de prestación de servicios profesionales y de apoyo a la gestión | AQ78: Contratación directa | AR78: =IF(ISBLANK(G78),1,IFERROR(VLOOKUP(G78,Tipo!$C$12:$C$27,1,FALSE),"NO")) -> Prestación de servicios profesionales y de apoyo a la gestión, o para la ejecución de trabajos artísticos que sólo puedan encomendarse a determinadas personas naturales; | AS78: Inversión | AT78: =IF(ISBLANK(K78),1,IFERROR(VLOOKUP(K78,Eje_Pilar_Prop!$C$3:$C$104,1,FALSE),"NO")) -> 45 | AU78: SECOP II | AV78: 1 | AW78: Bogotá Mejor para Todos
A79: FDLCH-CPS-067-2020 | B79: 2020 | C79: SECOP II | D79: CPS-067-2020 | E79: Contratos de prestación de servicios profesionales y de apoyo a la gestión | F79: Contratación directa | G79: Prestación de servicios profesionales y de apoyo a la gestión, o para la ejecución de trabajos artísticos que sólo puedan encomendarse a determinadas personas naturales; | H79: PRESTACIÓN DE SERVICIOS PROFESIONALES EN DERECHO PARA APOYAR JURÍDICAMENTE LA EJECUCIÓN DE LAS ACCIONES REQUERIDAS PARA LA DEPURACIÓN DE LAS ACTUACIONES ADMINISTRATIVAS QUE CURSAN EN LA ALCALDÍA LOCAL | I79: Inversión | J79: Bogotá Mejor para Todos | K79: 45 | L79: =IF(ISERROR(VLOOKUP(K79,Eje_Pilar_Prop!$C$2:$E$104,2,FALSE))," ",VLOOKUP(K79,Eje_Pilar_Prop!$C$2:$E$104,2,FALSE)) -> Gobernanza e influencia local, regional e internacional | M79: =IF(ISERROR(VLOOKUP(K79,Eje_Pilar_Prop!$C$2:$E$104,3,FALSE))," ",VLOOKUP(K79,Eje_Pilar_Prop!$C$2:$E$104,3,FALSE)) -> Eje Transversal 4 Gobierno Legitimo, Fortalecimiento Local y Eficiencia | N79: 1304 | O79: 19271830 | P79: MANUEL FALLA BUSTOS | Q79: 19845000 | R79: 0 | S79: 0 | T79: 1 | U79: 4961250 | V79: 24806250 | W79: 24310125 | X79: 2020-02-17 | Y79: 2020-02-19 | Z79: =+Y79+30 -> 2020-03-20 | AA79: 120 | AB79: 1 | AC79: 30 | AJ79: X | AL79: 0.98 | AO79: =IF(SUMPRODUCT((A$14:A79=A79)*(B$14:B79=B79)*(D$14:D79=D79))>1,0,1) -> 1 | AP79: Contratos de prestación de servicios profesionales y de apoyo a la gestión | AQ79: Contratación directa | AR79: =IF(ISBLANK(G79),1,IFERROR(VLOOKUP(G79,Tipo!$C$12:$C$27,1,FALSE),"NO")) -> Prestación de servicios profesionales y de apoyo a la gestión, o para la ejecución de trabajos artísticos que sólo puedan encomendarse a determinadas personas naturales; | AS79: Inversión | AT79: =IF(ISBLANK(K79),1,IFERROR(VLOOKUP(K79,Eje_Pilar_Prop!$C$3:$C$104,1,FALSE),"NO")) -> 45 | AU79: SECOP II | AV79: 1 | AW79: Bogotá Mejor para Todos
A80: FDLCH-CPS-068-2020 | B80: 2020 | C80: SECOP II | D80: CPS-068-2020 | E80: Contratos de prestación de servicios profesionales y de apoyo a la gestión | F80: Contratación directa | G80: Prestación de servicios profesionales y de apoyo a la gestión, o para la ejecución de trabajos artísticos que sólo puedan encomendarse a determinadas personas naturales; | H80: PRESTACIÓN DE SERVICIOS DE APOYO DE LOGÍSTICA QUE SE REQUIERAN EN EL DESARROLLO DE LAS ACTIVIDADES RELATIVAS A RECUPERACIÓN Y EMBELLECIMIENTO DEL ESPACIO PÚBLICO QUE TENGA A CARGO EL FONDO LOCAL DE DESARROLLO DE CHAPINERO | I80: Inversión | J80: Bogotá Mejor para Todos | K80: 18 | L80: =IF(ISERROR(VLOOKUP(K80,Eje_Pilar_Prop!$C$2:$E$104,2,FALSE))," ",VLOOKUP(K80,Eje_Pilar_Prop!$C$2:$E$104,2,FALSE)) -> Mejor movilidad para todos | M80: =IF(ISERROR(VLOOKUP(K80,Eje_Pilar_Prop!$C$2:$E$104,3,FALSE))," ",VLOOKUP(K80,Eje_Pilar_Prop!$C$2:$E$104,3,FALSE)) -> Pilar 2 Democracía Urbana | N80: 1301 | O80: 80412953 | P80: JUAN MANUEL CASTIBLANCO VARGAS | Q80: 8224000 | R80: 0 | S80: 0 | T80: 1 | U80: 2056000 | V80: =+Q80+S80+U80 -> 10280000 | W80: 10280000 | X80: 2020-02-10 | Y80: 2020-02-11 | Z80: =+Y80+30 -> 2020-03-12 | AA80: 120 | AB80: 1 | AC80: 30 | AJ80: X | AL80: 1 | AO80: =IF(SUMPRODUCT((A$14:A80=A80)*(B$14:B80=B80)*(D$14:D80=D80))>1,0,1) -> 1 | AP80: Contratos de prestación de servicios profesionales y de apoyo a la gestión | AQ80: =IF(ISBLANK(F80),1,IFERROR(VLOOKUP(F80,modal,1,FALSE),"NO")) -> Contratación directa | AR80: =IF(ISBLANK(G80),1,IFERROR(VLOOKUP(G80,Tipo!$C$12:$C$27,1,FALSE),"NO")) -> Prestación de servicios profesionales y de apoyo a la gestión, o para la ejecución de trabajos artísticos que sólo puedan encomendarse a determinadas personas naturales; | AS80: =IF(ISBLANK(I80),1,IFERROR(VLOOKUP(I80,afectacion,1,FALSE),"NO")) -> Inversión | AT80: =IF(ISBLANK(K80),1,IFERROR(VLOOKUP(K80,Eje_Pilar_Prop!$C$3:$C$104,1,FALSE),"NO")) -> 18 | AU80: =IF(ISBLANK(C80),1,IFERROR(VLOOKUP(C80,SECOP,1,FALSE),"NO")) -> SECOP II | AV80: 1 | AW80: =IF(ISBLANK(J80),1,IFERROR(VLOOKUP(J80,pdd,1,FALSE),"NO")) -> Bogotá Mejor para Todos
A81: FDLCH-CPS-069-2020 | B81: 2020 | C81: SECOP II | D81: CPS-069-2020 | E81: Contratos de prestación de servicios profesionales y de apoyo a la gestión | F81: Contratación directa | G81: Prestación de servicios profesionales y de apoyo a la gestión, o para la ejecución de trabajos artísticos que sólo puedan encomendarse a determinadas personas naturales; | H81: PRESTACIÓN DE SERVICIOS DE APOYO DE LOGÍSTICO QUE SE REQUIERAN EN EL DESARROLLO DE LAS ACTIVIDADES RELATIVAS A RECUPERACIÓN Y EMBELLECIMIENTO DEL ESPACIO PÚBLICO QUE TENGA A CARGO EL FONDO LOCAL DE DESARROLLO DE CHAPINERO. | I81: Inversión | J81: Bogotá Mejor para Todos | K81: 18 | L81: =IF(ISERROR(VLOOKUP(K81,Eje_Pilar_Prop!$C$2:$E$104,2,FALSE))," ",VLOOKUP(K81,Eje_Pilar_Prop!$C$2:$E$104,2,FALSE)) -> Mejor movilidad para todos | M81: =IF(ISERROR(VLOOKUP(K81,Eje_Pilar_Prop!$C$2:$E$104,3,FALSE))," ",VLOOKUP(K81,Eje_Pilar_Prop!$C$2:$E$104,3,FALSE)) -> Pilar 2 Democracía Urbana | N81: 1301 | O81: 80410411 | P81: CARLOS JULIO MARTINEZ RIPE | Q81: 8224000 | R81: 0 | S81: 0 | T81: 0 | U81: 0 | V81: 8224000 | W81: 8224000 | X81: 2020-02-10 | Y81: 2020-02-11 | Z81: =+Y81 -> 2020-02-11 | AA81: 120 | AB81: 0 | AC81: 0 | AJ81: X | AL81: 1 | AO81: =IF(SUMPRODUCT((A$14:A81=A81)*(B$14:B81=B81)*(D$14:D81=D81))>1,0,1) -> 1 | AP81: Contratos de prestación de servicios profesionales y de apoyo a la gestión | AQ81: Contratación directa | AR81: =IF(ISBLANK(G81),1,IFERROR(VLOOKUP(G81,Tipo!$C$12:$C$27,1,FALSE),"NO")) -> Prestación de servicios profesionales y de apoyo a la gestión, o para la ejecución de trabajos artísticos que sólo puedan encomendarse a determinadas personas naturales; | AS81: Inversión | AT81: =IF(ISBLANK(K81),1,IFERROR(VLOOKUP(K81,Eje_Pilar_Prop!$C$3:$C$104,1,FALSE),"NO")) -> 18 | AU81: SECOP II | AV81: 1 | AW81: Bogotá Mejor para Todos
A82: FDLCH-CPS-070-2020 | B82: 2020 | C82: SECOP II | D82: CPS-070-2020 | E82: Contratos de prestación de servicios profesionales y de apoyo a la gestión | F82: Contratación directa | G82: Prestación de servicios profesionales y de apoyo a la gestión, o para la ejecución de trabajos artísticos que sólo puedan encomendarse a determinadas personas naturales; | H82: PRESTACIÓN DE SERVICIOS PROFESIONALES PARA EL APOYO AL ÁREA DE GESTIÓN DEL DESARROLLO LOCAL DE LA ALCALDÍA LOCAL DE CHAPINERO EN LA FORMULACIÓN, GESTIÓN, EJECUCIÓN Y SEGUIMIENTO DEL PROYECTO 1301 'MEJORAR LA CALIDAD DE LA MOVILIDAD' Y LA SUPERVISIÓN DE CONTRATOS QUE LE SEAN ASIGNADOS. | I82: Inversión | J82: Bogotá Mejor para Todos | K82: 18 | L82: =IF(ISERROR(VLOOKUP(K82,Eje_Pilar_Prop!$C$2:$E$104,2,FALSE))," ",VLOOKUP(K82,Eje_Pilar_Prop!$C$2:$E$104,2,FALSE)) -> Mejor movilidad para todos | M82: =IF(ISERROR(VLOOKUP(K82,Eje_Pilar_Prop!$C$2:$E$104,3,FALSE))," ",VLOOKUP(K82,Eje_Pilar_Prop!$C$2:$E$104,3,FALSE)) -> Pilar 2 Democracía Urbana | N82: 1301 | O82: 79053874 | P82: LUIS FERNANDO ALARCON PEÑA | Q82: 28400000 | R82: 0 | S82: 0 | T82: 0 | U82: 0 | V82: 28400000 | W82: 28400000 | X82: 2020-02-10 | Y82: 2020-02-11 | Z82: =+Y82 -> 2020-02-11 | AA82: 120 | AB82: 0 | AC82: 0 | AJ82: X | AL82: 1 | AO82: =IF(SUMPRODUCT((A$14:A82=A82)*(B$14:B82=B82)*(D$14:D82=D82))>1,0,1) -> 1 | AP82: Contratos de prestación de servicios profesionales y de apoyo a la gestión | AQ82: Contratación directa | AR82: =IF(ISBLANK(G82),1,IFERROR(VLOOKUP(G82,Tipo!$C$12:$C$27,1,FALSE),"NO")) -> Prestación de servicios profesionales y de apoyo a la gestión, o para la ejecución de trabajos artísticos que sólo puedan encomendarse a determinadas personas naturales; | AS82: Inversión | AT82: =IF(ISBLANK(K82),1,IFERROR(VLOOKUP(K82,Eje_Pilar_Prop!$C$3:$C$104,1,FALSE),"NO")) -> 18 | AU82: SECOP II | AV82: 1 | AW82: Bogotá Mejor para Todos
A83: FDLCH-CPS-071-2020 | B83: 2020 | C83: SECOP II | D83: CPS-071-2020 | E83: Contratos de prestación de servicios profesionales y de apoyo a la gestión | F83: Contratación directa | G83: Prestación de servicios profesionales y de apoyo a la gestión, o para la ejecución de trabajos artísticos que sólo puedan encomendarse a determinadas personas naturales; | H83: PRESTACIÓN DE SERVICIOS PROFESIONALES PARA APOYAR TÉCNICAMENTE LAS DISTINTAS ETAPAS DE LOS PROCESOS DE COMPETENCIA DE LA ALCALDÍA LOCAL DE CHAPINERO, PARA LA DEPURACIÓN DE ACTUACIONES ADMINISTRATIVAS | I83: Inversión | J83: Bogotá Mejor para Todos | K83: 45 | L83: =IF(ISERROR(VLOOKUP(K83,Eje_Pilar_Prop!$C$2:$E$104,2,FALSE))," ",VLOOKUP(K83,Eje_Pilar_Prop!$C$2:$E$104,2,FALSE)) -> Gobernanza e influencia local, regional e internacional | M83: =IF(ISERROR(VLOOKUP(K83,Eje_Pilar_Prop!$C$2:$E$104,3,FALSE))," ",VLOOKUP(K83,Eje_Pilar_Prop!$C$2:$E$104,3,FALSE)) -> Eje Transversal 4 Gobierno Legitimo, Fortalecimiento Local y Eficiencia | N83: 1304 | O83: 80799927 | P83: SALOMON RODRÍGUEZ LAGUNA | Q83: 19845000 | R83: 0 | S83: 0 | T83: 1 | U83: 4961250 | V83: 24806250 | W83: 24806250 | X83: 2020-02-18 | Y83: 2020-02-19 | Z83: 2020-07-16 | AA83: 120 | AB83: 1 | AC83: 30 | AJ83: X | AL83: 1 | AO83: =IF(SUMPRODUCT((A$14:A83=A83)*(B$14:B83=B83)*(D$14:D83=D83))>1,0,1) -> 1 | AP83: Contratos de prestación de servicios profesionales y de apoyo a la gestión | AQ83: Contratación directa | AR83: =IF(ISBLANK(G83),1,IFERROR(VLOOKUP(G83,Tipo!$C$12:$C$27,1,FALSE),"NO")) -> Prestación de servicios profesionales y de apoyo a la gestión, o para la ejecución de trabajos artísticos que sólo puedan encomendarse a determinadas personas naturales; | AS83: Inversión | AT83: =IF(ISBLANK(K83),1,IFERROR(VLOOKUP(K83,Eje_Pilar_Prop!$C$3:$C$104,1,FALSE),"NO")) -> 45 | AU83: SECOP II | AV83: 1 | AW83: Bogotá Mejor para Todos
A84: FDLCH-CPS-072-2020 | B84: 2020 | C84: SECOP II | D84: CPS-072-2020 | E84: Contratos de prestación de servicios profesionales y de apoyo a la gestión | F84: Contratación directa | G84: Prestación de servicios profesionales y de apoyo a la gestión, o para la ejecución de trabajos artísticos que sólo puedan encomendarse a determinadas personas naturales; | H84: PRESTACIÓN DE SERVICIOS PROFESIONALES PARA APOYAR TÉCNICAMENTE LAS DISTINTAS ETAPAS DE LOS PROCESOS DE COMPETENCIA DE LA ALCALDÍA LOCAL DE CHAPINERO, PARA LA DEPURACIÓN DE ACTUACIONES ADMINISTRATIVAS | I84: Inversión | J84: Bogotá Mejor para Todos | K84: 45 | L84: =IF(ISERROR(VLOOKUP(K84,Eje_Pilar_Prop!$C$2:$E$104,2,FALSE))," ",VLOOKUP(K84,Eje_Pilar_Prop!$C$2:$E$104,2,FALSE)) -> Gobernanza e influencia local, regional e internacional | M84: =IF(ISERROR(VLOOKUP(K84,Eje_Pilar_Prop!$C$2:$E$104,3,FALSE))," ",VLOOKUP(K84,Eje_Pilar_Prop!$C$2:$E$104,3,FALSE)) -> Eje Transversal 4 Gobierno Legitimo, Fortalecimiento Local y Eficiencia | N84: 1304 | O84: 79531247 | P84: RICARDO ALBERTO CORNEJO GONZALEZ | Q84: 19845000 | R84: 0 | S84: 0 | T84: 1 | U84: 4961250 | V84: 24806250 | W84: 24806250 | X84: 2020-02-01 | Y84: 2020-02-13 | Z84: =+Y84+30 -> 2020-03-14 | AA84: 120 | AB84: 1 | AC84: 30 | AJ84: X | AL84: 1 | AO84: =IF(SUMPRODUCT((A$14:A84=A84)*(B$14:B84=B84)*(D$14:D84=D84))>1,0,1) -> 1 | AP84: Contratos de prestación de servicios profesionales y de apoyo a la gestión | AQ84: Contratación directa | AR84: =IF(ISBLANK(G84),1,IFERROR(VLOOKUP(G84,Tipo!$C$12:$C$27,1,FALSE),"NO")) -> Prestación de servicios profesionales y de apoyo a la gestión, o para la ejecución de trabajos artísticos que sólo puedan encomendarse a determinadas personas naturales; | AS84: Inversión | AT84: =IF(ISBLANK(K84),1,IFERROR(VLOOKUP(K84,Eje_Pilar_Prop!$C$3:$C$104,1,FALSE),"NO")) -> 45 | AU84: SECOP II | AV84: 1 | AW84: Bogotá Mejor para Todos
A85: FDLCH-CPS-073-2020 | B85: 2020 | C85: SECOP II | D85: CPS-073-2020 | E85: Contratos de prestación de servicios profesionales y de apoyo a la gestión | F85: Contratación directa | G85: Prestación de servicios profesionales y de apoyo a la gestión, o para la ejecución de trabajos artísticos que sólo puedan encomendarse a determinadas personas naturales; | H85: PRESTACIÓN DE SERVICIOS PROFESIONALES PARA APOYAR AL EQUIPO DE PRENSA Y CONUNICACIONES DE LA ALCALDIA LOCAL EN LA REALIZACION DE PRODUCTOS Y PIEZAS DIGITALES , IMPRESAS Y PUBLICITARIAS DE GRAN FORMATO Y DE ANIMACIÓN GRAFICA , ASI COMO APOYAR LA PRODUCCIÓN Y MONTAJE DE EVENTOS | I85: Inversión | J85: Bogotá Mejor para Todos | K85: 45 | L85: =IF(ISERROR(VLOOKUP(K85,Eje_Pilar_Prop!$C$2:$E$104,2,FALSE))," ",VLOOKUP(K85,Eje_Pilar_Prop!$C$2:$E$104,2,FALSE)) -> Gobernanza e influencia local, regional e internacional | M85: =IF(ISERROR(VLOOKUP(K85,Eje_Pilar_Prop!$C$2:$E$104,3,FALSE))," ",VLOOKUP(K85,Eje_Pilar_Prop!$C$2:$E$104,3,FALSE)) -> Eje Transversal 4 Gobierno Legitimo, Fortalecimiento Local y Eficiencia | N85: 1304 | O85: 79718485 | P85: HENRRY DAVID CAJICA RINCON | Q85: 16800000 | R85: 0 | S85: 0 | T85: 0 | U85: 0 | V85: 16800000 | W85: 15540000 | X85: 2020-02-12 | Y85: 2020-02-13 | Z85: =+Y85+10 -> 2020-02-23 | AA85: 120 | AB85: 0 | AC85: 0 | AD85: 53032679 | AE85: LILIANA MONTAÑEZ SALGADO | AF85: 2020-02-20 | AG85: 15680000 | AJ85: X | AL85: 0.925 | AO85: =IF(SUMPRODUCT((A$14:A85=A85)*(B$14:B85=B85)*(D$14:D85=D85))>1,0,1) -> 1 | AP85: Contratos de prestación de servicios profesionales y de apoyo a la gestión | AQ85: Contratación directa | AR85: =IF(ISBLANK(G85),1,IFERROR(VLOOKUP(G85,Tipo!$C$12:$C$27,1,FALSE),"NO")) -> Prestación de servicios profesionales y de apoyo a la gestión, o para la ejecución de trabajos artísticos que sólo puedan encomendarse a determinadas personas naturales; | AS85: Inversión | AT85: =IF(ISBLANK(K85),1,IFERROR(VLOOKUP(K85,Eje_Pilar_Prop!$C$3:$C$104,1,FALSE),"NO")) -> 45 | AU85: SECOP II | AV85: 1 | AW85: Bogotá Mejor para Todos
A86: FDLCH-CPS-074-2020 | B86: 2020 | C86: SECOP II | D86: CPS-074-2020 | E86: Contratos de prestación de servicios profesionales y de apoyo a la gestión | F86: Contratación directa | G86: Prestación de servicios profesionales y de apoyo a la gestión, o para la ejecución de trabajos artísticos que sólo puedan encomendarse a determinadas personas naturales; | H86: PRESTACIÓN DE SERVICIOS PERSONALES NECESARIOS PARA LAS LABORES DE ENTREGA Y RECIBO DE LAS COMUNICACIONES EMITIDAS O RECIBIDAS POR LAS INSPECCIONES DE POLICÍA DE LA LOCALIDAD Y DEPENDENCIAS DE LA ALCALDÍA. | I86: Inversión | J86: Bogotá Mejor para Todos | K86: 45 | L86: =IF(ISERROR(VLOOKUP(K86,Eje_Pilar_Prop!$C$2:$E$104,2,FALSE))," ",VLOOKUP(K86,Eje_Pilar_Prop!$C$2:$E$104,2,FALSE)) -> Gobernanza e influencia local, regional e internacional | M86: =IF(ISERROR(VLOOKUP(K86,Eje_Pilar_Prop!$C$2:$E$104,3,FALSE))," ",VLOOKUP(K86,Eje_Pilar_Prop!$C$2:$E$104,3,FALSE)) -> Eje Transversal 4 Gobierno Legitimo, Fortalecimiento Local y Eficiencia | N86: 1304 | O86: 1014213166 | P86: SANTIAGO LEON NISPERUZA | Q86: 9360000 | R86: 0 | S86: 0 | T86: 0 | U86: 0 | V86: 9360000 | W86: 8112000 | X86: 2020-02-14 | Y86: 2020-02-17 | Z86: =+Y86 -> 2020-02-17 | AA86: 120 | AB86: 0 | AC86: 0 | AJ86: X | AL86: 0.8666666667 | AO86: =IF(SUMPRODUCT((A$14:A86=A86)*(B$14:B86=B86)*(D$14:D86=D86))>1,0,1) -> 1 | AP86: Contratos de prestación de servicios profesionales y de apoyo a la gestión | AQ86: Contratación directa | AR86: =IF(ISBLANK(G86),1,IFERROR(VLOOKUP(G86,Tipo!$C$12:$C$27,1,FALSE),"NO")) -> Prestación de servicios profesionales y de apoyo a la gestión, o para la ejecución de trabajos artísticos que sólo puedan encomendarse a determinadas personas naturales; | AS86: Inversión | AT86: =IF(ISBLANK(K86),1,IFERROR(VLOOKUP(K86,Eje_Pilar_Prop!$C$3:$C$104,1,FALSE),"NO")) -> 45 | AU86: SECOP II | AV86: 1 | AW86: Bogotá Mejor para Todos
A87: FDLCH-CPS-075-2020 | B87: 2020 | C87: SECOP II | D87: CPS-075-2020 | E87: Contratos de prestación de servicios profesionales y de apoyo a la gestión | F87: Contratación directa | G87: Prestación de servicios profesionales y de apoyo a la gestión, o para la ejecución de trabajos artísticos que sólo puedan encomendarse a determinadas personas naturales; | H87: PRESTACIÓN DE LOS SERVICIOS PROFESIONALES PARA APOYAR AL DESPACHO LA EJECUCIÓN DE ACTIVIDADES DE PLANEACIÓN Y GESTIÓN DEL RIESGO Y CAMBIO CLIMÁTICO EN LA LOCALIDAD DE CHAPINERO. | I87: Inversión | J87: Bogotá Mejor para Todos | K87: 4 | L87: =IF(ISERROR(VLOOKUP(K87,Eje_Pilar_Prop!$C$2:$E$104,2,FALSE))," ",VLOOKUP(K87,Eje_Pilar_Prop!$C$2:$E$104,2,FALSE)) -> Familias protegidas y adaptadas al cambio climático | M87: =IF(ISERROR(VLOOKUP(K87,Eje_Pilar_Prop!$C$2:$E$104,3,FALSE))," ",VLOOKUP(K87,Eje_Pilar_Prop!$C$2:$E$104,3,FALSE)) -> Pilar 1 Igualdad de Calidad de Vida | N87: 1296 | O87: 1019031184 | P87: RAYMOND ALEXANDER JIMENEZ ARTEAGA | Q87: 22000000 | R87: 0 | S87: 0 | T87: 1 | U87: 5500000 | V87: 27500000 | W87: 27500000 | X87: 2020-02-13 | Y87: 2020-02-14 | Z87: =+Y87+30 -> 2020-03-15 | AA87: 120 | AB87: 1 | AC87: 30 | AD87: 79268761 | AE87: MAURICIO BOHORQUEZ ESCOBAR | AF87: 2020-02-18 | AG87: 21083333 | AJ87: X | AL87: 1 | AO87: =IF(SUMPRODUCT((A$14:A87=A87)*(B$14:B87=B87)*(D$14:D87=D87))>1,0,1) -> 1 | AP87: Contratos de prestación de servicios profesionales y de apoyo a la gestión | AQ87: Contratación directa | AR87: =IF(ISBLANK(G87),1,IFERROR(VLOOKUP(G87,Tipo!$C$12:$C$27,1,FALSE),"NO")) -> Prestación de servicios profesionales y de apoyo a la gestión, o para la ejecución de trabajos artísticos que sólo puedan encomendarse a determinadas personas naturales; | AS87: Inversión | AT87: =IF(ISBLANK(K87),1,IFERROR(VLOOKUP(K87,Eje_Pilar_Prop!$C$3:$C$104,1,FALSE),"NO")) -> 4 | AU87: SECOP II | AV87: 1 | AW87: Bogotá Mejor para Todos
A88: FDLCH-CPS-076-2020 | B88: 2020 | C88: SECOP II | D88: CPS-076-2020 | E88: Contratos de prestación de servicios profesionales y de apoyo a la gestión | F88: Contratación directa | G88: Prestación de servicios profesionales y de apoyo a la gestión, o para la ejecución de trabajos artísticos que sólo puedan encomendarse a determinadas personas naturales; | H88: PRESTACIÓN DE SERVICIOS PERSONALES NECESARIOS PARA EL APOYO DE LAS ACTIVIDADES ADMINISTRATIVAS Y OPERATIVAS QUE ADELANTEN EN EL ÁREA DE GESTIÓN POLICIVA OBRAS EN LA ALCALDÍA LOCAL DE CHAPINERO | I88: Inversión | J88: Bogotá Mejor para Todos | K88: 45 | L88: =IF(ISERROR(VLOOKUP(K88,Eje_Pilar_Prop!$C$2:$E$104,2,FALSE))," ",VLOOKUP(K88,Eje_Pilar_Prop!$C$2:$E$104,2,FALSE)) -> Gobernanza e influencia local, regional e internacional | M88: =IF(ISERROR(VLOOKUP(K88,Eje_Pilar_Prop!$C$2:$E$104,3,FALSE))," ",VLOOKUP(K88,Eje_Pilar_Prop!$C$2:$E$104,3,FALSE)) -> Eje Transversal 4 Gobierno Legitimo, Fortalecimiento Local y Eficiencia | N88: 1304 | O88: 1015413788 | P88: LEONARD YESID GARCIA ROJAS | Q88: 8780000 | R88: 0 | S88: 0 | T88: 0 | U88: 0 | V88: 8780000 | W88: 8780000 | X88: 2020-02-18 | Y88: 2020-02-19 | Z88: =+Y88 -> 2020-02-19 | AA88: 120 | AB88: 0 | AC88: 0 | AJ88: X | AL88: 1 | AO88: =IF(SUMPRODUCT((A$14:A88=A88)*(B$14:B88=B88)*(D$14:D88=D88))>1,0,1) -> 1 | AP88: Contratos de prestación de servicios profesionales y de apoyo a la gestión | AQ88: Contratación directa | AR88: =IF(ISBLANK(G88),1,IFERROR(VLOOKUP(G88,Tipo!$C$12:$C$27,1,FALSE),"NO")) -> Prestación de servicios profesionales y de apoyo a la gestión, o para la ejecución de trabajos artísticos que sólo puedan encomendarse a determinadas personas naturales; | AS88: Inversión | AT88: =IF(ISBLANK(K88),1,IFERROR(VLOOKUP(K88,Eje_Pilar_Prop!$C$3:$C$104,1,FALSE),"NO")) -> 45 | AU88: SECOP II | AV88: 1 | AW88: Bogotá Mejor para Todos
A89: FDLCH-CPS-078-2020 | B89: 2020 | C89: SECOP II | D89: CPS-078-2020 | E89: Contratos de prestación de servicios profesionales y de apoyo a la gestión | F89: Contratación directa | G89: Prestación de servicios profesionales y de apoyo a la gestión, o para la ejecución de trabajos artísticos que sólo puedan encomendarse a determinadas personas naturales; | H89: DESCRIPCIÓN: PRESTACIÓN DE SERVICIOS PROFESIONALES PARA APOYAR JURÍDICAMENTE LA EJECUCIÓN DE LAS ACCIONES REQUERIDAS PARA EL TRÁMITE E IMPULSO PROCESAL DE LAS ACTUACIONES CONTRAVENCIONES Y/O QUERELLAS QUE CURSEN EN LAS INSPECCIONES DE POLICÍA DE LA LOCALIDAD DE CHAPINERO | I89: Inversión | J89: Bogotá Mejor para Todos | K89: 45 | L89: =IF(ISERROR(VLOOKUP(K89,Eje_Pilar_Prop!$C$2:$E$104,2,FALSE))," ",VLOOKUP(K89,Eje_Pilar_Prop!$C$2:$E$104,2,FALSE)) -> Gobernanza e influencia local, regional e internacional | M89: =IF(ISERROR(VLOOKUP(K89,Eje_Pilar_Prop!$C$2:$E$104,3,FALSE))," ",VLOOKUP(K89,Eje_Pilar_Prop!$C$2:$E$104,3,FALSE)) -> Eje Transversal 4 Gobierno Legitimo, Fortalecimiento Local y Eficiencia | N89: 1304 | O89: 3058039 | P89: VIDAL ROBERTO MENDEZ LASPRIELLA | Q89: 19845000 | R89: 0 | S89: 0 | T89: 1 | U89: 4961250 | V89: 24806250 | W89: 24806250 | X89: 2020-02-18 | Y89: 2020-02-19 | Z89: =+Y89+30 -> 2020-03-20 | AA89: 120 | AB89: 1 | AC89: 30 | AJ89: X | AL89: 1 | AO89: =IF(SUMPRODUCT((A$14:A89=A89)*(B$14:B89=B89)*(D$14:D89=D89))>1,0,1) -> 1 | AP89: Contratos de prestación de servicios profesionales y de apoyo a la gestión | AQ89: Contratación directa | AR89: =IF(ISBLANK(G89),1,IFERROR(VLOOKUP(G89,Tipo!$C$12:$C$27,1,FALSE),"NO")) -> Prestación de servicios profesionales y de apoyo a la gestión, o para la ejecución de trabajos artísticos que sólo puedan encomendarse a determinadas personas naturales; | AS89: Inversión | AT89: =IF(ISBLANK(K89),1,IFERROR(VLOOKUP(K89,Eje_Pilar_Prop!$C$3:$C$104,1,FALSE),"NO")) -> 45 | AU89: SECOP II | AV89: 1 | AW89: Bogotá Mejor para Todos
A90: FDLCH-CPS-079-2020 | B90: 2020 | C90: SECOP II | D90: CPS-079-2020 | E90: Contratos de prestación de servicios profesionales y de apoyo a la gestión | F90: Contratación directa | G90: Prestación de servicios profesionales y de apoyo a la gestión, o para la ejecución de trabajos artísticos que sólo puedan encomendarse a determinadas personas naturales; | H90: PRESTACIÓN DE SERVICIOS PROFESIONALES PARA EL APOYO AL ÁREA DE GESTIÓN DEL DESARROLLO LOCAL DE LA ALCALDÍA LOCAL DE CHAPINERO EN LA FORMULACIÓN, GESTIÓN, EJECUCIÓN Y SEGUIMIENTO DEL PROYECTO 1301 'MEJORAR LA CALIDAD DE LA MOVILIDAD' Y LA SUPERVISIÓN DE CONTRATOS QUE LE SEAN ASIGNADOS. | I90: Inversión | J90: Bogotá Mejor para Todos | K90: 18 | L90: =IF(ISERROR(VLOOKUP(K90,Eje_Pilar_Prop!$C$2:$E$104,2,FALSE))," ",VLOOKUP(K90,Eje_Pilar_Prop!$C$2:$E$104,2,FALSE)) -> Mejor movilidad para todos | M90: =IF(ISERROR(VLOOKUP(K90,Eje_Pilar_Prop!$C$2:$E$104,3,FALSE))," ",VLOOKUP(K90,Eje_Pilar_Prop!$C$2:$E$104,3,FALSE)) -> Pilar 2 Democracía Urbana | N90: 1301 | O90: 1018451268 | P90: DIEGO IVAN HORTUA VILLALBA | Q90: 18978876 | R90: 0 | S90: 0 | T90: 0 | U90: 0 | V90: 18978876 | W90: 18978876 | X90: 2020-02-18 | Y90: 2020-02-18 | Z90: =+Y90 -> 2020-02-18 | AA90: 120 | AB90: 0 | AC90: 0 | AJ90: X | AL90: 1 | AO90: =IF(SUMPRODUCT((A$14:A90=A90)*(B$14:B90=B90)*(D$14:D90=D90))>1,0,1) -> 1 | AP90: Contratos de prestación de servicios profesionales y de apoyo a la gestión | AQ90: Contratación directa | AR90: =IF(ISBLANK(G90),1,IFERROR(VLOOKUP(G90,Tipo!$C$12:$C$27,1,FALSE),"NO")) -> Prestación de servicios profesionales y de apoyo a la gestión, o para la ejecución de trabajos artísticos que sólo puedan encomendarse a determinadas personas naturales; | AS90: Inversión | AT90: =IF(ISBLANK(K90),1,IFERROR(VLOOKUP(K90,Eje_Pilar_Prop!$C$3:$C$104,1,FALSE),"NO")) -> 18 | AU90: SECOP II | AV90: 1 | AW90: Bogotá Mejor para Todos
A91: FDLCH-CPS-080-2020 | B91: 2020 | C91: SECOP II | D91: CPS-080-2020 | E91: Contratos de prestación de servicios profesionales y de apoyo a la gestión | F91: Contratación directa | G91: Prestación de servicios profesionales y de apoyo a la gestión, o para la ejecución de trabajos artísticos que sólo puedan encomendarse a determinadas personas naturales; | H91: PRESTACIÓN DE SERVICIOS PROFESIONALES PARA APOYAR AL ÁREA DE GESTIÓN DEL DESARROLLO LOCAL DE LA ALCALDÍA LOCAL DE CHAPINERO EN LA FORMULACIÓN, GESTIÓN Y EJECUCIÓN DEL PROYECTO 1297 POR UN TERRITORIO EDUCADO, INCLUYENTE Y DIVERSO | I91: Inversión | J91: Bogotá Mejor para Todos | K91: 7 | L91: =IF(ISERROR(VLOOKUP(K91,Eje_Pilar_Prop!$C$2:$E$104,2,FALSE))," ",VLOOKUP(K91,Eje_Pilar_Prop!$C$2:$E$104,2,FALSE)) -> Inclusión educativa para la equidad | M91: =IF(ISERROR(VLOOKUP(K91,Eje_Pilar_Prop!$C$2:$E$104,3,FALSE))," ",VLOOKUP(K91,Eje_Pilar_Prop!$C$2:$E$104,3,FALSE)) -> Pilar 1 Igualdad de Calidad de Vida | N91: 1297 | O91: 22798512 | P91: ELIANA CRISTINA VERA PEREA | Q91: 22000000 | R91: 0 | S91: 0 | T91: 0 | U91: 0 | V91: 22000000 | W91: 22000000 | X91: 2020-02-17 | Y91: 2020-02-18 | Z91: =+Y91 -> 2020-02-18 | AA91: 120 | AB91: 0 | AC91: 0 | AJ91: X | AL91: 1 | AO91: =IF(SUMPRODUCT((A$14:A91=A91)*(B$14:B91=B91)*(D$14:D91=D91))>1,0,1) -> 1 | AP91: Contratos de prestación de servicios profesionales y de apoyo a la gestión | AQ91: Contratación directa | AR91: =IF(ISBLANK(G91),1,IFERROR(VLOOKUP(G91,Tipo!$C$12:$C$27,1,FALSE),"NO")) -> Prestación de servicios profesionales y de apoyo a la gestión, o para la ejecución de trabajos artísticos que sólo puedan encomendarse a determinadas personas naturales; | AS91: Inversión | AT91: =IF(ISBLANK(K91),1,IFERROR(VLOOKUP(K91,Eje_Pilar_Prop!$C$3:$C$104,1,FALSE),"NO")) -> 7 | AU91: SECOP II | AV91: 1 | AW91: Bogotá Mejor para Todos
A92: FDLCH-CPS-081-2020 | B92: 2020 | C92: SECOP II | D92: CPS-081-2020 | E92: Contratos de prestación de servicios profesionales y de apoyo a la gestión | F92: Contratación directa | G92: Prestación de servicios profesionales y de apoyo a la gestión, o para la ejecución de trabajos artísticos que sólo puedan encomendarse a determinadas personas naturales; | H92: PRESTACIÓN DE SERVICIOS PROFESIONALES PARA APOYAR TÉCNICAMENTE LAS DISTINTAS ETAPAS DE LOS PROCESOS DE COMPETENCIA DE LAS INSPECCIONES DE POLICÍA DE LA LOCALIDAD DE CHAPINERO, SEGÚN REPARTO. | I92: Inversión | J92: Bogotá Mejor para Todos | K92: 45 | L92: =IF(ISERROR(VLOOKUP(K92,Eje_Pilar_Prop!$C$2:$E$104,2,FALSE))," ",VLOOKUP(K92,Eje_Pilar_Prop!$C$2:$E$104,2,FALSE)) -> Gobernanza e influencia local, regional e internacional | M92: =IF(ISERROR(VLOOKUP(K92,Eje_Pilar_Prop!$C$2:$E$104,3,FALSE))," ",VLOOKUP(K92,Eje_Pilar_Prop!$C$2:$E$104,3,FALSE)) -> Eje Transversal 4 Gobierno Legitimo, Fortalecimiento Local y Eficiencia | N92: 1304 | O92: 11449647 | P92: WILLIAM RENE DIAZ GARAY | Q92: 22823920 | R92: 0 | S92: 0 | T92: 1 | U92: 5705980 | V92: 28529900 | W92: 28529900 | X92: 2020-02-18 | Y92: 2020-02-19 | Z92: =+Y92+30 -> 2020-03-20 | AA92: 120 | AB92: 1 | AC92: 30 | AJ92: X | AL92: 1 | AO92: =IF(SUMPRODUCT((A$14:A92=A92)*(B$14:B92=B92)*(D$14:D92=D92))>1,0,1) -> 1 | AP92: =IF(ISBLANK(E92),1,IFERROR(VLOOKUP(E92,tipo,1,FALSE),"NO")) -> Contratos de prestación de servicios profesionales y de apoyo a la gestión | AQ92: Contratación directa | AR92: =IF(ISBLANK(G92),1,IFERROR(VLOOKUP(G92,Tipo!$C$12:$C$27,1,FALSE),"NO")) -> Prestación de servicios profesionales y de apoyo a la gestión, o para la ejecución de trabajos artísticos que sólo puedan encomendarse a determinadas personas naturales; | AS92: Inversión | AT92: =IF(ISBLANK(K92),1,IFERROR(VLOOKUP(K92,Eje_Pilar_Prop!$C$3:$C$104,1,FALSE),"NO")) -> 45 | AU92: SECOP II | AV92: 1 | AW92: Bogotá Mejor para Todos
A93: FDLCH-CPS-082-2020 | B93: 2020 | C93: SECOP II | D93: CPS-082-2020 | E93: Contratos de prestación de servicios profesionales y de apoyo a la gestión | F93: Contratación directa | G93: Prestación de servicios profesionales y de apoyo a la gestión, o para la ejecución de trabajos artísticos que sólo puedan encomendarse a determinadas personas naturales; | H93: PRESTAR SUS SERVICIOS PROFESIONALES A LA ALCALDÍA LOCAL DE CHAPINERO APOYANDO LA EJECUCIÓN DEL PROYECTO 1299 ASESORÍA PARA LA LEGALIZACIÓN DE BARRIOS Y TITULACIÓN DE PREDIOS EN EL COMPONENTE DEMANDAS DE TITULACIÓN CONFORME A GARANTIZAR EL CUMPLIMIENTO DEL PLAN DE DESARROLLO LOCAL. | I93: Inversión | J93: Bogotá Mejor para Todos | K93: 15 | L93: =IF(ISERROR(VLOOKUP(K93,Eje_Pilar_Prop!$C$2:$E$104,2,FALSE))," ",VLOOKUP(K93,Eje_Pilar_Prop!$C$2:$E$104,2,FALSE)) -> Recuperación, incorporación, vida urbana y control de la ilegalidad | M93: =IF(ISERROR(VLOOKUP(K93,Eje_Pilar_Prop!$C$2:$E$104,3,FALSE))," ",VLOOKUP(K93,Eje_Pilar_Prop!$C$2:$E$104,3,FALSE)) -> Pilar 2 Democracía Urbana | N93: 1299 | O93: 78075269 | P93: ALVARO ENRIQUE CORRALES HERRERA | Q93: 19200000 | R93: 0 | S93: 0 | T93: 0 | U93: 0 | V93: 19200000 | W93: 19200000 | X93: 2020-02-21 | Y93: 2020-02-24 | Z93: 2020-06-23 | AA93: 120 | AB93: 0 | AC93: 0 | AJ93: X | AL93: 1 | AO93: =IF(SUMPRODUCT((A$14:A93=A93)*(B$14:B93=B93)*(D$14:D93=D93))>1,0,1) -> 1 | AP93: Contratos de prestación de servicios profesionales y de apoyo a la gestión | AQ93: Contratación directa | AR93: =IF(ISBLANK(G93),1,IFERROR(VLOOKUP(G93,Tipo!$C$12:$C$27,1,FALSE),"NO")) -> Prestación de servicios profesionales y de apoyo a la gestión, o para la ejecución de trabajos artísticos que sólo puedan encomendarse a determinadas personas naturales; | AS93: Inversión | AT93: =IF(ISBLANK(K93),1,IFERROR(VLOOKUP(K93,Eje_Pilar_Prop!$C$3:$C$104,1,FALSE),"NO")) -> 15 | AU93: SECOP II | AV93: 1 | AW93: Bogotá Mejor para Todos
A94: FDLCH-CPS-083-2020 | B94: 2020 | C94: SECOP II | D94: CPS-083-2020 | E94: Contratos de prestación de servicios profesionales y de apoyo a la gestión | F94: Contratación directa | G94: Prestación de servicios profesionales y de apoyo a la gestión, o para la ejecución de trabajos artísticos que sólo puedan encomendarse a determinadas personas naturales; | H94: PRESTACIÓN DE SERVICIOS PROFESIONALES PARA APOYAR EL ÁREA DE GESTIÓN DEL DESARROLLO LOCAL DE LA ALCALDÍA LOCAL DE CHAPINERO EN LA GESTIÓN CONTRACTUAL DEL PROYECTO 1301 MEJORAR LA CALIDAD DE LA MOVILIDAD | I94: Inversión | J94: Bogotá Mejor para Todos | K94: 18 | L94: =IF(ISERROR(VLOOKUP(K94,Eje_Pilar_Prop!$C$2:$E$104,2,FALSE))," ",VLOOKUP(K94,Eje_Pilar_Prop!$C$2:$E$104,2,FALSE)) -> Mejor movilidad para todos | M94: =IF(ISERROR(VLOOKUP(K94,Eje_Pilar_Prop!$C$2:$E$104,3,FALSE))," ",VLOOKUP(K94,Eje_Pilar_Prop!$C$2:$E$104,3,FALSE)) -> Pilar 2 Democracía Urbana | N94: 1301 | O94: 49772886 | P94: PAOLA KARINA ESCALONA PABON | Q94: 28400000 | R94: 0 | S94: 0 | T94: 0 | U94: 0 | V94: 28400000 | W94: 28400000 | X94: 2020-02-19 | Y94: 2020-02-20 | Z94: =+Y94 -> 2020-02-20 | AA94: 120 | AB94: 0 | AC94: 0 | AJ94: X | AL94: 1 | AO94: =IF(SUMPRODUCT((A$14:A94=A94)*(B$14:B94=B94)*(D$14:D94=D94))>1,0,1) -> 1 | AP94: Contratos de prestación de servicios profesionales y de apoyo a la gestión | AQ94: Contratación directa | AR94: =IF(ISBLANK(G94),1,IFERROR(VLOOKUP(G94,Tipo!$C$12:$C$27,1,FALSE),"NO")) -> Prestación de servicios profesionales y de apoyo a la gestión, o para la ejecución de trabajos artísticos que sólo puedan encomendarse a determinadas personas naturales; | AS94: Inversión | AT94: =IF(ISBLANK(K94),1,IFERROR(VLOOKUP(K94,Eje_Pilar_Prop!$C$3:$C$104,1,FALSE),"NO")) -> 18 | AU94: SECOP II | AV94: 1 | AW94: Bogotá Mejor para Todos
A95: FDLCH-CPS-084-2020 | B95: 2020 | C95: SECOP II | D95: CPS-084-2020 | E95: Contratos de prestación de servicios profesionales y de apoyo a la gestión | F95: Contratación directa | G95: Prestación de servicios profesionales y de apoyo a la gestión, o para la ejecución de trabajos artísticos que sólo puedan encomendarse a determinadas personas naturales; | H95: PRESTACIÓN DE SERVICIOS PROFESIONALES PARA EL APOYO AL ÁREA DE GESTIÓN DEL DESARROLLO LOCAL DE LA ALCALDÍA LOCAL DE CHAPINERO EN LA FORMULACIÓN, GESTIÓN, EJECUCIÓN Y SEGUIMIENTO DEL PROYECTO 1301 'MEJORAR LA CALIDAD DE LA MOVILIDAD' Y LA SUPERVISIÓN DE CONTRATOS QUE LE SEAN ASIGNADOS. | I95: Inversión | J95: Bogotá Mejor para Todos | K95: 18 | L95: =IF(ISERROR(VLOOKUP(K95,Eje_Pilar_Prop!$C$2:$E$104,2,FALSE))," ",VLOOKUP(K95,Eje_Pilar_Prop!$C$2:$E$104,2,FALSE)) -> Mejor movilidad para todos | M95: =IF(ISERROR(VLOOKUP(K95,Eje_Pilar_Prop!$C$2:$E$104,3,FALSE))," ",VLOOKUP(K95,Eje_Pilar_Prop!$C$2:$E$104,3,FALSE)) -> Pilar 2 Democracía Urbana | N95: 1301 | O95: 51923843 | P95: NANCY LOPEZ PINEDA | Q95: 28400000 | R95: 0 | S95: 0 | T95: 0 | U95: 0 | V95: 28400000 | W95: 28400000 | X95: 2020-02-19 | Y95: 2020-02-20 | Z95: =+Y95 -> 2020-02-20 | AA95: 120 | AB95: 0 | AC95: 0 | AJ95: X | AL95: 1 | AO95: =IF(SUMPRODUCT((A$14:A95=A95)*(B$14:B95=B95)*(D$14:D95=D95))>1,0,1) -> 1 | AP95: Contratos de prestación de servicios profesionales y de apoyo a la gestión | AQ95: Contratación directa | AR95: =IF(ISBLANK(G95),1,IFERROR(VLOOKUP(G95,Tipo!$C$12:$C$27,1,FALSE),"NO")) -> Prestación de servicios profesionales y de apoyo a la gestión, o para la ejecución de trabajos artísticos que sólo puedan encomendarse a determinadas personas naturales; | AS95: Inversión | AT95: =IF(ISBLANK(K95),1,IFERROR(VLOOKUP(K95,Eje_Pilar_Prop!$C$3:$C$104,1,FALSE),"NO")) -> 18 | AU95: SECOP II | AV95: 1 | AW95: Bogotá Mejor para Todos
A96: FDLCH-CPS-085-2020 | B96: 2020 | C96: SECOP II | D96: CPS-085-2020 | E96: Contratos de prestación de servicios profesionales y de apoyo a la gestión | F96: Contratación directa | G96: Prestación de servicios profesionales y de apoyo a la gestión, o para la ejecución de trabajos artísticos que sólo puedan encomendarse a determinadas personas naturales; | H96: PRESTACIÓN DE SERVICIOS PROFESIONALES PARA APOYAR TÉCNICAMENTE LAS DISTINTAS ETAPAS DE LOS PROCESOS DE COMPETENCIA DE LAS INSPECCIONES DE POLICÍA DE LA LOCALIDAD DE CHAPINERO, SEGÚN REPARTO | I96: Inversión | J96: Bogotá Mejor para Todos | K96: 45 | L96: =IF(ISERROR(VLOOKUP(K96,Eje_Pilar_Prop!$C$2:$E$104,2,FALSE))," ",VLOOKUP(K96,Eje_Pilar_Prop!$C$2:$E$104,2,FALSE)) -> Gobernanza e influencia local, regional e internacional | M96: =IF(ISERROR(VLOOKUP(K96,Eje_Pilar_Prop!$C$2:$E$104,3,FALSE))," ",VLOOKUP(K96,Eje_Pilar_Prop!$C$2:$E$104,3,FALSE)) -> Eje Transversal 4 Gobierno Legitimo, Fortalecimiento Local y Eficiencia | N96: 1304 | O96: 1030625256 | P96: ANDRES FELIPE RAMOS ARENAS | Q96: 22823920 | R96: 0 | S96: 0 | T96: 1 | U96: 5705980 | V96: 28529900 | W96: 28529900 | X96: 2020-02-20 | Y96: 2020-02-21 | Z96: =+Y96+30 -> 2020-03-22 | AA96: 120 | AB96: 1 | AC96: 30 | AJ96: X | AL96: 1 | AO96: =IF(SUMPRODUCT((A$14:A96=A96)*(B$14:B96=B96)*(D$14:D96=D96))>1,0,1) -> 1 | AP96: Contratos de prestación de servicios profesionales y de apoyo a la gestión | AQ96: Contratación directa | AR96: =IF(ISBLANK(G96),1,IFERROR(VLOOKUP(G96,Tipo!$C$12:$C$27,1,FALSE),"NO")) -> Prestación de servicios profesionales y de apoyo a la gestión, o para la ejecución de trabajos artísticos que sólo puedan encomendarse a determinadas personas naturales; | AS96: Inversión | AT96: =IF(ISBLANK(K96),1,IFERROR(VLOOKUP(K96,Eje_Pilar_Prop!$C$3:$C$104,1,FALSE),"NO")) -> 45 | AU96: SECOP II | AV96: 1 | AW96: Bogotá Mejor para Todos
A97: FDLCH-CPS-086-2020 | B97: 2020 | C97: SECOP II | D97: CPS-086-2020 | E97: Contratos de prestación de servicios profesionales y de apoyo a la gestión | F97: Contratación directa | G97: Prestación de servicios profesionales y de apoyo a la gestión, o para la ejecución de trabajos artísticos que sólo puedan encomendarse a determinadas personas naturales; | H97: PRESTACIÓN DE SERVICIOS PROFESIONALES EN DERECHO PARA APOYAR JURÍDICAMENTE LA EJECUCIÓN DE LAS ACCIONES REQUERIDAS PARA LA DEPURACIÓN DE LAS ACTUACIONES ADMINISTRATIVAS QUE CURSAN EN LA ALCALDÍA LOCAL | I97: Inversión | J97: Bogotá Mejor para Todos | K97: 45 | L97: =IF(ISERROR(VLOOKUP(K97,Eje_Pilar_Prop!$C$2:$E$104,2,FALSE))," ",VLOOKUP(K97,Eje_Pilar_Prop!$C$2:$E$104,2,FALSE)) -> Gobernanza e influencia local, regional e internacional | M97: =IF(ISERROR(VLOOKUP(K97,Eje_Pilar_Prop!$C$2:$E$104,3,FALSE))," ",VLOOKUP(K97,Eje_Pilar_Prop!$C$2:$E$104,3,FALSE)) -> Eje Transversal 4 Gobierno Legitimo, Fortalecimiento Local y Eficiencia | N97: 1304 | O97: 1136885606 | P97: MICHELLE MARGARITA CABALLERO GOMEZ | Q97: 16800000 | R97: 0 | S97: 0 | T97: 0 | U97: 0 | V97: 16800000 | W97: 16240000 | X97: 2020-03-03 | Y97: 2020-03-05 | Z97: =+Y97 -> 2020-03-05 | AA97: 120 | AB97: 0 | AC97: 0 | AJ97: X | AL97: 0.9666666667 | AO97: =IF(SUMPRODUCT((A$14:A97=A97)*(B$14:B97=B97)*(D$14:D97=D97))>1,0,1) -> 1 | AP97: Contratos de prestación de servicios profesionales y de apoyo a la gestión | AQ97: Contratación directa | AR97: =IF(ISBLANK(G97),1,IFERROR(VLOOKUP(G97,Tipo!$C$12:$C$27,1,FALSE),"NO")) -> Prestación de servicios profesionales y de apoyo a la gestión, o para la ejecución de trabajos artísticos que sólo puedan encomendarse a determinadas personas naturales; | AS97: Inversión | AT97: =IF(ISBLANK(K97),1,IFERROR(VLOOKUP(K97,Eje_Pilar_Prop!$C$3:$C$104,1,FALSE),"NO")) -> 45 | AU97: SECOP II | AV97: 1 | AW97: Bogotá Mejor para Todos
A98: FDLCH-CPS-087-2020 | B98: 2020 | C98: SECOP II | D98: CPS-087-2020 | E98: Contratos de prestación de servicios profesionales y de apoyo a la gestión | F98: Contratación directa | G98: Prestación de servicios profesionales y de apoyo a la gestión, o para la ejecución de trabajos artísticos que sólo puedan encomendarse a determinadas personas naturales; | H98: PRESTAR SERVICIOS PERSONALES NECESARIOS PARA EL APOYO ADMINISTRATIVO, ASISTENCIALMENTE A LAS INSPECCIONES DE POLICÍA DE LA LOCALIDAD DE CHAPINERO | I98: Inversión | J98: Bogotá Mejor para Todos | K98: 45 | L98: =IF(ISERROR(VLOOKUP(K98,Eje_Pilar_Prop!$C$2:$E$104,2,FALSE))," ",VLOOKUP(K98,Eje_Pilar_Prop!$C$2:$E$104,2,FALSE)) -> Gobernanza e influencia local, regional e internacional | M98: =IF(ISERROR(VLOOKUP(K98,Eje_Pilar_Prop!$C$2:$E$104,3,FALSE))," ",VLOOKUP(K98,Eje_Pilar_Prop!$C$2:$E$104,3,FALSE)) -> Eje Transversal 4 Gobierno Legitimo, Fortalecimiento Local y Eficiencia | N98: 1304 | O98: 1032462820 | P98: JENNIFER VANNESA DIAZ NIÑO | Q98: 9360000 | R98: 0 | S98: 0 | T98: 0 | U98: 0 | V98: 9360000 | W98: 9360000 | X98: 2020-03-03 | Y98: 2020-03-05 | Z98: 2020-03-05 | AA98: 120 | AB98: 0 | AC98: 0 | AJ98: X | AL98: 1 | AO98: =IF(SUMPRODUCT((A$14:A98=A98)*(B$14:B98=B98)*(D$14:D98=D98))>1,0,1) -> 1 | AP98: Contratos de prestación de servicios profesionales y de apoyo a la gestión | AQ98: Contratación directa | AR98: =IF(ISBLANK(G98),1,IFERROR(VLOOKUP(G98,Tipo!$C$12:$C$27,1,FALSE),"NO")) -> Prestación de servicios profesionales y de apoyo a la gestión, o para la ejecución de trabajos artísticos que sólo puedan encomendarse a determinadas personas naturales; | AS98: Inversión | AT98: =IF(ISBLANK(K98),1,IFERROR(VLOOKUP(K98,Eje_Pilar_Prop!$C$3:$C$104,1,FALSE),"NO")) -> 45 | AU98: SECOP II | AV98: 1 | AW98: Bogotá Mejor para Todos
A99: FDLCH-CPS-088-2020 | B99: 2020 | C99: SECOP II | D99: CPS-088-2020 | E99: Contratos de prestación de servicios profesionales y de apoyo a la gestión | F99: Contratación directa | G99: Prestación de servicios profesionales y de apoyo a la gestión, o para la ejecución de trabajos artísticos que sólo puedan encomendarse a determinadas personas naturales; | H99: PRESTACIÓN DE SERVICIOS PROFESIONALES EN DERECHO PARA APOYAR JURÍDICAMENTE LA EJECUCIÓN DE LAS ACCIONES REQUERIDAS PARA LA DEPURACIÓN DE LAS ACTUACIONES ADMINISTRATIVAS QUE CURSAN EN LA ALCALDÍA LOCAL | I99: Inversión | J99: Bogotá Mejor para Todos | K99: 45 | L99: =IF(ISERROR(VLOOKUP(K99,Eje_Pilar_Prop!$C$2:$E$104,2,FALSE))," ",VLOOKUP(K99,Eje_Pilar_Prop!$C$2:$E$104,2,FALSE)) -> Gobernanza e influencia local, regional e internacional | M99: =IF(ISERROR(VLOOKUP(K99,Eje_Pilar_Prop!$C$2:$E$104,3,FALSE))," ",VLOOKUP(K99,Eje_Pilar_Prop!$C$2:$E$104,3,FALSE)) -> Eje Transversal 4 Gobierno Legitimo, Fortalecimiento Local y Eficiencia | N99: 1304 | O99: 1020771235 | P99: KEYLA MILENA DELUQUEZ MEDINA | Q99: 16800000 | R99: 0 | S99: 0 | T99: 0 | U99: 0 | V99: 16800000 | W99: 16240000 | X99: 2020-03-03 | Y99: 2020-03-05 | Z99: 2020-03-05 | AA99: 120 | AB99: 0 | AC99: 0 | AJ99: X | AL99: 0.9666666667 | AO99: =IF(SUMPRODUCT((A$14:A99=A99)*(B$14:B99=B99)*(D$14:D99=D99))>1,0,1) -> 1 | AP99: Contratos de prestación de servicios profesionales y de apoyo a la gestión | AQ99: Contratación directa | AR99: =IF(ISBLANK(G99),1,IFERROR(VLOOKUP(G99,Tipo!$C$12:$C$27,1,FALSE),"NO")) -> Prestación de servicios profesionales y de apoyo a la gestión, o para la ejecución de trabajos artísticos que sólo puedan encomendarse a determinadas personas naturales; | AS99: Inversión | AT99: =IF(ISBLANK(K99),1,IFERROR(VLOOKUP(K99,Eje_Pilar_Prop!$C$3:$C$104,1,FALSE),"NO")) -> 45 | AU99: SECOP II | AV99: =IF(OR(YEAR(X99)=2020,ISBLANK(X99)),1,"NO") -> 1 | AW99: Bogotá Mejor para Todos
A100: FDLCH-CPS-089-2020 | B100: 2020 | C100: SECOP II | D100: CPS-089-2020 | E100: Contratos de prestación de servicios profesionales y de apoyo a la gestión | F100: Contratación directa | G100: Prestación de servicios profesionales y de apoyo a la gestión, o para la ejecución de trabajos artísticos que sólo puedan encomendarse a determinadas personas naturales; | H100: PRESTACIÓN DE SERVICIOS PROFESIONALES PARA EL ÀREA DE GESTIÓN DEL DESARROLLO DE LA ALCALDÍA DECHAPINERO PARA EL APOYO A LA SUPERVISIÓN DE LOS CONTRATOS DERIVADOS DEL PROYECTO 1302 ENTORNOS SEGUROS PARA LA CIUDADANÍA | I100: Inversión | J100: Bogotá Mejor para Todos | K100: 19 | L100: =IF(ISERROR(VLOOKUP(K100,Eje_Pilar_Prop!$C$2:$E$104,2,FALSE))," ",VLOOKUP(K100,Eje_Pilar_Prop!$C$2:$E$104,2,FALSE)) -> Seguridad y convivencia para todos | M100: =IF(ISERROR(VLOOKUP(K100,Eje_Pilar_Prop!$C$2:$E$104,3,FALSE))," ",VLOOKUP(K100,Eje_Pilar_Prop!$C$2:$E$104,3,FALSE)) -> Pilar 3 Construcción de Comunidad y Cultura Ciudadana | N100: 1302 | O100: 1032360697 | P100: ANDREA MARCELA RODRIGUEZ ARANGO | Q100: 22000000 | R100: 0 | S100: 0 | T100: 0 | U100: 0 | V100: 22000000 | W100: 22000000 | X100: 2020-03-10 | Y100: 2020-03-11 | Z100: 2020-03-11 | AA100: 120 | AB100: 0 | AC100: 0 | AJ100: X | AL100: 1 | AO100: =IF(SUMPRODUCT((A$14:A100=A100)*(B$14:B100=B100)*(D$14:D100=D100))>1,0,1) -> 1 | AP100: Contratos de prestación de servicios profesionales y de apoyo a la gestión | AQ100: Contratación directa | AR100: =IF(ISBLANK(G100),1,IFERROR(VLOOKUP(G100,Tipo!$C$12:$C$27,1,FALSE),"NO")) -> Prestación de servicios profesionales y de apoyo a la gestión, o para la ejecución de trabajos artísticos que sólo puedan encomendarse a determinadas personas naturales; | AS100: Inversión | AT100: =IF(ISBLANK(K100),1,IFERROR(VLOOKUP(K100,Eje_Pilar_Prop!$C$3:$C$104,1,FALSE),"NO")) -> 19 | AU100: SECOP II | AV100: 1 | AW100: Bogotá Mejor para Todos
A101: FDLCH-CPS-090-2020 | B101: 2020 | C101: SECOP II | D101: CPS-090-2020 | E101: Contratos de prestación de servicios profesionales y de apoyo a la gestión | F101: Contratación directa | G101: Prestación de servicios profesionales y de apoyo a la gestión, o para la ejecución de trabajos artísticos que sólo puedan encomendarse a determinadas personas naturales; | H101: PRESTACIÓN DE SERVICIOS PERSONALES NECEARIOS PARA EL APOYO A LA GESTIÓN Y EJECUCIÓN DE LASACTIVIDADES ADMINISTRATIVAS Y OPERATIVAS QUE SE ADELANTAN EN EL ÁREA DE GESTIÓN POLICIVA JURÍDICA DE LA ACALDÍA LOCAL DE CHAPINERO | I101: Inversión | J101: Bogotá Mejor para Todos | K101: 45 | L101: =IF(ISERROR(VLOOKUP(K101,Eje_Pilar_Prop!$C$2:$E$104,2,FALSE))," ",VLOOKUP(K101,Eje_Pilar_Prop!$C$2:$E$104,2,FALSE)) -> Gobernanza e influencia local, regional e internacional | M101: =IF(ISERROR(VLOOKUP(K101,Eje_Pilar_Prop!$C$2:$E$104,3,FALSE))," ",VLOOKUP(K101,Eje_Pilar_Prop!$C$2:$E$104,3,FALSE)) -> Eje Transversal 4 Gobierno Legitimo, Fortalecimiento Local y Eficiencia | N101: 1304 | O101: 52386463 | P101: YOLANDA VARGAS MORA | Q101: 8780000 | R101: 0 | S101: 0 | T101: 0 | U101: 0 | V101: 8780000 | W101: 8194667 | X101: 2020-03-05 | Y101: 2020-03-09 | Z101: 2020-03-09 | AA101: 120 | AB101: 0 | AC101: 0 | AJ101: X | AL101: 0.9333333713 | AO101: =IF(SUMPRODUCT((A$14:A101=A101)*(B$14:B101=B101)*(D$14:D101=D101))>1,0,1) -> 1 | AP101: Contratos de prestación de servicios profesionales y de apoyo a la gestión | AQ101: Contratación directa | AR101: =IF(ISBLANK(G101),1,IFERROR(VLOOKUP(G101,Tipo!$C$12:$C$27,1,FALSE),"NO")) -> Prestación de servicios profesionales y de apoyo a la gestión, o para la ejecución de trabajos artísticos que sólo puedan encomendarse a determinadas personas naturales; | AS101: Inversión | AT101: =IF(ISBLANK(K101),1,IFERROR(VLOOKUP(K101,Eje_Pilar_Prop!$C$3:$C$104,1,FALSE),"NO")) -> 45 | AU101: SECOP II | AV101: 1 | AW101: Bogotá Mejor para Todos
A102: FDLCH-OC-091-2020 | B102: 2020 | C102: SECOP II | D102: OC-091-2020 46708 | E102: Contratos de prestación de servicios | F102: Selección abreviada | G102: Acuerdo marco de precios | H102: PRESTACIÓN DEL SERVICIO INTEGRAL DE ASEO Y CAFETERÍA PARA LA ALCALDÍA LOCAL DE CHAPINERO EN LAS CONDICIONES DEL ACUERDO MARCO DE PRECIOS CCE-972-AMP-2019 | I102: Funcionamiento | J102: Bogotá Mejor para Todos | L102: =IF(ISERROR(VLOOKUP(K102,[1]Eje_Pilar_Prop!$C$2:$E$104,2,FALSE))," ",VLOOKUP(K102,[1]Eje_Pilar_Prop!$C$2:$E$104,2,FALSE)) ->  | M102: =IF(ISERROR(VLOOKUP(K102,[1]Eje_Pilar_Prop!$C$2:$E$104,3,FALSE))," ",VLOOKUP(K102,[1]Eje_Pilar_Prop!$C$2:$E$104,3,FALSE)) ->  | N102: 13102020203050 | O102: 901351524 | P102: UNIÓN TEMPORAL ASEO COLOMBIA 2 | Q102: 151559127 | R102: 0 | S102: 0 | T102: 0 | U102: 0 | V102: 151559127 | W102: 99335727 | X102: 2020-03-30 | Y102: 2020-04-03 | Z102: 2020-04-03 | AA102: 330 | AB102: 0 | AC102: 0 | AI102: X | AL102: 0.6554255687 | AO102: =IF(SUMPRODUCT((A$14:A102=A102)*(B$14:B102=B102)*(D$14:D102=D102))>1,0,1) -> 1 | AP102: Contratos de prestación de servicios | AQ102: Selección abreviada | AR102: =IF(ISBLANK(G102),1,IFERROR(VLOOKUP(G102,Tipo!$C$12:$C$27,1,FALSE),"NO")) -> Acuerdo marco de precios | AS102: Funcionamiento | AT102: =IF(ISBLANK(K102),1,IFERROR(VLOOKUP(K102,Eje_Pilar_Prop!$C$3:$C$104,1,FALSE),"NO")) -> 1 | AU102: SECOP II | AV102: 1 | AW102: Bogotá Mejor para Todos
A103: FDLCH-CA-092-2020 | B103: 2020 | C103: SECOP II | D103: PMINC-001-2020 | E103: Contratos de prestación de servicios | F103: Contratación mínima cuantia | G103: No aplica | H103: PRESTACIÓN DE SERVICIOS DE MANTENIMIENTO PREVENTIVO, MANTENIMIENTO CORRECTIVO Y SUMINISTRO DE REPUESTOS PARA EL PARQUE AUTOMOTOR DE PROPIEDAD DEL FONDO DE DESARROLLO LOCAL DE CHAPINERO | I103: Funcionamiento | J103: Bogotá Mejor para Todos | L103: =IF(ISERROR(VLOOKUP(K103,[1]Eje_Pilar_Prop!$C$2:$E$104,2,FALSE))," ",VLOOKUP(K103,[1]Eje_Pilar_Prop!$C$2:$E$104,2,FALSE)) ->  | M103: =IF(ISERROR(VLOOKUP(K103,[1]Eje_Pilar_Prop!$C$2:$E$104,3,FALSE))," ",VLOOKUP(K103,[1]Eje_Pilar_Prop!$C$2:$E$104,3,FALSE)) ->  | N103: 13102020203060 | O103: 800250589 | P103: CENTRO CAR 19 LTDA | Q103: 24500000 | R103: 0 | S103: 0 | T103: 1 | U103: 12000000 | V103: 36500000 | W103: 24074935 | X103: 2020-04-07 | Y103: 2020-04-15 | Z103: 2021-01-23 | AA103: 240 | AB103: 1 | AC103: 39 | AI103: X | AL103: 0.6595872603 | AO103: =IF(SUMPRODUCT((A$14:A103=A103)*(B$14:B103=B103)*(D$14:D103=D103))>1,0,1) -> 1 | AP103: Contratos de prestación de servicios | AQ103: Contratación mínima cuantia | AR103: =IF(ISBLANK(G103),1,IFERROR(VLOOKUP(G103,Tipo!$C$12:$C$27,1,FALSE),"NO")) -> NO | AS103: Funcionamiento | AT103: =IF(ISBLANK(K103),1,IFERROR(VLOOKUP(K103,Eje_Pilar_Prop!$C$3:$C$104,1,FALSE),"NO")) -> 1 | AU103: SECOP II | AV103: 1 | AW103: Bogotá Mejor para Todos
A104: FDLCH-CS-093-2020 | B104: 2020 | C104: SECOP II | D104: SAMC-001-2020 | E104: Seguros | F104: Selección abreviada | G104: Selección abreviada por menor cuantía | H104: CONTRATAR LOS SEGUROS QUE AMPAREN LOS INTERESES PATRIMONIALES ACTUALES Y FUTUROS, ASÍ COMO LOS BIENES DE PROPIEDAD DEL FONDO DE DESARROLLO LOCAL DE CHAPINERO, QUE ESTÉN BAJO SU RESPONSABILIDAD Y CUSTODIA Y AQUELLOS QUE SEAN ADQUIRIDOS PARA DESARROLLAR LAS FUNCIONES INHERENTES A SU ACTIVIDAD” | I104: Funcionamiento | J104: Bogotá Mejor para Todos | L104: =IF(ISERROR(VLOOKUP(K104,[1]Eje_Pilar_Prop!$C$2:$E$104,2,FALSE))," ",VLOOKUP(K104,[1]Eje_Pilar_Prop!$C$2:$E$104,2,FALSE)) ->  | M104: =IF(ISERROR(VLOOKUP(K104,[1]Eje_Pilar_Prop!$C$2:$E$104,3,FALSE))," ",VLOOKUP(K104,[1]Eje_Pilar_Prop!$C$2:$E$104,3,FALSE)) ->  | N104: 131020202020107 | O104: 860002400 | P104: LA PREVISORA S.A COMPAÑÍA DE SEGUROS | Q104: 54492947 | R104: 0 | S104: 0 | T104: 1 | U104: 22597611 | V104: 77090558 | W104: 74994669 | X104: 2020-04-17 | Y104: 2020-04-16 | Z104: 2021-03-11 | AA104: 230 | AB104: 1 | AC104: 98 | AI104: X | AL104: 0.9728126368 | AO104: =IF(SUMPRODUCT((A$14:A104=A104)*(B$14:B104=B104)*(D$14:D104=D104))>1,0,1) -> 1 | AP104: Seguros | AQ104: Selección abreviada | AR104: =IF(ISBLANK(G104),1,IFERROR(VLOOKUP(G104,Tipo!$C$12:$C$27,1,FALSE),"NO")) -> Selección abreviada por menor cuantía | AS104: Funcionamiento | AT104: =IF(ISBLANK(K104),1,IFERROR(VLOOKUP(K104,Eje_Pilar_Prop!$C$3:$C$104,1,FALSE),"NO")) -> 1 | AU104: SECOP II | AV104: 1 | AW104: Bogotá Mejor para Todos
A105: FDLCH-CCBMC-094-2020 | B105: 2020 | C105: SECOP II | D105: FDCLH-CCBMC-001-2020 | E105: Contratos de prestación de servicios | F105: Licitación pública | G105: No aplica | H105: PRESTACIÓN DE LOS SERVICIOS DE VIGILANCIA Y SEGURIDAD PRIVADA INTEGRAL PERMANENTE EN LA MODALIDAD FIJA PARA LA PROTECCIÓN Y CUIDADO DE LOS FUNCIONARIOS, USUARIOS Y TODOS LOS BIENES MUEBLES E INMUEBLES DE PROPIEDAD O EN CUSTODIA DEL FONDO DE DESARROLLO LOCAL DE CHAPINERO Y DE TODOS AQUELLOS DE LOS QUE LLEGARE A ADQUIRIR | I105: Funcionamiento | J105: Bogotá Mejor para Todos | L105: =IF(ISERROR(VLOOKUP(K105,[2]Eje_Pilar_Prop!$C$2:$E$104,2,FALSE))," ",VLOOKUP(K105,[2]Eje_Pilar_Prop!$C$2:$E$104,2,FALSE)) ->  | M105: =IF(ISERROR(VLOOKUP(K105,[2]Eje_Pilar_Prop!$C$2:$E$104,3,FALSE))," ",VLOOKUP(K105,[2]Eje_Pilar_Prop!$C$2:$E$104,3,FALSE)) ->  | N105: 13102020203050 | O105: 830103828 | P105: AGROBOLSA - SEJARPI COOPERATIVA DE TRABAJO ASOCIADO C.T.A. | Q105: 241411258 | R105: 0 | S105: 0 | T105: 1 | U105: 96587376 | V105: =+Q105+S105+U105 -> 337998634 | W105: 244486960 | X105: 2020-04-22 | Y105: 2020-05-10 | Z105: 2021-03-02 | AA105: 210 | AB105: 1 | AC105: 81 | AI105: X | AL105: =IF(ISERROR(W105/V105),"-",(W105/V105)) -> 0.7233371245 | AO105: =IF(SUMPRODUCT((A$14:A105=A105)*(B$14:B105=B105)*(D$14:D105=D105))>1,0,1) -> 1 | AP105: Contratos de prestación de servicios | AQ105: Licitación pública | AR105: =IF(ISBLANK(G105),1,IFERROR(VLOOKUP(G105,Tipo!$C$12:$C$27,1,FALSE),"NO")) -> NO | AS105: Funcionamiento | AT105: =IF(ISBLANK(K105),1,IFERROR(VLOOKUP(K105,Eje_Pilar_Prop!$C$3:$C$104,1,FALSE),"NO")) -> 1 | AU105: SECOP II | AV105: 1 | AW105: Bogotá Mejor para Todos
A106: FDLCH-CCBMC-094-2020 | B106: 2020 | C106: SECOP II | D106: FDCLH-CCBMC-001-2020 | E106: Contratos de prestación de servicios | F106: Licitación pública | G106: No aplica | H106: PRESTACIÓN DE LOS SERVICIOS DE VIGILANCIA Y SEGURIDAD PRIVADA INTEGRAL PERMANENTE EN LA MODALIDAD FIJA PARA LA PROTECCIÓN Y CUIDADO DE LOS FUNCIONARIOS, USUARIOS Y TODOS LOS BIENES MUEBLES E INMUEBLES DE PROPIEDAD O EN CUSTODIA DEL FONDO DE DESARROLLO LOCAL DE CHAPINERO Y DE TODOS AQUELLOS DE LOS QUE LLEGARE A ADQUIRIR | I106: Funcionamiento | J106: Bogotá Mejor para Todos | L106: =IF(ISERROR(VLOOKUP(K106,[2]Eje_Pilar_Prop!$C$2:$E$104,2,FALSE))," ",VLOOKUP(K106,[2]Eje_Pilar_Prop!$C$2:$E$104,2,FALSE)) ->  | M106: =IF(ISERROR(VLOOKUP(K106,[2]Eje_Pilar_Prop!$C$2:$E$104,3,FALSE))," ",VLOOKUP(K106,[2]Eje_Pilar_Prop!$C$2:$E$104,3,FALSE)) ->  | N106: 1310202020101 | O106: 830103828 | P106: AGROBOLSA - SEJARPI COOPERATIVA DE TRABAJO ASOCIADO C.T.A. | R106: 0 | S106: 0 | T106: 1 | U106: 17100000 | V106: =+Q106+S106+U106 -> 17100000 | W106: 0 | X106: 2020-04-16 | Y106: 2020-04-25 | Z106: =+Y106 -> 2020-04-25 | AA106: 365 | AB106: 0 | AC106: 0 | AI106: X | AL106: =IF(ISERROR(W106/V106),"-",(W106/V106)) -> 0
A107: FDLCH-OC-095-2020 | B107: 2020 | C107: SECOP II | D107: OC-095-2020 47290 | E107: Suministro | F107: Selección abreviada | G107: Acuerdo marco de precios | H107: CONTRATAR EL SUMINISTRO DE COMBUSTIBLE GASOLINA CORRIENTE Y ACPM) PARA LOS VEHÍCULOS QUE CONFORMAN EL PARQUE AUTOMOTOR DE PROPIEDAD AL SERVICIO DEL FONDO DE DESARROLLO LOCAL DE CHAPINERO EN LAS CONDICIONES DEL ACUERDO MARCO DE PRECIOS CCE-715-1-AMP-2018, MODIFICACIÓN Y ACLARACIÓN N° 1- ORDEN DE COMPRA 47290 | I107: Funcionamiento | J107: Bogotá Mejor para Todos | L107: =IF(ISERROR(VLOOKUP(K107,Eje_Pilar_Prop!$C$2:$E$104,2,FALSE))," ",VLOOKUP(K107,Eje_Pilar_Prop!$C$2:$E$104,2,FALSE)) ->  | M107: =IF(ISERROR(VLOOKUP(K107,Eje_Pilar_Prop!$C$2:$E$104,3,FALSE))," ",VLOOKUP(K107,Eje_Pilar_Prop!$C$2:$E$104,3,FALSE)) ->  | N107: 1310202010203 | O107: 830095213 | P107: ORGANIZACIÓN TERPEL SA | Q107: 32257491 | R107: 0 | S107: 0 | T107: 0 | U107: 0 | V107: 32257491 | W107: =7307450+7589900 -> 14897350 | X107: 2020-05-19 | Y107: 2020-05-19 | Z107: =+Y107 -> 2020-05-19 | AA107: 150 | AB107: 0 | AC107: 0 | AJ107: X | AL107: 0.4618260608 | AO107: =IF(SUMPRODUCT((A$14:A107=A107)*(B$14:B107=B107)*(D$14:D107=D107))>1,0,1) -> 1 | AP107: Suministro | AQ107: Selección abreviada | AR107: =IF(ISBLANK(G107),1,IFERROR(VLOOKUP(G107,Tipo!$C$12:$C$27,1,FALSE),"NO")) -> Acuerdo marco de precios | AS107: Funcionamiento | AT107: =IF(ISBLANK(K107),1,IFERROR(VLOOKUP(K107,Eje_Pilar_Prop!$C$3:$C$104,1,FALSE),"NO")) -> 1 | AU107: SECOP II | AV107: 1 | AW107: Bogotá Mejor para Todos
A108: FDLCH-CPS-096-2020 | B108: 2020 | C108: SECOP II | D108: CPS-096-2020 | E108: Contratos de prestación de servicios profesionales y de apoyo a la gestión | F108: Contratación directa | G108: Prestación de servicios profesionales y de apoyo a la gestión, o para la ejecución de trabajos artísticos que sólo puedan encomendarse a determinadas personas naturales; | H108: PRESTAR LOS SERVICIOS PROFESIONALES ESPECIALIZADOS PARA APOYAR LA GESTIÓN JURÍDICA DEL DESPACHO DE LA ALCALDÍA LOCAL DE CHAPINERO Y LA DE LAS DEPENDENCIAS QUE LA CONFORMAN | I108: Inversión | J108: Bogotá Mejor para Todos | K108: 45 | L108: =IF(ISERROR(VLOOKUP(K108,Eje_Pilar_Prop!$C$2:$E$104,2,FALSE))," ",VLOOKUP(K108,Eje_Pilar_Prop!$C$2:$E$104,2,FALSE)) -> Gobernanza e influencia local, regional e internacional | M108: =IF(ISERROR(VLOOKUP(K108,Eje_Pilar_Prop!$C$2:$E$104,3,FALSE))," ",VLOOKUP(K108,Eje_Pilar_Prop!$C$2:$E$104,3,FALSE)) -> Eje Transversal 4 Gobierno Legitimo, Fortalecimiento Local y Eficiencia | N108: 1304 | O108: 1018418729 | P108: JONATHAN RAMIREZ NIEVES | Q108: 44500000 | R108: 1 | S108: -3856667 | T108: 0 | U108: 0 | V108: 40643333 | W108: 40643333 | X108: 2020-05-05 | Y108: 2020-05-15 | Z108: 2020-10-09 | AA108: 140 | AB108: 2 | AC108: 20 | AJ108: X | AL108: 1 | AO108: =IF(SUMPRODUCT((A$14:A108=A108)*(B$14:B108=B108)*(D$14:D108=D108))>1,0,1) -> 1 | AP108: Contratos de prestación de servicios profesionales y de apoyo a la gestión | AQ108: Contratación directa | AR108: =IF(ISBLANK(G108),1,IFERROR(VLOOKUP(G108,Tipo!$C$12:$C$27,1,FALSE),"NO")) -> Prestación de servicios profesionales y de apoyo a la gestión, o para la ejecución de trabajos artísticos que sólo puedan encomendarse a determinadas personas naturales; | AS108: Inversión | AT108: =IF(ISBLANK(K108),1,IFERROR(VLOOKUP(K108,Eje_Pilar_Prop!$C$3:$C$104,1,FALSE),"NO")) -> 45 | AU108: SECOP II | AV108: 1 | AW108: Bogotá Mejor para Todos
A109: FDLCH-CPS-097-2020 | B109: 2020 | C109: SECOP I | D109: 20-22-15386 | E109: Contratos de prestación de servicios | F109: Contratación directa | G109: Urgencia manifiesta | H109: LA CRUZ ROJA SE OBLIGA A PRESTAR, A MONTO AGOTABLE, LOS SERVICIOS Y REALIZAR LAS ACCIONES NECESARIAS PARA LA ATENCIÓN INTEGRAL, PROVISIÓN Y ENTREGA DE AYUDA HUMANITARIA Y ASISTENCIA PARA LA CONTINGENCIA DE LA POBLACIÓN POBRE Y VULNERABLE DE BOGOTÁ D.C., EN EL MARCO DE LA CONTENCIÓN Y MITIGACIÓN DEL COVID-19, LA DECLARATORIA DE EMERGENCIA SANITARIA EN TODO EL TERRITORIO NACIONAL Y LA CALAMIDAD PÚBLICA DECLARADA EN LA CIUDAD DE BOGOTÁ D.C., DE ACUERDO A LO ESTABLECIDO EN EL MANUAL OPERATIVO DEL SISTEMA DISTRITAL BOGOTÁ SOLIDARIA EN CASA LA CRUZ ROJA SE OBLIGA A PRESTAR, A MONTO AGOTABLE, LOS SERVICIOS Y REALIZAR LAS ACCIONES NECESARIAS PARA LA PROVISIÓN Y ENTREGA DE AYUDA HUMANITARITA Y ASISTENCIA PARA LA CONTINGENCIA POBRE Y VULNERABLE DE BOGOTÁ D.C., EN EL MARCO DE LA CONTINGENCIA Y MITIGACIÓN DEL COVID-19, LA DECLARATORIA DE EMERGENCIA SANITARIA EN TODO EL TERRITORIO NACIONAL Y LA CALAMIDAD PÚBLICA DECLARADA EN LA CIUDAD DE BOGOTÁ D.C., DE ACUERDO A LO ESTABLECIDO EN EL MANUAL OPERATIVO DEL SISTEMA DISTRITAL BOGOTÁ SOLIDARIA EN CASA. PARÁGRAFO. ALCANCE DEL OBJETO: EL ALCANCE DEL PRESENTE CONTRATO COMPRENDE LA ADMINISTRACIÓN, PLANEACIÓN ESTRATÉGICA, LOGÍSTICA Y OPERACIÓN PARA LA ENTREGA DE AYUDAS HUMANITARIAS BAJO SOMETIMIENTO DE LOS PRINCIPIOS DE CALIDAD, OPORTUNIDAD, PERTINENCIA Y EFICACIA, QUE PERMITA SOCORRER, ASISTIR, PROTEGER Y ATENDER LAS NECESIDADES DE ALIMENTACIÓN, ASEO PERSONAL MANEJO DE ABASTECIMIENTOS, UTENSILIOS, VESTUARIO, MEDICAMENTOS, TRANSPORTE Y TRASLADO DE EMERGENCIA, ALOJAMIENTO TEMPORAL, ASISTENCIA DE GASTOS FUNERARIOS, TRÁMITES DOCUMENTALES, EN CONDICIONES DIGNAS PARA LA POBLACIÓN POBRE Y VULNERABLE DE BOGOTÁ D.C., O LA ENTREGA DE BONOS CANJEABLES, TARJETAS MONEDERO O SIMILARES, DENTRO DE LOS LINEAMIENTOS DEL SISTEMA DISTRITAL SOLIDARIA EN CASA Y SU MANUAL OPERATIVO. | I109: Inversión | J109: Bogotá Mejor para Todos | K109: 4 | L109: =IF(ISERROR(VLOOKUP(K109,Eje_Pilar_Prop!$C$2:$E$104,2,FALSE))," ",VLOOKUP(K109,Eje_Pilar_Prop!$C$2:$E$104,2,FALSE)) -> Familias protegidas y adaptadas al cambio climático | M109: =IF(ISERROR(VLOOKUP(K109,Eje_Pilar_Prop!$C$2:$E$104,3,FALSE))," ",VLOOKUP(K109,Eje_Pilar_Prop!$C$2:$E$104,3,FALSE)) -> Pilar 1 Igualdad de Calidad de Vida | N109: 1294 | O109: 860070301 | P109: CRUZ ROJA COLOMBIANA SECCIONAL CUNDINAMARCA Y BOGOTA | Q109: 494230097 | R109: 1 | S109: -35251166 | T109: 0 | U109: 0 | V109: 458978931 | W109: 458978931 | X109: 2020-06-03 | Y109: 2020-06-04 | Z109: =+Y109 -> 2020-06-04 | AA109: 120 | AB109: 0 | AC109: 0 | AJ109: X | AL109: 1 | AO109: =IF(SUMPRODUCT((A$14:A109=A109)*(B$14:B109=B109)*(D$14:D109=D109))>1,0,1) -> 1 | AP109: Contratos de prestación de servicios | AQ109: Contratación directa | AR109: =IF(ISBLANK(G109),1,IFERROR(VLOOKUP(G109,Tipo!$C$12:$C$27,1,FALSE),"NO")) -> Urgencia manifiesta | AS109: Inversión | AT109: =IF(ISBLANK(K109),1,IFERROR(VLOOKUP(K109,Eje_Pilar_Prop!$C$3:$C$104,1,FALSE),"NO")) -> 4 | AU109: SECOP I | AV109: 1 | AW109: Bogotá Mejor para Todos
A110: FDLCH-CPS-098-2020 | B110: 2020 | C110: SECOP II | D110: CPS-098-2020 | E110: Contratos de prestación de servicios profesionales y de apoyo a la gestión | F110: Contratación directa | G110: Prestación de servicios profesionales y de apoyo a la gestión, o para la ejecución de trabajos artísticos que sólo puedan encomendarse a determinadas personas naturales; | H110: PRESTAR LOS SERVICIOS PROFESIONALES ESPECIALIZADOS PARA APOYAR LA PLANEACIÓN, GESTIÓN Y SEGUIMIENTO A LAS NECESIDADES DE ÍNDOLE SOCIAL, EN ATENCIÓN AL DESARROLLO DE LA LOCALIDAD DE CHAPINERO | I110: Inversión | J110: Bogotá Mejor para Todos | K110: 45 | L110: =IF(ISERROR(VLOOKUP(K110,Eje_Pilar_Prop!$C$2:$E$104,2,FALSE))," ",VLOOKUP(K110,Eje_Pilar_Prop!$C$2:$E$104,2,FALSE)) -> Gobernanza e influencia local, regional e internacional | M110: =IF(ISERROR(VLOOKUP(K110,Eje_Pilar_Prop!$C$2:$E$104,3,FALSE))," ",VLOOKUP(K110,Eje_Pilar_Prop!$C$2:$E$104,3,FALSE)) -> Eje Transversal 4 Gobierno Legitimo, Fortalecimiento Local y Eficiencia | N110: 1304 | O110: 51736917 | P110: OLGA LUCIA BRICEÑO GARCIA | Q110: 30200000 | R110: 0 | S110: 0 | T110: 0 | U110: 0 | V110: 30200000 | W110: 30200000 | X110: 2020-05-19 | Y110: 2020-05-20 | Z110: 2020-11-19 | AA110: 120 | AB110: 1 | AC110: 60 | AJ110: X | AL110: 1 | AO110: =IF(SUMPRODUCT((A$14:A110=A110)*(B$14:B110=B110)*(D$14:D110=D110))>1,0,1) -> 1 | AP110: Contratos de prestación de servicios profesionales y de apoyo a la gestión | AQ110: Contratación directa | AR110: =IF(ISBLANK(G110),1,IFERROR(VLOOKUP(G110,Tipo!$C$12:$C$27,1,FALSE),"NO")) -> Prestación de servicios profesionales y de apoyo a la gestión, o para la ejecución de trabajos artísticos que sólo puedan encomendarse a determinadas personas naturales; | AS110: Inversión | AT110: =IF(ISBLANK(K110),1,IFERROR(VLOOKUP(K110,Eje_Pilar_Prop!$C$3:$C$104,1,FALSE),"NO")) -> 45 | AU110: SECOP II | AV110: 1 | AW110: Bogotá Mejor para Todos
A111: FDLCH-CPS-099-2020 | B111: 2020 | C111: SECOP II | D111: CPS-099-2020 | E111: Contratos de prestación de servicios profesionales y de apoyo a la gestión | F111: Contratación directa | G111: Prestación de servicios profesionales y de apoyo a la gestión, o para la ejecución de trabajos artísticos que sólo puedan encomendarse a determinadas personas naturales; | H111: PRESTAR LOS SERVICIOS PROFESIONALES PARA APOYAR LOS MECANISMOS DE COMUNICACIÓN LOCAL, ADMINISTRANDO CON LAS DIFERENTES INSTANCIAS LA APLICACIÓN DE ESTUDIOS Y NORMAS TÉCNICAS PARA LA PROYECCIÓN Y DIVULGACIÓN DE LA IMAGEN CORPORATIVA DE LA LOCALIDAD DE CHAPINERO. | I111: Inversión | J111: Bogotá Mejor para Todos | K111: 45 | L111: =IF(ISERROR(VLOOKUP(K111,Eje_Pilar_Prop!$C$2:$E$104,2,FALSE))," ",VLOOKUP(K111,Eje_Pilar_Prop!$C$2:$E$104,2,FALSE)) -> Gobernanza e influencia local, regional e internacional | M111: =IF(ISERROR(VLOOKUP(K111,Eje_Pilar_Prop!$C$2:$E$104,3,FALSE))," ",VLOOKUP(K111,Eje_Pilar_Prop!$C$2:$E$104,3,FALSE)) -> Eje Transversal 4 Gobierno Legitimo, Fortalecimiento Local y Eficiencia | N111: 1304 | O111: 1026576669 | P111: FABIAN ESTIVEN HIGUERA ROMERO | Q111: 18000000 | R111: 0 | S111: 0 | T111: 1 | U111: 9000000 | V111: 27000000 | W111: 27000000 | X111: 2020-05-19 | Y111: 2020-05-22 | Z111: 2020-12-31 | AA111: 219 | AB111: 0 | AC111: 0 | AJ111: X | AL111: 1 | AO111: =IF(SUMPRODUCT((A$14:A111=A111)*(B$14:B111=B111)*(D$14:D111=D111))>1,0,1) -> 1 | AP111: Contratos de prestación de servicios profesionales y de apoyo a la gestión | AQ111: Contratación directa | AR111: =IF(ISBLANK(G111),1,IFERROR(VLOOKUP(G111,Tipo!$C$12:$C$27,1,FALSE),"NO")) -> Prestación de servicios profesionales y de apoyo a la gestión, o para la ejecución de trabajos artísticos que sólo puedan encomendarse a determinadas personas naturales; | AS111: Inversión | AT111: =IF(ISBLANK(K111),1,IFERROR(VLOOKUP(K111,Eje_Pilar_Prop!$C$3:$C$104,1,FALSE),"NO")) -> 45 | AU111: SECOP II | AV111: 1 | AW111: Bogotá Mejor para Todos
A112: FDLCH-CPS-100-2020 | B112: 2020 | C112: SECOP II | D112: PMINC-002-2020 | E112: Contratos de prestación de servicios | F112: Contratación mínima cuantia | G112: No aplica | H112: PRESTACIÓN DE SERVICIOS DE FOTOCOPIADO Y REPRODUCCIÓN DE DOCUMENTOS PARA LA ALCALDÍA LOCAL DE CHAPINERO | I112: Funcionamiento | J112: Bogotá Mejor para Todos | L112: =IF(ISERROR(VLOOKUP(K112,Eje_Pilar_Prop!$C$2:$E$104,2,FALSE))," ",VLOOKUP(K112,Eje_Pilar_Prop!$C$2:$E$104,2,FALSE)) ->  | M112: =IF(ISERROR(VLOOKUP(K112,Eje_Pilar_Prop!$C$2:$E$104,3,FALSE))," ",VLOOKUP(K112,Eje_Pilar_Prop!$C$2:$E$104,3,FALSE)) ->  | N112: 13102020203050 | O112: 8300319767 | P112: COPIERS MARKET EU | Q112: 21058681 | R112: 0 | S112: 0 | T112: 0 | U112: 0 | V112: 21058681 | W112: 0 | X112: 2020-05-21 | Y112: 2020-05-22 | Z112: =+Y112 -> 2020-05-22 | AA112: 120 | AB112: 0 | AC112: 0 | AJ112: X | AL112: 0 | AO112: =IF(SUMPRODUCT((A$14:A112=A112)*(B$14:B112=B112)*(D$14:D112=D112))>1,0,1) -> 1 | AP112: Contratos de prestación de servicios | AQ112: Contratación mínima cuantia | AR112: =IF(ISBLANK(G112),1,IFERROR(VLOOKUP(G112,Tipo!$C$12:$C$27,1,FALSE),"NO")) -> NO | AS112: Funcionamiento | AT112: =IF(ISBLANK(K112),1,IFERROR(VLOOKUP(K112,Eje_Pilar_Prop!$C$3:$C$104,1,FALSE),"NO")) -> 1 | AU112: SECOP II | AV112: 1 | AW112: Bogotá Mejor para Todos
A113: FDLCH-CPS-102-2020 | B113: 2020 | C113: SECOP II | D113: CPS-102-2020 | E113: Contratos de prestación de servicios profesionales y de apoyo a la gestión | F113: Contratación directa | G113: Prestación de servicios profesionales y de apoyo a la gestión, o para la ejecución de trabajos artísticos que sólo puedan encomendarse a determinadas personas naturales; | H113: PRESTAR LOS SERVICIOS TÉCNICOS PARA APOYAR LA GESTIÓN Y EJECUCIÓN DE ACTIVIDADES ADMINISTRATIVAS QUE SE ADELANTAN EN EL DESPACHO DE LA ALCALDÍA LOCAL DE CHAPINERO DE ACUERDO CON LAS CONDICIONES Y ESPECIFICACIONES TÉCNICAS DESCRITAS EN LOS ESTUDIOS PREVIOS | I113: Inversión | J113: Bogotá Mejor para Todos | K113: 45 | L113: =IF(ISERROR(VLOOKUP(K113,Eje_Pilar_Prop!$C$2:$E$104,2,FALSE))," ",VLOOKUP(K113,Eje_Pilar_Prop!$C$2:$E$104,2,FALSE)) -> Gobernanza e influencia local, regional e internacional | M113: =IF(ISERROR(VLOOKUP(K113,Eje_Pilar_Prop!$C$2:$E$104,3,FALSE))," ",VLOOKUP(K113,Eje_Pilar_Prop!$C$2:$E$104,3,FALSE)) -> Eje Transversal 4 Gobierno Legitimo, Fortalecimiento Local y Eficiencia | N113: 1304 | O113: 1091663411 | P113: JUAN PABLO SANJUAN ARIAS | Q113: 10400000 | R113: 0 | S113: 0 | T113: 0 | U113: 0 | V113: 10400000 | W113: 10400000 | X113: 2020-05-22 | Y113: 2020-05-26 | Z113: 2020-09-22 | AA113: 120 | AB113: 0 | AC113: 0 | AJ113: X | AL113: 1 | AO113: =IF(SUMPRODUCT((A$14:A113=A113)*(B$14:B113=B113)*(D$14:D113=D113))>1,0,1) -> 1 | AP113: Contratos de prestación de servicios profesionales y de apoyo a la gestión | AQ113: Contratación directa | AR113: =IF(ISBLANK(G113),1,IFERROR(VLOOKUP(G113,Tipo!$C$12:$C$27,1,FALSE),"NO")) -> Prestación de servicios profesionales y de apoyo a la gestión, o para la ejecución de trabajos artísticos que sólo puedan encomendarse a determinadas personas naturales; | AS113: Inversión | AT113: =IF(ISBLANK(K113),1,IFERROR(VLOOKUP(K113,Eje_Pilar_Prop!$C$3:$C$104,1,FALSE),"NO")) -> 45 | AU113: SECOP II | AV113: 1 | AW113: Bogotá Mejor para Todos
A114: FDLCH-CPS-103-2020 | B114: 2020 | C114: SECOP II | D114: CPS-103-2020 | E114: Contratos de prestación de servicios profesionales y de apoyo a la gestión | F114: Contratación directa | G114: Prestación de servicios profesionales y de apoyo a la gestión, o para la ejecución de trabajos artísticos que sólo puedan encomendarse a determinadas personas naturales; | H114: PRESTAR LOS SERVICIOS DE APOYO A LA GESTIÓN PARA ASISTIR LOGÍSTICAMENTE AL DESPACHO DE LA ALCALDÍA LOCAL DE CHAPINERO DE ACUERDO CON LAS CONDICIONES Y ESPECIFICACIONES TÉCNICAS DESCRITAS EN LOS ESTUDIOS PREVIOS | I114: Inversión | J114: Bogotá Mejor para Todos | K114: 45 | L114: =IF(ISERROR(VLOOKUP(K114,Eje_Pilar_Prop!$C$2:$E$104,2,FALSE))," ",VLOOKUP(K114,Eje_Pilar_Prop!$C$2:$E$104,2,FALSE)) -> Gobernanza e influencia local, regional e internacional | M114: =IF(ISERROR(VLOOKUP(K114,Eje_Pilar_Prop!$C$2:$E$104,3,FALSE))," ",VLOOKUP(K114,Eje_Pilar_Prop!$C$2:$E$104,3,FALSE)) -> Eje Transversal 4 Gobierno Legitimo, Fortalecimiento Local y Eficiencia | N114: 1304 | O114: 73159185 | P114: GERMAN ENRIQUE CASTILLO CORREA | Q114: 8000000 | R114: 0 | S114: 0 | T114: 0 | U114: 0 | V114: 8000000 | W114: 7800000 | X114: 2020-05-26 | Y114: 2020-05-27 | Z114: 2020-09-14 | AA114: 120 | AB114: 0 | AC114: 0 | AJ114: X | AL114: 0.975 | AO114: =IF(SUMPRODUCT((A$14:A114=A114)*(B$14:B114=B114)*(D$14:D114=D114))>1,0,1) -> 1 | AP114: Contratos de prestación de servicios profesionales y de apoyo a la gestión | AQ114: Contratación directa | AR114: =IF(ISBLANK(G114),1,IFERROR(VLOOKUP(G114,Tipo!$C$12:$C$27,1,FALSE),"NO")) -> Prestación de servicios profesionales y de apoyo a la gestión, o para la ejecución de trabajos artísticos que sólo puedan encomendarse a determinadas personas naturales; | AS114: Inversión | AT114: =IF(ISBLANK(K114),1,IFERROR(VLOOKUP(K114,Eje_Pilar_Prop!$C$3:$C$104,1,FALSE),"NO")) -> 45 | AU114: SECOP II | AV114: 1 | AW114: Bogotá Mejor para Todos
A115: FDLCH-CPS-104-2020 | B115: 2020 | C115: SECOP II | D115: CPS-104-2020 | E115: Contratos de prestación de servicios profesionales y de apoyo a la gestión | F115: Contratación directa | G115: Prestación de servicios profesionales y de apoyo a la gestión, o para la ejecución de trabajos artísticos que sólo puedan encomendarse a determinadas personas naturales; | H115: PRESTAR LOS SERVICIOS PROFESIONALES PARA APOYAR LA PLANEACIÓN Y SEGUIMIENTO DE LA GESTIÓN TERRITORIAL DE LA LOCALIDAD DE CHAPINERO | I115: Inversión | J115: Bogotá Mejor para Todos | K115: 45 | L115: =IF(ISERROR(VLOOKUP(K115,Eje_Pilar_Prop!$C$2:$E$104,2,FALSE))," ",VLOOKUP(K115,Eje_Pilar_Prop!$C$2:$E$104,2,FALSE)) -> Gobernanza e influencia local, regional e internacional | M115: =IF(ISERROR(VLOOKUP(K115,Eje_Pilar_Prop!$C$2:$E$104,3,FALSE))," ",VLOOKUP(K115,Eje_Pilar_Prop!$C$2:$E$104,3,FALSE)) -> Eje Transversal 4 Gobierno Legitimo, Fortalecimiento Local y Eficiencia | N115: 1304 | O115: 1123320414 | P115: KAREN JOHANA CASTRO NUÑEZ | Q115: 20000000 | R115: 1 | S115: -2166667 | T115: 0 | U115: 0 | V115: 17833333 | W115: 17833334 | X115: 2020-06-03 | Y115: 2020-06-04 | Z115: =+Y115 -> 2020-06-04 | AA115: 120 | AB115: 0 | AC115: 0 | AJ115: X | AL115: 1.000000056 | AO115: =IF(SUMPRODUCT((A$14:A115=A115)*(B$14:B115=B115)*(D$14:D115=D115))>1,0,1) -> 1 | AP115: Contratos de prestación de servicios profesionales y de apoyo a la gestión | AQ115: Contratación directa | AR115: =IF(ISBLANK(G115),1,IFERROR(VLOOKUP(G115,Tipo!$C$12:$C$27,1,FALSE),"NO")) -> Prestación de servicios profesionales y de apoyo a la gestión, o para la ejecución de trabajos artísticos que sólo puedan encomendarse a determinadas personas naturales; | AS115: Inversión | AT115: =IF(ISBLANK(K115),1,IFERROR(VLOOKUP(K115,Eje_Pilar_Prop!$C$3:$C$104,1,FALSE),"NO")) -> 45 | AU115: SECOP II | AV115: 1 | AW115: Bogotá Mejor para Todos
A116: FDLCH-CPS-105-2020 | B116: 2020 | C116: SECOP II | D116: CPS-105-2020 | E116: Contratos de prestación de servicios profesionales y de apoyo a la gestión | F116: Contratación directa | G116: Prestación de servicios profesionales y de apoyo a la gestión, o para la ejecución de trabajos artísticos que sólo puedan encomendarse a determinadas personas naturales; | H116: PRESTAR LOS SERVICIOS DE APOYO A LA GESTIÓN EN LA EJECUCIÓN DE LAS ACTIVIDADES ADMINISTRATIVAS QUE SE ADELANTAN POR EL PERSONAL JURÍDICO DEL DESPACHO DE LA ALCALDÍA LOCAL DE CHAPINERO | I116: Inversión | J116: Bogotá Mejor para Todos | K116: 45 | L116: =IF(ISERROR(VLOOKUP(K116,Eje_Pilar_Prop!$C$2:$E$104,2,FALSE))," ",VLOOKUP(K116,Eje_Pilar_Prop!$C$2:$E$104,2,FALSE)) -> Gobernanza e influencia local, regional e internacional | M116: =IF(ISERROR(VLOOKUP(K116,Eje_Pilar_Prop!$C$2:$E$104,3,FALSE))," ",VLOOKUP(K116,Eje_Pilar_Prop!$C$2:$E$104,3,FALSE)) -> Eje Transversal 4 Gobierno Legitimo, Fortalecimiento Local y Eficiencia | N116: 1304 | O116: 51765934 | P116: MARIA DIACLIN RODRIGUEZ PULECIO | Q116: 7376000 | R116: 0 | S116: 0 | T116: 0 | U116: 0 | V116: 7376000 | W116: 7376000 | X116: 2020-06-10 | Y116: 2020-06-12 | Z116: 2020-09-08 | AA116: 88 | AB116: 0 | AC116: 0 | AJ116: X | AL116: 1 | AO116: =IF(SUMPRODUCT((A$14:A116=A116)*(B$14:B116=B116)*(D$14:D116=D116))>1,0,1) -> 1 | AP116: Contratos de prestación de servicios profesionales y de apoyo a la gestión | AQ116: Contratación directa | AR116: =IF(ISBLANK(G116),1,IFERROR(VLOOKUP(G116,Tipo!$C$12:$C$27,1,FALSE),"NO")) -> Prestación de servicios profesionales y de apoyo a la gestión, o para la ejecución de trabajos artísticos que sólo puedan encomendarse a determinadas personas naturales; | AS116: Inversión | AT116: =IF(ISBLANK(K116),1,IFERROR(VLOOKUP(K116,Eje_Pilar_Prop!$C$3:$C$104,1,FALSE),"NO")) -> 45 | AU116: SECOP II | AV116: 1 | AW116: Bogotá Mejor para Todos
A117: FDLCH-OC-106-2020 | B117: 2020 | C117: SECOP II | D117: OC-106-2020 50292 | E117: Compraventa de bienes muebles | F117: Contratación mínima cuantia | G117: No aplica | H117: LA ALCALDÍA LOCAL DE CHAPINERO REQUIERE ADQUIRIR ELEMENTOS DE BIOSEGURIDAD, EN RAZÓN A LA DECLARATORIA DE ESTADO DE EMERGENCIA Y CALAMIDAD PÚBLICA, POR EL COVID 19, Y EN ARAS DE LLENAR TODOS LOS PROTOCOLOS DE BIOSEGURIDAD EN SUS INSTALACIONES, DEBIDO A LA ATENCIÓN AL PÚBLICO, Y TAMBIÉN PARA PROTEGER A LOS FUNCIONARIOS Y CONTRATISTAS, QUE LABORAN EN LA ENTIDAD | I117: Inversión | J117: Bogotá Mejor para Todos | K117: 45 | L117: =IF(ISERROR(VLOOKUP(K117,Eje_Pilar_Prop!$C$2:$E$104,2,FALSE))," ",VLOOKUP(K117,Eje_Pilar_Prop!$C$2:$E$104,2,FALSE)) -> Gobernanza e influencia local, regional e internacional | M117: =IF(ISERROR(VLOOKUP(K117,Eje_Pilar_Prop!$C$2:$E$104,3,FALSE))," ",VLOOKUP(K117,Eje_Pilar_Prop!$C$2:$E$104,3,FALSE)) -> Eje Transversal 4 Gobierno Legitimo, Fortalecimiento Local y Eficiencia | N117: 1304 | O117: 890900943 | P117: COLOMBIANA DE COMERCIO S.A Y/O ALKOSTO S.A | Q117: 11891320 | R117: 1 | S117: -6314 | T117: 0 | U117: 0 | V117: 11885006 | W117: 11885006 | X117: 2020-06-10 | Y117: 2020-06-12 | Z117: 2020-12-21 | AA117: 120 | AB117: 1 | AC117: 60 | AJ117: X | AL117: 1 | AO117: =IF(SUMPRODUCT((A$14:A117=A117)*(B$14:B117=B117)*(D$14:D117=D117))>1,0,1) -> 1 | AP117: Compraventa de bienes muebles | AQ117: Contratación mínima cuantia | AR117: =IF(ISBLANK(G117),1,IFERROR(VLOOKUP(G117,Tipo!$C$12:$C$27,1,FALSE),"NO")) -> NO | AS117: Inversión | AT117: =IF(ISBLANK(K117),1,IFERROR(VLOOKUP(K117,Eje_Pilar_Prop!$C$3:$C$104,1,FALSE),"NO")) -> 45 | AU117: SECOP II | AV117: 1 | AW117: Bogotá Mejor para Todos
A118: FDLCH-CPS-107-2020 | B118: 2020 | C118: SECOP II | D118: CPS-107-2020 | E118: Contratos de prestación de servicios profesionales y de apoyo a la gestión | F118: Contratación directa | G118: Prestación de servicios profesionales y de apoyo a la gestión, o para la ejecución de trabajos artísticos que sólo puedan encomendarse a determinadas personas naturales; | H118: PRESTACIÓN DE SERVICIOS PROFESIONALES PARA EL APOYO AL DESPACHO DE LA ALCALDÍA LOCAL DE CHAPINERO EN LA ADMINISTRACIÓN Y SOPORTE A LA INFRAESTRUCTURA TECNOLÓGICA EN PROPIEDAD O CUSTODIA Y PARA REALIZAR ACTIVIDADES DE FORMULACIÓN DE PROYECTOS QUE LE SEAN ASIGNADOS Y ACTIVIDADES DE APOYO A LA SUPERVISIÓN DE LOS CONTRATOS QUE LE FUEREN ASIGNADOS | I118: Inversión | J118: Bogotá Mejor para Todos | K118: 45 | L118: =IF(ISERROR(VLOOKUP(K118,Eje_Pilar_Prop!$C$2:$E$104,2,FALSE))," ",VLOOKUP(K118,Eje_Pilar_Prop!$C$2:$E$104,2,FALSE)) -> Gobernanza e influencia local, regional e internacional | M118: =IF(ISERROR(VLOOKUP(K118,Eje_Pilar_Prop!$C$2:$E$104,3,FALSE))," ",VLOOKUP(K118,Eje_Pilar_Prop!$C$2:$E$104,3,FALSE)) -> Eje Transversal 4 Gobierno Legitimo, Fortalecimiento Local y Eficiencia | N118: 1304 | O118: 7166701 | P118: FREDY YOVANNI BORDA CEPEDA | Q118: 19320000 | R118: 0 | S118: 0 | T118: 1 | U118: 9660000 | V118: 28980000 | W118: 25599000 | X118: 2020-06-11 | Y118: 2020-06-12 | Z118: =+Y118 -> 2020-06-12 | AA118: 120 | AB118: 0 | AC118: 0 | AJ118: X | AL118: 0.8833333333 | AO118: =IF(SUMPRODUCT((A$14:A118=A118)*(B$14:B118=B118)*(D$14:D118=D118))>1,0,1) -> 1 | AP118: Contratos de prestación de servicios profesionales y de apoyo a la gestión | AQ118: Contratación directa | AR118: =IF(ISBLANK(G118),1,IFERROR(VLOOKUP(G118,Tipo!$C$12:$C$27,1,FALSE),"NO")) -> Prestación de servicios profesionales y de apoyo a la gestión, o para la ejecución de trabajos artísticos que sólo puedan encomendarse a determinadas personas naturales; | AS118: Inversión | AT118: =IF(ISBLANK(K118),1,IFERROR(VLOOKUP(K118,Eje_Pilar_Prop!$C$3:$C$104,1,FALSE),"NO")) -> 45 | AU118: SECOP II | AV118: 1 | AW118: Bogotá Mejor para Todos
A119: FDLCH-CPS-108-2020 | B119: 2020 | C119: SECOP II | D119: CPS-108-2020 | E119: Contratos de prestación de servicios profesionales y de apoyo a la gestión | F119: Contratación directa | G119: Prestación de servicios profesionales y de apoyo a la gestión, o para la ejecución de trabajos artísticos que sólo puedan encomendarse a determinadas personas naturales; | H119: PRESTAR LOS SERVICIOS PROFESIONALES DE APOYO AL ÁREA DE GESTIÓN DEL DESARROLLO LOCAL, EN TEMAS ESPECÍFICOS DE PLANEACIÓN, PARA LAS ACTIVIDADES RELACIONADAS CON LA FORMULACIÓN, SEGUIMIENTO Y CIERRE DE PROYECTOS Y ESTRUCTURACIÓN Y CIERRE DE LOS PLANES DE DESARROLLO LOCAL, ASÍ COMO EL SEGUIMIENTO PRESUPUESTAL DE LA VIGENCIA | I119: Inversión | J119: Bogotá Mejor para Todos | K119: 45 | L119: =IF(ISERROR(VLOOKUP(K119,Eje_Pilar_Prop!$C$2:$E$104,2,FALSE))," ",VLOOKUP(K119,Eje_Pilar_Prop!$C$2:$E$104,2,FALSE)) -> Gobernanza e influencia local, regional e internacional | M119: =IF(ISERROR(VLOOKUP(K119,Eje_Pilar_Prop!$C$2:$E$104,3,FALSE))," ",VLOOKUP(K119,Eje_Pilar_Prop!$C$2:$E$104,3,FALSE)) -> Eje Transversal 4 Gobierno Legitimo, Fortalecimiento Local y Eficiencia | N119: 1304 | O119: 1032381420 | P119: JENNIFER TORRES TORRES | Q119: 21200000 | R119: 0 | S119: 0 | T119: 0 | U119: 0 | V119: 21200000 | W119: 21200000 | X119: 2020-06-11 | Y119: 2020-06-12 | Z119: 2020-12-21 | AA119: 120 | AB119: 1 | AC119: 60 | AJ119: X | AL119: 1 | AO119: =IF(SUMPRODUCT((A$14:A119=A119)*(B$14:B119=B119)*(D$14:D119=D119))>1,0,1) -> 1 | AP119: Contratos de prestación de servicios profesionales y de apoyo a la gestión | AQ119: Contratación directa | AR119: =IF(ISBLANK(G119),1,IFERROR(VLOOKUP(G119,Tipo!$C$12:$C$27,1,FALSE),"NO")) -> Prestación de servicios profesionales y de apoyo a la gestión, o para la ejecución de trabajos artísticos que sólo puedan encomendarse a determinadas personas naturales; | AS119: Inversión | AT119: =IF(ISBLANK(K119),1,IFERROR(VLOOKUP(K119,Eje_Pilar_Prop!$C$3:$C$104,1,FALSE),"NO")) -> 45 | AU119: SECOP II | AV119: 1 | AW119: Bogotá Mejor para Todos
A120: FDLCH-CPS-109-2020 | B120: 2020 | C120: SECOP II | D120: CPS-109-2020 | E120: Contratos de prestación de servicios profesionales y de apoyo a la gestión | F120: Contratación directa | G120: Prestación de servicios profesionales y de apoyo a la gestión, o para la ejecución de trabajos artísticos que sólo puedan encomendarse a determinadas personas naturales; | H120: PRESTAR LOS SERVICIOS PROFESIONALES DE APOYO AL ÁREA DE GESTIÓN DEL DESARROLLO LOCAL, EN TEMAS DE PLANEACIÓN, PRESUPUESTACIÓN Y MECANISMOS DE COOPERACIÓN DEL FONDO DE DESARROLLO LOCAL | I120: Inversión | J120: Bogotá Mejor para Todos | K120: 45 | L120: =IF(ISERROR(VLOOKUP(K120,Eje_Pilar_Prop!$C$2:$E$104,2,FALSE))," ",VLOOKUP(K120,Eje_Pilar_Prop!$C$2:$E$104,2,FALSE)) -> Gobernanza e influencia local, regional e internacional | M120: =IF(ISERROR(VLOOKUP(K120,Eje_Pilar_Prop!$C$2:$E$104,3,FALSE))," ",VLOOKUP(K120,Eje_Pilar_Prop!$C$2:$E$104,3,FALSE)) -> Eje Transversal 4 Gobierno Legitimo, Fortalecimiento Local y Eficiencia | N120: 1304 | O120: 1062876986 | P120: NADIA PAOLA MARQUEZ LARA | Q120: 16000000 | R120: 0 | S120: 0 | T120: 1 | U120: 8000000 | V120: 24000000 | W120: 21200000 | X120: 2020-06-10 | Y120: 2020-06-12 | Z120: 2020-09-08 | AA120: 88 | AB120: 0 | AC120: 0 | AJ120: X | AL120: 0.8833333333 | AO120: =IF(SUMPRODUCT((A$14:A120=A120)*(B$14:B120=B120)*(D$14:D120=D120))>1,0,1) -> 1 | AP120: Contratos de prestación de servicios profesionales y de apoyo a la gestión | AQ120: Contratación directa | AR120: =IF(ISBLANK(G120),1,IFERROR(VLOOKUP(G120,Tipo!$C$12:$C$27,1,FALSE),"NO")) -> Prestación de servicios profesionales y de apoyo a la gestión, o para la ejecución de trabajos artísticos que sólo puedan encomendarse a determinadas personas naturales; | AS120: Inversión | AT120: =IF(ISBLANK(K120),1,IFERROR(VLOOKUP(K120,Eje_Pilar_Prop!$C$3:$C$104,1,FALSE),"NO")) -> 45 | AU120: SECOP II | AV120: 1 | AW120: Bogotá Mejor para Todos
A121: FDLCH-OC-110-2020 | B121: 2020 | C121: SECOP II | D121: OC-110-2020 50293 | E121: Compraventa de bienes muebles | F121: Contratación mínima cuantia | G121: No aplica | H121: LA ALCALDÍA LOCAL DE CHAPINERO REQUIERE ADQUIRIR ELEMENTOS DE BIOSEGURIDAD, EN RAZÓN A LA DECLARATORIA DE ESTADO DE EMERGENCIA Y CALAMIDAD PÚBLICA, POR EL COVID 19, Y EN ARAS DE LLENAR TODOS LOS PROTOCOLOS DE BIOSEGURIDAD EN SUS INSTALACIONES, DEBIDO A LA ATENCIÓN AL PÚBLICO, Y TAMBIÉN PARA PROTEGER A LOS FUNCIONARIOS Y CONTRATISTAS, QUE LABORAN EN LA ENTIDAD | I121: Inversión | J121: Bogotá Mejor para Todos | K121: 45 | L121: =IF(ISERROR(VLOOKUP(K121,Eje_Pilar_Prop!$C$2:$E$104,2,FALSE))," ",VLOOKUP(K121,Eje_Pilar_Prop!$C$2:$E$104,2,FALSE)) -> Gobernanza e influencia local, regional e internacional | M121: =IF(ISERROR(VLOOKUP(K121,Eje_Pilar_Prop!$C$2:$E$104,3,FALSE))," ",VLOOKUP(K121,Eje_Pilar_Prop!$C$2:$E$104,3,FALSE)) -> Eje Transversal 4 Gobierno Legitimo, Fortalecimiento Local y Eficiencia | N121: 1304 | O121: 800237412 | P121: FERRICENTROS S.A.S. | Q121: 904400 | R121: 0 | S121: 0 | T121: 0 | U121: 0 | V121: 904400 | W121: 0 | X121: 2020-06-10 | Y121: 2020-06-12 | Z121: 2020-09-08 | AA121: 88 | AB121: 0 | AC121: 0 | AJ121: X | AL121: 0 | AO121: =IF(SUMPRODUCT((A$14:A121=A121)*(B$14:B121=B121)*(D$14:D121=D121))>1,0,1) -> 1 | AP121: Compraventa de bienes muebles | AQ121: Contratación mínima cuantia | AR121: =IF(ISBLANK(G121),1,IFERROR(VLOOKUP(G121,Tipo!$C$12:$C$27,1,FALSE),"NO")) -> NO | AS121: Inversión | AT121: =IF(ISBLANK(K121),1,IFERROR(VLOOKUP(K121,Eje_Pilar_Prop!$C$3:$C$104,1,FALSE),"NO")) -> 45 | AU121: SECOP II | AV121: 1 | AW121: Bogotá Mejor para Todos
A122: FDLCH-OC-111-2020 | B122: 2020 | C122: SECOP II | D122: OC-111-2020 50294 | E122: Compraventa de bienes muebles | F122: Contratación mínima cuantia | G122: No aplica | H122: LA ALCALDÍA LOCAL DE CHAPINERO REQUIERE ADQUIRIR ELEMENTOS DE BIOSEGURIDAD, EN RAZÓN A LA DECLARATORIA DE ESTADO DE EMERGENCIA Y CALAMIDAD PÚBLICA, POR EL COVID 19, Y EN ARAS DE LLENAR TODOS LOS PROTOCOLOS DE BIOSEGURIDAD EN SUS INSTALACIONES, DEBIDO A LA ATENCIÓN AL PÚBLICO, Y TAMBIÉN PARA PROTEGER A LOS FUNCIONARIOS Y CONTRATISTAS, QUE LABORAN EN LA ENTIDAD | I122: Inversión | J122: Bogotá Mejor para Todos | K122: 45 | L122: =IF(ISERROR(VLOOKUP(K122,Eje_Pilar_Prop!$C$2:$E$104,2,FALSE))," ",VLOOKUP(K122,Eje_Pilar_Prop!$C$2:$E$104,2,FALSE)) -> Gobernanza e influencia local, regional e internacional | M122: =IF(ISERROR(VLOOKUP(K122,Eje_Pilar_Prop!$C$2:$E$104,3,FALSE))," ",VLOOKUP(K122,Eje_Pilar_Prop!$C$2:$E$104,3,FALSE)) -> Eje Transversal 4 Gobierno Legitimo, Fortalecimiento Local y Eficiencia | N122: 1304 | O122: 830037946 | P122: PANAMERICANA LIBRERÍA Y PAPELERÍA S.A. | Q122: 3986520 | R122: 1 | S122: -590520 | T122: 0 | U122: 0 | V122: 3396000 | W122: 3396000 | X122: 2020-06-17 | Y122: 2020-06-19 | Z122: =+Y122 -> 2020-06-19 | AA122: 120 | AB122: 0 | AC122: 0 | AJ122: X | AL122: 1 | AO122: =IF(SUMPRODUCT((A$14:A122=A122)*(B$14:B122=B122)*(D$14:D122=D122))>1,0,1) -> 1 | AP122: Compraventa de bienes muebles | AQ122: Contratación mínima cuantia | AR122: =IF(ISBLANK(G122),1,IFERROR(VLOOKUP(G122,Tipo!$C$12:$C$27,1,FALSE),"NO")) -> NO | AS122: Inversión | AT122: =IF(ISBLANK(K122),1,IFERROR(VLOOKUP(K122,Eje_Pilar_Prop!$C$3:$C$104,1,FALSE),"NO")) -> 45 | AU122: SECOP II | AV122: 1 | AW122: Bogotá Mejor para Todos
A123: FDLCH-CPS-112-2020 | B123: 2020 | C123: SECOP II | D123: CPS-112-2020 | E123: Contratos de prestación de servicios profesionales y de apoyo a la gestión | F123: Contratación directa | G123: Prestación de servicios profesionales y de apoyo a la gestión, o para la ejecución de trabajos artísticos que sólo puedan encomendarse a determinadas personas naturales; | H123: PRESTACIÓN DE SERVICIOS PROFESIONALES PARA COORDINAR, LIDERAR Y ASESORAR LOS PLANES Y ESTRATEGIAS DE COMUNICACIÓN INTERNA Y EXTERNA PARA LA DIVULGACIÓN DE LOS PROGRAMAS, PROYECTOS Y ACTIVIDADES DE LA ALCALDÍA LOCAL | I123: Inversión | J123: Bogotá Mejor para Todos | K123: 45 | L123: =IF(ISERROR(VLOOKUP(K123,Eje_Pilar_Prop!$C$2:$E$104,2,FALSE))," ",VLOOKUP(K123,Eje_Pilar_Prop!$C$2:$E$104,2,FALSE)) -> Gobernanza e influencia local, regional e internacional | M123: =IF(ISERROR(VLOOKUP(K123,Eje_Pilar_Prop!$C$2:$E$104,3,FALSE))," ",VLOOKUP(K123,Eje_Pilar_Prop!$C$2:$E$104,3,FALSE)) -> Eje Transversal 4 Gobierno Legitimo, Fortalecimiento Local y Eficiencia | N123: 1304 | O123: 1026283792 | P123: ESTEFANIA AYALA QUICENO | Q123: 22000000 | R123: 0 | S123: 0 | T123: 0 | U123: 0 | V123: 22000000 | W123: 22000000 | X123: 2020-06-23 | Y123: 2020-06-24 | Z123: 2020-12-23 | AA123: 120 | AB123: 1 | AC123: 60 | AJ123: X | AL123: 1 | AO123: =IF(SUMPRODUCT((A$14:A123=A123)*(B$14:B123=B123)*(D$14:D123=D123))>1,0,1) -> 1 | AP123: Contratos de prestación de servicios profesionales y de apoyo a la gestión | AQ123: Contratación directa | AR123: =IF(ISBLANK(G123),1,IFERROR(VLOOKUP(G123,Tipo!$C$12:$C$27,1,FALSE),"NO")) -> Prestación de servicios profesionales y de apoyo a la gestión, o para la ejecución de trabajos artísticos que sólo puedan encomendarse a determinadas personas naturales; | AS123: Inversión | AT123: =IF(ISBLANK(K123),1,IFERROR(VLOOKUP(K123,Eje_Pilar_Prop!$C$3:$C$104,1,FALSE),"NO")) -> 45 | AU123: SECOP II | AV123: 1 | AW123: Bogotá Mejor para Todos
A124: FDLCH-CPS-113-2020 | B124: 2020 | C124: SECOP II | D124: CPS-113-2020 | E124: Contratos de prestación de servicios profesionales y de apoyo a la gestión | F124: Contratación directa | G124: Prestación de servicios profesionales y de apoyo a la gestión, o para la ejecución de trabajos artísticos que sólo puedan encomendarse a determinadas personas naturales; | H124: PRESTACIÓN DE SERVICIOS PERSONALES NECESARIOS PARA APOYAR LA GESTIÓN Y EJECUCIÓN DE ACTIVIDADES ADMINISTRATIVAS, OPERATIVAS Y LOGÍSTICAS QUE SE ADELANTAN EN EL ÁREA DE GESTIÓN DEL DESARROLLO LOCAL DE LA ALCALDÍA LOCAL DE CHAPINERO. | I124: Inversión | J124: Bogotá Mejor para Todos | K124: 45 | L124: =IF(ISERROR(VLOOKUP(K124,Eje_Pilar_Prop!$C$2:$E$104,2,FALSE))," ",VLOOKUP(K124,Eje_Pilar_Prop!$C$2:$E$104,2,FALSE)) -> Gobernanza e influencia local, regional e internacional | M124: =IF(ISERROR(VLOOKUP(K124,Eje_Pilar_Prop!$C$2:$E$104,3,FALSE))," ",VLOOKUP(K124,Eje_Pilar_Prop!$C$2:$E$104,3,FALSE)) -> Eje Transversal 4 Gobierno Legitimo, Fortalecimiento Local y Eficiencia | N124: 1304 | O124: 2996195 | P124: MEYER JAIRO GACHARNA VILLALBA | Q124: 8700000 | R124: 0 | S124: 0 | T124: 1 | U124: 4350000 | V124: 13050000 | W124: 11382500 | X124: 2020-06-18 | Y124: 2020-06-19 | Z124: 2020-12-18 | AA124: 120 | AB124: 1 | AC124: 60 | AJ124: X | AL124: 0.8722222222 | AO124: =IF(SUMPRODUCT((A$14:A124=A124)*(B$14:B124=B124)*(D$14:D124=D124))>1,0,1) -> 1 | AP124: Contratos de prestación de servicios profesionales y de apoyo a la gestión | AQ124: Contratación directa | AR124: =IF(ISBLANK(G124),1,IFERROR(VLOOKUP(G124,Tipo!$C$12:$C$27,1,FALSE),"NO")) -> Prestación de servicios profesionales y de apoyo a la gestión, o para la ejecución de trabajos artísticos que sólo puedan encomendarse a determinadas personas naturales; | AS124: Inversión | AT124: =IF(ISBLANK(K124),1,IFERROR(VLOOKUP(K124,Eje_Pilar_Prop!$C$3:$C$104,1,FALSE),"NO")) -> 45 | AU124: SECOP II | AV124: 1 | AW124: Bogotá Mejor para Todos
A125: FDLCH-CPS-114-2020 | B125: 2020 | C125: SECOP II | D125: CPS-114-2020 | E125: Contratos de prestación de servicios profesionales y de apoyo a la gestión | F125: Contratación directa | G125: Prestación de servicios profesionales y de apoyo a la gestión, o para la ejecución de trabajos artísticos que sólo puedan encomendarse a determinadas personas naturales; | H125: PRESTACIÓN DE SERVICIOS PARA EL APOYO EN LA EJECUCIÓN DE ACTIVIDADES ADMINISTRATIVAS Y OPERATIVAS TRANSVERSALES AL ÁREA DE GESTIÓN DEL DESARROLLO LOCAL RELACIONADAS CON LA GESTIÓN CONTRACTUAL DE LA ALCALDÍA LOCAL DE CHAPINERO | I125: Inversión | J125: Bogotá Mejor para Todos | K125: 45 | L125: =IF(ISERROR(VLOOKUP(K125,Eje_Pilar_Prop!$C$2:$E$104,2,FALSE))," ",VLOOKUP(K125,Eje_Pilar_Prop!$C$2:$E$104,2,FALSE)) -> Gobernanza e influencia local, regional e internacional | M125: =IF(ISERROR(VLOOKUP(K125,Eje_Pilar_Prop!$C$2:$E$104,3,FALSE))," ",VLOOKUP(K125,Eje_Pilar_Prop!$C$2:$E$104,3,FALSE)) -> Eje Transversal 4 Gobierno Legitimo, Fortalecimiento Local y Eficiencia | N125: 1304 | O125: 52119337 | P125: MARTHA YANETH VASQUEZ FIGUEROA | Q125: 9816660 | R125: 0 | S125: 0 | T125: 1 | U125: 4908330 | V125: 14724990 | W125: 14724990 | X125: 2020-06-17 | Y125: 2020-06-18 | Z125: =+Y124 -> 2020-06-19 | AA125: 120 | AB125: 0 | AC125: 0 | AJ125: X | AL125: 1 | AO125: =IF(SUMPRODUCT((A$14:A125=A125)*(B$14:B125=B125)*(D$14:D125=D125))>1,0,1) -> 1 | AP125: Contratos de prestación de servicios profesionales y de apoyo a la gestión | AQ125: Contratación directa | AR125: =IF(ISBLANK(G125),1,IFERROR(VLOOKUP(G125,Tipo!$C$12:$C$27,1,FALSE),"NO")) -> Prestación de servicios profesionales y de apoyo a la gestión, o para la ejecución de trabajos artísticos que sólo puedan encomendarse a determinadas personas naturales; | AS125: Inversión | AT125: =IF(ISBLANK(K125),1,IFERROR(VLOOKUP(K125,Eje_Pilar_Prop!$C$3:$C$104,1,FALSE),"NO")) -> 45 | AU125: SECOP II | AV125: 1 | AW125: Bogotá Mejor para Todos
A126: FDLCH-CPS-115-2020 | B126: 2020 | C126: SECOP II | D126: CPS-115-2020 | E126: Contratos de prestación de servicios profesionales y de apoyo a la gestión | F126: Contratación directa | G126: Prestación de servicios profesionales y de apoyo a la gestión, o para la ejecución de trabajos artísticos que sólo puedan encomendarse a determinadas personas naturales; | H126: PRESTAR LOS SERVICIOS PROFESIONALES ESPECIALIZADOS PARA APOYAR LA COORDINACIÓN Y LA ARTICULACIÓN DE LA INTERVENCIÓN DEL EJERCICIO POLICIVO EN LA ALCALDÍA LOCAL DE CHAPINERO EN EL MARCO DE LA NORMATIVIDAD VIGENTE | I126: Inversión | J126: Bogotá Mejor para Todos | K126: 45 | L126: =IF(ISERROR(VLOOKUP(K126,Eje_Pilar_Prop!$C$2:$E$104,2,FALSE))," ",VLOOKUP(K126,Eje_Pilar_Prop!$C$2:$E$104,2,FALSE)) -> Gobernanza e influencia local, regional e internacional | M126: =IF(ISERROR(VLOOKUP(K126,Eje_Pilar_Prop!$C$2:$E$104,3,FALSE))," ",VLOOKUP(K126,Eje_Pilar_Prop!$C$2:$E$104,3,FALSE)) -> Eje Transversal 4 Gobierno Legitimo, Fortalecimiento Local y Eficiencia | N126: 1304 | O126: 79696907 | P126: JUAN CARLOS GÓMEZ MELGAREJO | Q126: 28000000 | R126: 0 | S126: 0 | T126: 0 | U126: 0 | V126: 28000000 | W126: 28000000 | X126: 2020-06-18 | Y126: 2020-06-19 | Z126: =+Y125 -> 2020-06-18 | AA126: 120 | AB126: 0 | AC126: 0 | AJ126: X | AL126: 1 | AO126: =IF(SUMPRODUCT((A$14:A126=A126)*(B$14:B126=B126)*(D$14:D126=D126))>1,0,1) -> 1 | AP126: Contratos de prestación de servicios profesionales y de apoyo a la gestión | AQ126: Contratación directa | AR126: =IF(ISBLANK(G126),1,IFERROR(VLOOKUP(G126,Tipo!$C$12:$C$27,1,FALSE),"NO")) -> Prestación de servicios profesionales y de apoyo a la gestión, o para la ejecución de trabajos artísticos que sólo puedan encomendarse a determinadas personas naturales; | AS126: Inversión | AT126: =IF(ISBLANK(K126),1,IFERROR(VLOOKUP(K126,Eje_Pilar_Prop!$C$3:$C$104,1,FALSE),"NO")) -> 45 | AU126: SECOP II | AV126: 1 | AW126: Bogotá Mejor para Todos
A127: FDLCH-CPS-116-2020 | B127: 2020 | C127: SECOP II | D127: CPS-116-2020 | E127: Contratos de prestación de servicios profesionales y de apoyo a la gestión | F127: Contratación directa | G127: Prestación de servicios profesionales y de apoyo a la gestión, o para la ejecución de trabajos artísticos que sólo puedan encomendarse a determinadas personas naturales; | H127: PRESTAR SERVICIOS PROFESIONALES PARA APOYAR LA GESTIÓN PRECONTRACTUAL Y CONTRACTUAL QUE ADELANTE EL FONDO DE DESARROLLO LOCAL DE CHAPINERO | I127: Inversión | J127: Bogotá Mejor para Todos | K127: 45 | L127: =IF(ISERROR(VLOOKUP(K127,Eje_Pilar_Prop!$C$2:$E$104,2,FALSE))," ",VLOOKUP(K127,Eje_Pilar_Prop!$C$2:$E$104,2,FALSE)) -> Gobernanza e influencia local, regional e internacional | M127: =IF(ISERROR(VLOOKUP(K127,Eje_Pilar_Prop!$C$2:$E$104,3,FALSE))," ",VLOOKUP(K127,Eje_Pilar_Prop!$C$2:$E$104,3,FALSE)) -> Eje Transversal 4 Gobierno Legitimo, Fortalecimiento Local y Eficiencia | N127: 1304 | O127: 79580307 | P127: CESAR FRUTO CORREDOR GÓMEZ | Q127: 24000000 | R127: 0 | S127: 0 | T127: 0 | U127: 0 | V127: 24000000 | W127: 24000000 | X127: 2020-06-17 | Y127: 2020-06-18 | Z127: =+Y126 -> 2020-06-19 | AA127: 120 | AB127: 0 | AC127: 0 | AJ127: X | AL127: 1 | AO127: =IF(SUMPRODUCT((A$14:A127=A127)*(B$14:B127=B127)*(D$14:D127=D127))>1,0,1) -> 1 | AP127: Contratos de prestación de servicios profesionales y de apoyo a la gestión | AQ127: Contratación directa | AR127: =IF(ISBLANK(G127),1,IFERROR(VLOOKUP(G127,Tipo!$C$12:$C$27,1,FALSE),"NO")) -> Prestación de servicios profesionales y de apoyo a la gestión, o para la ejecución de trabajos artísticos que sólo puedan encomendarse a determinadas personas naturales; | AS127: Inversión | AT127: =IF(ISBLANK(K127),1,IFERROR(VLOOKUP(K127,Eje_Pilar_Prop!$C$3:$C$104,1,FALSE),"NO")) -> 45 | AU127: SECOP II | AV127: 1 | AW127: Bogotá Mejor para Todos
A128: FDLCH-CPS-117-2020 | B128: 2020 | C128: SECOP II | D128: CPS-117-2020 | E128: Contratos de prestación de servicios profesionales y de apoyo a la gestión | F128: Contratación directa | G128: Prestación de servicios profesionales y de apoyo a la gestión, o para la ejecución de trabajos artísticos que sólo puedan encomendarse a determinadas personas naturales; | H128: PRESTAR LOS SERVICIOS PROFESIONALES EN DERECHO PARA APOYAR JURÍDICAMENTE LA EJECUCIÓN DE LAS ACCIONES REQUERIDAS PARA LA DEPURACIÓN DE LAS ACTUACIONES ADMINISTRATIVAS QUE CURSAN EN LA ALCALDÍA LOCAL DE CHAPINERO | I128: Inversión | J128: Bogotá Mejor para Todos | K128: 45 | L128: =IF(ISERROR(VLOOKUP(K128,Eje_Pilar_Prop!$C$2:$E$104,2,FALSE))," ",VLOOKUP(K128,Eje_Pilar_Prop!$C$2:$E$104,2,FALSE)) -> Gobernanza e influencia local, regional e internacional | M128: =IF(ISERROR(VLOOKUP(K128,Eje_Pilar_Prop!$C$2:$E$104,3,FALSE))," ",VLOOKUP(K128,Eje_Pilar_Prop!$C$2:$E$104,3,FALSE)) -> Eje Transversal 4 Gobierno Legitimo, Fortalecimiento Local y Eficiencia | N128: 1304 | O128: 1012402720 | P128: NATHALY TORRES TORRES | Q128: 16800000 | R128: 0 | S128: 0 | T128: 0 | U128: 0 | V128: 16800000 | W128: 16800000 | X128: 2020-06-19 | Y128: 2020-06-19 | Z128: 2020-08-31 | AA128: 42 | AB128: 1 | AC128: 30 | AJ128: X | AL128: 1 | AO128: =IF(SUMPRODUCT((A$14:A128=A128)*(B$14:B128=B128)*(D$14:D128=D128))>1,0,1) -> 1 | AP128: Contratos de prestación de servicios profesionales y de apoyo a la gestión | AQ128: Contratación directa | AR128: =IF(ISBLANK(G128),1,IFERROR(VLOOKUP(G128,Tipo!$C$12:$C$27,1,FALSE),"NO")) -> Prestación de servicios profesionales y de apoyo a la gestión, o para la ejecución de trabajos artísticos que sólo puedan encomendarse a determinadas personas naturales; | AS128: Inversión | AT128: =IF(ISBLANK(K128),1,IFERROR(VLOOKUP(K128,Eje_Pilar_Prop!$C$3:$C$104,1,FALSE),"NO")) -> 45 | AU128: SECOP II | AV128: 1 | AW128: Bogotá Mejor para Todos
A129: FDLCH-CI-118-2020 | B129: 2020 | C129: SECOP I | D129: 20-22-16306 | E129: Contratos de prestación de servicios | F129: Contratación directa | G129: Contratos interadministrativos | H129: PROVEER UNA PLATAFORMA VIRTUAL Y SERVICIOS TECNOLÓGICOS NECESARIOS A LOS FONDOS DE DESARROLLO LOCAL, EN LA REALIZACIÓN DE LAS ASAMBLEAS, EVENTOS Y FOROS DIGITALES, EN EL MARCO DE LOS ENCUENTROS CIUDADANOS Y PRESUPUESTOS PARTICIPATIVOS, DE ACUERDO CON LOS LINEAMIENTOS ESTRATÉGICOS QUE DETERMINEN LOS FDL | I129: Inversión | J129: Bogotá Mejor para Todos | K129: 45 | L129: =IF(ISERROR(VLOOKUP(K129,Eje_Pilar_Prop!$C$2:$E$104,2,FALSE))," ",VLOOKUP(K129,Eje_Pilar_Prop!$C$2:$E$104,2,FALSE)) -> Gobernanza e influencia local, regional e internacional | M129: =IF(ISERROR(VLOOKUP(K129,Eje_Pilar_Prop!$C$2:$E$104,3,FALSE))," ",VLOOKUP(K129,Eje_Pilar_Prop!$C$2:$E$104,3,FALSE)) -> Eje Transversal 4 Gobierno Legitimo, Fortalecimiento Local y Eficiencia | N129: 1305 | O129: 899999115 | P129: EMPRESA DE TELECOMUNICACIONES DE BOGOTA S.A.ESP - ETB | Q129: 16130836 | R129: 0 | S129: 0 | T129: 0 | U129: 0 | V129: 16130836 | W129: 16130836 | X129: 2020-06-24 | Y129: 2020-06-24 | Z129: 2020-10-24 | AA129: 120 | AB129: 0 | AC129: 0 | AJ129: X | AL129: 1 | AO129: =IF(SUMPRODUCT((A$14:A129=A129)*(B$14:B129=B129)*(D$14:D129=D129))>1,0,1) -> 1 | AP129: Contratos de prestación de servicios | AQ129: Contratación directa | AR129: =IF(ISBLANK(G129),1,IFERROR(VLOOKUP(G129,Tipo!$C$12:$C$27,1,FALSE),"NO")) -> Contratos interadministrativos | AS129: Inversión | AT129: =IF(ISBLANK(K129),1,IFERROR(VLOOKUP(K129,Eje_Pilar_Prop!$C$3:$C$104,1,FALSE),"NO")) -> 45 | AU129: SECOP I | AV129: 1 | AW129: Bogotá Mejor para Todos
A130: FDLCH-CPS-119-2020 | B130: 2020 | C130: SECOP II | D130: CPS-119-2020 | E130: Contratos de prestación de servicios profesionales y de apoyo a la gestión | F130: Contratación directa | G130: Prestación de servicios profesionales y de apoyo a la gestión, o para la ejecución de trabajos artísticos que sólo puedan encomendarse a determinadas personas naturales; | H130: PRESTACIÓN DE SERVICIOS PROFESIONALES PARA APOYAR AL EQUIPO DE PRENSA Y COMUNICACIONES DE LA ALCALDÍA LOCAL EN LA REALIZACIÓN DE PRODUCTOS Y PIEZAS DIGITALES, IMPRESAS Y PUBLICITARIAS DE GRAN FORMATO Y DE ANIMACIÓN GRÁFICA, ASÍ COMO APOYAR LA PRODUCCIÓN Y MONTAJE DE EVENTOS. | I130: Inversión | J130: Bogotá Mejor para Todos | K130: 45 | L130: =IF(ISERROR(VLOOKUP(K130,Eje_Pilar_Prop!$C$2:$E$104,2,FALSE))," ",VLOOKUP(K130,Eje_Pilar_Prop!$C$2:$E$104,2,FALSE)) -> Gobernanza e influencia local, regional e internacional | M130: =IF(ISERROR(VLOOKUP(K130,Eje_Pilar_Prop!$C$2:$E$104,3,FALSE))," ",VLOOKUP(K130,Eje_Pilar_Prop!$C$2:$E$104,3,FALSE)) -> Eje Transversal 4 Gobierno Legitimo, Fortalecimiento Local y Eficiencia | N130: 1304 | O130: 1032463045 | P130: CRHISTIAN FELIPE FORIGUA CHACON | Q130: 15452000 | R130: 0 | S130: 0 | T130: 0 | U130: 0 | V130: 15452000 | W130: 15452000 | X130: 2020-06-23 | Y130: 2020-06-24 | Z130: 2020-12-07 | AA130: 120 | AB130: 2 | AC130: 45 | AJ130: X | AL130: 1 | AO130: =IF(SUMPRODUCT((A$14:A130=A130)*(B$14:B130=B130)*(D$14:D130=D130))>1,0,1) -> 1 | AP130: Contratos de prestación de servicios profesionales y de apoyo a la gestión | AQ130: Contratación directa | AR130: =IF(ISBLANK(G130),1,IFERROR(VLOOKUP(G130,Tipo!$C$12:$C$27,1,FALSE),"NO")) -> Prestación de servicios profesionales y de apoyo a la gestión, o para la ejecución de trabajos artísticos que sólo puedan encomendarse a determinadas personas naturales; | AS130: Inversión | AT130: =IF(ISBLANK(K130),1,IFERROR(VLOOKUP(K130,Eje_Pilar_Prop!$C$3:$C$104,1,FALSE),"NO")) -> 45 | AU130: SECOP II | AV130: 1 | AW130: Bogotá Mejor para Todos
A131: FDLCH-CPS-120-2020 | B131: 2020 | C131: SECOP II | D131: CPS-120-2020 | E131: Contratos de prestación de servicios profesionales y de apoyo a la gestión | F131: Contratación directa | G131: Prestación de servicios profesionales y de apoyo a la gestión, o para la ejecución de trabajos artísticos que sólo puedan encomendarse a determinadas personas naturales; | H131: PRESTACIÓN DE SERVICIOS PROFESIONALES PARA EL APOYO AL ÁREA DE GESTIÓN DEL DESARROLLO LOCAL DE LA ALCALDÍA LOCAL DE CHAPINERO EN LA FORMULACIÓN, GESTIÓN, EJECUCIÓN Y SEGUIMIENTO DERIVADOS DEL PROYECTO 1301 'MEJORAR LA CALIDAD DE LA MOVILIDAD' Y LA SUPERVISIÓN DE CONTRATOS QUE LE SEAN ASIGNADOS | I131: Inversión | J131: Bogotá Mejor para Todos | K131: 18 | L131: =IF(ISERROR(VLOOKUP(K131,Eje_Pilar_Prop!$C$2:$E$104,2,FALSE))," ",VLOOKUP(K131,Eje_Pilar_Prop!$C$2:$E$104,2,FALSE)) -> Mejor movilidad para todos | M131: =IF(ISERROR(VLOOKUP(K131,Eje_Pilar_Prop!$C$2:$E$104,3,FALSE))," ",VLOOKUP(K131,Eje_Pilar_Prop!$C$2:$E$104,3,FALSE)) -> Pilar 2 Democracía Urbana | N131: 1301 | O131: 1073533479 | P131: JAIME HERNANDO PRIETO ÁLVAREZ | Q131: 20000000 | R131: 0 | S131: 0 | T131: 2 | U131: 7500000 | V131: 27500000 | W131: 27500000 | X131: 2020-06-30 | Y131: 2020-07-01 | Z131: 2020-10-30 | AA131: 120 | AB131: 0 | AC131: 0 | AJ131: X | AL131: 1 | AO131: =IF(SUMPRODUCT((A$14:A131=A131)*(B$14:B131=B131)*(D$14:D131=D131))>1,0,1) -> 1 | AP131: Contratos de prestación de servicios profesionales y de apoyo a la gestión | AQ131: Contratación directa | AR131: =IF(ISBLANK(G131),1,IFERROR(VLOOKUP(G131,Tipo!$C$12:$C$27,1,FALSE),"NO")) -> Prestación de servicios profesionales y de apoyo a la gestión, o para la ejecución de trabajos artísticos que sólo puedan encomendarse a determinadas personas naturales; | AS131: Inversión | AT131: =IF(ISBLANK(K131),1,IFERROR(VLOOKUP(K131,Eje_Pilar_Prop!$C$3:$C$104,1,FALSE),"NO")) -> 18 | AU131: SECOP II | AV131: 1 | AW131: Bogotá Mejor para Todos
A132: FDLCH-CPS-121-2020 | B132: 2020 | C132: SECOP II | D132: CPS-121-2020 | E132: Contratos de prestación de servicios profesionales y de apoyo a la gestión | F132: Contratación directa | G132: Prestación de servicios profesionales y de apoyo a la gestión, o para la ejecución de trabajos artísticos que sólo puedan encomendarse a determinadas personas naturales; | H132: Prestar los servicios profesionales de apoyo al área de gestión del desarrollo local, en temas de planeación y presupuestación del Fondo de Desarrollo Local. | I132: Inversión | J132: Bogotá Mejor para Todos | K132: 45 | L132: =IF(ISERROR(VLOOKUP(K132,Eje_Pilar_Prop!$C$2:$E$104,2,FALSE))," ",VLOOKUP(K132,Eje_Pilar_Prop!$C$2:$E$104,2,FALSE)) -> Gobernanza e influencia local, regional e internacional | M132: =IF(ISERROR(VLOOKUP(K132,Eje_Pilar_Prop!$C$2:$E$104,3,FALSE))," ",VLOOKUP(K132,Eje_Pilar_Prop!$C$2:$E$104,3,FALSE)) -> Eje Transversal 4 Gobierno Legitimo, Fortalecimiento Local y Eficiencia | N132: 1304 | O132: 60256522 | P132: NUBIA CONSTANZA MOGOLLON ACEVEDO | Q132: 18800000 | R132: 0 | S132: 0 | T132: 0 | U132: 0 | V132: 18800000 | W132: 18800000 | X132: 2020-06-24 | Y132: 2020-06-25 | Z132: 2020-12-24 | AA132: 120 | AB132: 1 | AC132: 60 | AJ132: X | AL132: 1 | AO132: =IF(SUMPRODUCT((A$14:A132=A132)*(B$14:B132=B132)*(D$14:D132=D132))>1,0,1) -> 1 | AP132: Contratos de prestación de servicios profesionales y de apoyo a la gestión | AQ132: Contratación directa | AR132: =IF(ISBLANK(G132),1,IFERROR(VLOOKUP(G132,Tipo!$C$12:$C$27,1,FALSE),"NO")) -> Prestación de servicios profesionales y de apoyo a la gestión, o para la ejecución de trabajos artísticos que sólo puedan encomendarse a determinadas personas naturales; | AS132: Inversión | AT132: =IF(ISBLANK(K132),1,IFERROR(VLOOKUP(K132,Eje_Pilar_Prop!$C$3:$C$104,1,FALSE),"NO")) -> 45 | AU132: SECOP II | AV132: 1 | AW132: Bogotá Mejor para Todos
A133: FDLCH-CPS-122-2020 | B133: 2020 | C133: SECOP II | D133: CPS-122-2020 | E133: Contratos de prestación de servicios profesionales y de apoyo a la gestión | F133: Contratación directa | G133: Prestación de servicios profesionales y de apoyo a la gestión, o para la ejecución de trabajos artísticos que sólo puedan encomendarse a determinadas personas naturales; | H133: Prestación de servicios profesionales para apoyar al equipo de prensa y comunicaciones de la Alcaldía Local en la realización y publicación de contenidos de redes sociales y canales de divulgación digital (sitio web) de la Alcaldía local | I133: Inversión | J133: Bogotá Mejor para Todos | K133: 45 | L133: =IF(ISERROR(VLOOKUP(K133,Eje_Pilar_Prop!$C$2:$E$104,2,FALSE))," ",VLOOKUP(K133,Eje_Pilar_Prop!$C$2:$E$104,2,FALSE)) -> Gobernanza e influencia local, regional e internacional | M133: =IF(ISERROR(VLOOKUP(K133,Eje_Pilar_Prop!$C$2:$E$104,3,FALSE))," ",VLOOKUP(K133,Eje_Pilar_Prop!$C$2:$E$104,3,FALSE)) -> Eje Transversal 4 Gobierno Legitimo, Fortalecimiento Local y Eficiencia | N133: 1304 | O133: 1019110016 | P133: JUAN SEBASTIAN CASTRO VANEGAS | Q133: 15452000 | R133: 0 | S133: 0 | T133: 1 | U133: 7726000 | V133: 23178000 | W133: 22019100 | X133: 2020-07-03 | Y133: 2020-07-06 | Z133: 2021-01-31 | AA133: 176 | AB133: 1 | AC133: 30 | AI133: X | AL133: 0.95 | AO133: =IF(SUMPRODUCT((A$14:A133=A133)*(B$14:B133=B133)*(D$14:D133=D133))>1,0,1) -> 1 | AP133: Contratos de prestación de servicios profesionales y de apoyo a la gestión | AQ133: Contratación directa | AR133: =IF(ISBLANK(G133),1,IFERROR(VLOOKUP(G133,Tipo!$C$12:$C$27,1,FALSE),"NO")) -> Prestación de servicios profesionales y de apoyo a la gestión, o para la ejecución de trabajos artísticos que sólo puedan encomendarse a determinadas personas naturales; | AS133: Inversión | AT133: =IF(ISBLANK(K133),1,IFERROR(VLOOKUP(K133,Eje_Pilar_Prop!$C$3:$C$104,1,FALSE),"NO")) -> 45 | AU133: SECOP II | AV133: 1 | AW133: Bogotá Mejor para Todos
A134: FDLCH-CA-123-2020 | B134: 2020 | C134: SECOP II | D134: CA-123-2020 | E134: Arrendamiento de bienes inmuebles | F134: Contratación directa | G134: El arrendamiento o adquisición de inmuebles | H134: CONTRATAR EN ARRIENDO UNA BODEGA, CON EL PROPÓSITO DE GUARDAR LOS ELEMENTOS DECOMISADOS DURANTE LOS OPERATIVOS DE CONTROL DE ESPACIO PÚBLICO, ADELANTADOS POR LA ALCALDÍA LOCAL DE CHAPINERO | I134: Funcionamiento | J134: Bogotá Mejor para Todos | L134: =IF(ISERROR(VLOOKUP(K134,Eje_Pilar_Prop!$C$2:$E$104,2,FALSE))," ",VLOOKUP(K134,Eje_Pilar_Prop!$C$2:$E$104,2,FALSE)) ->  | M134: =IF(ISERROR(VLOOKUP(K134,Eje_Pilar_Prop!$C$2:$E$104,3,FALSE))," ",VLOOKUP(K134,Eje_Pilar_Prop!$C$2:$E$104,3,FALSE)) ->  | N134: 131020202020201 | O134: 20185010 | P134: ANA GRACIELA GALAN DE ALVAREZ | Q134: 23466667 | R134: 0 | S134: 0 | T134: 1 | U134: 4000000 | V134: 27466667 | W134: 19466667 | X134: 2020-07-06 | Y134: 2020-07-07 | Z134: 2021-01-04 | AA134: 120 | AB134: 1 | AC134: 40 | AJ134: X | AL134: 0.7087378676 | AO134: =IF(SUMPRODUCT((A$14:A134=A134)*(B$14:B134=B134)*(D$14:D134=D134))>1,0,1) -> 1 | AP134: Arrendamiento de bienes inmuebles | AQ134: Contratación directa | AR134: =IF(ISBLANK(G134),1,IFERROR(VLOOKUP(G134,Tipo!$C$12:$C$27,1,FALSE),"NO")) -> El arrendamiento o adquisición de inmuebles | AS134: Funcionamiento | AT134: =IF(ISBLANK(K134),1,IFERROR(VLOOKUP(K134,Eje_Pilar_Prop!$C$3:$C$104,1,FALSE),"NO")) -> 1 | AU134: SECOP II | AV134: 1 | AW134: Bogotá Mejor para Todos
A135: FDLCH-CPS-124-2020 | B135: 2020 | C135: SECOP II | D135: CPS-124-2020 | E135: Contratos de prestación de servicios profesionales y de apoyo a la gestión | F135: Contratación directa | G135: Prestación de servicios profesionales y de apoyo a la gestión, o para la ejecución de trabajos artísticos que sólo puedan encomendarse a determinadas personas naturales; | H135: PRESTAR LOS SERVICIOS PROFESIONALES EN DERECHO PARA APOYAR AL ALCALDE LOCAL EN LA FORMULACIÓN, SEGUIMIENTO E IMPLEMENTACIÓN DE LA ESTRATEGIA LOCAL PARA LA TERMINACIÓN JURÍDICA DE LAS ACTUACIONES ADMINISTRATIVAS QUE CURSAN EN LA ALCALDÍA LOCAL. | I135: Inversión | J135: Bogotá Mejor para Todos | K135: 45 | L135: =IF(ISERROR(VLOOKUP(K135,Eje_Pilar_Prop!$C$2:$E$104,2,FALSE))," ",VLOOKUP(K135,Eje_Pilar_Prop!$C$2:$E$104,2,FALSE)) -> Gobernanza e influencia local, regional e internacional | M135: =IF(ISERROR(VLOOKUP(K135,Eje_Pilar_Prop!$C$2:$E$104,3,FALSE))," ",VLOOKUP(K135,Eje_Pilar_Prop!$C$2:$E$104,3,FALSE)) -> Eje Transversal 4 Gobierno Legitimo, Fortalecimiento Local y Eficiencia | N135: 1304 | O135: 52904967 | P135: ANGELA CRISTINA CARVAJAL TOVAR | Q135: 22000000 | R135: 0 | S135: 0 | T135: 1 | U135: 7333333 | V135: 29333333 | W135: 26950000 | X135: 2020-07-02 | Y135: 2020-07-03 | Z135: 2020-12-23 | AA135: 120 | AB135: 2 | AC135: 59 | AJ135: X | AL135: 0.9187500104 | AO135: =IF(SUMPRODUCT((A$14:A135=A135)*(B$14:B135=B135)*(D$14:D135=D135))>1,0,1) -> 1 | AP135: Contratos de prestación de servicios profesionales y de apoyo a la gestión | AQ135: Contratación directa | AR135: =IF(ISBLANK(G135),1,IFERROR(VLOOKUP(G135,Tipo!$C$12:$C$27,1,FALSE),"NO")) -> Prestación de servicios profesionales y de apoyo a la gestión, o para la ejecución de trabajos artísticos que sólo puedan encomendarse a determinadas personas naturales; | AS135: Inversión | AT135: =IF(ISBLANK(K135),1,IFERROR(VLOOKUP(K135,Eje_Pilar_Prop!$C$3:$C$104,1,FALSE),"NO")) -> 45 | AU135: SECOP II | AV135: 1 | AW135: Bogotá Mejor para Todos
A136: FDLCH-CPS-125-2020 | B136: 2020 | C136: SECOP II | D136: CPS-125-2020 | E136: Contratos de prestación de servicios profesionales y de apoyo a la gestión | F136: Contratación directa | G136: Prestación de servicios profesionales y de apoyo a la gestión, o para la ejecución de trabajos artísticos que sólo puedan encomendarse a determinadas personas naturales; | H136: PRESTACIÓN DE SERVICIOS PROFESIONALES PARA APOYAR AL ALCALDE LOCAL EN LA PROMOCIÓN, ACOMPAÑAMIENTO, COORDINACIÓN Y ATENCIÓN DE LAS INSTANCIAS DE COORDINACIÓN INTERINSTITUCIONALES Y LAS INSTANCIAS DE PARTICIPACIÓN LOCALES, ASÍ COMO LOS PROCESOS COMUNITARIOS EN LA LOCALIDAD | I136: Inversión | J136: Bogotá Mejor para Todos | K136: 45 | L136: =IF(ISERROR(VLOOKUP(K136,Eje_Pilar_Prop!$C$2:$E$104,2,FALSE))," ",VLOOKUP(K136,Eje_Pilar_Prop!$C$2:$E$104,2,FALSE)) -> Gobernanza e influencia local, regional e internacional | M136: =IF(ISERROR(VLOOKUP(K136,Eje_Pilar_Prop!$C$2:$E$104,3,FALSE))," ",VLOOKUP(K136,Eje_Pilar_Prop!$C$2:$E$104,3,FALSE)) -> Eje Transversal 4 Gobierno Legitimo, Fortalecimiento Local y Eficiencia | N136: 1305 | O136: 1022331685 | P136: NELSON MAURICIO REY PEÑA | Q136: 21000000 | R136: 0 | S136: 0 | T136: 2 | U136: 10325000 | V136: 31325000 | W136: 29925000 | X136: 2020-07-03 | Y136: 2020-07-06 | Z136: 2020-11-23 | AA136: 120 | AB136: 1 | AC136: 18 | AJ136: X | AL136: 0.9553072626 | AO136: =IF(SUMPRODUCT((A$14:A136=A136)*(B$14:B136=B136)*(D$14:D136=D136))>1,0,1) -> 1 | AP136: Contratos de prestación de servicios profesionales y de apoyo a la gestión | AQ136: Contratación directa | AR136: =IF(ISBLANK(G136),1,IFERROR(VLOOKUP(G136,Tipo!$C$12:$C$27,1,FALSE),"NO")) -> Prestación de servicios profesionales y de apoyo a la gestión, o para la ejecución de trabajos artísticos que sólo puedan encomendarse a determinadas personas naturales; | AS136: Inversión | AT136: =IF(ISBLANK(K136),1,IFERROR(VLOOKUP(K136,Eje_Pilar_Prop!$C$3:$C$104,1,FALSE),"NO")) -> 45 | AU136: SECOP II | AV136: 1 | AW136: Bogotá Mejor para Todos
A137: FDLCH-CPS-126-2020 | B137: 2020 | C137: SECOP II | D137: CPS-126-2020 | E137: Contratos de prestación de servicios profesionales y de apoyo a la gestión | F137: Contratación directa | G137: Prestación de servicios profesionales y de apoyo a la gestión, o para la ejecución de trabajos artísticos que sólo puedan encomendarse a determinadas personas naturales; | H137: PRESTACIÓN DE SERVICIOS PROFESIONALES PARA EL APOYO AL ÁREA DE GESTIÓN DEL DESARROLLO LOCAL DE LA ALCALDÍA LOCAL DE CHAPINERO EN LA FORMULACIÓN, GESTIÓN, EJECUCIÓN Y SEGUIMIENTO DEL PROYECTO 1301 'MEJORAR LA CALIDAD DE LA MOVILIDAD' Y LA SUPERVISIÓN DE CONTRATOS QUE LE SEAN ASIGNADOS | I137: Inversión | J137: Bogotá Mejor para Todos | K137: 18 | L137: =IF(ISERROR(VLOOKUP(K137,Eje_Pilar_Prop!$C$2:$E$104,2,FALSE))," ",VLOOKUP(K137,Eje_Pilar_Prop!$C$2:$E$104,2,FALSE)) -> Mejor movilidad para todos | M137: =IF(ISERROR(VLOOKUP(K137,Eje_Pilar_Prop!$C$2:$E$104,3,FALSE))," ",VLOOKUP(K137,Eje_Pilar_Prop!$C$2:$E$104,3,FALSE)) -> Pilar 2 Democracía Urbana | N137: 1301 | O137: 1090435721 | P137: JORGE ENRIQUE ABREO REYES | Q137: 24000000 | R137: 0 | S137: 0 | T137: 1 | U137: 3600000 | V137: 27600000 | W137: 27600000 | X137: 2020-07-03 | Y137: 2020-07-06 | Z137: 2021-01-05 | AA137: 120 | AB137: 1 | AC137: 60 | AJ137: X | AL137: 1 | AO137: =IF(SUMPRODUCT((A$14:A137=A137)*(B$14:B137=B137)*(D$14:D137=D137))>1,0,1) -> 1 | AP137: Contratos de prestación de servicios profesionales y de apoyo a la gestión | AQ137: Contratación directa | AR137: =IF(ISBLANK(G137),1,IFERROR(VLOOKUP(G137,Tipo!$C$12:$C$27,1,FALSE),"NO")) -> Prestación de servicios profesionales y de apoyo a la gestión, o para la ejecución de trabajos artísticos que sólo puedan encomendarse a determinadas personas naturales; | AS137: Inversión | AT137: =IF(ISBLANK(K137),1,IFERROR(VLOOKUP(K137,Eje_Pilar_Prop!$C$3:$C$104,1,FALSE),"NO")) -> 18 | AU137: SECOP II | AV137: 1 | AW137: Bogotá Mejor para Todos
A138: FDLCH-CPS-127-2020 | B138: 2020 | C138: SECOP II | D138: CPS-127-2020 | E138: Contratos de prestación de servicios profesionales y de apoyo a la gestión | F138: Contratación directa | G138: Prestación de servicios profesionales y de apoyo a la gestión, o para la ejecución de trabajos artísticos que sólo puedan encomendarse a determinadas personas naturales; | H138: PRESTACIÓN DE SERVICIOS PROFESIONALES PARA APOYAR EL ALCALDE LOCAL EN LA GESTIÓN DE LOS ASUNTOS RELACIONADOS CON SEGURIDAD CIUDADANA, CONVIVENCIA Y PREVENCIÓN DE CONFLICTIVIDADES, VIOLENCIAS Y DELITOS EN LA LOCALIDAD, DE CONFORMIDAD CON EL MARCO NORMATIVO APLICABLE EN LA MATERIA | I138: Inversión | J138: Bogotá Mejor para Todos | K138: 19 | L138: =IF(ISERROR(VLOOKUP(K138,Eje_Pilar_Prop!$C$2:$E$104,2,FALSE))," ",VLOOKUP(K138,Eje_Pilar_Prop!$C$2:$E$104,2,FALSE)) -> Seguridad y convivencia para todos | M138: =IF(ISERROR(VLOOKUP(K138,Eje_Pilar_Prop!$C$2:$E$104,3,FALSE))," ",VLOOKUP(K138,Eje_Pilar_Prop!$C$2:$E$104,3,FALSE)) -> Pilar 3 Construcción de Comunidad y Cultura Ciudadana | N138: 1302 | O138: 11801497 | P138: FELIPE CÓRDOBA MENDOZA | Q138: 19600000 | R138: 0 | S138: 0 | T138: 1 | U138: 9800000 | V138: 29400000 | W138: 27276666 | X138: 2020-07-08 | Y138: 2020-07-09 | Z138: 2021-01-08 | AA138: 120 | AB138: 1 | AC138: 60 | AD138: 78036035 | AE138: JAIME MANUEL PINEDA MÉNDEZ | AF138: 2020-12-03 | AG138: 8400000 | AJ138: X | AL138: 0.9277777551 | AO138: =IF(SUMPRODUCT((A$14:A138=A138)*(B$14:B138=B138)*(D$14:D138=D138))>1,0,1) -> 1 | AP138: Contratos de prestación de servicios profesionales y de apoyo a la gestión | AQ138: Contratación directa | AR138: =IF(ISBLANK(G138),1,IFERROR(VLOOKUP(G138,Tipo!$C$12:$C$27,1,FALSE),"NO")) -> Prestación de servicios profesionales y de apoyo a la gestión, o para la ejecución de trabajos artísticos que sólo puedan encomendarse a determinadas personas naturales; | AS138: Inversión | AT138: =IF(ISBLANK(K138),1,IFERROR(VLOOKUP(K138,Eje_Pilar_Prop!$C$3:$C$104,1,FALSE),"NO")) -> 19 | AU138: SECOP II | AV138: 1 | AW138: Bogotá Mejor para Todos
A139: FDLCH-CPS-128-2020 | B139: 2020 | C139: SECOP II | D139: CPS-128-2020 | E139: Contratos de prestación de servicios profesionales y de apoyo a la gestión | F139: Contratación directa | G139: Prestación de servicios profesionales y de apoyo a la gestión, o para la ejecución de trabajos artísticos que sólo puedan encomendarse a determinadas personas naturales; | H139: PRESTACIÓN DE SERVICIOS PROFESIONALES ESPECIALIZADOS PARA APOYAR EL ÁREA DE GESTIÓN DEL DESARROLLO LOCAL DE LA ALCALDÍA LOCAL DE CHAPINERO EN LA FORMULACIÓN, GESTIÓN Y EJECUCIÓN DEL PROYECTO 1302 ENTORNOS SEGUROS PARA LA CIUDADANÍA. | I139: Inversión | J139: Bogotá Mejor para Todos | K139: 19 | L139: =IF(ISERROR(VLOOKUP(K139,Eje_Pilar_Prop!$C$2:$E$104,2,FALSE))," ",VLOOKUP(K139,Eje_Pilar_Prop!$C$2:$E$104,2,FALSE)) -> Seguridad y convivencia para todos | M139: =IF(ISERROR(VLOOKUP(K139,Eje_Pilar_Prop!$C$2:$E$104,3,FALSE))," ",VLOOKUP(K139,Eje_Pilar_Prop!$C$2:$E$104,3,FALSE)) -> Pilar 3 Construcción de Comunidad y Cultura Ciudadana | N139: 1302 | O139: 112490471 | P139: JESÚS ÁNIBAL VERGARA MEJÍA | Q139: 28000000 | R139: 0 | S139: 0 | T139: 1 | U139: 14000000 | V139: 42000000 | W139: 37800000 | X139: 2020-07-07 | Y139: 2020-07-08 | Z139: 2020-11-27 | AA139: 120 | AB139: 1 | AC139: 20 | AJ139: X | AL139: 0.9 | AO139: =IF(SUMPRODUCT((A$14:A139=A139)*(B$14:B139=B139)*(D$14:D139=D139))>1,0,1) -> 1 | AP139: Contratos de prestación de servicios profesionales y de apoyo a la gestión | AQ139: Contratación directa | AR139: =IF(ISBLANK(G139),1,IFERROR(VLOOKUP(G139,Tipo!$C$12:$C$27,1,FALSE),"NO")) -> Prestación de servicios profesionales y de apoyo a la gestión, o para la ejecución de trabajos artísticos que sólo puedan encomendarse a determinadas personas naturales; | AS139: Inversión | AT139: =IF(ISBLANK(K139),1,IFERROR(VLOOKUP(K139,Eje_Pilar_Prop!$C$3:$C$104,1,FALSE),"NO")) -> 19 | AU139: SECOP II | AV139: 1 | AW139: Bogotá Mejor para Todos
A140: FDLCH-CPS-129-2020 | B140: 2020 | C140: SECOP II | D140: CPS-129-2020 | E140: Contratos de prestación de servicios profesionales y de apoyo a la gestión | F140: Contratación directa | G140: Prestación de servicios profesionales y de apoyo a la gestión, o para la ejecución de trabajos artísticos que sólo puedan encomendarse a determinadas personas naturales; | H140: PRESTACIÓN DE SERVICIOS PROFESIONALES PARA EL APOYO AL ÁREA DE GESTIÓN DEL DESARROLLO LOCAL DE LA ALCALDÍA LOCAL DE CHAPINERO EN LA FORMULACIÓN, GESTIÓN, EJECUCIÓN Y SEGUIMIENTO DEL PROYECTO 1301 'MEJORAR LA CALIDAD DE LA MOVILIDAD' Y LA SUPERVISIÓN DE CONTRATOS QUE LE SEAN ASIGNADOS | I140: Inversión | J140: Bogotá Mejor para Todos | K140: 18 | L140: =IF(ISERROR(VLOOKUP(K140,Eje_Pilar_Prop!$C$2:$E$104,2,FALSE))," ",VLOOKUP(K140,Eje_Pilar_Prop!$C$2:$E$104,2,FALSE)) -> Mejor movilidad para todos | M140: =IF(ISERROR(VLOOKUP(K140,Eje_Pilar_Prop!$C$2:$E$104,3,FALSE))," ",VLOOKUP(K140,Eje_Pilar_Prop!$C$2:$E$104,3,FALSE)) -> Pilar 2 Democracía Urbana | N140: 1301 | O140: 1015470441 | P140: RICARDO ANDRÉS SÁNCHEZ VARGAS | Q140: 15600000 | R140: 0 | S140: 0 | T140: 1 | U140: 2600000 | V140: 18200000 | W140: 18200000 | X140: 2020-07-21 | Y140: 2020-07-22 | Z140: 2021-01-05 | AA140: 120 | AB140: 1 | AC140: 45 | AJ140: X | AL140: 1 | AO140: =IF(SUMPRODUCT((A$14:A140=A140)*(B$14:B140=B140)*(D$14:D140=D140))>1,0,1) -> 1 | AP140: Contratos de prestación de servicios profesionales y de apoyo a la gestión | AQ140: Contratación directa | AR140: =IF(ISBLANK(G140),1,IFERROR(VLOOKUP(G140,Tipo!$C$12:$C$27,1,FALSE),"NO")) -> Prestación de servicios profesionales y de apoyo a la gestión, o para la ejecución de trabajos artísticos que sólo puedan encomendarse a determinadas personas naturales; | AS140: Inversión | AT140: =IF(ISBLANK(K140),1,IFERROR(VLOOKUP(K140,Eje_Pilar_Prop!$C$3:$C$104,1,FALSE),"NO")) -> 18 | AU140: SECOP II | AV140: 1 | AW140: Bogotá Mejor para Todos
A141: FDLCH-CPS-131-2020 | B141: 2020 | C141: SECOP II | D141: CPS-131-2020 | E141: Contratos de prestación de servicios profesionales y de apoyo a la gestión | F141: Contratación directa | G141: Prestación de servicios profesionales y de apoyo a la gestión, o para la ejecución de trabajos artísticos que sólo puedan encomendarse a determinadas personas naturales; | H141: PRESTACIÓN DE SERVICIOS PERSONALES NECESARIOS PARA APOYAR ADMINISTRATIVA Y ASISTENCIALMENTE A LAS INSPECCIONES DE POLICÍA DE LA LOCALIDAD DE CHAPINERO. | I141: Inversión | J141: Bogotá Mejor para Todos | K141: 45 | L141: =IF(ISERROR(VLOOKUP(K141,Eje_Pilar_Prop!$C$2:$E$104,2,FALSE))," ",VLOOKUP(K141,Eje_Pilar_Prop!$C$2:$E$104,2,FALSE)) -> Gobernanza e influencia local, regional e internacional | M141: =IF(ISERROR(VLOOKUP(K141,Eje_Pilar_Prop!$C$2:$E$104,3,FALSE))," ",VLOOKUP(K141,Eje_Pilar_Prop!$C$2:$E$104,3,FALSE)) -> Eje Transversal 4 Gobierno Legitimo, Fortalecimiento Local y Eficiencia | N141: 1304 | O141: 1032462820 | P141: JENNIFER VANNESA DIAZ NIÑO | Q141: 8800000 | R141: 0 | S141: 0 | T141: 1 | U141: 3300000 | V141: 12100000 | W141: 11073333 | X141: 2020-07-15 | Y141: 2020-07-16 | Z141: 2021-01-03 | AA141: 120 | AB141: 1 | AC141: 45 | AJ141: X | AL141: 0.9151514876 | AO141: =IF(SUMPRODUCT((A$14:A141=A141)*(B$14:B141=B141)*(D$14:D141=D141))>1,0,1) -> 1 | AP141: Contratos de prestación de servicios profesionales y de apoyo a la gestión | AQ141: Contratación directa | AR141: =IF(ISBLANK(G141),1,IFERROR(VLOOKUP(G141,Tipo!$C$12:$C$27,1,FALSE),"NO")) -> Prestación de servicios profesionales y de apoyo a la gestión, o para la ejecución de trabajos artísticos que sólo puedan encomendarse a determinadas personas naturales; | AS141: Inversión | AT141: =IF(ISBLANK(K141),1,IFERROR(VLOOKUP(K141,Eje_Pilar_Prop!$C$3:$C$104,1,FALSE),"NO")) -> 45 | AU141: SECOP II | AV141: 1 | AW141: Bogotá Mejor para Todos
A142: FDLCH-CPS-132-2020 | B142: 2020 | C142: SECOP II | D142: CPS-132-2020 | E142: Contratos de prestación de servicios profesionales y de apoyo a la gestión | F142: Contratación directa | G142: Prestación de servicios profesionales y de apoyo a la gestión, o para la ejecución de trabajos artísticos que sólo puedan encomendarse a determinadas personas naturales; | H142: PRESTACIÓN DE SERVICIOS PERSONALES NECESARIOS PARA EL APOYO EN LA EJECUCIÓN DE ACTIVIDADES ADMINISTRATIVAS Y OPERATIVAS ADELANTADAS EN LA JUNTA ADMINISTRADORA LOCAL DE CHAPINERO | I142: Inversión | J142: Bogotá Mejor para Todos | K142: 45 | L142: =IF(ISERROR(VLOOKUP(K142,Eje_Pilar_Prop!$C$2:$E$104,2,FALSE))," ",VLOOKUP(K142,Eje_Pilar_Prop!$C$2:$E$104,2,FALSE)) -> Gobernanza e influencia local, regional e internacional | M142: =IF(ISERROR(VLOOKUP(K142,Eje_Pilar_Prop!$C$2:$E$104,3,FALSE))," ",VLOOKUP(K142,Eje_Pilar_Prop!$C$2:$E$104,3,FALSE)) -> Eje Transversal 4 Gobierno Legitimo, Fortalecimiento Local y Eficiencia | N142: 1304 | O142: 52523548 | P142: SANDRA MILENA GÓMEZ SALAZAR | Q142: 9922500 | R142: 0 | S142: 0 | T142: 1 | U142: 3720937 | V142: 13643437 | W142: 12651187 | X142: 2020-07-10 | Y142: 2020-07-13 | Z142: 2021-01-12 | AA142: 120 | AB142: 1 | AC142: 60 | AJ142: X | AL142: 0.9272727246 | AO142: =IF(SUMPRODUCT((A$14:A142=A142)*(B$14:B142=B142)*(D$14:D142=D142))>1,0,1) -> 1 | AP142: Contratos de prestación de servicios profesionales y de apoyo a la gestión | AQ142: Contratación directa | AR142: =IF(ISBLANK(G142),1,IFERROR(VLOOKUP(G142,Tipo!$C$12:$C$27,1,FALSE),"NO")) -> Prestación de servicios profesionales y de apoyo a la gestión, o para la ejecución de trabajos artísticos que sólo puedan encomendarse a determinadas personas naturales; | AS142: Inversión | AT142: =IF(ISBLANK(K142),1,IFERROR(VLOOKUP(K142,Eje_Pilar_Prop!$C$3:$C$104,1,FALSE),"NO")) -> 45 | AU142: SECOP II | AV142: 1 | AW142: Bogotá Mejor para Todos
A143: FDLCH-CPS-133-2020 | B143: 2020 | C143: SECOP II | D143: CPS-133-2020 | E143: Contratos de prestación de servicios profesionales y de apoyo a la gestión | F143: Contratación directa | G143: Prestación de servicios profesionales y de apoyo a la gestión, o para la ejecución de trabajos artísticos que sólo puedan encomendarse a determinadas personas naturales; | H143: PRESTACIÓN DE SERVICIOS PROFESIONALES PARA EL APOYO AL ÁREA DE GESTIÓN DEL DESARROLLO LOCAL DE LA ALCALDÍA LOCAL DE CHAPINERO EN LA FORMULACIÓN, GESTIÓN, EJECUCIÓN Y SEGUIMIENTO DEL PROYECTO 1301 'MEJORAR LA CALIDAD DE LA MOVILIDAD' Y LA SUPERVISIÓN DE CONTRATOS QUE LE SEAN ASIGNADOS | I143: Inversión | J143: Bogotá Mejor para Todos | K143: 18 | L143: =IF(ISERROR(VLOOKUP(K143,Eje_Pilar_Prop!$C$2:$E$104,2,FALSE))," ",VLOOKUP(K143,Eje_Pilar_Prop!$C$2:$E$104,2,FALSE)) -> Mejor movilidad para todos | M143: =IF(ISERROR(VLOOKUP(K143,Eje_Pilar_Prop!$C$2:$E$104,3,FALSE))," ",VLOOKUP(K143,Eje_Pilar_Prop!$C$2:$E$104,3,FALSE)) -> Pilar 2 Democracía Urbana | N143: 1301 | O143: 1053779393 | P143: JUAN CAMILO ALZATE OCAMPO | Q143: 22800000 | R143: 0 | S143: 0 | T143: 1 | U143: 11400000 | V143: 34200000 | W143: 30400000 | X143: 2020-08-13 | Y143: 2020-08-14 | Z143: 2020-12-30 | AA143: 120 | AB143: 1 | AC143: 17 | AJ143: X | AL143: 0.8888888889 | AO143: =IF(SUMPRODUCT((A$14:A143=A143)*(B$14:B143=B143)*(D$14:D143=D143))>1,0,1) -> 1 | AP143: Contratos de prestación de servicios profesionales y de apoyo a la gestión | AQ143: Contratación directa | AR143: =IF(ISBLANK(G143),1,IFERROR(VLOOKUP(G143,Tipo!$C$12:$C$27,1,FALSE),"NO")) -> Prestación de servicios profesionales y de apoyo a la gestión, o para la ejecución de trabajos artísticos que sólo puedan encomendarse a determinadas personas naturales; | AS143: Inversión | AT143: =IF(ISBLANK(K143),1,IFERROR(VLOOKUP(K143,Eje_Pilar_Prop!$C$3:$C$104,1,FALSE),"NO")) -> 18 | AU143: SECOP II | AV143: 1 | AW143: Bogotá Mejor para Todos
A144: FDLCH-CPS-134-2020 | B144: 2020 | C144: SECOP II | D144: CPS-134-2020 | E144: Contratos de prestación de servicios profesionales y de apoyo a la gestión | F144: Contratación directa | G144: Prestación de servicios profesionales y de apoyo a la gestión, o para la ejecución de trabajos artísticos que sólo puedan encomendarse a determinadas personas naturales; | H144: PRESTACIÓN DE SERVICIOS PROFESIONALES PARA APOYAR TÉCNICAMENTE LAS DISTINTAS ETAPAS DE LOS PROCESOS DE COMPETENCIA DE LAS INSPECCIONES DE POLICÍA DE LA LOCALIDAD, SEGÚN REPARTO | I144: Inversión | J144: Bogotá Mejor para Todos | K144: 45 | L144: =IF(ISERROR(VLOOKUP(K144,Eje_Pilar_Prop!$C$2:$E$104,2,FALSE))," ",VLOOKUP(K144,Eje_Pilar_Prop!$C$2:$E$104,2,FALSE)) -> Gobernanza e influencia local, regional e internacional | M144: =IF(ISERROR(VLOOKUP(K144,Eje_Pilar_Prop!$C$2:$E$104,3,FALSE))," ",VLOOKUP(K144,Eje_Pilar_Prop!$C$2:$E$104,3,FALSE)) -> Eje Transversal 4 Gobierno Legitimo, Fortalecimiento Local y Eficiencia | N144: 1304 | O144: 79531247 | P144: RICARDO ALBERTO CORNEJO GONZALEZ | Q144: 18000000 | R144: 0 | S144: 0 | T144: 1 | U144: 2550000 | V144: 20550000 | W144: 19350000 | X144: 2020-08-03 | Y144: 2020-08-05 | Z144: 2020-12-29 | AA144: 120 | AB144: 1 | AC144: 29 | AJ144: X | AL144: 0.9416058394 | AO144: =IF(SUMPRODUCT((A$14:A144=A144)*(B$14:B144=B144)*(D$14:D144=D144))>1,0,1) -> 1 | AP144: Contratos de prestación de servicios profesionales y de apoyo a la gestión | AQ144: Contratación directa | AR144: =IF(ISBLANK(G144),1,IFERROR(VLOOKUP(G144,Tipo!$C$12:$C$27,1,FALSE),"NO")) -> Prestación de servicios profesionales y de apoyo a la gestión, o para la ejecución de trabajos artísticos que sólo puedan encomendarse a determinadas personas naturales; | AS144: Inversión | AT144: =IF(ISBLANK(K144),1,IFERROR(VLOOKUP(K144,Eje_Pilar_Prop!$C$3:$C$104,1,FALSE),"NO")) -> 45 | AU144: SECOP II | AV144: 1 | AW144: Bogotá Mejor para Todos
A145: FDLCH-CPS-135-2020 | B145: 2020 | C145: SECOP II | D145: CPS-135-2020 | E145: Contratos de prestación de servicios profesionales y de apoyo a la gestión | F145: Contratación directa | G145: Prestación de servicios profesionales y de apoyo a la gestión, o para la ejecución de trabajos artísticos que sólo puedan encomendarse a determinadas personas naturales; | H145: PRESTACIÓN DE SERVICIOS PROFESIONALES PARA APOYAR TÉCNICAMENTE LAS DISTINTAS ETAPAS DE LOS PROCESOS DE COMPETENCIA DE LAS INSPECCIONES DE POLICÍA DE LA LOCALIDAD, SEGÚN REPARTO | I145: Inversión | J145: Bogotá Mejor para Todos | K145: 45 | L145: =IF(ISERROR(VLOOKUP(K145,Eje_Pilar_Prop!$C$2:$E$104,2,FALSE))," ",VLOOKUP(K145,Eje_Pilar_Prop!$C$2:$E$104,2,FALSE)) -> Gobernanza e influencia local, regional e internacional | M145: =IF(ISERROR(VLOOKUP(K145,Eje_Pilar_Prop!$C$2:$E$104,3,FALSE))," ",VLOOKUP(K145,Eje_Pilar_Prop!$C$2:$E$104,3,FALSE)) -> Eje Transversal 4 Gobierno Legitimo, Fortalecimiento Local y Eficiencia | N145: 1304 | O145: 1032368645 | P145: YULIHED ANDREA ARIZA CONSUEGRA | Q145: 18000000 | R145: 0 | S145: 0 | T145: 1 | U145: 3750000 | V145: =+Q145+S145+U145 -> 21750000 | W145: 17400000 | X145: 2020-07-10 | Y145: 2020-07-13 | Z145: 2020-11-27 | AA145: 120 | AB145: 1 | AC145: 15 | AJ145: X | AL145: 0.8 | AO145: =IF(SUMPRODUCT((A$14:A145=A145)*(B$14:B145=B145)*(D$14:D145=D145))>1,0,1) -> 1 | AP145: Contratos de prestación de servicios profesionales y de apoyo a la gestión | AQ145: =IF(ISBLANK(F145),1,IFERROR(VLOOKUP(F145,modal,1,FALSE),"NO")) -> Contratación directa | AR145: =IF(ISBLANK(G145),1,IFERROR(VLOOKUP(G145,Tipo!$C$12:$C$27,1,FALSE),"NO")) -> Prestación de servicios profesionales y de apoyo a la gestión, o para la ejecución de trabajos artísticos que sólo puedan encomendarse a determinadas personas naturales; | AS145: =IF(ISBLANK(I145),1,IFERROR(VLOOKUP(I145,afectacion,1,FALSE),"NO")) -> Inversión | AT145: =IF(ISBLANK(K145),1,IFERROR(VLOOKUP(K145,Eje_Pilar_Prop!$C$3:$C$104,1,FALSE),"NO")) -> 45 | AU145: =IF(ISBLANK(C145),1,IFERROR(VLOOKUP(C145,SECOP,1,FALSE),"NO")) -> SECOP II | AV145: 1 | AW145: =IF(ISBLANK(J145),1,IFERROR(VLOOKUP(J145,pdd,1,FALSE),"NO")) -> Bogotá Mejor para Todos
A146: FDLCH-CPS-136-2020 | B146: 2020 | C146: SECOP II | D146: CPS-136-2020 | E146: Contratos de prestación de servicios profesionales y de apoyo a la gestión | F146: Contratación directa | G146: Prestación de servicios profesionales y de apoyo a la gestión, o para la ejecución de trabajos artísticos que sólo puedan encomendarse a determinadas personas naturales; | H146: PRESTACIÓN DE SERVICIOS PROFESIONALES PARA EL APOYO AL ÁREA DE GESTIÓN DEL DESARROLLO LOCAL DE LA ALCALDÍA LOCAL DE CHAPINERO EN LA FORMULACIÓN, GESTIÓN, EJECUCIÓN Y SEGUIMIENTO DEL PROYECTO 1301 'MEJORAR LA CALIDAD DE LA MOVILIDAD' Y LA SUPERVISIÓN DE CONTRATOS QUE LE SEAN ASIGNADOS. | I146: Inversión | J146: Bogotá Mejor para Todos | K146: 18 | L146: =IF(ISERROR(VLOOKUP(K146,Eje_Pilar_Prop!$C$2:$E$104,2,FALSE))," ",VLOOKUP(K146,Eje_Pilar_Prop!$C$2:$E$104,2,FALSE)) -> Mejor movilidad para todos | M146: =IF(ISERROR(VLOOKUP(K146,Eje_Pilar_Prop!$C$2:$E$104,3,FALSE))," ",VLOOKUP(K146,Eje_Pilar_Prop!$C$2:$E$104,3,FALSE)) -> Pilar 2 Democracía Urbana | N146: 1301 | O146: 1070011854 | P146: SANDRA PAOLA SALAMANCA RIAÑO | Q146: 15600000 | R146: 0 | S146: 0 | T146: 1 | U146: 1950000 | V146: 17550000 | W146: 17550000 | X146: 2020-07-10 | Y146: 2020-07-13 | Z146: 2021-01-18 | AA146: 120 | AB146: 1 | AC146: 60 | AJ146: X | AL146: 1 | AO146: =IF(SUMPRODUCT((A$14:A146=A146)*(B$14:B146=B146)*(D$14:D146=D146))>1,0,1) -> 1 | AP146: Contratos de prestación de servicios profesionales y de apoyo a la gestión | AQ146: Contratación directa | AR146: =IF(ISBLANK(G146),1,IFERROR(VLOOKUP(G146,Tipo!$C$12:$C$27,1,FALSE),"NO")) -> Prestación de servicios profesionales y de apoyo a la gestión, o para la ejecución de trabajos artísticos que sólo puedan encomendarse a determinadas personas naturales; | AS146: Inversión | AT146: =IF(ISBLANK(K146),1,IFERROR(VLOOKUP(K146,Eje_Pilar_Prop!$C$3:$C$104,1,FALSE),"NO")) -> 18 | AU146: SECOP II | AV146: 1 | AW146: Bogotá Mejor para Todos
A147: FDLCH-CPS-137-2020 | B147: 2020 | C147: SECOP II | D147: CPS-137-2020 | E147: Contratos de prestación de servicios profesionales y de apoyo a la gestión | F147: Contratación directa | G147: Prestación de servicios profesionales y de apoyo a la gestión, o para la ejecución de trabajos artísticos que sólo puedan encomendarse a determinadas personas naturales; | H147: PRESTACIÓN DE SERVICIOS PERSONALES NECESARIOS PARA LAS LABORES DE ENTREGA Y RECIBO DE LAS COMUNICACIONES EMITIDAS O RECIBIDAS POR LAS INSPECCIONES DE POLICÍA DE LA LOCALIDAD Y DEPENDENCIAS DE LA ALCALDÍA. | I147: Inversión | J147: Bogotá Mejor para Todos | K147: 45 | L147: =IF(ISERROR(VLOOKUP(K147,Eje_Pilar_Prop!$C$2:$E$104,2,FALSE))," ",VLOOKUP(K147,Eje_Pilar_Prop!$C$2:$E$104,2,FALSE)) -> Gobernanza e influencia local, regional e internacional | M147: =IF(ISERROR(VLOOKUP(K147,Eje_Pilar_Prop!$C$2:$E$104,3,FALSE))," ",VLOOKUP(K147,Eje_Pilar_Prop!$C$2:$E$104,3,FALSE)) -> Eje Transversal 4 Gobierno Legitimo, Fortalecimiento Local y Eficiencia | N147: 1304 | O147: 1019024025 | P147: EFRAÍN ANDRÉS MONROY CEPEDA | Q147: 8000000 | R147: 0 | S147: 0 | T147: 1 | U147: 4000000 | V147: 12000000 | W147: 10266667 | X147: 2020-07-15 | Y147: 2020-07-16 | Z147: 2020-11-15 | AA147: 120 | AB147: 0 | AC147: 0 | AJ147: X | AL147: 0.8555555833 | AO147: =IF(SUMPRODUCT((A$14:A147=A147)*(B$14:B147=B147)*(D$14:D147=D147))>1,0,1) -> 1 | AP147: Contratos de prestación de servicios profesionales y de apoyo a la gestión | AQ147: Contratación directa | AR147: =IF(ISBLANK(G147),1,IFERROR(VLOOKUP(G147,Tipo!$C$12:$C$27,1,FALSE),"NO")) -> Prestación de servicios profesionales y de apoyo a la gestión, o para la ejecución de trabajos artísticos que sólo puedan encomendarse a determinadas personas naturales; | AS147: Inversión | AT147: =IF(ISBLANK(K147),1,IFERROR(VLOOKUP(K147,Eje_Pilar_Prop!$C$3:$C$104,1,FALSE),"NO")) -> 45 | AU147: SECOP II | AV147: 1 | AW147: Bogotá Mejor para Todos
A148: FDLCH-CPS-138-2020 | B148: 2020 | C148: SECOP II | D148: CPS-138-2020 | E148: Contratos de prestación de servicios profesionales y de apoyo a la gestión | F148: Contratación directa | G148: Prestación de servicios profesionales y de apoyo a la gestión, o para la ejecución de trabajos artísticos que sólo puedan encomendarse a determinadas personas naturales; | H148: PRESTACIÓN DE SERVICIOS PERSONALES NECESARIOS PARA EL APOYO AL ÁREA DE GESTIÓN DEL DESARROLLO LOCAL DE LA ALCALDÍA LOCAL DE CHAPINERO EN LAS ACTIVIDADES DE RADICACIÓN Y CORRESPONDENCIA | I148: Inversión | J148: Bogotá Mejor para Todos | K148: 45 | L148: =IF(ISERROR(VLOOKUP(K148,Eje_Pilar_Prop!$C$2:$E$104,2,FALSE))," ",VLOOKUP(K148,Eje_Pilar_Prop!$C$2:$E$104,2,FALSE)) -> Gobernanza e influencia local, regional e internacional | M148: =IF(ISERROR(VLOOKUP(K148,Eje_Pilar_Prop!$C$2:$E$104,3,FALSE))," ",VLOOKUP(K148,Eje_Pilar_Prop!$C$2:$E$104,3,FALSE)) -> Eje Transversal 4 Gobierno Legitimo, Fortalecimiento Local y Eficiencia | N148: 1304 | O148: 53051061 | P148: DENIS PATRICIA RODRIGUEZ JAIMES | Q148: 8000000 | R148: 0 | S148: 0 | T148: 0 | U148: 0 | V148: 8000000 | W148: 8000000 | X148: 2020-07-10 | Y148: 2020-07-13 | Z148: 2021-01-12 | AA148: 120 | AB148: 1 | AC148: 60 | AJ148: X | AL148: 1 | AO148: =IF(SUMPRODUCT((A$14:A148=A148)*(B$14:B148=B148)*(D$14:D148=D148))>1,0,1) -> 1 | AP148: Contratos de prestación de servicios profesionales y de apoyo a la gestión | AQ148: Contratación directa | AR148: =IF(ISBLANK(G148),1,IFERROR(VLOOKUP(G148,Tipo!$C$12:$C$27,1,FALSE),"NO")) -> Prestación de servicios profesionales y de apoyo a la gestión, o para la ejecución de trabajos artísticos que sólo puedan encomendarse a determinadas personas naturales; | AS148: Inversión | AT148: =IF(ISBLANK(K148),1,IFERROR(VLOOKUP(K148,Eje_Pilar_Prop!$C$3:$C$104,1,FALSE),"NO")) -> 45 | AU148: SECOP II | AV148: 1 | AW148: Bogotá Mejor para Todos
A149: FDLCH-CPS-139-2020 | B149: 2020 | C149: SECOP II | D149: CPS-139-2020 | E149: Contratos de prestación de servicios profesionales y de apoyo a la gestión | F149: Contratación directa | G149: Prestación de servicios profesionales y de apoyo a la gestión, o para la ejecución de trabajos artísticos que sólo puedan encomendarse a determinadas personas naturales; | H149: PRESTACIÓN DE SERVICIOS PROFESIONALES PARA LA OPERACIÓN, PRESTACIÓN Y SEGUIMIENTO Y CUMPLIMIENTO DE LOS PROCEDIMIENTOS ADMINISTRATIVOS, OPERATIVOS Y PROGRAMÁTICOS DE LOS SERVICIOS SOCIALES DEL PROYECTO DE SUBSIDIO APOYO ECONÓMICO TIPO C, QUE CONTRIBUYAN A LA GARANTÍA DE LOS DERECHOS DE LA POBLACIÓN MAYOR EN EL MARCO DE LA POLÍTICA PÚBLICA SOCIAL PARA EL ENVEJECIMIENTO Y LA VEJEZ EN EL DISTRITO CAPITAL A CARGO DE LA ALCALDÍA LOCAL DE CHAPINERO | I149: Inversión | J149: Bogotá Mejor para Todos | K149: 4 | L149: =IF(ISERROR(VLOOKUP(K149,Eje_Pilar_Prop!$C$2:$E$104,2,FALSE))," ",VLOOKUP(K149,Eje_Pilar_Prop!$C$2:$E$104,2,FALSE)) -> Familias protegidas y adaptadas al cambio climático | M149: =IF(ISERROR(VLOOKUP(K149,Eje_Pilar_Prop!$C$2:$E$104,3,FALSE))," ",VLOOKUP(K149,Eje_Pilar_Prop!$C$2:$E$104,3,FALSE)) -> Pilar 1 Igualdad de Calidad de Vida | N149: 1294 | O149: 52515541 | P149: BELLA ELOISA KAROLINA MORENO BRIONES | Q149: 18400000 | R149: 0 | S149: 0 | T149: 1 | U149: 9200000 | V149: 27600000 | W149: 24533333 | X149: 2020-07-17 | Y149: 2020-07-22 | Z149: 2021-01-21 | AA149: 120 | AB149: 1 | AC149: 60 | AD149: 80449648 | AE149: JUAN CARLOS AREVALO | AF149: 2020-11-19 | AG149: 385000 | AJ149: X | AL149: 0.8888888768 | AO149: =IF(SUMPRODUCT((A$14:A149=A149)*(B$14:B149=B149)*(D$14:D149=D149))>1,0,1) -> 1 | AP149: Contratos de prestación de servicios profesionales y de apoyo a la gestión | AQ149: Contratación directa | AR149: =IF(ISBLANK(G149),1,IFERROR(VLOOKUP(G149,Tipo!$C$12:$C$27,1,FALSE),"NO")) -> Prestación de servicios profesionales y de apoyo a la gestión, o para la ejecución de trabajos artísticos que sólo puedan encomendarse a determinadas personas naturales; | AS149: Inversión | AT149: =IF(ISBLANK(K149),1,IFERROR(VLOOKUP(K149,Eje_Pilar_Prop!$C$3:$C$104,1,FALSE),"NO")) -> 4 | AU149: SECOP II | AV149: 1 | AW149: Bogotá Mejor para Todos
A150: FDLCH-CPS-140-2020 | B150: 2020 | C150: SECOP II | D150: CPS-140-2020 | E150: Contratos de prestación de servicios profesionales y de apoyo a la gestión | F150: Contratación directa | G150: Prestación de servicios profesionales y de apoyo a la gestión, o para la ejecución de trabajos artísticos que sólo puedan encomendarse a determinadas personas naturales; | H150: PRESTAR LOS SERVICIOS TÉCNICOS PARA LA OPERACIÓN, SEGUIMIENTO Y CUMPLIMIENTO DE LOS PROCESOS Y PROCEDIMIENTOS DEL SERVICIO APOYOS PARA LA SEGURIDAD ECONÓMICA TIPO C, REQUERIDOS PARA EL OPORTUNO Y ADECUADO REGISTRO, CRUCE Y REPORTE DE LOS DATOS EN EL SISTEMA MISIONAL SIRBE, QUE CONTRIBUYAN A LA GARANTÍA DE LOS DERECHOS DE LA POBLACIÓN MAYOR EN EL MARCO DE LA POLÍTICA PÚBLICA SOCIAL PARA EL ENVEJECIMIENTO Y LA VEJEZ EN EL DISTRITO CAPITAL A CARGO DE LA ALCALDÍA LOCAL DE CHAPINERO | I150: Inversión | J150: Bogotá Mejor para Todos | K150: 4 | L150: =IF(ISERROR(VLOOKUP(K150,Eje_Pilar_Prop!$C$2:$E$104,2,FALSE))," ",VLOOKUP(K150,Eje_Pilar_Prop!$C$2:$E$104,2,FALSE)) -> Familias protegidas y adaptadas al cambio climático | M150: =IF(ISERROR(VLOOKUP(K150,Eje_Pilar_Prop!$C$2:$E$104,3,FALSE))," ",VLOOKUP(K150,Eje_Pilar_Prop!$C$2:$E$104,3,FALSE)) -> Pilar 1 Igualdad de Calidad de Vida | N150: 1294 | O150: 22511864 | P150: SONIA MILENA PORTILLO OSORIO | Q150: 15400000 | R150: 1 | S150: -385000 | T150: 1 | U150: 8085000 | V150: 23100000 | W150: 17068333 | X150: 2020-07-16 | Y150: 2020-07-16 | Z150: 2020-12-30 | AA150: 120 | AB150: 1 | AC150: 45 | AJ150: X | AL150: 0.7388888745 | AO150: =IF(SUMPRODUCT((A$14:A150=A150)*(B$14:B150=B150)*(D$14:D150=D150))>1,0,1) -> 1 | AP150: Contratos de prestación de servicios profesionales y de apoyo a la gestión | AQ150: Contratación directa | AR150: =IF(ISBLANK(G150),1,IFERROR(VLOOKUP(G150,Tipo!$C$12:$C$27,1,FALSE),"NO")) -> Prestación de servicios profesionales y de apoyo a la gestión, o para la ejecución de trabajos artísticos que sólo puedan encomendarse a determinadas personas naturales; | AS150: Inversión | AT150: =IF(ISBLANK(K150),1,IFERROR(VLOOKUP(K150,Eje_Pilar_Prop!$C$3:$C$104,1,FALSE),"NO")) -> 4 | AU150: SECOP II | AV150: 1 | AW150: Bogotá Mejor para Todos
A151: FDLCH-CPS-141-2020 | B151: 2020 | C151: SECOP II | D151: CPS-141-2020 | E151: Contratos de prestación de servicios profesionales y de apoyo a la gestión | F151: Contratación directa | G151: Prestación de servicios profesionales y de apoyo a la gestión, o para la ejecución de trabajos artísticos que sólo puedan encomendarse a determinadas personas naturales; | H151: PRESTACIÓN DE LOS SERVICIOS PERSONALES NECESARIOS PARA LA CONDUCCIÓN DE LOS VEHÍCULOS QUE CONFORMAN EL PARQUE AUTOMOTOR EN PROPIEDAD O CUSTODIA DEL FONDO DE DESARROLLO LOCAL DE CHAPINERO, Y EL TRANSPORTE DE SERVIDORES PÚBLICOS PARA LA REALIZACIÓN DE LAS ACTIVIDADES MISIONALES DE LA ALCALDÍA LOCAL DE CHAPINERO | I151: Inversión | J151: Bogotá Mejor para Todos | K151: 45 | L151: =IF(ISERROR(VLOOKUP(K151,Eje_Pilar_Prop!$C$2:$E$104,2,FALSE))," ",VLOOKUP(K151,Eje_Pilar_Prop!$C$2:$E$104,2,FALSE)) -> Gobernanza e influencia local, regional e internacional | M151: =IF(ISERROR(VLOOKUP(K151,Eje_Pilar_Prop!$C$2:$E$104,3,FALSE))," ",VLOOKUP(K151,Eje_Pilar_Prop!$C$2:$E$104,3,FALSE)) -> Eje Transversal 4 Gobierno Legitimo, Fortalecimiento Local y Eficiencia | N151: 1304 | O151: 3220879 | P151: BENEDICTO VANEGAS CASTELLANOS | Q151: 9360000 | R151: 0 | S151: 0 | T151: 1 | U151: 3510000 | V151: 12870000 | W151: 12246000 | X151: 2020-07-17 | Y151: 2020-07-23 | Z151: 2021-01-06 | AA151: 120 | AB151: 1 | AC151: 45 | AJ151: X | AL151: 0.9515151515 | AO151: =IF(SUMPRODUCT((A$14:A151=A151)*(B$14:B151=B151)*(D$14:D151=D151))>1,0,1) -> 1 | AP151: Contratos de prestación de servicios profesionales y de apoyo a la gestión | AQ151: Contratación directa | AR151: =IF(ISBLANK(G151),1,IFERROR(VLOOKUP(G151,Tipo!$C$12:$C$27,1,FALSE),"NO")) -> Prestación de servicios profesionales y de apoyo a la gestión, o para la ejecución de trabajos artísticos que sólo puedan encomendarse a determinadas personas naturales; | AS151: Inversión | AT151: =IF(ISBLANK(K151),1,IFERROR(VLOOKUP(K151,Eje_Pilar_Prop!$C$3:$C$104,1,FALSE),"NO")) -> 45 | AU151: SECOP II | AV151: 1 | AW151: Bogotá Mejor para Todos
A152: FDLCH-CPS-142-2020 | B152: 2020 | C152: SECOP II | D152: CPS-142-2020 | E152: Contratos de prestación de servicios profesionales y de apoyo a la gestión | F152: Contratación directa | G152: Prestación de servicios profesionales y de apoyo a la gestión, o para la ejecución de trabajos artísticos que sólo puedan encomendarse a determinadas personas naturales; | H152: PRESTACIÓN DE SERVICIOS PERSONALES NECESARIOS PARA APOYAR ADMINISTRATIVA Y ASISTENCIALMENTE A LAS INSPECCIONES DE POLICÍA DE LA LOCALIDAD DE CHAPINERO | I152: Inversión | J152: Bogotá Mejor para Todos | K152: 45 | L152: =IF(ISERROR(VLOOKUP(K152,Eje_Pilar_Prop!$C$2:$E$104,2,FALSE))," ",VLOOKUP(K152,Eje_Pilar_Prop!$C$2:$E$104,2,FALSE)) -> Gobernanza e influencia local, regional e internacional | M152: =IF(ISERROR(VLOOKUP(K152,Eje_Pilar_Prop!$C$2:$E$104,3,FALSE))," ",VLOOKUP(K152,Eje_Pilar_Prop!$C$2:$E$104,3,FALSE)) -> Eje Transversal 4 Gobierno Legitimo, Fortalecimiento Local y Eficiencia | N152: 1304 | O152: 1121913188 | P152: LAURA MELISSA PALACIO RODRÍGUEZ | Q152: 8800000 | R152: 0 | S152: 0 | T152: 1 | U152: 3300000 | V152: 12100000 | W152: 11000000 | X152: 2020-08-19 | Y152: 2020-08-20 | Z152: 2020-12-30 | AA152: 120 | AB152: 1 | AC152: 11 | AJ152: X | AL152: 0.9090909091 | AO152: =IF(SUMPRODUCT((A$14:A152=A152)*(B$14:B152=B152)*(D$14:D152=D152))>1,0,1) -> 1 | AP152: Contratos de prestación de servicios profesionales y de apoyo a la gestión | AQ152: Contratación directa | AR152: =IF(ISBLANK(G152),1,IFERROR(VLOOKUP(G152,Tipo!$C$12:$C$27,1,FALSE),"NO")) -> Prestación de servicios profesionales y de apoyo a la gestión, o para la ejecución de trabajos artísticos que sólo puedan encomendarse a determinadas personas naturales; | AS152: Inversión | AT152: =IF(ISBLANK(K152),1,IFERROR(VLOOKUP(K152,Eje_Pilar_Prop!$C$3:$C$104,1,FALSE),"NO")) -> 45 | AU152: SECOP II | AV152: 1 | AW152: Bogotá Mejor para Todos
A153: FDLCH-CPS-143-2020 | B153: 2020 | C153: SECOP II | D153: CPS-143-2020 | E153: Contratos de prestación de servicios profesionales y de apoyo a la gestión | F153: Contratación directa | G153: Prestación de servicios profesionales y de apoyo a la gestión, o para la ejecución de trabajos artísticos que sólo puedan encomendarse a determinadas personas naturales; | H153: PRESTACIÓN DE SERVICIOS PROFESIONALES PARA APOYAR TÉCNICAMENTE LAS DISTINTAS ETAPAS DE LOS PROCESOS DE COMPETENCIA DE LAS INSPECCIONES DE POLICÍA DE LA LOCALIDAD, SEGÚN REPARTO | I153: Inversión | J153: Bogotá Mejor para Todos | K153: 45 | L153: =IF(ISERROR(VLOOKUP(K153,Eje_Pilar_Prop!$C$2:$E$104,2,FALSE))," ",VLOOKUP(K153,Eje_Pilar_Prop!$C$2:$E$104,2,FALSE)) -> Gobernanza e influencia local, regional e internacional | M153: =IF(ISERROR(VLOOKUP(K153,Eje_Pilar_Prop!$C$2:$E$104,3,FALSE))," ",VLOOKUP(K153,Eje_Pilar_Prop!$C$2:$E$104,3,FALSE)) -> Eje Transversal 4 Gobierno Legitimo, Fortalecimiento Local y Eficiencia | N153: 1304 | O153: 1032445959 | P153: MARIA ALEJANDRA JIMENEZ AUCIQUE | Q153: 18000000 | R153: 0 | S153: 0 | T153: 1 | U153: 1650000 | V153: 19650000 | W153: 15150000 | X153: 2020-07-31 | Y153: 2020-08-03 | Z153: 2020-12-30 | AA153: 120 | AB153: 1 | AC153: 28 | AJ153: X | AL153: 0.7709923664 | AO153: =IF(SUMPRODUCT((A$14:A153=A153)*(B$14:B153=B153)*(D$14:D153=D153))>1,0,1) -> 1 | AP153: Contratos de prestación de servicios profesionales y de apoyo a la gestión | AQ153: Contratación directa | AR153: =IF(ISBLANK(G153),1,IFERROR(VLOOKUP(G153,Tipo!$C$12:$C$27,1,FALSE),"NO")) -> Prestación de servicios profesionales y de apoyo a la gestión, o para la ejecución de trabajos artísticos que sólo puedan encomendarse a determinadas personas naturales; | AS153: Inversión | AT153: =IF(ISBLANK(K153),1,IFERROR(VLOOKUP(K153,Eje_Pilar_Prop!$C$3:$C$104,1,FALSE),"NO")) -> 45 | AU153: SECOP II | AV153: 1 | AW153: Bogotá Mejor para Todos
A154: FDLCH-CPS-144-2020 | B154: 2020 | C154: SECOP II | D154: CPS-144-2020 | E154: Contratos de prestación de servicios profesionales y de apoyo a la gestión | F154: Contratación directa | G154: Prestación de servicios profesionales y de apoyo a la gestión, o para la ejecución de trabajos artísticos que sólo puedan encomendarse a determinadas personas naturales; | H154: PRESTACIÓN DE SERVICIOS PROFESIONALES PARA APOYAR TÉCNICAMENTE LAS DISTINTAS ETAPAS DE LOS PROCESOS DE COMPETENCIA DE LAS INSPECCIONES DE POLICÍA DE LA LOCALIDAD, SEGÚN REPARTO | I154: Inversión | J154: Bogotá Mejor para Todos | K154: 45 | L154: =IF(ISERROR(VLOOKUP(K154,Eje_Pilar_Prop!$C$2:$E$104,2,FALSE))," ",VLOOKUP(K154,Eje_Pilar_Prop!$C$2:$E$104,2,FALSE)) -> Gobernanza e influencia local, regional e internacional | M154: =IF(ISERROR(VLOOKUP(K154,Eje_Pilar_Prop!$C$2:$E$104,3,FALSE))," ",VLOOKUP(K154,Eje_Pilar_Prop!$C$2:$E$104,3,FALSE)) -> Eje Transversal 4 Gobierno Legitimo, Fortalecimiento Local y Eficiencia | N154: 1304 | O154: 11449647 | P154: WILLIAM RENE DIAZ GARAY | Q154: 18000000 | R154: 0 | S154: 0 | T154: 1 | U154: 4200000 | V154: 22200000 | W154: 21000000 | X154: 2020-07-10 | Y154: 2020-07-13 | Z154: 2020-12-12 | AA154: 120 | AB154: 1 | AC154: 30 | AJ154: X | AL154: 0.9459459459 | AO154: =IF(SUMPRODUCT((A$14:A154=A154)*(B$14:B154=B154)*(D$14:D154=D154))>1,0,1) -> 1 | AP154: Contratos de prestación de servicios profesionales y de apoyo a la gestión | AQ154: Contratación directa | AR154: =IF(ISBLANK(G154),1,IFERROR(VLOOKUP(G154,Tipo!$C$12:$C$27,1,FALSE),"NO")) -> Prestación de servicios profesionales y de apoyo a la gestión, o para la ejecución de trabajos artísticos que sólo puedan encomendarse a determinadas personas naturales; | AS154: Inversión | AT154: =IF(ISBLANK(K154),1,IFERROR(VLOOKUP(K154,Eje_Pilar_Prop!$C$3:$C$104,1,FALSE),"NO")) -> 45 | AU154: SECOP II | AV154: 1 | AW154: Bogotá Mejor para Todos
A155: FDLCH-CPS-145-2020 | B155: 2020 | C155: SECOP II | D155: CPS-145-2020 | E155: Contratos de prestación de servicios profesionales y de apoyo a la gestión | F155: Contratación directa | G155: Prestación de servicios profesionales y de apoyo a la gestión, o para la ejecución de trabajos artísticos que sólo puedan encomendarse a determinadas personas naturales; | H155: PRESTACIÓN DE SERVICIOS PROFESIONALES PARA APOYAR EL ALCALDE LOCAL EN EL ACOMPAÑAMIENTO, ATENCIÓN, PROMOCIÓN Y FORTALECIMIENTO DE LOS PROCESOS LOCALES DE PARTICIPACIÓN CIUDADANA, LOS ESPACIOS E INSTANCIAS INTERINSTITUCIONALES DE PARTICIPACIÓN CIUDADANA, ASÍ COMO LOS PROCESOS COMUNITARIOS EN LA LOCALIDAD | I155: Inversión | J155: Bogotá Mejor para Todos | K155: 45 | L155: =IF(ISERROR(VLOOKUP(K155,Eje_Pilar_Prop!$C$2:$E$104,2,FALSE))," ",VLOOKUP(K155,Eje_Pilar_Prop!$C$2:$E$104,2,FALSE)) -> Gobernanza e influencia local, regional e internacional | M155: =IF(ISERROR(VLOOKUP(K155,Eje_Pilar_Prop!$C$2:$E$104,3,FALSE))," ",VLOOKUP(K155,Eje_Pilar_Prop!$C$2:$E$104,3,FALSE)) -> Eje Transversal 4 Gobierno Legitimo, Fortalecimiento Local y Eficiencia | N155: 1305 | O155: 1075297036 | P155: MARÍA ANGÉLICA BALAGUERA RUIZ | Q155: 16000000 | R155: 0 | S155: 0 | T155: 1 | U155: 4000000 | V155: 20000000 | W155: 18400000 | X155: 2020-07-15 | Y155: 2020-07-15 | Z155: 2021-01-14 | AA155: 120 | AB155: 1 | AC155: 60 | AJ155: X | AL155: 0.92 | AO155: =IF(SUMPRODUCT((A$14:A155=A155)*(B$14:B155=B155)*(D$14:D155=D155))>1,0,1) -> 1 | AP155: Contratos de prestación de servicios profesionales y de apoyo a la gestión | AQ155: Contratación directa | AR155: =IF(ISBLANK(G155),1,IFERROR(VLOOKUP(G155,Tipo!$C$12:$C$27,1,FALSE),"NO")) -> Prestación de servicios profesionales y de apoyo a la gestión, o para la ejecución de trabajos artísticos que sólo puedan encomendarse a determinadas personas naturales; | AS155: Inversión | AT155: =IF(ISBLANK(K155),1,IFERROR(VLOOKUP(K155,Eje_Pilar_Prop!$C$3:$C$104,1,FALSE),"NO")) -> 45 | AU155: SECOP II | AV155: 1 | AW155: Bogotá Mejor para Todos
A156: FDLCH-CPS-146-2020 | B156: 2020 | C156: SECOP II | D156: CPS-146-2020 | E156: Contratos de prestación de servicios profesionales y de apoyo a la gestión | F156: Contratación directa | G156: Prestación de servicios profesionales y de apoyo a la gestión, o para la ejecución de trabajos artísticos que sólo puedan encomendarse a determinadas personas naturales; | H156: PRESTACIÓN DE SERVICIOS PROFESIONALES PARA APOYAR EL ALCALDE LOCAL EN LA GESTIÓN DE LOS ASUNTOS RELACIONADOS CON SEGURIDAD CIUDADANA, CONVIVENCIA Y PREVENCIÓN DE CONFLICTIVIDADES, VIOLENCIAS Y DELITOS EN LA LOCALIDAD, DE CONFORMIDAD CON EL MARCO NORMATIVO APLICABLE EN LA MATERIA. | I156: Inversión | J156: Bogotá Mejor para Todos | K156: 19 | L156: =IF(ISERROR(VLOOKUP(K156,Eje_Pilar_Prop!$C$2:$E$104,2,FALSE))," ",VLOOKUP(K156,Eje_Pilar_Prop!$C$2:$E$104,2,FALSE)) -> Seguridad y convivencia para todos | M156: =IF(ISERROR(VLOOKUP(K156,Eje_Pilar_Prop!$C$2:$E$104,3,FALSE))," ",VLOOKUP(K156,Eje_Pilar_Prop!$C$2:$E$104,3,FALSE)) -> Pilar 3 Construcción de Comunidad y Cultura Ciudadana | N156: 1302 | O156: 79720862 | P156: IVAN GUILLERMO RAMIREZ REYES | Q156: 19600000 | R156: 0 | S156: 0 | T156: 1 | U156: 9800000 | V156: 29400000 | W156: 25806666 | X156: 2020-07-15 | Y156: 2020-07-17 | Z156: 2020-12-31 | AA156: 120 | AB156: 2 | AC156: 45 | AJ156: X | AL156: 0.8777777551 | AO156: =IF(SUMPRODUCT((A$14:A156=A156)*(B$14:B156=B156)*(D$14:D156=D156))>1,0,1) -> 1 | AP156: Contratos de prestación de servicios profesionales y de apoyo a la gestión | AQ156: Contratación directa | AR156: =IF(ISBLANK(G156),1,IFERROR(VLOOKUP(G156,Tipo!$C$12:$C$27,1,FALSE),"NO")) -> Prestación de servicios profesionales y de apoyo a la gestión, o para la ejecución de trabajos artísticos que sólo puedan encomendarse a determinadas personas naturales; | AS156: Inversión | AT156: =IF(ISBLANK(K156),1,IFERROR(VLOOKUP(K156,Eje_Pilar_Prop!$C$3:$C$104,1,FALSE),"NO")) -> 19 | AU156: SECOP II | AV156: 1 | AW156: Bogotá Mejor para Todos
A157: FDLCH-CPS-147-2020 | B157: 2020 | C157: SECOP II | D157: CPS-147-2020 | E157: Contratos de prestación de servicios profesionales y de apoyo a la gestión | F157: Contratación directa | G157: Prestación de servicios profesionales y de apoyo a la gestión, o para la ejecución de trabajos artísticos que sólo puedan encomendarse a determinadas personas naturales; | H157: PRESTACIÓN DE SERVICIOS PROFESIONALES PARA APOYAR EL ALCALDE LOCAL EN EL ACOMPAÑAMIENTO, ATENCIÓN, PROMOCIÓN Y FORTALECIMIENTO DE LOS PROCESOS LOCALES DE PARTICIPACIÓN CIUDADANA, LOS ESPACIOS E INSTANCIAS INTERINSTITUCIONALES DE PARTICIPACIÓN CIUDADANA, ASÍ COMO LOS PROCESOS COMUNITARIOS EN LA LOCALIDAD | I157: Inversión | J157: Bogotá Mejor para Todos | K157: 45 | L157: =IF(ISERROR(VLOOKUP(K157,Eje_Pilar_Prop!$C$2:$E$104,2,FALSE))," ",VLOOKUP(K157,Eje_Pilar_Prop!$C$2:$E$104,2,FALSE)) -> Gobernanza e influencia local, regional e internacional | M157: =IF(ISERROR(VLOOKUP(K157,Eje_Pilar_Prop!$C$2:$E$104,3,FALSE))," ",VLOOKUP(K157,Eje_Pilar_Prop!$C$2:$E$104,3,FALSE)) -> Eje Transversal 4 Gobierno Legitimo, Fortalecimiento Local y Eficiencia | N157: 1305 | O157: 53037864 | P157: DIANA CAROLINA MORENO RINCÓN | Q157: 19200000 | R157: 0 | S157: 0 | T157: 2 | U157: 7200000 | V157: 26400000 | W157: 24960000 | X157: 2020-08-04 | Y157: 2020-08-05 | Z157: 2020-12-23 | AA157: 120 | AB157: 1 | AC157: 19 | AJ157: X | AL157: 0.9454545455 | AO157: =IF(SUMPRODUCT((A$14:A157=A157)*(B$14:B157=B157)*(D$14:D157=D157))>1,0,1) -> 1 | AP157: =IF(ISBLANK(E157),1,IFERROR(VLOOKUP(E157,tipo,1,FALSE),"NO")) -> Contratos de prestación de servicios profesionales y de apoyo a la gestión | AQ157: Contratación directa | AR157: =IF(ISBLANK(G157),1,IFERROR(VLOOKUP(G157,Tipo!$C$12:$C$27,1,FALSE),"NO")) -> Prestación de servicios profesionales y de apoyo a la gestión, o para la ejecución de trabajos artísticos que sólo puedan encomendarse a determinadas personas naturales; | AS157: Inversión | AT157: =IF(ISBLANK(K157),1,IFERROR(VLOOKUP(K157,Eje_Pilar_Prop!$C$3:$C$104,1,FALSE),"NO")) -> 45 | AU157: SECOP II | AV157: 1 | AW157: Bogotá Mejor para Todos
A158: FDLCH-CPS-148-2020 | B158: 2020 | C158: SECOP II | D158: CPS-148-2020 | E158: Contratos de prestación de servicios profesionales y de apoyo a la gestión | F158: Contratación directa | G158: Prestación de servicios profesionales y de apoyo a la gestión, o para la ejecución de trabajos artísticos que sólo puedan encomendarse a determinadas personas naturales; | H158: PRESTACIÓN DE SERVICIOS PROFESIONALES PARA EL ÁREA DE GESTIÓN JURÍDICA Y POLICÍA EN LA ATENCIÓN INTEGRAL DEL MANEJO DE LAS COMISIONES JUDICIALES ORDENADAS POR LAS AUTORIDADES JURISDICCIONALES, EN CUMPLIMIENTO DE LO ORDENADO POR LOS ARTÍCULOS 37 Y SIGUIENTES DEL CÓDIGO GENERAL DEL PROCESO, EN CONCORDANCIA CON LO PREVISTO EN EL ARTÍCULO 206 DE LA LEY 1801 DE 2016, Y APOYAR EVENTUALMENTE LA GESTIÓN POLICIVA Y JURÍDICA EN TEMAS DE DESCONGESTIÓN DEL ÁREA EN MATERIA DE IMPULSOS PROCESALES. | I158: Inversión | J158: Bogotá Mejor para Todos | K158: 45 | L158: =IF(ISERROR(VLOOKUP(K158,Eje_Pilar_Prop!$C$2:$E$104,2,FALSE))," ",VLOOKUP(K158,Eje_Pilar_Prop!$C$2:$E$104,2,FALSE)) -> Gobernanza e influencia local, regional e internacional | M158: =IF(ISERROR(VLOOKUP(K158,Eje_Pilar_Prop!$C$2:$E$104,3,FALSE))," ",VLOOKUP(K158,Eje_Pilar_Prop!$C$2:$E$104,3,FALSE)) -> Eje Transversal 4 Gobierno Legitimo, Fortalecimiento Local y Eficiencia | N158: 1304 | O158: 79729789 | P158: ALFREDO ENRIQUE CACERES MENDOZA | Q158: 20400000 | R158: 0 | S158: 0 | T158: 1 | U158: 3230000 | V158: 23630000 | W158: 19720000 | X158: 2020-08-03 | Y158: 2020-08-04 | Z158: 2021-01-13 | AA158: 120 | AB158: 2 | AC158: 40 | AJ158: X | AL158: 0.8345323741 | AO158: =IF(SUMPRODUCT((A$14:A158=A158)*(B$14:B158=B158)*(D$14:D158=D158))>1,0,1) -> 1 | AP158: Contratos de prestación de servicios profesionales y de apoyo a la gestión | AQ158: Contratación directa | AR158: =IF(ISBLANK(G158),1,IFERROR(VLOOKUP(G158,Tipo!$C$12:$C$27,1,FALSE),"NO")) -> Prestación de servicios profesionales y de apoyo a la gestión, o para la ejecución de trabajos artísticos que sólo puedan encomendarse a determinadas personas naturales; | AS158: Inversión | AT158: =IF(ISBLANK(K158),1,IFERROR(VLOOKUP(K158,Eje_Pilar_Prop!$C$3:$C$104,1,FALSE),"NO")) -> 45 | AU158: SECOP II | AV158: 1 | AW158: Bogotá Mejor para Todos
A159: FDLCH-CPS-149-2020 | B159: 2020 | C159: SECOP II | D159: CPS-149-2020 | E159: Contratos de prestación de servicios profesionales y de apoyo a la gestión | F159: Contratación directa | G159: Prestación de servicios profesionales y de apoyo a la gestión, o para la ejecución de trabajos artísticos que sólo puedan encomendarse a determinadas personas naturales; | H159: EL CONTRATO QUE SE PRETENDE CELEBRAR, TENDRÁ POR OBJETO PRESTACIÓN DE SERVICIOS PARA APOYAR EN LAS TAREAS OPERATIVAS DE CARÁCTER ARCHIVÍSTICO DESARROLLADAS EN LA ALCALDÍA LOCAL PARA GARANTIZAR LA APLICACIÓN CORRECTA DE LOS PROCEDIMIENTOS TÉCNICOS DE ACUERDO CON LO CONTEMPLADO EN EL(LOS) PROYECTO(S) 1304 – GOBERNANZA Y FORTALECIMIENTO DEL DESARROLLO INSTITUCIONAL | I159: Inversión | J159: Bogotá Mejor para Todos | K159: 45 | L159: =IF(ISERROR(VLOOKUP(K159,Eje_Pilar_Prop!$C$2:$E$104,2,FALSE))," ",VLOOKUP(K159,Eje_Pilar_Prop!$C$2:$E$104,2,FALSE)) -> Gobernanza e influencia local, regional e internacional | M159: =IF(ISERROR(VLOOKUP(K159,Eje_Pilar_Prop!$C$2:$E$104,3,FALSE))," ",VLOOKUP(K159,Eje_Pilar_Prop!$C$2:$E$104,3,FALSE)) -> Eje Transversal 4 Gobierno Legitimo, Fortalecimiento Local y Eficiencia | N159: 1304 | O159: 52423626 | P159: DIANA PAOLA OVALLE RODRÍGUEZ | Q159: 12000000 | R159: 0 | S159: 0 | T159: 2 | U159: 4000000 | V159: 16000000 | W159: 13900000 | X159: 2020-07-15 | Y159: 2020-07-16 | Z159: 2021-01-03 | AA159: 120 | AB159: 1 | AC159: 45 | AJ159: X | AL159: 0.86875 | AO159: =IF(SUMPRODUCT((A$14:A159=A159)*(B$14:B159=B159)*(D$14:D159=D159))>1,0,1) -> 1 | AP159: Contratos de prestación de servicios profesionales y de apoyo a la gestión | AQ159: Contratación directa | AR159: =IF(ISBLANK(G159),1,IFERROR(VLOOKUP(G159,Tipo!$C$12:$C$27,1,FALSE),"NO")) -> Prestación de servicios profesionales y de apoyo a la gestión, o para la ejecución de trabajos artísticos que sólo puedan encomendarse a determinadas personas naturales; | AS159: Inversión | AT159: =IF(ISBLANK(K159),1,IFERROR(VLOOKUP(K159,Eje_Pilar_Prop!$C$3:$C$104,1,FALSE),"NO")) -> 45 | AU159: SECOP II | AV159: 1 | AW159: Bogotá Mejor para Todos
A160: FDLCH-CPS-150-2020 | B160: 2020 | C160: SECOP II | D160: CPS-150-2020 | E160: Contratos de prestación de servicios profesionales y de apoyo a la gestión | F160: Contratación directa | G160: Prestación de servicios profesionales y de apoyo a la gestión, o para la ejecución de trabajos artísticos que sólo puedan encomendarse a determinadas personas naturales; | H160: PRESTACIÓN DE SERVICIOS PERSONALES NECESARIOS PARA EL APOYO EN LA EJECUCIÓN DE ACTIVIDADES ADMINISTRATIVAS Y OPERATIVAS ADELANTADAS EN LA JUNTA ADMINISTRADORA LOCAL DE CHAPINERO. | I160: Inversión | J160: Bogotá Mejor para Todos | K160: 45 | L160: =IF(ISERROR(VLOOKUP(K160,Eje_Pilar_Prop!$C$2:$E$104,2,FALSE))," ",VLOOKUP(K160,Eje_Pilar_Prop!$C$2:$E$104,2,FALSE)) -> Gobernanza e influencia local, regional e internacional | M160: =IF(ISERROR(VLOOKUP(K160,Eje_Pilar_Prop!$C$2:$E$104,3,FALSE))," ",VLOOKUP(K160,Eje_Pilar_Prop!$C$2:$E$104,3,FALSE)) -> Eje Transversal 4 Gobierno Legitimo, Fortalecimiento Local y Eficiencia | N160: 1304 | O160: 51968302 | P160: DIANA SOFIA MELO CASTRO | Q160: 9922500 | R160: 0 | S160: 0 | T160: 1 | U160: 3720937 | V160: 13643437 | W160: 12651188 | X160: 2020-07-15 | Y160: 2020-07-16 | Z160: 2020-12-30 | AA160: 120 | AB160: 1 | AC160: 45 | AJ160: X | AL160: 0.9272727979 | AO160: =IF(SUMPRODUCT((A$14:A160=A160)*(B$14:B160=B160)*(D$14:D160=D160))>1,0,1) -> 1 | AP160: Contratos de prestación de servicios profesionales y de apoyo a la gestión | AQ160: Contratación directa | AR160: =IF(ISBLANK(G160),1,IFERROR(VLOOKUP(G160,Tipo!$C$12:$C$27,1,FALSE),"NO")) -> Prestación de servicios profesionales y de apoyo a la gestión, o para la ejecución de trabajos artísticos que sólo puedan encomendarse a determinadas personas naturales; | AS160: Inversión | AT160: =IF(ISBLANK(K160),1,IFERROR(VLOOKUP(K160,Eje_Pilar_Prop!$C$3:$C$104,1,FALSE),"NO")) -> 45 | AU160: SECOP II | AV160: 1 | AW160: Bogotá Mejor para Todos
A161: FDLCH-CPS-151-2020 | B161: 2020 | C161: SECOP II | D161: CPS-151-2020 | E161: Contratos de prestación de servicios profesionales y de apoyo a la gestión | F161: Contratación directa | G161: Prestación de servicios profesionales y de apoyo a la gestión, o para la ejecución de trabajos artísticos que sólo puedan encomendarse a determinadas personas naturales; | H161: PRESTACIÓN DE SERVICIOS PROFESIONALES PARA APOYAR AL ÁREA DE GESTIÓN DEL DESARROLLO LOCAL DE LA ALCALDÍA LOCAL DE CHAPINERO EN LA GESTIÓN DE LOS PROYECTOS RELACIONADOS CON LOS TEMAS DE RECREACIÓN Y DEPORTE, INCLUIDO EL PROYECTO 1298 CULTURA Y DEPORTE: TRANSFORMANDO VIDAS Y HACIENDO CIUDADANOS FELICES Y EN LA SUPERVISIÓN DE LOS CONTRATOS QUE LE SEAN ASIGNADOS | I161: Inversión | J161: Bogotá Mejor para Todos | K161: 11 | L161: =IF(ISERROR(VLOOKUP(K161,Eje_Pilar_Prop!$C$2:$E$104,2,FALSE))," ",VLOOKUP(K161,Eje_Pilar_Prop!$C$2:$E$104,2,FALSE)) -> Mejores oportunidades para el desarrollo a través de la cultura, la recreación y el deporte | M161: =IF(ISERROR(VLOOKUP(K161,Eje_Pilar_Prop!$C$2:$E$104,3,FALSE))," ",VLOOKUP(K161,Eje_Pilar_Prop!$C$2:$E$104,3,FALSE)) -> Pilar 1 Igualdad de Calidad de Vida | N161: 1298 | O161: 52724711 | P161: ADRIANA SIABATTO FERNÁNDEZ | Q161: 20400000 | R161: 0 | S161: 0 | T161: 1 | U161: 7650000 | V161: 28050000 | W161: 22950000 | X161: 2020-07-16 | Y161: 2020-07-16 | Z161: 2020-12-30 | AA161: 120 | AB161: 1 | AC161: 45 | AJ161: X | AL161: 0.8181818182 | AO161: =IF(SUMPRODUCT((A$14:A161=A161)*(B$14:B161=B161)*(D$14:D161=D161))>1,0,1) -> 1 | AP161: Contratos de prestación de servicios profesionales y de apoyo a la gestión | AQ161: Contratación directa | AR161: =IF(ISBLANK(G161),1,IFERROR(VLOOKUP(G161,Tipo!$C$12:$C$27,1,FALSE),"NO")) -> Prestación de servicios profesionales y de apoyo a la gestión, o para la ejecución de trabajos artísticos que sólo puedan encomendarse a determinadas personas naturales; | AS161: Inversión | AT161: =IF(ISBLANK(K161),1,IFERROR(VLOOKUP(K161,Eje_Pilar_Prop!$C$3:$C$104,1,FALSE),"NO")) -> 11 | AU161: SECOP II | AV161: 1 | AW161: Bogotá Mejor para Todos
A162: FDLCH-CPS-152-2020 | B162: 2020 | C162: SECOP II | D162: CPS-152-2020 | E162: Contratos de prestación de servicios profesionales y de apoyo a la gestión | F162: Contratación directa | G162: Prestación de servicios profesionales y de apoyo a la gestión, o para la ejecución de trabajos artísticos que sólo puedan encomendarse a determinadas personas naturales; | H162: PRESTACIÓN DE LOS SERVICIOS PERSONALES NECESARIOS PARA LA CONDUCCIÓN DE LOS VEHÍCULOS QUE CONFORMAN EL PARQUE AUTOMOTOR EN PROPIEDAD O CUSTODIA DEL FONDO DE DESARROLLO LOCAL DE CHAPINERO, Y EL TRANSPORTE DE SERVIDORES PÚBLICOS PARA LA REALIZACIÓN DE LAS ACTIVIDADES MISIONALES DE LA ALCALDÍA LOCAL DE CHAPINERO | I162: Inversión | J162: Bogotá Mejor para Todos | K162: 45 | L162: =IF(ISERROR(VLOOKUP(K162,Eje_Pilar_Prop!$C$2:$E$104,2,FALSE))," ",VLOOKUP(K162,Eje_Pilar_Prop!$C$2:$E$104,2,FALSE)) -> Gobernanza e influencia local, regional e internacional | M162: =IF(ISERROR(VLOOKUP(K162,Eje_Pilar_Prop!$C$2:$E$104,3,FALSE))," ",VLOOKUP(K162,Eje_Pilar_Prop!$C$2:$E$104,3,FALSE)) -> Eje Transversal 4 Gobierno Legitimo, Fortalecimiento Local y Eficiencia | N162: 1304 | O162: 79518739 | P162: GERARDO MORENO HERRERA | Q162: 9360000 | R162: 0 | S162: 0 | T162: 1 | U162: 3510000 | V162: 12870000 | W162: 12246000 | X162: 2020-07-16 | Y162: 2020-07-16 | Z162: 2021-01-14 | AA162: 120 | AB162: 2 | AC162: 60 | AJ162: X | AL162: 0.9515151515 | AO162: =IF(SUMPRODUCT((A$14:A162=A162)*(B$14:B162=B162)*(D$14:D162=D162))>1,0,1) -> 1 | AP162: Contratos de prestación de servicios profesionales y de apoyo a la gestión | AQ162: Contratación directa | AR162: =IF(ISBLANK(G162),1,IFERROR(VLOOKUP(G162,Tipo!$C$12:$C$27,1,FALSE),"NO")) -> Prestación de servicios profesionales y de apoyo a la gestión, o para la ejecución de trabajos artísticos que sólo puedan encomendarse a determinadas personas naturales; | AS162: Inversión | AT162: =IF(ISBLANK(K162),1,IFERROR(VLOOKUP(K162,Eje_Pilar_Prop!$C$3:$C$104,1,FALSE),"NO")) -> 45 | AU162: SECOP II | AV162: 1 | AW162: Bogotá Mejor para Todos
A163: FDLCH-CPS-153-2020 | B163: 2020 | C163: SECOP II | D163: CPS-153-2020 | E163: Contratos de prestación de servicios profesionales y de apoyo a la gestión | F163: Contratación directa | G163: Prestación de servicios profesionales y de apoyo a la gestión, o para la ejecución de trabajos artísticos que sólo puedan encomendarse a determinadas personas naturales; | H163: PRESTACIÓN DE LOS SERVICIOS PERSONALES NECESARIOS PARA LA CONDUCCIÓN DE LOS VEHÍCULOS QUE CONFORMAN EL PARQUE AUTOMOTOR EN PROPIEDAD O CUSTODIA DEL FONDO DE DESARROLLO LOCAL DE CHAPINERO, Y EL TRANSPORTE DE SERVIDORES PÚBLICOS PARA LA REALIZACIÓN DE LAS ACTIVIDADES MISIONALES DE LA ALCALDÍA LOCAL DE CHAPINERO | I163: Inversión | J163: Bogotá Mejor para Todos | K163: 45 | L163: =IF(ISERROR(VLOOKUP(K163,Eje_Pilar_Prop!$C$2:$E$104,2,FALSE))," ",VLOOKUP(K163,Eje_Pilar_Prop!$C$2:$E$104,2,FALSE)) -> Gobernanza e influencia local, regional e internacional | M163: =IF(ISERROR(VLOOKUP(K163,Eje_Pilar_Prop!$C$2:$E$104,3,FALSE))," ",VLOOKUP(K163,Eje_Pilar_Prop!$C$2:$E$104,3,FALSE)) -> Eje Transversal 4 Gobierno Legitimo, Fortalecimiento Local y Eficiencia | N163: 1304 | O163: 1018445848 | P163: JUAN DAVID CHICACAUSA SALAS | Q163: 9360000 | R163: 0 | S163: 0 | T163: 2 | U163: 4680000 | V163: 14040000 | W163: 12246000 | X163: 2020-07-16 | Y163: 2020-07-16 | Z163: 2021-01-14 | AA163: 120 | AB163: 2 | AC163: 60 | AJ163: X | AL163: 0.8722222222 | AO163: =IF(SUMPRODUCT((A$14:A163=A163)*(B$14:B163=B163)*(D$14:D163=D163))>1,0,1) -> 1 | AP163: Contratos de prestación de servicios profesionales y de apoyo a la gestión | AQ163: Contratación directa | AR163: =IF(ISBLANK(G163),1,IFERROR(VLOOKUP(G163,Tipo!$C$12:$C$27,1,FALSE),"NO")) -> Prestación de servicios profesionales y de apoyo a la gestión, o para la ejecución de trabajos artísticos que sólo puedan encomendarse a determinadas personas naturales; | AS163: Inversión | AT163: =IF(ISBLANK(K163),1,IFERROR(VLOOKUP(K163,Eje_Pilar_Prop!$C$3:$C$104,1,FALSE),"NO")) -> 45 | AU163: SECOP II | AV163: 1 | AW163: Bogotá Mejor para Todos
